{"text_format":"1","workbook":"xlsx","n_sheets":10,"sheets":["Instrukcja","JPK","ZestawienieObrotówiSald","Dziennik","Konta","Kontrahenci","Znaczniki","Z","G","A"],"not_rendered":{"charts":0,"images":61,"macros":1,"external_links":1,"defined_names":24,"comments":0,"pivot_tables":0},"unopened":[],"bounds":{"document_bytes":16777216,"sheet_cells":100000,"rows_first":2000,"rows_last":500,"rows_between":2000,"halvings":0,"cell_chars":16384,"cell_head_chars":4096},"cells_cut":0,"cells_raw":0,"read":"whole","date_system":"1900"}

{"sheet":"Instrukcja","index":0,"n_rows":241,"n_cols":16,"rows_kept":241,"cut":false,"hidden":false,"merged":[[0,1,0,11],[15,3,17,3],[21,3,23,3],[78,3,80,3],[92,0,92,2],[82,3,84,3]]}
[null,"Instrukcja obsługi programu do JPK_KR_PD(1)"]
[]
[null,"Program służy do wygenerowania pliku w formacie XML zawierającego dane o środkach trwałych i wartościach"]
[null,"niematerialnych i prawnych, który przesyłany jest do urzędu skarbowego."]
[]
[]
[]
[]
[]
[]
[]
[]
[]
[]
[]
[null,null,null,"-","Ten przycisk służy do zaimportowania danych z innego pliku JPK_KR_PD(1)"]
[null,null,null,null,"utworzonego w innym okresie rozliczeniowym lub w innym programie."]
[null,null,null,null,"Można importować więcej plików, dane z których zostaną dopisane w Ewidencji (scalanie)."]
[null,null,null,null,"Przed importem kolejnego xml należy usunąć dane na arkuszu ZestawienieObrotówiSald."]
[null,null,null,null,"Ważne: można również importować pliki XML utworzone według poprzedniego wzoru JPK_KR(1)"]
[]
[null,null,null,"-","Po przygotowaniu kompletnych danych tym przyciskiem utworzysz plik XML"]
[null,null,null,null,"w formacie wymaganym przez urząd skarbowy. Przed utworzeniem pliku XML"]
[null,null,null,null,"uruchamiana jest procedura sprawdzania kompletności wprowadzonych danych."]
[null,null,null,null,"Zapis JPK zawierającego 100 tys. pozycji Dziennika i 100 tys. pozycji Konta zajmuje około 1 minuty."]
[null,"Wypełnij wszystkie wymagane pola na arkuszu JPK"]
[null,"Urząd skarbowy znajdziesz wpisując fragment nazwy."]
[]
[]
[]
[]
[]
[]
[]
[]
[]
[null,"Kraj, województwo, powiat i gminę możesz wybrać z rozwijanej listy"]
[null,"pod warunkiem kolejności wyboru od województwa do gminy."]
[]
[null,"Jeżeli w ZOiS wprowadzone zostaną znaczniki S_12_3 (opcjonalne) to automatycznie można wypełnić RPD"]
[null,"Przyciskiem Oblicz RDP obliczysz i wstawisz obroty kont, które na Zestawieniu Obrotów i Sald oznaczono znacznikami S_12_3"]
[null,"Pola te można też wypełniać ręcznie na podstawie własnych obliczeń."]
[null,null,null,null,null,null,null,null,null,null,null,null,null,null,"Tak zliczane są wartości w polach K_1 do K_8"]
[null,null,null,null,null,null,null,null,null,null,null,null,null,null,"RPD","Znaczniki S_12_3 w ZOiS"]
[null,null,null,null,null,null,null,null,null,null,null,null,null,"S_11  ","K_1 = PD1 + PD1_1 + PD1_2 + PD1_3 + PD1_PB + PD1_PB_1 + PD1_PB_2 + PD1_PB_3"]
[null,null,null,null,null,null,null,null,null,null,null,null,null,"S_11  ","K_2 = PD2 + PD2_PB"]
[null,null,null,null,null,null,null,null,null,null,null,null,null,"S_11  ","K_3 = PD3_PB"]
[null,null,null,null,null,null,null,null,null,null,null,null,null,"S_10  ","K_4 = PD4 + PD4_1 + PD4_2 + PD4_3 + PD4_PB + PD4_PB_1 + PD4_PB_2 + PD4_PB_3"]
[null,null,null,null,null,null,null,null,null,null,null,null,null,"S_10  ","K_5 = PD5 + PD5_PB"]
[null,null,null,null,null,null,null,null,null,null,null,null,null,"S_10  ","K_6 = PD6_PB"]
[null,null,null,null,null,null,null,null,null,null,null,null,null,"S_11  ","K_7 = PD8_1 + PD8_PB_1"]
[null,null,null,null,null,null,null,null,null,null,null,null,null,"S_10  ","K_8 = PD7 + PD7_PB + PD8_2 + PD8_PB_2"]
[]
[null,null,null,null,null,null,null,null,null,null,null,null,null,"      S_10 - Saldo po stronie Winien, w okresie którego dotyczy JPK (ZOiS)"]
[null,null,null,null,null,null,null,null,null,null,null,null,null,"      S_11 - Saldo po stronie Ma, w okresie którego dotyczy JPK (ZOiS)"]
[]
[]
[null,"Wypełnij Rejestry z Ksiąg rachunkowych"]
[]
[null,"Księgi rachunkowe w JPK składają się z czterech arkuszy: 1. Zestawienie Obrotów i Sald 2. Dziennik 3. Konta 4. Kontrahenci"]
[]
[]
[]
[]
[null,"Znaczenie przycisków"]
[]
[]
[]
[]
[]
[null,null,null,"-","zaznacz komórkę i kliknij Wstaw wiersz co utworzy nad nią pusty wiersz. Kliknięcie Usuń wiersz usunie zaznaczony wiersz."]
[]
[]
[]
[null,null,null,null,null,null,null,null,null,null,null,null,null,"- wstawiony wiersz"]
[]
[]
[]
[null,null,null,"-","Uruchamia procedurę sprawdzania poprawności i kompletności wprowadzonych danych."]
[null,null,null,null,"Naprawia też formatowanie komórek uszkodzonych przez wklejanie danych inne niż specjalne wklejanie wartości."]
[null,null,null,null,"Znalezienie błędu lub braku wymaganych danych zatrzyma sprawdzanie i zaznaczy tą komórkę."]
[]
[null,null,null,"-","Uruchamia import danych z różnego rodzaju źródeł, którymi mogą być pliki w formacie csv, txt, xml, xlsx, dbf, ods."]
[null,null,null,null,"Można importować więcej plików, dane z których zostaną dopisane do ewidencji (scalanie)."]
[null,null,null,null,"Pliki w formacie XML to też JPK_KR_PD.xml  i JPK_KR.xml z których można importować części JPK dotyczące tylko danego arkusza."]
[]
[null,null,null,null,"Pozostałe pliki powinny zawierać dane uporządkowane tabelarycznie. Csv, dbf i txt powinny zawierać dane rozdzielone znakami  ; , lub tab."]
[null,null,null,null,"Jeżeli dane zawierają nagłówek oznaczony kodami D_1 D_2 D_3 itd. jak w wierszu 3 Dziennik to import wykona się automatycznie - analogicznie ZOiS, Konta, Kontrahenci."]
[null,null,null,null,"W innych przypadkach dane otworzą się jako arkusz gdzie trzeba zaznaczyć pierwszą lewą komórkę i nacisnąć klawisz funkcyjny F5."]
[]
[null,null,null,null,"Import danych na arkuszach kalkulacyjnych xlsx i ods dokonywany jest na dwa sposoby."]
[null,null,null,null,"Jeżeli dane zawierają nagłówek oznaczony kodami D_1 D_2 D_3 itd. jak w wierszu 3 Ewidencji środków"]
["Wiersz 3 Dziennika"]
[null,null,null,null,"to import wykona się automatycznie. Kolejność i kompletność oznaczeń nagłówka importowanych danych nie jest wymagana ale D_1 jest obowiązkowy."]
[]
[]
["Przykład importowanego arkusza"]
[]
[]
[]
[null,null,null,null,"Jeżeli dane nie zawierają tych nagłówków to import jest możliwy wyłącznie pod warunkiem identycznej kolejności kolumn importowanych danych z Ewidencją."]
[]
[]
["Przykład importowanego arkusza"]
[]
[null,null,null,null,"Przy tym rodzaju importu w jego trakcie otworzy się importowany arkusz, gdzie trzeba zaznaczyć myszką pierwszą lewą komórkę (w ww. przykładzie B2)"]
[null,null,null,null,"i nacisnąć klawisz funkcyjny F5 aby zakończyć import."]
[null,null,null,null,"Ważne!"]
[null,null,null,null,"Powyższe metody importu przenoszą dane tekstowo co zabezpiecza je przed automatyczną zmianą przez Excela. Dotyczy to zwłaszcza transformacji daty!"]
[null,null,null,null,"Przy zwykłym wklejaniu Excel może automatycznie zmienić datę na format amerykański np. 12-05-2024 na 05-12-2024."]
[]
[null,null,null,"-","Usuwa wszystkie dane na arkuszu Ewidencji. Naprawia formatowanie komórek uszkodzonych przez wklejanie danych inne niż specjalne wklejanie wartości."]
[]
[null,null,null,null,"Zestawienie obrotów i sald"]
[]
[null,null,null,null,null,null,null,null,null,null,null,"Obecny wzór JPK_KR_PD wymaga uzupełnienia Zestawienia Obrotów i Sald"]
[null,null,null,null,null,null,null,null,null,null,null,"określonego rodzaju znacznikami."]
[]
[]
[]
[]
[]
[]
[]
[]
[]
[]
[null,null,null,null,null,null,null,null,null,null,null,"Wyboru tych znaczników dokonasz w oknie, które uruchomione zostanie po"]
[null,null,null,null,null,null,null,null,null,null,null,"naciśnięciu klawisza Enter w jednej z trzech kolumn."]
[]
[null,null,null,null,"Znaczników w zależności od typu jednostki może być bardzo dużo. Dlatego np. dla jednostek pozostałych podzielono je na Aktywa, Pasywa i Wynikowe,"]
[null,null,null,null,"a przykładowo same Aktywa są na trzech stronach."]
[null,null,null,null,"Wcześniej jednak otworzy się wyszukiwarka po frazie, gdzie po wpisaniu kilku liter wyświetli się lista zawierająca szukany wyraz."]
[null,null,null,null,"Jeżeli tak nie uda się znaleźć właściwego znacznika to można kontynuować w oknie \"Zestawienie znaczników kont\""]
[]
[]
[]
[]
[]
[]
[]
[]
[]
[]
[]
[]
[]
[]
[]
[]
[]
[]
[]
[]
[]
[]
[]
[]
[]
[]
[]
[]
[]
[]
[]
[]
[]
[]
[null,null,null,null,"Nie korzysta się ze wszystkich znaczników. Dlatego znacznik raz wybrany dodany zostanie do strony Znaczniki wybrane ostatnio, gdzie jest dostępny na krótkiej liście znaczników."]
[null,null,null,null,"Ponadto można przypisać znacznik do konta naciskając 2x Enter co pozwoli przypisać do danego konta znacznik wybrany ostatnio, jeżeli konta należą do tej samej grupy."]
[]
[null,null,null,null,"Kiedy lista znaczników ostatnio wybieranych zrobi się za długa to można ją wyczyścić zielonym przyciskiem."]
[]
[]
[]
[]
[]
[]
[]
[]
[]
[]
[null,null,null,null,"Po zakończeniu oznaczania kont znacznikami wklej je na zakładce Znaczniki"]
[]
[]
[]
[]
[]
[]
[]
[]
[]
[]
[]
[]
[]
[]
[null,null,null,null,"W następnym okresie rozliczeniowym wystarczy skopiować ten wykaz a niebieski przycisk Wstaw Znaczniki.. uzupełni automatycznie Zestawienie Obrotów i Sald."]
[]
[]
[]
[null,null,null,null,null,null,"Klawiszem Enter można również na arkuszu Konta wyszukać potrzebny kod waluty"]
[]
[]
[]
[]
[]
[]
[]
[]
[]
[]
[]
[]
[]
[]
[]
[]
[]
[]
[null,null,null,null,null,null,null,"Klawiszem Enter można na arkuszu Kontrahenci wyszukać potrzebny kod kraju."]
[]
[]
[]
[]
[]
[]
[]
[]
[]
[]
[]
[]
[]
[]
[]
[]
[]
[]
[]
[null,null,null,null,null,"Autor Jan Podedworny podjan5@gmail.com"]

{"sheet":"JPK","index":1,"n_rows":70,"n_cols":41,"rows_kept":70,"cut":false,"hidden":false,"merged":[[49,3,49,19],[45,2,45,23],[1,1,1,24],[94,1,94,24],[93,1,93,24],[69,1,69,24],[42,19,42,23],[60,19,60,22],[57,10,57,23],[42,13,42,18],[43,3,43,5],[43,6,43,7],[43,8,43,12],[43,17,43,19],[43,13,43,16],[43,20,43,23],[42,7,42,12],[56,3,56,9],[57,3,57,9],[60,2,60,18],[56,10,56,23],[55,2,55,23],[46,3,46,19],[47,3,47,19],[29,3,29,17],[30,3,30,17],[34,6,34,15],[40,2,40,23],[44,2,44,23],[42,3,42,6],[41,2,41,23],[38,19,38,23],[39,19,39,23],[38,3,38,18],[39,3,39,18],[31,3,31,12],[32,3,32,12],[31,13,31,17],[32,15,32,17],[32,13,32,14],[11,20,11,23],[20,20,20,23],[3,1,3,24],[4,2,4,23],[5,2,5,23],[7,21,7,23],[8,21,8,23],[7,2,7,11],[8,2,8,11],[6,2,6,23],[7,12,7,13],[7,14,7,20],[19,20,19,23],[14,17,14,23],[18,17,18,19],[19,17,19,19],[14,4,14,16],[17,4,17,16],[18,4,18,9],[18,10,18,16],[19,4,19,9],[19,10,19,16],[15,2,16,3],[15,4,15,9],[0,0,0,12],[0,13,0,24],[8,12,8,20],[27,2,27,23],[12,20,12,23],[13,20,13,23],[12,4,12,9],[13,4,13,9],[12,10,12,16],[12,17,12,19],[25,3,25,6],[25,7,25,13],[20,2,20,3],[20,4,20,9],[16,10,16,16],[13,10,13,16],[12,2,13,3],[13,17,13,19],[11,2,11,3],[9,2,9,7],[9,8,9,23],[11,4,11,16],[11,17,11,19],[23,3,23,23],[2,1,2,24],[16,17,16,19],[25,14,25,23],[22,3,22,23],[37,22,37,23],[36,3,36,6],[21,2,21,23],[36,19,36,21],[37,19,37,21],[37,7,37,18],[37,3,37,6],[36,7,36,18],[35,6,35,15],[24,3,24,23],[20,10,20,16],[20,17,20,19],[36,22,36,23],[10,2,10,23],[31,18,31,23],[32,22,32,23],[32,18,32,21],[18,20,18,23],[15,10,15,16],[15,17,15,19],[16,4,16,9],[54,2,54,23],[46,20,46,23],[47,20,47,23],[48,20,48,23],[49,20,49,23],[50,20,50,23],[51,20,51,23],[52,20,52,23],[53,20,53,23],[51,3,51,19],[52,3,52,19],[53,3,53,19],[50,3,50,19],[26,2,26,23],[29,18,29,23],[34,16,34,23],[35,3,35,5],[34,3,34,5],[35,16,35,23],[28,2,28,23],[33,2,33,23],[48,3,48,19],[30,18,30,23]]}
["Uruchamianie przycisków i opcji wymaga włączenia makro",null,null,null,null,null,null,null,null,null,null,null,null,"INSTRUKCJA - KLIKNIJ",null,null,null,null,null,null,null,null,null,null,null,null,null,null,null,null,1,"S_1",1,"D_1",1,"D_1",1,"T_1",null,"banki",1]
[null,"KLIENT JPK_WEB - aplikacja do wysyłki XML",null,null,null,null,null,null,null,null,null,null,null,null,null,null,null,null,null,null,null,null,null,null,null,null,null,null,null,null,2,"S_2",2,"D_2",2,"Z_1",2,"T_2",null,"ubezpieczyciele i zakłady reasekuracji",2]
[null,null,null,null,null,null,null,null,null,null,null,null,null,null,null,null,null,null,null,null,null,null,null,null,null,null,null,null,null,null,3,"S_3",3,"D_3",3,"Z_2",3,"T_3",null,"organizacje pożytku publicznego i wolontariatu",3]
[null,"Licencja jest ważna do 31-08-2025",null,null,null,null,null,null,null,null,null,null,null,null,null,null,null,null,null,null,null,null,null,null,null,null,null,null,null,null,4,"S_4",4,"D_4",4,"Z_3",null,null,null,"fundusze inwestycyjne",4]
[null,null,"  POLA JASNE WYPEŁNIA PODMIOT, WYPEŁNIĆ KOMPUTEROWO DUŻYMI LITERAMI",null,null,null,null,null,null,null,null,null,null,null,null,null,null,null,null,null,null,null,null,null,null,null,null,null,null,null,5,"S_5",5,"D_5",5,"Z_4",null,null,null,"domy maklerskie",5]
[null,null,"                 Składanie JPK wyłącznie w wersji elektronicznej",null,null,null,null,null,null,null,null,null,null,null,null,null,null,null,null,null,null,null,null,null,null,null,null,null,null,null,6,"S_6",6,"D_6",6,"Z_5",null,null,null,"SKOK",6]
[null,null,null,null,null,null,null,null,null,null,null,null,null,null,null,null,null,null,null,null,null,null,null,null,null,null,null,null,null,null,7,"S_7",7,"D_7",7,"Z_6",null,null,null,"jednostki pozostałe",7]
[null,null," 1. Numer Identyfikacji Podatkowej",null,null,null,null,null,null,null,null,null," 2. Nr dokumentu",null,null,null,null,null,null,null,null," 3. Status",null,null,null,null,null,null,null,null,8,"S_8",8,"D_8",8,"Z_7",null,null,null,"jednostki stosujące MSSF",8]
[null,null,null,null,null,null,null,null,null,null,null,null,null,null,null,null,null,null,null,null,null,null,null,null,null,null,null,null,null,null,9,"S_9",9,"D_9",9,"Z_8"]
[null,null,"  JPK_KR_PD(1)",null,null,null,null,null,null,null,null,null,null,null,null,null,null,null,null,null,null,null,null,null,null,null,null,null,null,null,10,"S_10",10,"D_10",10,"Z_9"]
[null,null,"JEDNOLITY PLIK KONTROLNY DLA KSIĄG RACHUNKOWYCH",null,null,null,null,null,null,null,null,null,null,null,null,null,null,null,null,null,null,null,null,null,null,null,null,null,null,null,11,"S_11",11,"D_11"]
[null,null,null,null,"za okres",null,null,null,null,null,null,null,null,null,null,null,null,null,null,null,null,null,null,null,null,null,null,null,null,null,12,"S_12_1",12,"D_12"]
[null,null,null,null," 4. Od (dzień - miesiąc - rok)",null,null,null,null,null," 5. Do (dzień - miesiąc - rok)",null,null,null,null,null,null,null,null,null,null,null,null,null,null,null,null,null,null,null,13,"S_12_2"]
[null,null,null,null,null,null,null,null,null,null,null,null,null,null,null,null,null,null,null,null,null,null,null,null,null,null,null,null,null,null,14,"S_12_3"]
[null,null,null,null,"ROK OBROTOWY"]
[null,null,null,null," 6. Od (dzień - miesiąc - rok)",null,null,null,null,null," 7. Do (dzień - miesiąc - rok)",null,null,null,null,null,null,null,null,null,null,null,null,null,null,null,null,null,null,null,1,"KodKonta",1,"NrZapisuDziennika",1,"LpZapisu",2]
[null,null,null,null,null,null,null,null,null,null,null,null,null,null,null,null,null,null,null,null,null,null,null,null,null,null,null,null,null,null,2,"OpisKonta",2,"OpisDziennika",2,"NrZapisu",1]
[null,null,null,null,"ROK PODATKOWY (wypełnić jeżeli rok podatkowy różni się od roku obrotowego)",null,null,null,null,null,null,null,null,null,null,null,null,null,1,null,null,null,null,null,null,null,null,null,null,null,3,"KodZespolu",3,"D_3",3,"KodKontaWinien",4]
[null,null,null,null," 8. Od (dzień - miesiąc - rok)",null,null,null,null,null," 9. Do (dzień - miesiąc - rok)",null,null,null,null,null,null,null,null,null," 10. Domyślny kod waluty",null,null,null,null,null,null,null,null,null,4,"BilansOtwarciaWinien",4,"NrDowoduKsiegowego",4,"KwotaWinien",5]
[null,null,null,null,null,null,null,null,null,null,null,null,null,null,null,null,null,null,null,null,"PLN",null,null,null,null,null,null,null,null,null,5,"BilansOtwarciaMa",5,"RodzajDowodu",5,"KwotaWinienWaluta",6]
[null,null,null,null,null,null,null,null,null,null,null,null,null,null,null,null,null,null,null,null,null,null,null,null,null,null,null,null,null,null,6,"ObrotyWinien",6,"DataOperacji",6,"KodWalutyWinien",7]
[null,null," A. MIEJSCE I CEL SKŁADANIA JPK",null,null,null,null,null,null,null,null,null,null,null,null,null,null,null,null,null,null,null,null,null,null,null,null,null,null,null,7,"ObrotyMa",7,"DataDowodu",7,"OpisZapisuWinien",3]
[null,null,null," 11. Urząd skarbowy, do którego adresowany jest JPK",null,null,null,null,null,null,null,null,null,null,null,null,null,null,null,null,null,null,null,null,null,null,null,null,null,null,8,"ObrotyWinienNarast",8,"DataKsiegowania",8,"KodKontaMa",4]
[null,null,null,null,null,null,null,null,null,null,null,null,null,null,null,null,null,null,null,null,null,null,null,null,null,null,{"$f":"IF(D24=\"\",\"\",VLOOKUP(D24,G!I1:J400,2,FALSE))","v":""},null,null,null,9,"ObrotyMaNarast",9,"KodOperatora",9,"KwotaMa",8]
[null,null,null," 12. Cel złożenia  (zaznaczyć właściwy kwadrat):",null,null,null,null,null,null,null,null,null,null,null,null,null,null,null,null,null,null,null,null,null,null,null,null,null,null,10,"SaldoWinien",10,"OpisOperacji",10,"KwotaMaWaluta",9]
[null,null,null,null,null,null,null,"      1. złożenie JPK po raz pierwszy",null,null,null,null,null,null,"2. złożenie korekty JPK",null,null,null,null,null,null,null,null,null,null,null,null,null,null,null,11,"SaldoMa",11,"DziennikKwotaOperacji",11,"KodWalutyMa",10]
[null,null,null,null,null,null,null,null,null,null,null,null,null,null,null,null,null,null,null,null,null,null,null,null,null,null,null,null,null,null,null,null,null,null,12,"OpisZapisuMa",3]
[null,null," B. DANE PODMIOTU"]
[null,null," B.1. DANE IDENTYFIKACYJNE"]
[null,null,null," 13. Nazwa pełna",null,null,null,null,null,null,null,null,null,null,null,null,null,null," 14. REGON"]
[]
[null,null,null," 15. Rodzaj podmiotu",null,null,null,null,null,null,null,null,null," 16. Podatnik stosujący MSSF",null,null,null,null," 17. Podatnik CIT estoński"]
[null,null,null,null,null,null,null,null,null,null,null,null,null,null,null,"1. tak",null,null,null,null,null,null,"   1. tak",null,null,null,{"$f":"IF(D33=\"\",\"\",VLOOKUP(D33,AN1:AO8,2,FALSE))","v":""}]
[null,null," B.2. ADRES SIEDZIBY"]
[null,null,null," 18. Kraj",null,null," 19. Województwo",null,null,null,null,null,null,null,null,null," 20. Powiat"]
[null,null,null,null,null,null,null,null,null,null,null,null,null,null,null,null,null,null,null,null,null,null,null,null,null,null,{"$f":"IF(D36=\"\",\"\",VLOOKUP(D36,G!L1:M254,2,FALSE))","v":""}]
[null,null,null," 21. Gmina",null,null,null," 22. Ulica",null,null,null,null,null,null,null,null,null,null,null," 23. Nr domu",null,null," 24. Nr lokalu"]
[]
[null,null,null," 25. Miejscowość",null,null,null,null,null,null,null,null,null,null,null,null,null,null,null," 26. Kod pocztowy"]
[]
[]
[null,null," C. KSIĘGI RACHUNKOWE"]
[null,null,null," 27. Liczba zapisów dziennika",null,null,null,{"$f":"Dziennik!A2","v":0},null,null,null,null,null," 28. Suma wartości kwot operacji",null,null,null,null,null,{"$f":"SUM(Dziennik!K2)","v":0}]
[null,null,null," 29. Liczba wierszy kont",null,null,{"$f":"Konta!A2","v":0},null," 30. Suma Winien",null,null,null,null,{"$f":"SUM(Konta!E2)","v":0},null,null,null," 31. Suma Ma",null,null,{"$f":"SUM(Konta!H2)","v":0}]
[]
[null,null," D. ROZLICZENIE PODATKU DOCHODOWEGO NA ZASADACH OGÓLNYCH"]
[null,null,null," 32.  K_1  Przychody zwolnione z opodatkowania (trwałe różnice pomiędzy zyskiem/stratą dla celów rachunkowych\n                a dochodem/stratą dla celów podatkowych)"]
[null,null,null," 33.  K_2  Przychody niepodlegające opodatkowaniu w roku bieżącym"]
[null,null,null," 34.  K_3  Przychody podlegające opodatkowaniu w roku bieżącym, ujęte w księgach rachunkowych lat ubiegłych"]
[null,null,null," 35.  K_4  Koszty niestanowiące kosztów uzyskania przychodów (trwałe różnice pomiędzy zyskiem/stratą dla celów\n                rachunkowych a dochodem/stratą dla celów podatkowych)"]
[null,null,null," 36.  K_5  Koszty nieuznawane za koszty uzyskania przychodów w bieżącym roku"]
[null,null,null," 37.  K_6  Koszty uznawane za koszty uzyskania przychodów w roku bieżącym, ujęte w księgach lat ubiegłych"]
[null,null,null," 38.  K_7  Przychody podlegające opodatkowaniu nie ujmowane w księgach rachunkowych"]
[null,null,null," 39.  K_8  Koszty uznawane za koszty uzyskania przychodów nie ujmowane w księgach rachunkowych"]
[]
[null,null," E. DATA SPORZĄDZENIA JPK"]
[null,null,null," 40. Data wytworzenia JPK (dzień - miesiąc - rok)",null,null,null,null,null,null," 41. Uwagi własne (niewysyłane)"]
[]
[]
[]
[null,null,null,null,null,null,null,null,null,null,null,null,null,null,null,null,null,null,null,"JPK_KR_PD(1)",null,null,null,"1/1"]
[]
[]
[]
[]
[null,"INSTRUKCJA"]
[null,"Arkusz zapisuje dane do pliku XML zgodnym z schematem Ministerstwa Finansów."]
[null,"Plik JPK w formacie xml zapisywany jest w tym samym folderze, w którym znajduje się ten arkusz Excela."]
[null,"Plik JPK można wysłać internetem przy użyciu programu Ministerstwa Finansów o nazwie:"]
[null,"KLIENT JPK_WEB - aplikacja do wysyłki XML"]

{"sheet":"ZestawienieObrotówiSald","index":2,"n_rows":3,"n_cols":19,"rows_kept":3,"cut":false,"hidden":false,"merged":[]}
["\n\n\nIdentyfikator konta ostatecznego zapisu (konta pomocniczego lub konta księgi głównej, jeżeli nie jest wymagany zapis na kontach pomocniczych)","\n\n\nNazwa konta","Identyfikator konta nadrzędnego","Bilans otwarcia po stronie Winien w walucie polskiej","Bilans otwarcia po stronie Ma w walucie polskiej","Obroty konta po stronie Winien, w okresie którego dotyczy JPK","Obroty konta po stronie Ma, w okresie którego dotyczy JPK","Obroty konta po stronie Winien, w okresie od otwarcia ksiąg do daty końcowej okresu, którego dotyczy JPK","Obroty konta po stronie Ma, w okresie od otwarcia ksiąg do daty końcowej okresu, którego dotyczy JPK","Saldo po stronie Winien w walucie polskiej na datę końcową okresu, którego dotyczy JPK z uwzględnieniem bilansu otwarcia","Saldo po stronie Ma w walucie polskiej na datę końcową okresu, którego dotyczy JPK z uwzględnieniem bilansu otwarcia","Znacznik konta wynikający z rozporządzenia w sprawie dodatkowego zakresu danych, o które należy uzupełnić prowadzone księgi rachunkowe","Dodatkowy znacznik konta wynikający z rozporządzenia w sprawie dodatkowego zakresu danych, o które należy uzupełnić prowadzone księgi rachunkowe","Dodatkowy znacznik konta wynikający z rozporządzenia w sprawie dodatkowego zakresu danych, o które należy uzupełnić prowadzone księgi rachunkowe (PD)"]
[null,null,null,{"$f":"SUM(D4:D1048576)","v":0},0,0,0,0,0,0,0,null,null,null,null,3]
["S_1","S_2","S_3","S_4","S_5","S_6","S_7","S_8","S_9","S_10","S_11","S_12_1","S_12_2","S_12_3",null,0,0,"",""]

{"sheet":"Dziennik","index":3,"n_rows":3,"n_cols":12,"rows_kept":3,"cut":false,"hidden":false,"merged":[]}
["\n\n\nNumer zapisu w dzienniku","\n\n\nOpis dziennika","\n\nKod kontrahenta identyfikujący jednoznacznie podmiot w systemie finansowo-księgowym jednostki- identyczny jak w elemencie T_1 w sekcji Kontrahent","Numer identyfikacyjny dowodu nadany przez wystawcę dowodu księgowego, zgodnie z wymogiem art. 21 ust. 1 pkt 1 UoR","\n\nRodzaj dowodu księgowego (który stanowi podstawę zapisu księgowego, o czym mowa w art. 23 ust. 2 pkt 2 UoR) umieszczony na dowodzie księgowym przez wystawcę, zgodnie z art. 21 ust. 1 pkt 1 UoR","Data dokonania operacji gospodarczej, o której mowa w art- 23 ust- 2 pkt 1 UoR, umieszczona na dowodzie księgowym przez jego wystawcę","Data sporządzenia dowodu księgowego, o której mowa w art- 23 ust- 2 pkt 2 UoR, umieszczona na dowodzie księgowym przez jego wystawcę","Data, pod którą ujęto dowód w księgach","Dane pozwalające na ustalenie osoby odpowiedzialnej za treść zapisu zgodnie z wymogiem określonym w art. 14 ust. 4 UoR, np. E Nowak","Opis operacji gospodarczej, o której mowa w art. 23 ust. 2 pkt 3 UoR, umieszczony na dowodzie księgowym przez jego wystawcę, zgodnie z wymogiem określonym w art. 21 ust. 1 pkt 3 UoR, lub zrozumiały tekst, skrót lub kod opisu operacji, z tym że należy posiadać pisemne objaśnienia treści skrótów lub kodów","Kwota operacji gospodarczej, o której mowa w art, 23 ust, 2 pkt 4 UoR, wynika z wartości operacji gospodarczej zamieszczonej przez wystawcę dowodu księgowego, zgodnie z art, 21 ust, 1 pkt 3 UoR","Numer identyfikujący fakturę lub fakturę korygującą w Krajowym Systemie e-Faktur (KSeF)"]
[{"$f":"COUNTA(A4:A1048576)","v":0},null,null,null,null,null,null,null,null,null,{"$f":"SUM(K4:K1048576)","v":0}]
["D_1","D_2","D_3","D_4","D_5","D_6","D_7","D_8","D_9","D_10","D_11","D_12"]

{"sheet":"Konta","index":4,"n_rows":3,"n_cols":10,"rows_kept":3,"cut":false,"hidden":false,"merged":[]}
["\n\n\nNumer zapisu w dzienniku\n- identyczny jak w elemencie D_1 w sekcji Dziennik","Numer kolejny szczegółowego zapisu księgowania","Opis dla linii zapisu","\n\nIdentyfikator konta ostatecznego zapisu (konta pomocniczego lub konta księgi głównej, jeżeli nie jest wymagany zapis na kontach pomocniczych) - identyczny z elementem S_1 sekcji ZOiS","Kwota zapisu transakcji po stronie Winien","Kwota zapisu transakcji po stronie Winien w walucie obcej dla operacji walutowych","Kod waluty dla operacji walutowych dla księgowań po stronie Winien","Kwota zapisu transakcji po stronie Ma","Kwota zapisu transakcji po stronie Ma w walucie obcej dla operacji walutowych","Kod waluty dla operacji walutowych księgowanych po stronie Ma"]
[{"$f":"COUNTA(A4:A1048576)","v":0},null,null,null,{"$f":"SUM(E4:E1048576)","v":0},{"$f":"SUM(F4:F1048576)","v":0},null,{"$f":"SUM(H4:H1048576)","v":0},{"$f":"SUM(I4:I1048576)","v":0}]
["D_1","Z_1","Z_2","Z_3","Z_4","Z_5","Z_6","Z_7","Z_8","Z_9"]

{"sheet":"Kontrahenci","index":5,"n_rows":3,"n_cols":3,"rows_kept":3,"cut":false,"hidden":false,"merged":[]}
["Kod kontrahenta identyfikujący jednoznacznie podmiot w systemie finansowo-księgowym jednostki","Kod kraju nadania identyfikatora podatkowego","Numer identyfikacji podatkowej kontrahenta"]
[{"$f":"COUNTA(A4:A1048576)","v":0}]
["T_1","T_2","T_3"]

{"sheet":"Znaczniki","index":6,"n_rows":10,"n_cols":6,"rows_kept":10,"cut":false,"hidden":false,"merged":[]}
["Konto","S_12_1","S_12_2","S_12_3",{"$f":"COUNTA((A2:A1048576))","v":0},"Znaczniki przypisane do kont na Zestawieniu obrotów i sald"]
[null,null,null,null,null,"Po zakończeniu oznaczania w ZOiS kont Znacznikami kont w kolumnach S_12_1, S_12_2 i S_12_3"]
[null,null,null,null,null,"kliknij Wklej Znaczniki aby wstawić je w tym zestawieniu (usuwa stare i wkleja nowe)."]
[]
[]
[]
[]
[]
[null,null,null,null,null,"Kliknij Wstaw znaczniki aby uzupełnić w ZOiS konta znacznikami w kolumnach S_12_1, S_12_2 i S_12_3 "]
[null,null,null,null,null,"(wyszukuje w ZOiS konta i przypisuje znaczniki)."]

{"sheet":"Z","index":7,"n_rows":796,"n_cols":16,"rows_kept":796,"cut":false,"hidden":true,"merged":[]}
[null,"Aktywa -2",3,"Pasywa -4",5,"Wynikowe - 6",7,"RZIS - 8",9,"Bilans - 10",11,"RW -12",13,null,{"$f":"COUNTA(O2:O100)","v":8}]
["Banki - 1",null,null,null,null,null,null,null,null,null,null,null,null,null,"INNE","Inne, niewskazane w słowniku"]
[null,"B2AI1","Kasa, operacje z Bankiem Centralnym | W rachunku bieżącym","B2PI1","PASYWA | Zobowiązania wobec Banku Centralnego","R2I1","Przychody z tytułu odsetek | Od sektora finansowego",null,null,null,null,null,null,null,"B3AEI_U","Inne składniki aktywów | Rzeczowe składniki aktywów | Umorzenie rzeczowych składników aktywów"]
[null,"B2AI2","Kasa, operacje z Bankiem Centralnym | Rezerwa obowiązkowa","B2PII1","PASYWA | Zobowiązania wobec sektora finansowego | W rachunku bieżącym","R2I2","Przychody z tytułu odsetek | Od sektora niefinansowego",null,null,null,null,null,null,null,"RFI_PD","RW | Podatek dochodowy"]
[null,"B2AI3","Kasa, operacje z Bankiem Centralnym | Inne środki","B2PII2","PASYWA | Zobowiązania wobec sektora finansowego | Terminowe","R2I3","Przychody z tytułu odsetek | Od sektora budżetowego",null,null,null,null,null,null,null,"BAAI1_A","trwałe | Wartości niematerialne i prawne | Koszty zakończonych prac rozwojowych | Odpisy aktualizujące wartość kosztów zakończonych prac rozwojowych"]
[null,"B2AI_A","Kasa, operacje z Bankiem Centralnym | Odpisy aktualizujące wartość należności / odpisy z tytułu utraty wartości","B2PIII1a","PASYWA | Zobowiązania wobec sektora niefinansowego | Rachunki oszczędnościowe, w tym: | Bieżące","R2I4","Przychody z tytułu odsetek | Z papierów wartościowych o stałej kwocie dochodu",null,null,null,null,null,null,null,"RPDI_RKGI_POW","Pozostałe przychody operacyjne | Przychody ze zbycia niefinansowych aktywów trwałych | Od jednostek powiązanych"]
[null,"B2AII_W","Dłużne papiery wartościowe uprawnione do redyskontowania w Banku Centralnym","B2PIII1b","PASYWA | Zobowiązania wobec sektora niefinansowego | Rachunki oszczędnościowe, w tym: | Terminowe","R2II1","Koszty odsetek | Od sektora finansowego",null,null,null,null,null,null,null,"RPBI","Koszty działalności operacyjnej | Amortyzacja"]
[null,"B2AII_A","Dłużne papiery wartościowe uprawnione do redyskontowania w Banku Centralnym | Odpisy aktualizujące wartość dłużnych papierów wartościowych uprawnionych do redyskontowania w Banku Centralnym / odpisy z tytułu utraty wartości","B2PIII2a","PASYWA | Zobowiązania wobec sektora niefinansowego | Pozostałe, w tym: | Bieżące","R2II2","Koszty odsetek | Od sektora niefinansowego",null,null,null,null,null,null,null,"RPAI_RKAI_POW","Przychody netto ze sprzedaży i zrównane z nimi / przychody netto ze sprzedaży produktów, towarów i materiałów | Przychody netto ze sprzedaży produktów | Od jednostek powiązanych"]
[null,"B2AIII1_W","Należności od sektora finansowego | W rachunku bieżącym","B2PIII2b","PASYWA | Zobowiązania wobec sektora niefinansowego | Pozostałe, w tym: | Terminowe","R2II3","Koszty odsetek | Od sektora budżetowego",null,null,null,null,null,null,null,"RKE","Koszty ogólnego zarządu"]
[null,"B2AIII1_rc","Należności od sektora finansowego | W rachunku bieżącym | Rezerwy celowe","B2PIV1","PASYWA | Zobowiązania wobec sektora budżetowego | Bieżące","R2IV","Przychody z tytułu prowizji"]
[null,"B2AIII1_A","Należności od sektora finansowego | W rachunku bieżącym | Odpisy aktualizujące wartość należności kredytowych od sektora finansowego w rachunku bieżącym / odpisy z tytułu utraty wartości","B2PIV2","PASYWA | Zobowiązania wobec sektora budżetowego | Terminowe","R2V","Koszty prowizji"]
[null,"B2AIII2_W","Należności od sektora finansowego | Terminowe","B2PV","PASYWA | Zobowiązania z tytułu sprzedanych papierów wartościowych z udzielonym przyrzeczeniem odkupu","R2VII1","Przychody z udziałów lub akcji, pozostałych papierów wartościowych i innych instrumentów finansowych, o zmiennej kwocie dochodu | Od jednostek zależnych"]
[null,"B2AIII2_rc","Należności od sektora finansowego | Terminowe | Rezerwy celowe","B2PVI","PASYWA | Zobowiązania z tytułu emisji dłużnych papierów wartościowych","R2VII2","Przychody z udziałów lub akcji, pozostałych papierów wartościowych i innych instrumentów finansowych, o zmiennej kwocie dochodu | Od jednostek współzależnych"]
[null,"B2AIII2_A","Należności od sektora finansowego | Terminowe | Odpisy aktualizujące wartość należności kredytowych terminowych od sektora finansowego / odpisy z tytułu utraty wartości","B2PVII","PASYWA | Inne zobowiązania z tytułu instrumentów finansowych","R2VII3","Przychody z udziałów lub akcji, pozostałych papierów wartościowych i innych instrumentów finansowych, o zmiennej kwocie dochodu | Od jednostek stowarzyszonych"]
[null,"B2AIV1_W","Należności od sektora niefinansowego | W rachunku bieżącym","B2PVIII","PASYWA | Fundusze specjalne i inne zobowiązania","R2VII4","Przychody z udziałów lub akcji, pozostałych papierów wartościowych i innych instrumentów finansowych, o zmiennej kwocie dochodu | Od pozostałych jednostek"]
[null,"B2AIV1_rc","Należności od sektora niefinansowego | W rachunku bieżącym | Rezerwy celowe","B2PIX1","PASYWA | Koszty i przychody rozliczane w czasie | Rozliczenia międzyokresowe kosztów","R2VIII1_P","Przychody z tytułu operacji finansowych papierami wartościowymi i innymi instrumentami finansowymi"]
[null,"B2AIV1_A","Należności od sektora niefinansowego | W rachunku bieżącym | Odpisy aktualizujące wartość należności kredytowych od sektora niefinansowego w rachunku bieżącym / odpisy z tytułu utraty wartości","B2PIX2","PASYWA | Koszty i przychody rozliczane w czasie | Ujemna wartość firmy","R2VIII1_K","Koszty z tytułu operacji finansowych papierami wartościowymi i innymi instrumentami finansowymi"]
[null,"B2AIV2_W","Należności od sektora niefinansowego | Terminowe","B2PIX3","PASYWA | Koszty i przychody rozliczane w czasie | Pozostałe rozliczenia międzyokresowe przychodów","R2VIII2_P","Przychody z tytułu pozostałych operacji finansowych"]
[null,"B2AIV2_rc","Należności od sektora niefinansowego | Terminowe | Rezerwy celowe","B2PX1","PASYWA | Rezerwy | Rezerwa z tytułu odroczonego podatku dochodowego","R2VIII2_K","Koszty z tytułu pozostałych operacji finansowych"]
[null,"B2AIV2_A","Należności od sektora niefinansowego | Terminowe | Odpisy aktualizujące wartość należności kredytowych terminowych od sektora niefinansowego / odpisy z tytułu utraty wartości","B2PX2","PASYWA | Rezerwy | Pozostałe rezerwy","R2IX_P","Przychody z pozycji wymiany"]
[null,"B2AV1_W","Należności od sektora budżetowego | W rachunku bieżącym","B2PXI","PASYWA | Zobowiązania podporządkowane","R2IX_K","Koszty z pozycji wymiany"]
[null,"B2AV1_rc","Należności od sektora budżetowego | W rachunku bieżącym | Rezerwy celowe","B2PXII","PASYWA | Kapitał (fundusz) podstawowy","R2XI","Pozostałe przychody operacyjne"]
[null,"B2AV1_A","Należności od sektora budżetowego | W rachunku bieżącym | Odpisy aktualizujące wartość należności kredytowych od sektora budżetowego w rachunku bieżącym / odpisy z tytułu utraty wartości","B2PXIII","PASYWA | Kapitał (fundusz) zapasowy","R2XII","Pozostałe koszty operacyjne"]
[null,"B2AV2_W","Należności od sektora budżetowego | Terminowe","B2PXIV","PASYWA | Kapitał (fundusz) z aktualizacji wyceny","R2XIII1","Koszty działania banku | Wynagrodzenia"]
[null,"B2AV2_rc","Należności od sektora budżetowego | Terminowe | Rezerwy celowe","B2PXV1","PASYWA | Pozostałe kapitały (fundusze) rezerwowe | Fundusz ogólnego ryzyka bankowego","R2XIII2","Koszty działania banku | Ubezpieczenia i inne świadczenia"]
[null,"B2AV2_A","Należności od sektora budżetowego | Terminowe | Odpisy aktualizujące wartość należności kredytowych terminowych od sektora budżetowego / odpisy z tytułu utraty wartości","B2PXV2","PASYWA | Pozostałe kapitały (fundusze) rezerwowe","R2XIII3","Koszty działania banku | Pozostałe"]
[null,"B2AVI_W","Należności z tytułu zakupionych papierów wartościowych z otrzymanym przyrzeczeniem odkupu","B2PXVI","PASYWA | Zysk (strata) z lat ubiegłych","R2XIV","Amortyzacja środków trwałych oraz wartości niematerialnych i prawnych"]
[null,"B2AVI_A","Należności z tytułu zakupionych papierów wartościowych z otrzymanym przyrzeczeniem odkupu | Odpisy aktualizujące wartość należności z tytułu zakupionych papierów wartościowych z otrzymanym przyrzeczeniem odkupu / odpisy z tytułu utraty wartości","B2PXVII","PASYWA | Zysk (strata) netto","R2XV1","Odpisy na rezerwy i aktualizacja wartości | Odpisy na rezerwy celowe i na ogólne ryzyko bankowe"]
[null,"B2AVII1","Dłużne papiery wartościowe | Banków","B2PXVIII","PASYWA | Odpisy z zysku netto w ciągu roku obrotowego (wielkość ujemna)","R2XV2","Odpisy na rezerwy i aktualizacja wartości | Aktualizacja wartości aktywów finansowych"]
[null,"B2AVII1_A","Dłużne papiery wartościowe | Banków | Odpisy aktualizujące wartość dłużnych papierów wartościowych banków / odpisy z tytułu utraty wartości","INNE","Inne, niewskazane w słowniku","R2XVI1","Rozwiązanie rezerw i aktualizacja wartości | Rozwiązanie rezerw celowych i rezerw na ogólne ryzyko bankowe"]
[null,"B2AVII2","Dłużne papiery wartościowe | Budżetu Państwa i budżetów terenowych",null,null,"R2XVI2","Rozwiązanie rezerw i aktualizacja wartości | Aktualizacja wartości aktywów finansowych"]
[null,"B2AVII2_A","Dłużne papiery wartościowe | Budżetu Państwa i budżetów terenowych | Odpisy aktualizujące wartość należności dłużnych papierów wartościowych Budżetu Państwa i budżetów terenowych / odpisy z tytułu utraty wartości",null,null,"R2XIX1","Zyski nadzwyczajne"]
[null,"B2AVII3_W","Dłużne papiery wartościowe | Pozostałe",null,null,"R2XIX2","Straty nadzwyczajne"]
[null,"B2AVII3_A","Dłużne papiery wartościowe | Pozostałe | Odpisy aktualizujące wartość należności pozostałych dłużnych papierów wartościowych / odpisy z tytułu utraty wartości",null,null,"R2XXI_B","Podatek dochodowy | Bieżący"]
[null,"B2AVIII1_W","Udziały lub akcje w jednostkach zależnych | W instytucjach finansowych",null,null,"R2XXI_O","Podatek dochodowy | Odroczony"]
[null,"B2AVIII1_A","Udziały lub akcje w jednostkach zależnych | W instytucjach finansowych | Odpisy aktualizujące wartość udziałów lub akcji w jednostkach zależnych w instytucjach finansowych / odpisy z tytułu utraty wartości",null,null,"R2XXII","Pozostałe obowiązkowe zmniejszenie zysku (zwiększenie straty)"]
[null,"B2AVIII2_W","Udziały lub akcje w jednostkach zależnych | W pozostałych jednostkach",null,null,"INNE","Inne, niewskazane w słowniku"]
[null,"B2AVIII2_A","Udziały lub akcje w jednostkach zależnych | W pozostałych jednostkach | Odpisy aktualizujące wartość udziałów lub akcji w pozostałych jednostkach zależnych / odpisy z tytułu utraty wartości"]
[null,"B2AIX1_W","Udziały lub akcje w jednostkach współzależnych | W instytucjach finansowych"]
[null,"B2AIX1_A","Udziały lub akcje w jednostkach współzależnych | W instytucjach finansowych | Odpisy aktualizujące wartość udziałów lub akcji w jednostkach współzależnych w instytucjach finansowych / odpisy z tytułu utraty wartości"]
[null,"B2AIX2_W","Udziały lub akcje w jednostkach współzależnych | W pozostałych jednostkach"]
[null,"B2AIX2_A","Udziały lub akcje w jednostkach współzależnych | W pozostałych jednostkach | Odpisy aktualizujące wartość udziałów lub akcji w pozostałych jednostkach współzależnych / odpisy z tytułu utraty wartości"]
[null,"B2AX1_W","Udziały lub akcje w jednostkach stowarzyszonych | W instytucjach finansowych"]
[null,"B2AX1_A","Udziały lub akcje w jednostkach stowarzyszonych | W instytucjach finansowych | Odpisy aktualizujące wartość udziałów lub akcji w jednostkach stowarzyszonych w instytucjach finansowych / odpisy z tytułu utraty wartości"]
[null,"B2AX2_W","Udziały lub akcje w jednostkach stowarzyszonych | W pozostałych jednostkach"]
[null,"B2AX2_A","Udziały lub akcje w jednostkach stowarzyszonych | W pozostałych jednostkach | Odpisy aktualizujące wartość udziałów lub akcji w pozostałych jednostkach stowarzyszonych / odpisy z tytułu utraty wartości"]
[null,"B2AXI1_W","Udziały lub akcje w innych jednostkach | W instytucjach finansowych"]
[null,"B2AXI1_A","Udziały lub akcje w innych jednostkach | W instytucjach finansowych | Odpisy aktualizujące wartość udziałów lub akcji w innych jednostkach w instytucjach finansowych / odpisy z tytułu utraty wartości"]
[null,"B2AXI2_W","Udziały lub akcje w innych jednostkach | W pozostałych jednostkach"]
[null,"B2AXI2_A","Udziały lub akcje w innych jednostkach | W pozostałych jednostkach | Odpisy aktualizujące wartość udziałów lub akcji w innych jednostkach w pozostałych instytucjach finansowych / odpisy z tytułu utraty wartości"]
[null,"B2AXII_W","Pozostałe papiery wartościowe i inne aktywa finansowe"]
[null,"B2AXII_A","Pozostałe papiery wartościowe i inne aktywa finansowe | Odpisy aktualizujące wartość pozostałych papierów wartościowych i innych aktywów finansowych / odpisy z tytułu utraty wartości"]
[null,"B2AXIII1_WF","Wartości niematerialne i prawne | Wartość firmy"]
[null,"B2AXIII1_WF_A","Wartości niematerialne i prawne | Wartość firmy | Odpisy aktualizujące wartość firmy / odpisy z tytułu utraty wartości"]
[null,"B2AXIII1_WF_U","Wartości niematerialne i prawne | Wartość firmy | Umorzenie wartości firmy"]
[null,"B2AXIII2_inne_W","Wartości niematerialne i prawne | Inne wartości niematerialne i prawne"]
[null,"B2AXIII1_inne_A","Wartości niematerialne i prawne | Inne wartości niematerialne i prawne | Odpisy aktualizujące inne wartości niematerialne i prawne / odpisy z tytułu utraty wartości"]
[null,"B2AXIII1_inne_U","Wartości niematerialne i prawne | Inne wartości niematerialne i prawne | Umorzenie innych wartości niematerialnych i prawnych"]
[null,"B2AXIV_W","Rzeczowe aktywa trwałe"]
[null,"B2AXIV_U","Rzeczowe aktywa trwałe | Umorzenie rzeczowych aktywów trwałych"]
[null,"B2AXIV_A","Rzeczowe aktywa trwałe | Odpisy aktualizujące wartość rzeczowych aktywów trwałych / odpisy z tytułu utraty wartości"]
[null,"B2AXV1_W","Inne Przejęte aktywa do zbycia"]
[null,"B2AXV1_A","Inne Przejęte aktywa do zbycia | Odpisy aktualizujące wartość innych aktywów przejętych do zbycia / odpisy z tytułu utraty wartości"]
[null,"B2AXV2_W","Inne Pozostałe"]
[null,"B2AXV2_A","Inne Pozostałe | Odpisy aktualizujące wartość innych aktywów pozostałych / odpisy z tytułu utraty wartości"]
[null,"B2AXVI1_W","Rozliczenia międzyokresowe | Aktywa z tytułu odroczonego podatku dochodowego"]
[null,"B2AXVI1_A","Rozliczenia międzyokresowe | Aktywa z tytułu odroczonego podatku dochodowego | Odpisy aktualizujące wartość aktywów z tytułu odroczonego podatku dochodowego / odpisy z tytułu utraty wartości"]
[null,"B2AXVI2_W","Rozliczenia międzyokresowe | Pozostałe rozliczenia międzyokresowe"]
[null,"B2AXVI2_A","Rozliczenia międzyokresowe | Pozostałe rozliczenia międzyokresowe | Odpisy aktualizujące wartość pozostałych rozliczeń międzyokresowych / odpisy z tytułu utraty wartości"]
[null,"B2AXVII","Należne wpłaty na kapitał (fundusz) podstawowy"]
[null,"B2AXVIII","Akcje własne"]
[null,"INNE","Inne, niewskazane w słowniku"]
["Ubezpieczyciele i zakłady reasekuracji - 2"]
[null,"B3AA1_W","Wartości niematerialne i prawne | Wartość firmy","B3PAI","PASYWA | Kapitał własny | Kapitał podstawowy","R3OII1","Ogólny rachunek zysków i strat | Przychody z lokat | Przychody z lokat w nieruchomości"]
[null,"B3AA1_A","Wartości niematerialne i prawne | Wartość firmy | Odpisy aktualizujące wartość firmy / odpisy z tytułu utraty wartości","B3PAII","PASYWA | Kapitał własny | Kapitał zapasowy","R3OII22_1","Ogólny rachunek zysków i strat | Przychody z lokat | Przychody z lokat w jednostkach podporządkowanych | Z udziałów i akcji"]
[null,"B3AA1_U","Wartości niematerialne i prawne | Wartość firmy | Umorzenie wartości firmy","B3PAIII","PASYWA | Kapitał własny | Kapitał z aktualizacji wyceny","R3OII22_2","Ogólny rachunek zysków i strat | Przychody z lokat | Przychody z lokat w jednostkach podporządkowanych | Z pożyczek i dłużnych papierów wartościowych"]
[null,"B3AA2_W","Wartości niematerialne i prawne | Inne wartości niematerialne i prawne i zaliczki na poczet wartości niematerialnych i prawnych","B3PAIV","PASYWA | Kapitał własny | Pozostałe kapitały rezerwowe","R3OII22_3","Ogólny rachunek zysków i strat | Przychody z lokat | Przychody z lokat w jednostkach podporządkowanych | Z pozostałych lokat"]
[null,"B3AA2_A","Wartości niematerialne i prawne | Inne wartości niematerialne i prawne i zaliczki na poczet wartości niematerialnych i prawnych | Odpisy aktualizujące inne wartości niematerialne i prawne / odpisy z tytułu utraty wartości","B3PAV","PASYWA | Kapitał własny | Zysk (strata) z lat ubiegłych","R3OII33_1","Ogólny rachunek zysków i strat | jw. | Przychody z innych lokat finansowych | Z udziałów, akcji, innych papierów wartościowych o zmiennej kwocie dochodu oraz jednostek uczestnictwa i certyfikatów inwestycyjnych w funduszach inwestycyjnych"]
[null,"B3AA2_U","Wartości niematerialne i prawne | Inne wartości niematerialne i prawne i zaliczki na poczet wartości niematerialnych i prawnych | Umorzenie innych wartości niematerialnych i prawnych","B3PAVI","PASYWA | Kapitał własny | Zysk (strata) netto","R3OII33_2","Ogólny rachunek zysków i strat | Przychody z lokat | Przychody z innych lokat finansowych | Z dłużnych papierów wartościowych oraz innych papierów wartościowych o stałej kwocie dochodu"]
[null,"B3ABI1_W","Lokaty | Nieruchomości | Grunty własne oraz prawo wieczystego użytkowania gruntu","B3PAVII","PASYWA | Kapitał własny | Odpisy z zysku netto w ciągu roku obrotowego (wielkość ujemna)","R3OII33_3","Ogólny rachunek zysków i strat | Przychody z lokat | Przychody z innych lokat finansowych | Z lokat terminowych w instytucjach kredytowych"]
[null,"B3ABI1_A","Lokaty | Nieruchomości | Grunty własne oraz prawo wieczystego użytkowania gruntu | Odpisy aktualizujące wartość gruntów własnych oraz prawa wieczystego użytkowania gruntu / odpisy z tytułu utraty wartości","B3PB","PASYWA | Zobowiązania podporządkowane","R3OII33_4","Ogólny rachunek zysków i strat | Przychody z lokat | Przychody z innych lokat finansowych | Z pozostałych lokat"]
[null,"B3ABI2_W","Lokaty | Nieruchomości | Budynki, budowle oraz spółdzielcze własnościowe prawo do lokalu","B3PCI","PASYWA | Rezerwy techniczno-ubezpieczeniowe | Rezerwa składek i rezerwa na pokrycie ryzyka niewygasłego","R3OII_4","Ogólny rachunek zysków i strat | Przychody z lokat | Wynik dodatni z rewaloryzacji lokat | Przychody z rewaloryzacji lokat"]
[null,"B3ABI2_A","Lokaty | Nieruchomości | Budynki, budowle oraz spółdzielcze własnościowe prawo do lokalu | Odpisy aktualizujące wartość budynków, budowli oraz spółdzielczego własnościowego prawa do lokalu / odpisy z tytułu utraty wartości","B3PCII","PASYWA | Rezerwy techniczno-ubezpieczeniowe | Rezerwa ubezpieczeń na życie","R3OII_5","Ogólny rachunek zysków i strat | Przychody z lokat | Wynik dodatni z realizacji lokat | Przychody z realizacji lokat"]
[null,"B3ABI2_U","Lokaty | Nieruchomości | Budynki, budowle oraz spółdzielcze własnościowe prawo do lokalu | Umorzenie wartości budynków, budowli oraz spółdzielczego własnościowego prawa do lokalu","B3PCIII","PASYWA | Rezerwy techniczno-ubezpieczeniowe | Rezerwy na niewypłacone odszkodowania i świadczenia","R3OIII","Ogólny rachunek zysków i strat | Niezrealizowane zyski z lokat"]
[null,"B3ABI3_W","Lokaty | Nieruchomości | Inwestycje budowlane i zaliczki na poczet tych inwestycji","B3PCIV","PASYWA | Rezerwy techniczno-ubezpieczeniowe | Rezerwy na premie i rabaty dla ubezpieczonych","R3OIV_1","jw. | Przychody z lokat netto po uwzględnieniu kosztów, przeniesione z technicznego rachunku ubezpieczeń na życie | Przychody z łącznego inwestowania przypadające na część techn. ubezpieczeń na życie (przeniesione z techn. rachunku ubezpieczeń na życie)"]
[null,"B3ABI3_A","Lokaty | Nieruchomości | Inwestycje budowlane i zaliczki na poczet tych inwestycji | Odpisy aktualizujące wartość inwestycji budowlanych / odpisy z tytułu utraty wartości","B3PCV","PASYWA | Rezerwy techniczno-ubezpieczeniowe | Rezerwy na wyrównanie szkodowości (ryzyka)","R3OIV_2","jw. | Przychody z lokat netto po uwzględnieniu kosztów, przeniesione z technicznego rachunku ubezpieczeń na życie | Koszty z łącznego inwestowania przypadające na część techn. ubezpieczeń na życie (przeniesione z technicznego rachunku ubezpieczeń na życie)"]
[null,"B3ABI3_U","Lokaty | Nieruchomości | Inwestycje budowlane i zaliczki na poczet tych inwestycji | Umorzenie inwestycji budowlanych","B3PCVI","PASYWA | Rezerwy techniczno-ubezpieczeniowe | Rezerwy na zwrot składek dla członków","R3OV1","Ogólny rachunek zysków i strat | Koszty działalności lokacyjnej | Koszty utrzymania nieruchomości"]
[null,"B3ABII1_W","Lokaty | Lokaty w jednostkach podporządkowanych | Udziały lub akcje w jednostkach podporządkowanych","B3PCVII","PASYWA | Rezerwy techniczno-ubezpieczeniowe | Pozostałe rezerwy techniczno-ubezpieczeniowe określone w statucie","R3OV2","Ogólny rachunek zysków i strat | Koszty działalności lokacyjnej | Pozostałe koszty działalności lokacyjnej"]
[null,"B3ABII1_A","Lokaty | Lokaty w jednostkach podporządkowanych | Udziały lub akcje w jednostkach podporządkowanych | Odpisy aktualizujące wartość udziałów lub akcji w jednostkach podporządkowanych","B3PCVIII","PASYWA | Rezerwy techniczno-ubezpieczeniowe | Rezerwa ubezpieczeń na życie, gdy ryzyko lokaty (inwestycyjne) ponosi ubezpieczający","R3OV3","Ogólny rachunek zysków i strat | Koszty działalności lokacyjnej | Wynik ujemny z rewaloryzacji lokat | Koszt własny rewaloryzacji lokat"]
[null,"B3ABII2_W","Lokaty | Lokaty w jednostkach podporządkowanych | Pożyczki udzielone jednostkom podporządkowanym oraz dłużne papiery wartościowe emitowane przez te jednostki","B3PDI","PASYWA | Udział reasekuratorów w rezerwach techniczno-ubezpieczeniowych (wartość ujemna) | Udział reasekuratorów w rezerwie składek i w rezerwie na pokrycie ryzyka niewygasłego","R3OV4","Ogólny rachunek zysków i strat | Koszty działalności lokacyjnej | Wynik ujemny z realizacji lokat | Koszt własny realizacji lokat"]
[null,"B3ABII2_A","Lokaty | Lokaty w jednostkach podporządkowanych | jw. | Odpisy aktualizujące wartość pożyczek udzielonych jednostkom podporządkowanym oraz dłużnych papierów wartościowych emitowanych przez te jednostki","B3PDII","PASYWA | Udział reasekuratorów w rezerwach techniczno-ubezpieczeniowych (wartość ujemna) | Udział reasekuratorów w rezerwie ubezpieczeń na życie","R3OVI","Ogólny rachunek zysków i strat | Niezrealizowane straty na lokatach"]
[null,"B3ABII3_W","Lokaty | Lokaty w jednostkach podporządkowanych | Pozostałe lokaty","B3PDIII","PASYWA | Udział reasekuratorów w rezerwach techniczno-ubezpieczeniowych (wartość ujemna) | Udział reasekuratorów w rezerwie na niewypłacone odszkodowania i świadczenia","R3OVIII","Ogólny rachunek zysków i strat | Pozostałe przychody operacyjne"]
[null,"B3ABII3_A","Lokaty | Lokaty w jednostkach podporządkowanych | Pozostałe lokaty | Odpisy aktualizujące wartość pozostałych lokat","B3PDIV","PASYWA | Udział reasekuratorów w rezerwach techniczno-ubezpieczeniowych (wartość ujemna) | Udział reasekuratorów w rezerwie na premie i rabaty dla ubezpieczonych","R3OIX","Ogólny rachunek zysków i strat | Pozostałe koszty operacyjne"]
[null,"B3ABIII1_W","Lokaty | Inne lokaty finansowe | Udziały, akcje oraz inne papiery wartościowe o zmiennej kwocie dochodu oraz jednostki uczestnictwa i certyfikaty inwestycyjne w funduszach inwestycyjnych","B3PDV","PASYWA | Udział reasekuratorów w rezerwach techniczno-ubezpieczeniowych (wartość ujemna) | Udział reasekuratorów w pozostałych rezerwach techniczno-ubezpieczeniowych określonych w statucie","R3OXI","Ogólny rachunek zysków i strat | Zyski nadzwyczajne"]
[null,"B3ABIII1_A","Lokaty | Inne lokaty finansowe | jw. | Odpisy aktualizujące wartość udziałów, akcji oraz innych papierów wartościowych o zmiennej kwocie dochodu oraz jednostek uczestnictwa i certyfikatów inwestycyjnych w funduszach inwestycyjnych","B3PDVI","PASYWA | Udział reasekuratorów w rezerwach techniczno-ubezpieczeniowych (wartość ujemna) | Udział reasekuratorów w rezerwie ubezpieczeń na życie, gdy ryzyko lokaty (inwestycyjne) ponosi ubezpieczający","R3OXII","Ogólny rachunek zysków i strat | Straty nadzwyczajne"]
[null,"B3ABIII2_W","Lokaty | Inne lokaty finansowe | Dłużne papiery wartościowe i inne papiery wartościowe o stałej kwocie dochodu","B3PE1","PASYWA | Oszacowane regresy i odzyski (wielkość ujemna) | Oszacowane regresy i odzyski brutto","R3OXIV","Ogólny rachunek zysków i strat | Podatek dochodowy"]
[null,"B3ABIII2_A","Lokaty | Inne lokaty finansowe | Dłużne papiery wartościowe i inne papiery wartościowe o stałej kwocie dochodu | Odpisy aktualizujące wartość dłużnych papierów wartościowych i innych papierów wartościowych o stałej kwocie dochodu","B3PE2","PASYWA | Oszacowane regresy i odzyski (wielkość ujemna) | Udział reasekuratorów w oszacowanych regresach i odzyskach","R3OXV","Ogólny rachunek zysków i strat | Pozostałe obowiązkowe zmniejszenia zysku (zwiększenia straty)"]
[null,"B3ABIII3_W","Lokaty | Inne lokaty finansowe | Udziały we wspólnych przedsięwzięciach lokacyjnych","B3PFI","PASYWA | Pozostałe rezerwy | Rezerwy na świadczenia emerytalne oraz inne obowiązkowe świadczenia pracowników","R3MI1","Techniczny rachunek ubezpieczeń majątkowych i osobowych | Składki | Składki przypisane brutto"]
[null,"B3ABIII3_A","Lokaty | Inne lokaty finansowe | Udziały we wspólnych przedsięwzięciach lokacyjnych | Odpisy aktualizujące wartość udziałów we wspólnych przedsięwzięciach lokacyjnych","B3PFII","PASYWA | Pozostałe rezerwy | Rezerwa z tytułu odroczonego podatku dochodowego","R3MI2","Techniczny rachunek ubezpieczeń majątkowych i osobowych | Składki | Udział reasekuratorów w składce przypisanej"]
[null,"B3ABIII4_W","Lokaty | Inne lokaty finansowe | Pożyczki zabezpieczone hipotecznie","B3PFIII","PASYWA | Pozostałe rezerwy | Inne rezerwy","R3MI3","Techniczny rachunek ubezpieczeń majątkowych i osobowych | Składki | Zmiana stanu rezerw składek i rezerwy na ryzyko niewygasłe brutto"]
[null,"B3ABIII4_A","Lokaty | Inne lokaty finansowe | Pożyczki zabezpieczone hipotecznie | Odpisy aktualizujące wartość pożyczek zabezpieczonych hipotecznie","B3PG","PASYWA | Zobowiązania z tytułu depozytów reasekuratorów","R3MI4","Techniczny rachunek ubezpieczeń majątkowych i osobowych | Składki | Udział reasekuratorów w zmianie stanu rezerw składek"]
[null,"B3ABIII5_W","Lokaty | Inne lokaty finansowe | Pozostałe pożyczki","B3PHI11_1","PASYWA | Pozostałe zobowiązania i fundusze specjalne | Zobowiązania z tytułu ubezpieczeń bezpośrednich | Zobowiązania wobec ubezpieczających | Wobec jednostek podporządkowanych","R3MII1","jw. | Przychody z lokat netto po uwzględnieniu kosztów, przeniesione z ogólnego rachunku zysków i strat | Przychody z łącznego inwestowania przypadające na część techniczną ubezpieczeń majątkowych i osobowych"]
[null,"B3ABIII5_A","Lokaty | Inne lokaty finansowe | Pozostałe pożyczki | Odpisy aktualizujące wartość pozostałych pożyczek","B3PHI11_2","PASYWA | Pozostałe zobowiązania i fundusze specjalne | Zobowiązania z tytułu ubezpieczeń bezpośrednich | Zobowiązania wobec ubezpieczających | Wobec pozostałych jednostek","R3MII2","jw. | Przychody z lokat netto po uwzględnieniu kosztów, przeniesione z ogólnego rachunku zysków i strat | Koszty z łącznego inwestowania przypadające na część techniczną ubezpieczeń majątkowych i osobowych"]
[null,"B3ABIII6_W","Lokaty | Inne lokaty finansowe | Lokaty terminowe w instytucjach kredytowych","B3PHI22_1","PASYWA | Pozostałe zobowiązania i fundusze specjalne | Zobowiązania z tytułu ubezpieczeń bezpośrednich | Zobowiązania wobec pośredników ubezpieczeniowych | Wobec jednostek podporządkowanych","R3MIII","Techniczny rachunek ubezpieczeń majątkowych i osobowych | Pozostałe przychody techniczne na udziale własnym"]
[null,"B3ABIII6_A","Lokaty | Inne lokaty finansowe | Lokaty terminowe w instytucjach kredytowych | Odpisy aktualizujące wartość lokat terminowych w instytucjach kredytowych","B3PHI22_2","PASYWA | Pozostałe zobowiązania i fundusze specjalne | Zobowiązania z tytułu ubezpieczeń bezpośrednich | Zobowiązania wobec pośredników ubezpieczeniowych | Wobec pozostałych jednostek","R3MIV11_1","Techniczny rachunek ubezpieczeń majątkowych i osobowych | Odszkodowania i świadczenia | Odszkodowania i świadczenia wypłacone na udziale własnym | Odszkodowania i świadczenia wypłacone brutto"]
[null,"B3ABIII7_W","Lokaty | Inne lokaty finansowe | Pozostałe lokaty","B3PHI33_1","PASYWA | Pozostałe zobowiązania i fundusze specjalne | Zobowiązania z tytułu ubezpieczeń bezpośrednich | Inne zobowiązania z tytułu ubezpieczeń | Wobec jednostek podporządkowanych","R3MIV11_2","Techniczny rachunek ubezpieczeń majątkowych i osobowych | Odszkodowania i świadczenia | Odszkodowania i świadczenia wypłacone na udziale własnym | Udział reasekuratorów w odszkodowaniach i świadczeniach wypłaconych"]
[null,"B3ABIII7_A","Lokaty | Inne lokaty finansowe | Pozostałe lokaty | Odpisy aktualizujące wartość pozostałych lokat","B3PHI33_2","PASYWA | Pozostałe zobowiązania i fundusze specjalne | Zobowiązania z tytułu ubezpieczeń bezpośrednich | Inne zobowiązania z tytułu ubezpieczeń | Wobec pozostałych jednostek","R3MIV22_1","Techniczny rachunek ubezpieczeń majątkowych i osobowych | Odszkodowania i świadczenia | Zmiana stanu rezerwy na niewypłacone odszkodowania i świadczenia na udziale własnym | Zmiana stanu rezerw na niewypłacone odszkodowania i świadczenia brutto"]
[null,"B3ABIV_W","Lokaty | Należności depozytowe od cedentów","B3PHII1","PASYWA | Pozostałe zobowiązania i fundusze specjalne | Zobowiązania z tytułu reasekuracji | Wobec jednostek podporządkowanych","R3MIV22_2","jw. | Odszkodowania i świadczenia | Zmiana stanu rezerwy na niewypłacone odszkodowania i świadczenia na udziale własnym | Udział reasekuratorów w zmianie stanu rezerw na niewypłacone odszkodowania i świadczenia"]
[null,"B3ABIV_A","Lokaty | Należności depozytowe od cedentów | Odpisy aktualizujące wartość należności depozytowych od cedentów","B3PHII2","PASYWA | Pozostałe zobowiązania i fundusze specjalne | Zobowiązania z tytułu reasekuracji | Wobec pozostałych jednostek","R3MV1","Techniczny rachunek ubezpieczeń majątkowych i osobowych | Zmiany stanu pozostałych rezerw techniczno-ubezpieczeniowych na udziale własnym | Zmiany stanu pozostałych rezerw techniczno-ubezpieczeniowych brutto"]
[null,"B3AC","Aktywa netto ubezpieczeń na życie, gdy ryzyko lokaty (inwestycyjne) ponosi ubezpieczający","B3PHIII1","PASYWA | Pozostałe zobowiązania i fundusze specjalne | Zobowiązania z tytułu emisji własnych dłużnych papierów wartościowych oraz pobranych pożyczek | Zobowiązania zamienne na akcje zakładu ubezpieczeń","R3MV2","Techniczny rachunek ubezpieczeń majątkowych i osobowych | Zmiany stanu pozostałych rezerw techniczno-ubezpieczeniowych na udziale własnym | Udział reasekuratorów w zmianie stanu pozostałych rezerw techniczno-ubezpieczeniowych"]
[null,"B3AC_K","Aktywa netto ubezpieczeń na życie, gdy ryzyko lokaty (inwestycyjne) ponosi ubezpieczający | Korekta wartości aktywów wynikająca z korekty zobowiązań dotyczących tych aktywów","B3PHIII2","PASYWA | Pozostałe zobowiązania i fundusze specjalne | Zobowiązania z tytułu emisji własnych dłużnych papierów wartościowych oraz pobranych pożyczek | Pozostałe","R3MVI","Techniczny rachunek ubezpieczeń majątkowych i osobowych | Premie i rabaty na udziale własnym łącznie ze zmianą stanu rezerw"]
[null,"B3ADI11_1_W","Należności | Należności z tytułu ubezpieczeń bezpośrednich | Należności od ubezpieczających | Od jednostek podporządkowanych","B3PHIV","PASYWA | Pozostałe zobowiązania i fundusze specjalne | Zobowiązania wobec instytucji kredytowych","R3MVII11_1","Techniczny rachunek ubezpieczeń majątkowych i osobowych | Koszty działalności ubezpieczeniowej | Koszty akwizycji | Zmiana stanu aktywowanych kosztów akwizycji"]
[null,"B3ADI11_1_A","Należności | Należności z tytułu ubezpieczeń bezpośrednich | Należności od ubezpieczających | jw.| Odpisy aktualizujące wartość należności z tytułu ubezpieczeń bezpośrednich należności od ubezpieczających / utrata wartości – od jednostek podporządkowanych","B3PHV1","PASYWA | Pozostałe zobowiązania i fundusze specjalne | Inne zobowiązania | Zobowiązania wobec budżetu","R3MVII11_2","Techniczny rachunek ubezpieczeń majątkowych i osobowych | Koszty działalności ubezpieczeniowej | Koszty akwizycji | Koszty akwizycji poniesione w okresie sprawozdawczym"]
[null,"B3ADI11_2_W","Należności | Należności z tytułu ubezpieczeń bezpośrednich | Należności od ubezpieczających | Od pozostałych jednostek","B3PHV22_1","PASYWA | Pozostałe zobowiązania i fundusze specjalne | Inne zobowiązania | Pozostałe zobowiązania | Wobec jednostek podporządkowanych","R3MVII2","Techniczny rachunek ubezpieczeń majątkowych i osobowych | Koszty działalności ubezpieczeniowej | Koszty administracyjne"]
[null,"B3ADI11_2_A","Należności | Należności z tytułu ubezpieczeń bezpośrednich | Należności od ubezpieczających | jw. | Odpisy aktualizujące wartość należności z tytułu ubezpieczeń bezpośrednich należności od ubezpieczających / utrata wartości – od pozostałych jednostek","B3PHV22_2","PASYWA | Pozostałe zobowiązania i fundusze specjalne | Inne zobowiązania | Pozostałe zobowiązania | Wobec pozostałych jednostek","R3MVII3","Techniczny rachunek ubezpieczeń majątkowych i osobowych | Koszty działalności ubezpieczeniowej | Prowizje reasekuracyjne i udział w zyskach reasekuratorów"]
[null,"B3ADI22_1_W","Należności | Należności z tytułu ubezpieczeń bezpośrednich | Należności od pośredników ubezpieczeniowych | Od jednostek podporządkowanych","B3PHVI","PASYWA | Pozostałe zobowiązania i fundusze specjalne | Fundusze specjalne","R3MVIII","Techniczny rachunek ubezpieczeń majątkowych i osobowych | Pozostałe koszty techniczne na udziale własnym"]
[null,"B3ADI22_1_A","Należności | Należności z tytułu ubezpieczeń bezpośrednich | Należności od pośredników ubezpieczeniowych | jw. | Odpisy aktualizujące wartość należności od pośredników ubezpieczeniowych / utrata wartości – od jednostek podporządkowanych","B3PI1","PASYWA | Rozliczenia międzyokresowe | Rozliczenia międzyokresowe kosztów","R3MIX","Techniczny rachunek ubezpieczeń majątkowych i osobowych | Zmiany stanu rezerw na wyrównanie szkodowości (ryzyka)"]
[null,"B3ADI22_2_W","Należności | Należności z tytułu ubezpieczeń bezpośrednich | Należności od pośredników ubezpieczeniowych | Od pozostałych jednostek","B3PI2","PASYWA | Rozliczenia międzyokresowe | Ujemna wartość firmy","R3ZI1","Techniczny rachunek ubezpieczeń na życie | Składki | Składki przypisane brutto"]
[null,"B3ADI22_2_A","Należności | Należności z tytułu ubezpieczeń bezpośrednich | Należności od pośredników ubezpieczeniowych | jw. | Odpisy aktualizujące wartość należności od pośredników ubezpieczeniowych / utrata wartości – od pozostałych jednostek","B3PI3","PASYWA | Rozliczenia międzyokresowe | Przychody przyszłych okresów","R3ZI2","Techniczny rachunek ubezpieczeń na życie | Składki | Udział reasekuratorów w składce przypisanej brutto"]
[null,"B3ADI33_1_W","Należności | Należności z tytułu ubezpieczeń bezpośrednich | Inne należności | Od jednostek podporządkowanych","INNE","Inne, niewskazane w słowniku","R3ZI3","Techniczny rachunek ubezpieczeń na życie | Składki | Zmiana stanu rezerw składek i na ryzyko niewygasłe brutto"]
[null,"B3ADI33_1_A","Należności | Należności z tytułu ubezpieczeń bezpośrednich | Inne należności | Od jednostek podporządkowanych | Odpisy aktualizujące wartość innych należności / utrata wartości – od jednostek podporządkowanych",null,null,"R3ZI4","Techniczny rachunek ubezpieczeń na życie | Składki | Udział reasekuratorów w zmianie stanu rezerw składek"]
[null,"B3ADI33_2_W","Należności | Należności z tytułu ubezpieczeń bezpośrednich | Inne należności | Od pozostałych jednostek",null,null,"R3ZII1","Techniczny rachunek ubezpieczeń na życie | Przychody z lokat | Przychody z lokat w nieruchomości"]
[null,"B3ADI33_2_A","Należności | Należności z tytułu ubezpieczeń bezpośrednich | Inne należności | Od pozostałych jednostek | Odpisy aktualizujące wartość innych należności / utrata wartości –od pozostałych jednostek",null,null,"R3ZII22_1","Techniczny rachunek ubezpieczeń na życie | Przychody z lokat | Przychody z lokat w jednostkach podporządkowanych | Z udziałów lub akcji"]
[null,"B3ADII1_W","Należności | Należności z tytułu reasekuracji | Od jednostek podporządkowanych",null,null,"R3ZII22_2","Techniczny rachunek ubezpieczeń na życie | Przychody z lokat | Przychody z lokat w jednostkach podporządkowanych | Z pożyczek i dłużnych papierów wartościowych"]
[null,"B3ADII1_A","Należności | Należności z tytułu reasekuracji | Od jednostek podporządkowanych | Odpisy aktualizujące wartość należności z tytułu reasekuracji / utrata wartości – od jednostek podporządkowanych",null,null,"R3ZII22_3","Techniczny rachunek ubezpieczeń na życie | Przychody z lokat | Przychody z lokat w jednostkach podporządkowanych | Z pozostałych lokat"]
[null,"B3ADII2_W","Należności | Należności z tytułu reasekuracji | Od pozostałych jednostek",null,null,"R3ZII33_1","Techniczny rachunek ubezpieczeń na życie | jw. | Przychody z innych lokat finansowych | Z udziałów, akcji, innych papierów wartościowych o zmiennej kwocie dochodu oraz jednostek uczestnictwa i certyfikatów inwestycyjnych w funduszach inwestycyjnych"]
[null,"B3ADII2_A","Należności | Należności z tytułu reasekuracji | Od pozostałych jednostek | Odpisy aktualizujące wartość należności z tytułu reasekuracji / utrata wartości – od pozostałych jednostek",null,null,"R3ZII33_2","Techniczny rachunek ubezpieczeń na życie | Przychody z lokat | Przychody z innych lokat finansowych | Z dłużnych papierów wartościowych oraz innych papierów wartościowych o stałej kwocie dochodu"]
[null,"B3ADIII1","Należności | Inne należności | Należności od budżetu",null,null,"R3ZII33_3","Techniczny rachunek ubezpieczeń na życie | Przychody z lokat | Przychody z innych lokat finansowych | Z lokat terminowych w instytucjach kredytowych"]
[null,"B3ADIII22_1_W","Należności | Inne należności | Pozostałe należności | Od jednostek podporządkowanych",null,null,"R3ZII33_4","Techniczny rachunek ubezpieczeń na życie | Przychody z lokat | Przychody z innych lokat finansowych | Z pozostałych lokat"]
[null,"B3ADIII22_1_A","Należności | Inne należności | Pozostałe należności | Od jednostek podporządkowanych | Odpisy aktualizujące wartość pozostałych należności / utrata wartości – od jednostek podporządkowanych",null,null,"R3ZII4","Techniczny rachunek ubezpieczeń na życie | Przychody z lokat | Wynik dodatni z rewaloryzacji lokat | Przychody z rewaloryzacji lokat"]
[null,"B3ADIII22_2_W","Należności | Inne należności | Pozostałe należności | Od pozostałych jednostek",null,null,"R3ZII5","Techniczny rachunek ubezpieczeń na życie | Przychody z lokat | Wynik dodatni z realizacji lokat | Przychody z realizacji lokat"]
[null,"B3ADIII22_2_A","Należności | Inne należności | Pozostałe należności | Od pozostałych jednostek | Odpisy aktualizujące wartość pozostałych należności / utrata wartości – od pozostałych jednostek",null,null,"R3ZIII","Techniczny rachunek ubezpieczeń na życie | Niezrealizowane zyski z lokat"]
[null,"B3AEI_W","Inne składniki aktywów | Rzeczowe składniki aktywów",null,null,"R3ZIV","Techniczny rachunek ubezpieczeń na życie | Pozostałe przychody techniczne na udziale własnym"]
[null,"B3AEI_U","Inne składniki aktywów | Rzeczowe składniki aktywów | Umorzenie rzeczowych składników aktywów",null,null,"R3ZV","Techniczny rachunek ubezpieczeń na życie | Odszkodowania i świadczenia"]
[null,"B3AEI_A","Inne składniki aktywów | Rzeczowe składniki aktywów | Odpisy aktualizujące wartość rzeczowych składników aktywów / utrata wartości",null,null,"R3ZV11_1","Techniczny rachunek ubezpieczeń na życie | Odszkodowania i świadczenia | Odszkodowania i świadczenia wypłacone na udziale własnym | Odszkodowania i świadczenia wypłacone brutto"]
[null,"B3AEII","Inne składniki aktywów | Środki pieniężne",null,null,"R3ZV11_2","Techniczny rachunek ubezpieczeń na życie | Odszkodowania i świadczenia | Odszkodowania i świadczenia wypłacone na udziale własnym | Udział reasekuratorów w odszkodowaniach i świadczeniach wypłaconych"]
[null,"B3AEIII_W","Inne składniki aktywów | Pozostałe składniki aktywów",null,null,"R3ZV22_1","Techniczny rachunek ubezpieczeń na życie | Odszkodowania i świadczenia | Zmiana stanu rezerw na niewypłacone odszkodowania i świadczenia na udziale własnym | Rezerwy brutto"]
[null,"B3AEIII_A","Inne składniki aktywów | Pozostałe składniki aktywów | Odpisy aktualizujące wartość pozostałych składników aktywów / utrata wartości",null,null,"R3ZV22_2","Techniczny rachunek ubezpieczeń na życie | Odszkodowania i świadczenia | Zmiana stanu rezerw na niewypłacone odszkodowania i świadczenia na udziale własnym | Udział reasekuratorów"]
[null,"B3AFI_W","Rozliczenia międzyokresowe | Aktywa z tytułu odroczonego podatku dochodowego",null,null,"R3ZVI11_1","Techniczny rachunek ubezpieczeń na życie | Zmiany stanu innych rezerw techniczno-ubezpieczeniowych na udziale własnym | Zmiana stanu rezerw w ubezpieczeniach na życie na udziale własnym | Rezerwy brutto"]
[null,"B3AFI_A","Rozliczenia międzyokresowe | Aktywa z tytułu odroczonego podatku dochodowego | Odpisy aktualizujące aktywa z tytułu odroczonego podatku dochodowego",null,null,"R3ZVI11_2","Techniczny rachunek ubezpieczeń na życie | Zmiany stanu innych rezerw techniczno-ubezpieczeniowych na udziale własnym | Zmiana stanu rezerw w ubezpieczeniach na życie na udziale własnym | Na udziale reasekuratorów"]
[null,"B3AFII_W","Rozliczenia międzyokresowe | Aktywowane koszty akwizycji",null,null,"R3ZVI22_1","jw. | Zmiany stanu innych rezerw techniczno-ubezpieczeniowych na udziale własnym | Zmiana stanu rezerw techniczno-ubezpieczeniowych na udziale własnym dla ubezpieczeń na życie, jeżeli ryzyko lokaty ponosi ubezpieczający | Rezerwy brutto"]
[null,"B3AFII_A","Rozliczenia międzyokresowe | Aktywowane koszty akwizycji | Odpisy aktualizujące aktywowane koszty akwizycji",null,null,"R3ZVI22_2","jw. | Zmiany stanu innych rezerw techniczno-ubezpieczeniowych na udziale własnym | Zmiana stanu rezerw techniczno-ubezpieczeniowych na udziale własnym dla ubezpieczeń na życie, jeżeli ryzyko lokaty ponosi ubezpieczający | Na udziale reasekuratorów"]
[null,"B3AFIII_W","Rozliczenia międzyokresowe | Zarachowane odsetki i czynsze",null,null,"R3ZVI33_1","jw. | Zmiany stanu innych rezerw techniczno-ubezpieczeniowych na udziale własnym | Zmiana stanu pozostałych rezerw techniczno-ubezpieczeniowych przewidzianych w statucie na udziale własnym | Rezerw brutto"]
[null,"B3AFIII_A","Rozliczenia międzyokresowe | Zarachowane odsetki i czynsze | Odpisy aktualizujące zarachowane odsetki i czynsze",null,null,"R3ZVI33_2","jw. | Zmiany stanu innych rezerw techniczno-ubezpieczeniowych na udziale własnym | Zmiana stanu pozostałych rezerw techniczno-ubezpieczeniowych przewidzianych w statucie na udziale własnym | Na udziale reasekuratorów"]
[null,"B3AFIV_W","Rozliczenia międzyokresowe | Inne rozliczenia międzyokresowe",null,null,"R3ZVII","Techniczny rachunek ubezpieczeń na życie | Premie i rabaty łącznie ze zmianą stanu rezerw na udziale własnym"]
[null,"B3AFIV_A","Rozliczenia międzyokresowe | Inne rozliczenia międzyokresowe | Odpisy aktualizujące inne rozliczenia międzyokresowe",null,null,"R3ZVIII11_1","Techniczny rachunek ubezpieczeń na życie | Koszty działalności ubezpieczeniowej | Koszty akwizycji | Zmiana stanu aktywowanych kosztów akwizycji"]
[null,"B3AG","Należne wpłaty na kapitał podstawowy",null,null,"R3ZVIII11_2","Techniczny rachunek ubezpieczeń na życie | Koszty działalności ubezpieczeniowej | Koszty akwizycji | Koszty akwizycji poniesione w okresie sprawozdawczym"]
[null,"B3AH","Akcje własne",null,null,"R3ZVIII2","Techniczny rachunek ubezpieczeń na życie | Koszty działalności ubezpieczeniowej | Koszty administracyjne"]
[null,"INNE","Inne, niewskazane w słowniku",null,null,"R3ZVIII3","Techniczny rachunek ubezpieczeń na życie | Koszty działalności ubezpieczeniowej | Prowizje reasekuracyjne i udziały w zyskach"]
[null,null,null,null,null,"R3ZIX1","Techniczny rachunek ubezpieczeń na życie | Koszty działalności lokacyjnej | Koszty utrzymania nieruchomości"]
[null,null,null,null,null,"R3ZIX2","Techniczny rachunek ubezpieczeń na życie | Koszty działalności lokacyjnej | Pozostałe koszty działalności lokacyjnej"]
[null,null,null,null,null,"R3ZIX3","Techniczny rachunek ubezpieczeń na życie | Koszty działalności lokacyjnej | Wynik ujemny z rewaloryzacji lokat | Koszt własny z rewaloryzacji lokat"]
[null,null,null,null,null,"R3ZIX4","Techniczny rachunek ubezpieczeń na życie | Koszty działalności lokacyjnej | Wynik ujemny z realizacji lokat | Koszt własny z realizacji lokat"]
[null,null,null,null,null,"R3ZX","Techniczny rachunek ubezpieczeń na życie | Niezrealizowane straty na lokatach"]
[null,null,null,null,null,"R3ZXI","Techniczny rachunek ubezpieczeń na życie | Pozostałe koszty techniczne na udziale własnym"]
[null,null,null,null,null,"R3ZXII","Techniczny rachunek ubezpieczeń na życie | Przychody z lokat netto po uwzględnieniu kosztów, przeniesione do ogólnego rachunku zysków i strat"]
[null,null,null,null,null,"INNE","Inne, niewskazane w słowniku"]
["Domy maklerskie - 5"]
[null,"BDMA_I1","Środki pieniężne i inne aktywa pieniężne | W kasie","BDMP_I1","PASYWA | Zobowiązania krótkoterminowe | Wobec klientów",null,null,"RDM_I1A_pow","Przychody z podstawowej działalności | Przychody z działalności maklerskiej | Z tytułu przyjmowania i przekazywania zleceń nabycia lub zbycia instrumentów finansowych | Od jednostek powiązanych"]
[null,"BDMA_I2","Środki pieniężne i inne aktywa pieniężne | Na rachunkach bankowych","BDMP_I2","PASYWA | Zobowiązania krótkoterminowe | Wobec jednostek powiązanych",null,null,"RDM_I1B_pow","Przychody z podstawowej działalności | Przychody z działalności maklerskiej | Z tytułu wykonywania zleceń nabycia lub zbycia instrumentów finansowych na rachunek dającego zlecenie | Od jednostek powiązanych"]
[null,"BDMA_I3","Środki pieniężne i inne aktywa pieniężne | Inne środki pieniężne","BDMP_I3A","PASYWA | Zobowiązania krótkoterminowe | Wobec banków prowadzących działalność maklerską, innych domów maklerskich i towarowych domów maklerskich | Z tytułu zawartych transakcji",null,null,"RDM_I1C_pow","Przychody z podstawowej działalności | Przychody z działalności maklerskiej | Z tytułu zarządzania portfelami, w skład których wchodzi jeden instrument finansowy lub ich większa liczba | Od jednostek powiązanych"]
[null,"BDMA_I4","Środki pieniężne i inne aktywa pieniężne | Inne aktywa pieniężne","BDMP_I3B","PASYWA | Zobowiązania krótkoterminowe | Wobec banków prowadzących działalność maklerską, innych domów maklerskich i towarowych domów maklerskich | Pozostałe",null,null,"RDM_I1D_pow","Przychody z podstawowej działalności | Przychody z działalności maklerskiej | Z tytułu doradztwa inwestycyjnego | Od jednostek powiązanych"]
[null,"BDMA_II1","Należności krótkoterminowe | Od klientów","BDMP_I4","PASYWA | Zobowiązania krótkoterminowe | Wobec podmiotów prowadzących rynki regulowane i giełdy towarowe",null,null,"RDM_I1E_pow","Przychody z podstawowej działalności | Przychody z działalności maklerskiej | Z tytułu oferowania instrumentów finansowych | Od jednostek powiązanych"]
[null,"BDMA_II2","Należności krótkoterminowe | Od jednostek powiązanych","BDMP_I5","PASYWA | Zobowiązania krótkoterminowe | Wobec Krajowego Depozytu i izb rozrachunkowych oraz izb rozliczeniowych",null,null,"RDM_I1F_pow","jw. | jw. | Z tytułu świadczenia usług w wykonywaniu zawartych umów o subemisje inwestycyjne i usługowe lub zawierania i wykonywania innych umów o podobnym charakterze, jeżeli ich przedmiotem są instrumenty finansowe | Od jednostek powiązanych"]
[null,"BDMA_II3A","Należności krótkoterminowe | Od banków prowadzących działalność maklerską, innych domów maklerskich i towarowych domów maklerskich | Z tytułu zawartych transakcji","BDMP_I5A","PASYWA | Zobowiązania krótkoterminowe | Wobec CCP",null,null,"RDM_I1G_pow","jw. | jw. | Z tytułu prowadzenia rachunków pieniężnych, przechowywania lub rejestrowania instrumentów finansowych, w tym prowadzenia rachunków, o których mowa w art. 69 ust. 4 pkt 1 ustawy o obrocie instrumentami finansowymi | Od jednostek powiązanych"]
[null,"BDMA_II3B","Należności krótkoterminowe | Od banków prowadzących działalność maklerską, innych domów maklerskich i towarowych domów maklerskich | Pozostałe","BDMP_I6","PASYWA | Zobowiązania krótkoterminowe | Wobec izby gospodarczej",null,null,"RDM_I1H_pow","Przychody z podstawowej działalności | Przychody z działalności maklerskiej | Pozostałe | Od jednostek powiązanych"]
[null,"BDMA_II4","Należności krótkoterminowe | Od podmiotów prowadzących rynki regulowane i giełdy towarowe","BDMP_I7","PASYWA | Zobowiązania krótkoterminowe | Wobec emitentów papierów wartościowych lub wprowadzających",null,null,"RDM_I2_pow","Przychody z podstawowej działalności | Przychody z pozostałej działalności podstawowej | Od jednostek powiązanych"]
[null,"BDMA_II5","Należności krótkoterminowe | Od Krajowego Depozytu i izb rozrachunkowych oraz izb rozliczeniowych","BDMP_I8A","PASYWA | Zobowiązania krótkoterminowe | Kredyty i pożyczki | Od jednostek powiązanych",null,null,"RDM_I1A_poz","Przychody z podstawowej działalności | Przychody z działalności maklerskiej | Z tytułu przyjmowania i przekazywania zleceń nabycia lub zbycia instrumentów finansowych | Od jednostek pozostałych"]
[null,"BDMA_II5A","Należności krótkoterminowe | Od CCP","BDMP_I8B","PASYWA | Zobowiązania krótkoterminowe | Kredyty i pożyczki | Pozostałe",null,null,"RDM_I1B_poz","Przychody z podstawowej działalności | Przychody z działalności maklerskiej | Z tytułu wykonywania zleceń nabycia lub zbycia instrumentów finansowych na rachunek dającego zlecenie | Od jednostek pozostałych"]
[null,"BDMA_II6","Należności krótkoterminowe | Od towarzystw funduszy inwestycyjnych i emerytalnych oraz funduszy inwestycyjnych i emerytalnych","BDMP_I9","PASYWA | Zobowiązania krótkoterminowe | Dłużne papiery wartościowe",null,null,"RDM_I1C_poz","Przychody z podstawowej działalności | Przychody z działalności maklerskiej | Z tytułu zarządzania portfelami, w skład których wchodzi jeden instrument finansowy lub ich większa liczba | Od jednostek pozostałych"]
[null,"BDMA_II7","Należności krótkoterminowe | Od emitentów papierów wartościowych lub wprowadzających","BDMP_I9A","PASYWA | Zobowiązania krótkoterminowe | Ujemna wycena z tytułu instrumentów finansowych przeznaczonych do obrotu",null,null,"RDM_I1D_poz","Przychody z podstawowej działalności | Przychody z działalności maklerskiej | Z tytułu doradztwa inwestycyjnego | Od jednostek pozostałych"]
[null,"BDMA_II8","Należności krótkoterminowe | Od izby gospodarczej","BDMP_I10","PASYWA | Zobowiązania krótkoterminowe | Wekslowe",null,null,"RDM_I1E_poz","Przychody z podstawowej działalności | Przychody z działalności maklerskiej | Z tytułu oferowania instrumentów finansowych | Od jednostek pozostałych"]
[null,"BDMA_II9","Należności krótkoterminowe | Z tytułu podatków, dotacji i ubezpieczeń społecznych","BDMP_I11","PASYWA | Zobowiązania krótkoterminowe | Z tytułu podatków, ceł, ubezpieczeń społecznych",null,null,"RDM_I1F_poz","jw. | jw. | Z tytułu świadczenia usług w wykonywaniu zawartych umów o subemisje inwestycyjne i usługowe lub zawierania i wykonywania innych umów o podobnym charakterze, jeżeli ich przedmiotem są instrumenty finansowe | Od jednostek pozostałych"]
[null,"BDMA_II10","Należności krótkoterminowe | Dochodzone na drodze sądowej, nieobjęte odpisami aktualizującymi należności","BDMP_I12","PASYWA | Zobowiązania krótkoterminowe | Z tytułu wynagrodzeń",null,null,"RDM_I1G_poz","jw. | jw. | Z tytułu prowadzenia rachunków pieniężnych, przechowywania lub rejestrowania instrumentów finansowych, w tym prowadzenia rachunków, o których mowa w art. 69 ust. 4 pkt 1 ustawy o obrocie instrumentami finansowymi | Od jednostek pozostałych"]
[null,"BDMA_II11","Należności krótkoterminowe | Wynikające z zawartych umów pożyczek papierów wartościowych","BDMP_I13","PASYWA | Zobowiązania krótkoterminowe | Wobec towarzystw funduszy inwestycyjnych i emerytalnych oraz funduszy inwestycyjnych i emerytalnych",null,null,"RDM_I1H_poz","Przychody z podstawowej działalności | Przychody z działalności maklerskiej | Pozostałe | Od jednostek pozostałych"]
[null,"BDMA_II12","Należności krótkoterminowe | Pozostałe","BDMP_I14","PASYWA | Zobowiązania krótkoterminowe | Wynikające z zawartych umów pożyczek papierów wartościowych",null,null,"RDM_I2_poz","Przychody z podstawowej działalności | Przychody z pozostałej działalności podstawowej | Od jednostek pozostałych"]
[null,"BDMA_III1","Instrumenty finansowe przeznaczone do obrotu | Akcje","BDMP_I15","PASYWA | Zobowiązania krótkoterminowe | Fundusze specjalne",null,null,"RDM_II1","Koszty działalności podstawowej | Opłaty na rzecz rynków regulowanych, giełd towarowych, Krajowego Depozytu i izb rozrachunkowych oraz izb rozliczeniowych"]
[null,"BDMA_III2","Instrumenty finansowe przeznaczone do obrotu | Dłużne papiery wartościowe","BDMP_I16","PASYWA | Zobowiązania krótkoterminowe | Pozostałe",null,null,"RDM_II2","Koszty działalności podstawowej | Opłaty na rzecz CCP"]
[null,"BDMA_III3","Instrumenty finansowe przeznaczone do obrotu | Certyfikaty inwestycyjne","BDMP_II1A","PASYWA | Zobowiązania długoterminowe | Kredyty bankowe | Od jednostek powiązanych",null,null,"RDM_II3","Koszty działalności podstawowej | Opłaty na rzecz izby gospodarczej"]
[null,"BDMA_III4","Instrumenty finansowe przeznaczone do obrotu | Warranty","BDMP_II1B","PASYWA | Zobowiązania długoterminowe | Kredyty bankowe | Pozostałe",null,null,"RDM_II4","Koszty działalności podstawowej | Wynagrodzenia"]
[null,"BDMA_III5","Instrumenty finansowe przeznaczone do obrotu | Pozostałe papiery wartościowe","BDMP_II2A","PASYWA | Zobowiązania długoterminowe | Pożyczki | Od jednostek powiązanych",null,null,"RDM_II5","Koszty działalności podstawowej | Ubezpieczenia społeczne i inne świadczenia"]
[null,"BDMA_III6","Instrumenty finansowe przeznaczone do obrotu | Instrumenty pochodne","BDMP_II2B","PASYWA | Zobowiązania długoterminowe | Pożyczki | Pozostałe",null,null,"RDM_II6","Koszty działalności podstawowej | Świadczenia na rzecz pracowników"]
[null,"BDMA_III7","Instrumenty finansowe przeznaczone do obrotu | Towary giełdowe","BDMP_II3","PASYWA | Zobowiązania długoterminowe | Dłużne papiery wartościowe",null,null,"RDM_II7","Koszty działalności podstawowej | Zużycie materiałów i energii"]
[null,"BDMA_III8","Instrumenty finansowe przeznaczone do obrotu | Pozostałe","BDMP_II4","PASYWA | Zobowiązania długoterminowe | Z tytułu innych instrumentów finansowych",null,null,"RDM_II8","Koszty działalności podstawowej | Usługi obce"]
[null,"BDMA_IV","Krótkoterminowe rozliczenia międzyokresowe","BDMP_II5A","PASYWA | Zobowiązania długoterminowe | Z tytułu umów leasingu finansowego | Od jednostek powiązanych",null,null,"RDM_II9","Koszty działalności podstawowej | Koszty utrzymania i wynajmu nieruchomości"]
[null,"BDMA_IVA1","Udzielone pożyczki krótkoterminowe | Jednostce dominującej","BDMP_II5B","PASYWA | Zobowiązania długoterminowe | Z tytułu umów leasingu finansowego | Pozostałe",null,null,"RDM_II10","Koszty działalności podstawowej | Pozostałe koszty rzeczowe"]
[null,"BDMA_IVA2","Udzielone pożyczki krótkoterminowe | Znaczącemu inwestorowi","BDMP_II6","PASYWA | Zobowiązania długoterminowe | Pozostałe",null,null,"RDM_II11","Koszty działalności podstawowej | Amortyzacja"]
[null,"BDMA_IVA3","Udzielone pożyczki krótkoterminowe | Wspólnikowi jednostki współzależnej","BDMP_III1","PASYWA | Rozliczenia międzyokresowe | Ujemna wartość firmy",null,null,"RDM_II12","Koszty działalności podstawowej | Podatki i inne opłaty o charakterze publicznoprawnym"]
[null,"BDMA_IVA4","Udzielone pożyczki krótkoterminowe | Jednostkom podporządkowanym","BDMP_III2A","PASYWA | Rozliczenia międzyokresowe | Inne rozliczenia międzyokresowe | Długoterminowe",null,null,"RDM_II13","Koszty działalności podstawowej | Prowizje i inne opłaty"]
[null,"BDMA_IVA5","Udzielone pożyczki krótkoterminowe | Pozostałe","BDMP_III2B","PASYWA | Rozliczenia międzyokresowe | Inne rozliczenia międzyokresowe | Krótkoterminowe",null,null,"RDM_II14","Koszty działalności podstawowej | Pozostałe"]
[null,"BDMA_V1","Instrumenty finansowe utrzymywane do terminu zapadalności | Dłużne papiery wartościowe","BDMP_IV1","PASYWA | Rezerwy na zobowiązania | Z tytułu odroczonego podatku dochodowego",null,null,"RDM_IV1_pow","Przychody z instrumentów finansowych przeznaczonych do obrotu | Dywidendy i inne udziały w zyskach | Od jednostek powiązanych"]
[null,"BDMA_V2","Instrumenty finansowe utrzymywane do terminu zapadalności | Pozostałe papiery wartościowe","BDMP_IV2A","PASYWA | Rezerwy na zobowiązania | Na świadczenia emerytalne i podobne | Długoterminowe",null,null,"RDM_IV1_poz","Przychody z instrumentów finansowych przeznaczonych do obrotu | Dywidendy i inne udziały w zyskach | Od jednostek pozostałych"]
[null,"BDMA_V3","Instrumenty finansowe utrzymywane do terminu zapadalności | Towary giełdowe","BDMP_IV2B","PASYWA | Rezerwy na zobowiązania | Na świadczenia emerytalne i podobne | Krótkoterminowe",null,null,"RDM_IV2_pow","Przychody z instrumentów finansowych przeznaczonych do obrotu | Odsetki | Od jednostek powiązanych"]
[null,"BDMA_V4","Instrumenty finansowe utrzymywane do terminu zapadalności | Pozostałe","BDMP_IV3A","PASYWA | Rezerwy na zobowiązania | Pozostałe | Długoterminowe",null,null,"RDM_IV2_poz","Przychody z instrumentów finansowych przeznaczonych do obrotu | Odsetki | Od jednostek pozostałych"]
[null,"BDMA_VI1A","Instrumenty finansowe dostępne do sprzedaży | Akcje i udziały | Jednostki dominującej","BDMP_IV3B","PASYWA | Rezerwy na zobowiązania | Pozostałe | Krótkoterminowe",null,null,"RDM_IV3","Przychody z instrumentów finansowych przeznaczonych do obrotu | Korekty aktualizujące wartość"]
[null,"BDMA_VI1B","Instrumenty finansowe dostępne do sprzedaży | Akcje i udziały | Znaczącego inwestora","BDMP_V","PASYWA | Zobowiązania podporządkowane",null,null,"RDM_IV4","Przychody z instrumentów finansowych przeznaczonych do obrotu | Przychody ze sprzedaży / z umorzenia"]
[null,"BDMA_VI1C","Instrumenty finansowe dostępne do sprzedaży | Akcje i udziały | Wspólnika jednostki współzależnej","BDMP_VI1","PASYWA | Kapitał (fundusz) własny | Kapitał (fundusz) podstawowy",null,null,"RDM_IV5","Przychody z instrumentów finansowych przeznaczonych do obrotu | Pozostałe"]
[null,"BDMA_VI1D","Instrumenty finansowe dostępne do sprzedaży | Akcje i udziały | Jednostek podporządkowanych","BDMP_VI4A","PASYWA | Kapitał (fundusz) własny | Kapitał (fundusz) zapasowy | Ze sprzedaży akcji powyżej ich wartości nominalnej",null,null,"RDM_V1","Koszty z tytułu instrumentów finansowych przeznaczonych do obrotu | Korekty aktualizujące wartość"]
[null,"BDMA_VI1E","Instrumenty finansowe dostępne do sprzedaży | Akcje i udziały | Pozostałe","BDMP_VI4B","PASYWA | Kapitał (fundusz) własny | Kapitał (fundusz) zapasowy | Utworzony ustawowo",null,null,"RDM_V2","Koszty z tytułu instrumentów finansowych przeznaczonych do obrotu | Koszty sprzedaży/umorzenia"]
[null,"BDMA_VI2","Instrumenty finansowe dostępne do sprzedaży | Dłużne papiery wartościowe","BDMP_VI4C","PASYWA | Kapitał (fundusz) własny | Kapitał (fundusz) zapasowy | Utworzony zgodnie ze statutem",null,null,"RDM_V3","Koszty z tytułu instrumentów finansowych przeznaczonych do obrotu | Pozostałe"]
[null,"BDMA_VI3","Instrumenty finansowe dostępne do sprzedaży | Jednostki uczestnictwa funduszy inwestycyjnych","BDMP_VI4D","PASYWA | Kapitał (fundusz) własny | Kapitał (fundusz) zapasowy | Z dopłat akcjonariuszy",null,null,"RDM_VII1_pow","Przychody z instrumentów finansowych utrzymywanych do terminu zapadalności | Odsetki | Od jednostek powiązanych"]
[null,"BDMA_VI4","Instrumenty finansowe dostępne do sprzedaży | Certyfikaty inwestycyjne","BDMP_VI4E","PASYWA | Kapitał (fundusz) własny | Kapitał (fundusz) zapasowy | Inny",null,null,"RDM_VII1_poz","Przychody z instrumentów finansowych utrzymywanych do terminu zapadalności | Odsetki | Od jednostek pozostałych"]
[null,"BDMA_VI5","Instrumenty finansowe dostępne do sprzedaży | Pozostałe papiery wartościowe","BDMP_VI5","PASYWA | Kapitał (fundusz) własny | Kapitał (fundusz) z aktualizacji wyceny",null,null,"RDM_VII2","Przychody z instrumentów finansowych utrzymywanych do terminu zapadalności | Korekty aktualizujące wartość"]
[null,"BDMA_VI6","Instrumenty finansowe dostępne do sprzedaży | Towary giełdowe","BDMP_VI6","PASYWA | Kapitał (fundusz) własny | Pozostałe kapitały (fundusze) rezerwowe",null,null,"RDM_VII3","Przychody z instrumentów finansowych utrzymywanych do terminu zapadalności | Odpis dyskonta od dłużnych papierów wartościowych"]
[null,"BDMA_VI7","Instrumenty finansowe dostępne do sprzedaży | Pozostałe","BDMP_VI7A","PASYWA | Kapitał (fundusz) własny | Zysk (strata) z lat ubiegłych | Zysk z lat ubiegłych (wartość dodatnia)",null,null,"RDM_VII4","Przychody z instrumentów finansowych utrzymywanych do terminu zapadalności | Przychody ze sprzedaży / z umorzenia"]
[null,"BDMA_VII","Należności długoterminowe","BDMP_VI7B","PASYWA | Kapitał (fundusz) własny | Zysk (strata) z lat ubiegłych | Strata z lat ubiegłych (wartość ujemna)",null,null,"RDM_VII5","Przychody z instrumentów finansowych utrzymywanych do terminu zapadalności | Pozostałe"]
[null,"BDMA_VIII1","Udzielone pożyczki długoterminowe | Jednostce dominującej","BDMP_VI8","PASYWA | Kapitał (fundusz) własny | Zysk (strata) netto",null,null,"RDM_VIII1","Koszty z tytułu instrumentów finansowych utrzymywanych do terminu zapadalności | Korekty aktualizujące wartość"]
[null,"BDMA_VIII2","Udzielone pożyczki długoterminowe | Znaczącemu inwestorowi","BDMP_VI9","PASYWA | Kapitał (fundusz) własny | Odpisy z zysku netto w ciągu roku obrotowego (wielkość ujemna)",null,null,"RDM_VIII2","Koszty z tytułu instrumentów finansowych utrzymywanych do terminu zapadalności | Amortyzacja premii od dłużnych papierów wartościowych"]
[null,"BDMA_VIII3","Udzielone pożyczki długoterminowe | Wspólnikowi jednostki współzależnej","INNE","Inne, niewskazane w słowniku",null,null,"RDM_VIII3","Koszty z tytułu instrumentów finansowych utrzymywanych do terminu zapadalności | Koszty sprzedaży/umorzenia"]
[null,"BDMA_VIII4","Udzielone pożyczki długoterminowe | Jednostkom podporządkowanym",null,null,null,null,"RDM_VIII4","Koszty z tytułu instrumentów finansowych utrzymywanych do terminu zapadalności | Pozostałe"]
[null,"BDMA_VIII5","Udzielone pożyczki długoterminowe | Pozostałe",null,null,null,null,"RDM_X1_pow","Przychody z instrumentów finansowych dostępnych do sprzedaży | Dywidendy i inne udziały w zyskach | Od jednostek powiązanych"]
[null,"BDMA_IX1","Wartości niematerialne i prawne | Wartość firmy",null,null,null,null,"RDM_X1_poz","Przychody z instrumentów finansowych dostępnych do sprzedaży | Dywidendy i inne udziały w zyskach | Od jednostek pozostałych"]
[null,"BDMA_IX2A","Wartości niematerialne i prawne | Nabyte koncesje, patenty, licencje i podobne wartości | Oprogramowanie komputerowe",null,null,null,null,"RDM_X2_pow","Przychody z instrumentów finansowych dostępnych do sprzedaży | Odsetki | Od jednostek powiązanych"]
[null,"BDMA_IX2B","Wartości niematerialne i prawne | Nabyte koncesje, patenty, licencje i podobne wartości | Pozostałe",null,null,null,null,"RDM_X2_poz","Przychody z instrumentów finansowych dostępnych do sprzedaży | Odsetki | Od jednostek pozostałych"]
[null,"BDMA_IX3","Wartości niematerialne i prawne | Inne wartości niematerialne i prawne",null,null,null,null,"RDM_X3","Przychody z instrumentów finansowych dostępnych do sprzedaży | Korekty aktualizujące wartość"]
[null,"BDMA_IX4","Wartości niematerialne i prawne | Zaliczki na wartości niematerialne i prawne",null,null,null,null,"RDM_X4","Przychody z instrumentów finansowych dostępnych do sprzedaży | Przychody ze sprzedaży / z umorzenia"]
[null,"BDMA_X1A","Rzeczowe aktywa trwałe | Środki trwałe | Grunty (w tym prawo użytkowania wieczystego gruntu)",null,null,null,null,"RDM_X5","Przychody z instrumentów finansowych dostępnych do sprzedaży | Odpis dyskonta od dłużnych papierów wartościowych"]
[null,"BDMA_X1B","Rzeczowe aktywa trwałe | Środki trwałe | Budynki i lokale",null,null,null,null,"RDM_X6","Przychody z instrumentów finansowych dostępnych do sprzedaży | Pozostałe"]
[null,"BDMA_X1C","Rzeczowe aktywa trwałe | Środki trwałe | Zespoły komputerowe",null,null,null,null,"RDM_XI1","Koszty z tytułu instrumentów finansowych dostępnych do sprzedaży | Korekty aktualizujące wartość"]
[null,"BDMA_X1D","Rzeczowe aktywa trwałe | Środki trwałe | Pozostałe środki trwałe",null,null,null,null,"RDM_XI2","Koszty z tytułu instrumentów finansowych dostępnych do sprzedaży | Koszty sprzedaży/umorzenia"]
[null,"BDMA_X2","Rzeczowe aktywa trwałe | Środki trwałe w budowie",null,null,null,null,"RDM_XI3","Koszty z tytułu instrumentów finansowych dostępnych do sprzedaży | Amortyzacja premii od dłużnych papierów wartościowych"]
[null,"BDMA_X3","Rzeczowe aktywa trwałe | Zaliczki na środki trwałe w budowie",null,null,null,null,"RDM_XI4","Koszty z tytułu instrumentów finansowych dostępnych do sprzedaży | Pozostałe"]
[null,"BDMA_XI1","Długoterminowe rozliczenia międzyokresowe | Aktywa z tytułu odroczonego podatku dochodowego",null,null,null,null,"RDM_XIII1","Pozostałe przychody operacyjne | Przychody ze sprzedaży rzeczowych składników aktywów trwałych i wartości niematerialnych i prawnych"]
[null,"BDMA_XI2","Długoterminowe rozliczenia międzyokresowe | Pozostałe rozliczenia międzyokresowe",null,null,null,null,"RDM_XIII2","Pozostałe przychody operacyjne | Rozwiązanie rezerw"]
[null,"BDMA_XII","Należne wpłaty na kapitał (fundusz) podstawowy",null,null,null,null,"RDM_XIII3","Pozostałe przychody operacyjne | Zmniejszenie odpisów aktualizujących należności"]
[null,"BDMA_XIII","Udziały (akcje) własne",null,null,null,null,"RDM_XIII4","Pozostałe przychody operacyjne | Dotacje"]
[null,"INNE","Inne, niewskazane w słowniku",null,null,null,null,"RDM_XIII5","Pozostałe przychody operacyjne | Pozostałe"]
[null,null,null,null,null,null,null,"RDM_XIV1","Pozostałe koszty operacyjne | Koszty sprzedaży rzeczowych składników aktywów trwałych i wartości niematerialnych i prawnych"]
[null,null,null,null,null,null,null,"RDM_XIV2","Pozostałe koszty operacyjne | Utworzenie rezerw"]
[null,null,null,null,null,null,null,"RDM_XIV3","Pozostałe koszty operacyjne | Odpisy aktualizujące należności"]
[null,null,null,null,null,null,null,"RDM_XIV4","Pozostałe koszty operacyjne | Odpisy aktualizujące wartość rzeczowych składników aktywów trwałych i wartości niematerialnych i prawnych"]
[null,null,null,null,null,null,null,"RDM_XIV5","Pozostałe koszty operacyjne | Pozostałe"]
[null,null,null,null,null,null,null,"RDM_XVII1_pow","Przychody finansowe | Odsetki od udzielonych pożyczek | Od jednostek powiązanych"]
[null,null,null,null,null,null,null,"RDM_XVII1_poz","Przychody finansowe | Odsetki od udzielonych pożyczek | Od jednostek pozostałych"]
[null,null,null,null,null,null,null,"RDM_XVII2_pow","Przychody finansowe | Odsetki od lokat i depozytów | Od jednostek powiązanych"]
[null,null,null,null,null,null,null,"RDM_XVII2_poz","Przychody finansowe | Odsetki od lokat i depozytów | Od jednostek pozostałych"]
[null,null,null,null,null,null,null,"RDM_XVII3","Przychody finansowe | Pozostałe odsetki"]
[null,null,null,null,null,null,null,"RDM_XVII4A","Przychody finansowe | Dodatnie różnice kursowe | Zrealizowane"]
[null,null,null,null,null,null,null,"RDM_XVII4B","Przychody finansowe | Dodatnie różnice kursowe | Niezrealizowane"]
[null,null,null,null,null,null,null,"RDM_XVII5","Przychody finansowe | Pozostałe"]
[null,null,null,null,null,null,null,"RDM_XVIII1_pow","Koszty finansowe | Odsetki od kredytów i pożyczek | Dla jednostek powiązanych"]
[null,null,null,null,null,null,null,"RDM_XVIII1_poz","Koszty finansowe | Odsetki od kredytów i pożyczek | Dla jednostek pozostałych"]
[null,null,null,null,null,null,null,"RDM_XVIII2","Koszty finansowe | Pozostałe odsetki"]
[null,null,null,null,null,null,null,"RDM_XVIII3A","Koszty finansowe | Ujemne różnice kursowe | Zrealizowane"]
[null,null,null,null,null,null,null,"RDM_XVIII3B","Koszty finansowe | Ujemne różnice kursowe | Niezrealizowane"]
[null,null,null,null,null,null,null,"RDM_XVIII4","Koszty finansowe | Pozostałe"]
[null,null,null,null,null,null,null,"RDM_PD","Podatek dochodowy"]
[null,null,null,null,null,null,null,"RDM_XXIV","Pozostałe obowiązkowe zmniejszenia zysku (zwiększenia straty)"]
[null,null,null,null,null,null,null,"INNE","Inne, niewskazane w słowniku"]
["Funusze inwestycyjne - 4"]
[null,null,null,null,null,null,null,null,null,"BFI_I1","BILANS | Środki pieniężne i ich ekwiwalenty","RFI_I1","RW | Przychody z lokat | Dywidendy i inne udziały w zyskach"]
[null,null,null,null,null,null,null,null,null,"BFI_I2","BILANS | Należności","RFI_I2","RW | Przychody z lokat | Przychody odsetkowe"]
[null,null,null,null,null,null,null,null,null,"BFI_I3","BILANS | Transakcje reverse repo / buy-sell back","RFI_I3","RW | Przychody z lokat | Przychody związane z posiadaniem nieruchomości"]
[null,null,null,null,null,null,null,null,null,"BFI_I4","BILANS | Składniki lokat notowane na aktywnym rynku","RFI_I4","RW | Przychody z lokat | Dodatnie różnice kursowe"]
[null,null,null,null,null,null,null,null,null,"BFI_I5","BILANS | Składniki lokat nienotowane na aktywnym rynku","RFI_I5","RW | Przychody z lokat | Pozostałe"]
[null,null,null,null,null,null,null,null,null,"BFI_I7","BILANS | Pozostałe aktywa","RFI_II1A","RW | Koszty funduszu | Wynagrodzenie dla towarzystwa | Stała część wynagrodzenia"]
[null,null,null,null,null,null,null,null,null,"BFI_II","BILANS | Zobowiązania","RFI_II1B","RW | Koszty funduszu | Wynagrodzenie dla towarzystwa | Zmienna część wynagrodzenia"]
[null,null,null,null,null,null,null,null,null,"BFI_IV1A","BILANS | Kapitał funduszu | Kapitał wpłacony | Certyfikaty inwestycyjne nie w pełni opłacone","RFI_II2","RW | Koszty funduszu | Wynagrodzenia dla podmiotów prowadzących dystrybucję"]
[null,null,null,null,null,null,null,null,null,"BFI_IV1B","BILANS | Kapitał funduszu | Kapitał wpłacony | Pozostałe","RFI_II3","RW | Koszty funduszu | Opłaty dla depozytariusza"]
[null,null,null,null,null,null,null,null,null,"BFI_IV2","BILANS | Kapitał funduszu | Kapitał wypłacony (wielkość ujemna)","RFI_II4","RW | Koszty funduszu | Opłaty związane z prowadzeniem rejestru aktywów funduszu"]
[null,null,null,null,null,null,null,null,null,"BFI_V1","BILANS | Dochody zatrzymane | Zakumulowane, nierozdysponowane przychody z lokat netto","RFI_II5","RW | Koszty funduszu | Opłaty za zezwolenia oraz opłaty rejestracyjne"]
[null,null,null,null,null,null,null,null,null,"BFI_V2","BILANS | Dochody zatrzymane | Zakumulowany, nierozdysponowany zrealizowany zysk (strata) ze zbycia lokat","RFI_II6","RW | Koszty funduszu | Usługi w zakresie rachunkowości"]
[null,null,null,null,null,null,null,null,null,"BFI_VI","BILANS | Wzrost (spadek) wartości lokat w odniesieniu do ceny nabycia","RFI_II7","RW | Koszty funduszu | Usługi w zakresie zarządzania aktywami funduszu"]
[null,null,null,null,null,null,null,null,null,"INNE","Inne, niewskazane w słowniku","RFI_II8","RW | Koszty funduszu | Usługi prawne"]
[null,null,null,null,null,null,null,null,null,null,null,"RFI_II9","RW | Koszty funduszu | Usługi wydawnicze, w tym poligraficzne"]
[null,null,null,null,null,null,null,null,null,null,null,"RFI_II10","RW | Koszty funduszu | Koszty odsetkowe"]
[null,null,null,null,null,null,null,null,null,null,null,"RFI_II11","RW | Koszty funduszu | Koszty związane z posiadaniem nieruchomości"]
[null,null,null,null,null,null,null,null,null,null,null,"RFI_II12","RW | Koszty funduszu | Ujemne różnice kursowe"]
[null,null,null,null,null,null,null,null,null,null,null,"RFI_II13","RW | Koszty funduszu | Pozostałe"]
[null,null,null,null,null,null,null,null,null,null,null,"RFI_III","RW | Koszty pokrywane przez towarzystwo"]
[null,null,null,null,null,null,null,null,null,null,null,"RFI_VI1A","RW | Zrealizowany i niezrealizowany zysk (strata) | Przychody ze zbycia lokat"]
[null,null,null,null,null,null,null,null,null,null,null,"RFI_VI1B","RW | Zrealizowany i niezrealizowany zysk (strata) | Koszty zbycia lokat"]
[null,null,null,null,null,null,null,null,null,null,null,"RFI_VI2A","RW | Zrealizowany i niezrealizowany zysk (strata) | Wzrost (spadek) niezrealizowanego zysku (straty) z wyceny lokat | Z tytułu różnic kursowych"]
[null,null,null,null,null,null,null,null,null,null,null,"RFI_VI2B","RW | Zrealizowany i niezrealizowany zysk (strata) | Wzrost (spadek) niezrealizowanego zysku (straty) z wyceny lokat | Pozostałe"]
[null,null,null,null,null,null,null,null,null,null,null,"RFI_PD","RW | Podatek dochodowy"]
[null,null,null,null,null,null,null,null,null,null,null,"INNE","Inne, niewskazane w słowniku"]
["Organizacje pożytku publicznego - 3"]
[null,"B6AAI1_W","Aktywa trwałe | Wartości niematerialne i prawne","B6PAI","PASYWA | Fundusz własny | Fundusz statutowy","R6AI_darowizny_PRYW","Przychody z działalności statutowej | Przychody z nieodpłatnej działalności pożytku publicznego | Darowizny | Ze źródeł prywatnych"]
[null,"B6AAI1_A","Aktywa trwałe | Wartości niematerialne i prawne | Odpisy aktualizujące wartości niematerialne i prawne","B6PAII","PASYWA | Fundusz własny | Pozostałe fundusze","R6AI_darowizny_PUBL","Przychody z działalności statutowej | Przychody z nieodpłatnej działalności pożytku publicznego | Darowizny | Ze źródeł publicznych"]
[null,"B6AAI1_U","Aktywa trwałe | Wartości niematerialne i prawne | Umorzenie wartości niematerialnych i prawnych","B6PAIII","PASYWA | Fundusz własny | Zysk (strata) z lat ubiegłych","R6AI_dotacje","Przychody z działalności statutowej | Przychody z nieodpłatnej działalności pożytku publicznego | Dotacje"]
[null,"B6AAII1a_W","Aktywa trwałe | Rzeczowe aktywa trwałe | Środki trwałe | Grunty (w tym prawo użytkowania wieczystego gruntu)","B6PAIV","PASYWA | Fundusz własny | Zysk (strata) netto","R6AI_subwencje","Przychody z działalności statutowej | Przychody z nieodpłatnej działalności pożytku publicznego | Subwencje"]
[null,"B6AAII1a_A","Aktywa trwałe | Rzeczowe aktywa trwałe | Środki trwałe | Grunty (w tym prawo użytkowania wieczystego gruntu) | Odpisy aktualizujące wartość gruntów (w tym prawa użytkowania wieczystego gruntu)","B6PBI","PASYWA | Zobowiązania i rezerwy na zobowiązania | Rezerwy na zobowiązania","R6AI_ofiarnosc","Przychody z działalności statutowej | Przychody z nieodpłatnej działalności pożytku publicznego | Przychody pochodzące z ofiarności publicznej"]
[null,"B6AAII1b_W","Aktywa trwałe | Rzeczowe aktywa trwałe | Środki trwałe | Budynki, lokale i obiekty inżynierii lądowej i wodnej","B6PBII","PASYWA | Zobowiązania i rezerwy na zobowiązania | Zobowiązania długoterminowe","R6AI_poddoch","Przychody z działalności statutowej | Przychody z nieodpłatnej działalności pożytku publicznego | Przychody z tytułu % podatku dochodowego od osób fizycznych"]
[null,"B6AAII1b_A","Aktywa trwałe | Rzeczowe aktywa trwałe | Środki trwałe | Budynki, lokale i obiekty inżynierii lądowej i wodnej | Odpisy aktualizujące wartość budynków, lokali i obiektów inżynierii lądowej i wodnej","B6PBIII","PASYWA | Zobowiązania i rezerwy na zobowiązania | Zobowiązania krótkoterminowe","R6AI_SZ","Przychody z działalności statutowej | Przychody z nieodpłatnej działalności pożytku publicznego | Spadki, zapisy"]
[null,"B6AAII1b_U","Aktywa trwałe | Rzeczowe aktywa trwałe | Środki trwałe | Budynki, lokale i obiekty inżynierii lądowej i wodnej | Umorzenie budynków, lokali i obiektów inżynierii lądowej i wodnej","B6PBIV","PASYWA | Zobowiązania i rezerwy na zobowiązania | Rozliczenia międzyokresowe","R6AI_inne_PRYW","Przychody z działalności statutowej | Przychody z nieodpłatnej działalności pożytku publicznego | Pozostałe | Ze źródeł prywatnych"]
[null,"B6AAII1c_W","Aktywa trwałe | Rzeczowe aktywa trwałe | Środki trwałe | Urządzenia techniczne i maszyny","INNE","Inne, niewskazane w słowniku","R6AI_inne_PUBL","Przychody z działalności statutowej | Przychody z nieodpłatnej działalności pożytku publicznego | Pozostałe | Ze źródeł publicznych"]
[null,"B6AAII1c_A","Aktywa trwałe | Rzeczowe aktywa trwałe | Środki trwałe | Urządzenia techniczne i maszyny | Odpisy aktualizujące wartość urządzeń technicznych i maszyn",null,null,"R6AII_sprzedaz","Przychody z działalności statutowej | Przychody z odpłatnej działalności pożytku publicznego | Przychody netto ze sprzedaży produktów, towarów i materiałów"]
[null,"B6AAII1c_U","Aktywa trwałe | Rzeczowe aktywa trwałe | Środki trwałe | Urządzenia techniczne i maszyny | Umorzenie urządzeń technicznych i maszyn",null,null,"R6AII_inne","Przychody z działalności statutowej | Przychody z odpłatnej działalności pożytku publicznego | Pozostałe"]
[null,"B6AAII1d_W","Aktywa trwałe | Rzeczowe aktywa trwałe | Środki trwałe | Środki transportu",null,null,"R6AIII_skladki","Przychody z działalności statutowej | Przychody z pozostałej działalności statutowej | Składki członkowskie"]
[null,"B6AAII1d_A","Aktywa trwałe | Rzeczowe aktywa trwałe | Środki trwałe | Środki transportu | Odpisy aktualizujące wartość środków transportu",null,null,"R6AIII_inne","Przychody z działalności statutowej | Przychody z pozostałej działalności statutowej | Pozostałe"]
[null,"B6AAII1d_U","Aktywa trwałe | Rzeczowe aktywa trwałe | Środki trwałe | Środki transportu | Umorzenie środków transportu",null,null,"R6BI_poddoch","Koszty działalności statutowej | Koszty nieodpłatnej działalności pożytku publicznego"]
[null,"B6AAII1e_W","Aktywa trwałe | Rzeczowe aktywa trwałe | Środki trwałe | Inne środki trwałe",null,null,"R6BII_poddoch","Koszty działalności statutowej | Koszty odpłatnej działalności pożytku publicznego"]
[null,"B6AAII1e_A","Aktywa trwałe | Rzeczowe aktywa trwałe | Środki trwałe | Inne środki trwałe | Odpisy aktualizujące wartość innych środków trwałych",null,null,"R6BIII","Koszty działalności statutowej | Koszty pozostałej działalności statutowej"]
[null,"B6AAII1e_U","Aktywa trwałe | Rzeczowe aktywa trwałe | Środki trwałe | Inne środki trwałe | Umorzenie innych środków trwałych",null,null,"R6DI","Przychody z działalności gospodarczej | Przychody netto ze sprzedaży produktów, towarów i materiałów"]
[null,"B6AAII2_W","Aktywa trwałe | Rzeczowe aktywa trwałe | Środki trwałe w budowie",null,null,"R6EI","Koszty działalności gospodarczej | Koszt sprzedanych produktów, towarów i materiałów"]
[null,"B6AAII2_A","Aktywa trwałe | Rzeczowe aktywa trwałe | Środki trwałe w budowie | Odpisy aktualizujące wartość środków trwałych w budowie",null,null,"R6G","Koszty ogólnego zarządu"]
[null,"B6AAII3_W","Aktywa trwałe | Rzeczowe aktywa trwałe | Zaliczki na środki trwałe w budowie",null,null,"R6I","Pozostałe przychody operacyjne | Przychody z tytułu rozchodu niefinansowych aktywów trwałych"]
[null,"B6AAII3_A","Aktywa trwałe | Rzeczowe aktywa trwałe | Zaliczki na środki trwałe w budowie | Odpisy aktualizujące zaliczki na środki trwałe w budowie",null,null,"R6II","Pozostałe przychody operacyjne | Dotacje"]
[null,"B6AAIII_W","Aktywa trwałe | Należności długoterminowe",null,null,"R6III","Pozostałe przychody operacyjne | Aktualizacja wartości aktywów niefinansowych"]
[null,"B6AAIII_A","Aktywa trwałe | Należności długoterminowe | Odpisy aktualizujące wartość należności długoterminowych",null,null,"R6IV","Pozostałe przychody operacyjne | Inne przychody operacyjne"]
[null,"B6AAIV1_W","Aktywa trwałe | Inwestycje długoterminowe | Inwestycje w nieruchomości",null,null,"R6JI","Pozostałe koszty operacyjne | Koszty z tytułu rozchodu niefinansowych aktywów trwałych"]
[null,"B6AAIV1_A","Aktywa trwałe | Inwestycje długoterminowe | Inwestycje w nieruchomości | Odpisy aktualizujące wartość inwestycji w nieruchomości",null,null,"R6JII","Pozostałe koszty operacyjne | Aktualizacja wartości aktywów niefinansowych"]
[null,"B6AAIV1_U","Aktywa trwałe | Inwestycje długoterminowe | Inwestycje w nieruchomości | Umorzenie inwestycji w nieruchomości",null,null,"R6JIII","Pozostałe koszty operacyjne | Inne koszty operacyjne"]
[null,"B6AAIV2_W","Aktywa trwałe | Inwestycje długoterminowe | Wartości niematerialne i prawne",null,null,"R6KI","Przychody finansowe | Dywidendy i udziały w zyskach"]
[null,"B6AAIV2_A","Aktywa trwałe | Inwestycje długoterminowe | Wartości niematerialne i prawne | Odpisy aktualizujące wartość inwestycji w wartości niematerialne i prawne",null,null,"R6KII","Przychody finansowe | Odsetki"]
[null,"B6AAIV2_U","Aktywa trwałe | Inwestycje długoterminowe | Wartości niematerialne i prawne | Umorzenie wartości inwestycji w wartości niematerialne i prawne",null,null,"R6KIII","Przychody finansowe | Przychód z tytułu rozchodu aktywów finansowych"]
[null,"B6AAIV3_uia_W","Aktywa trwałe | Inwestycje długoterminowe | Długoterminowe aktywa finansowe | Udziały lub akcje",null,null,"R6KIV","Przychody finansowe | Aktualizacja wartości aktywów finansowych"]
[null,"B6AAIV3_uia_A","Aktywa trwałe | Inwestycje długoterminowe | Długoterminowe aktywa finansowe | Udziały lub akcje | Odpisy aktualizujące wartość udziałów lub akcji",null,null,"R6KVI_RK","Przychody finansowe | Inne | Przychody z tytułu dodatnich różnic kursowych"]
[null,"B6AAIV3_ipw_W","Aktywa trwałe | Inwestycje długoterminowe | Długoterminowe aktywa finansowe | Inne papiery wartościowe",null,null,"R6KVI_POZ","Przychody finansowe | Inne | Pozostałe"]
[null,"B6AAIV3_ipw_A","Aktywa trwałe | Inwestycje długoterminowe | Długoterminowe aktywa finansowe | Inne papiery wartościowe | Odpisy aktualizujące wartość innych papierów wartościowych",null,null,"R6LI","Koszty finansowe | Odsetki"]
[null,"B6AAIV3_up_W","Aktywa trwałe | Inwestycje długoterminowe | Długoterminowe aktywa finansowe | Udzielone pożyczki",null,null,"R6LII","Koszty finansowe | Koszty z tytułu rozchodu aktywów finansowych"]
[null,"B6AAIV3_up_A","Aktywa trwałe | Inwestycje długoterminowe | Długoterminowe aktywa finansowe | Udzielone pożyczki | Odpisy aktualizujące wartość udzielonych pożyczek",null,null,"R6LIII","Koszty finansowe | Aktualizacja wartości inwestycji"]
[null,"B6AAIV3_inne_W","Aktywa trwałe | Inwestycje długoterminowe | Długoterminowe aktywa finansowe | Inne długoterminowe aktywa finansowe",null,null,"R6LV_RK","Koszty finansowe | Inne | Koszty z tytułu ujemnych różnic kursowych"]
[null,"B6AAIV3_inne_A","Aktywa trwałe | Inwestycje długoterminowe | Długoterminowe aktywa finansowe | Inne długoterminowe aktywa finansowe | Odpisy aktualizujące wartość innych długoterminowych aktywów finansowych",null,null,"R6LV_POZ","Koszty finansowe | Inne | Pozostałe"]
[null,"B6AAIV4_W","Aktywa trwałe | Inwestycje długoterminowe | Inne inwestycje długoterminowe",null,null,"R6N","Podatek dochodowy"]
[null,"B6AAIV4_A","Aktywa trwałe | Inwestycje długoterminowe | Inne inwestycje długoterminowe | Odpisy aktualizujące wartość innych inwestycji długoterminowych",null,null,"INNE","Inne, niewskazane w słowniku"]
[null,"B6AAV_W","Aktywa trwałe | Długoterminowe rozliczenia międzyokresowe"]
[null,"B6AAV_A","Aktywa trwałe | Długoterminowe rozliczenia międzyokresowe | Odpisy aktualizujące wartość innych rozliczeń międzyokresowych"]
[null,"B6ABI1_W","Aktywa obrotowe | Zapasy | Materiały"]
[null,"B6ABI1_OCE","Aktywa obrotowe | Zapasy | Materiały | Odchylenia od cen ewidencyjnych materiałów"]
[null,"B6ABI1_A","Aktywa obrotowe | Zapasy | Materiały | Odpisy aktualizujące wartość materiałów"]
[null,"B6ABI2_W","Aktywa obrotowe | Zapasy | Pozostałe"]
[null,"B6ABI2_OCE","Aktywa obrotowe | Zapasy | Pozostałe | Odchylenia od cen ewidencyjnych pozostałych zapasów"]
[null,"B6ABI_A","Aktywa obrotowe | Zapasy | Pozostałe | Odpisy aktualizujące wartość pozostałych zapasów"]
[null,"B6ABI3_W","Aktywa obrotowe | Zapasy | Zaliczki na dostawy i usługi"]
[null,"B6ABI3_A","Aktywa obrotowe | Zapasy | Zaliczki na dostawy i usługi | Odpisy aktualizujące zaliczki na dostawy i usługi"]
[null,"B6ABII_W","Aktywa obrotowe | Należności krótkoterminowe"]
[null,"B6ABII_A","Aktywa obrotowe | Należności krótkoterminowe | Odpisy aktualizujące wartość należności krótkoterminowych"]
[null,"B6ABIII_uia_W","Aktywa obrotowe | Inwestycje krótkoterminowe | Udziały lub akcje"]
[null,"B6ABIII_uia_A","Aktywa obrotowe | Inwestycje krótkoterminowe | Udziały lub akcje | Odpisy aktualizujące wartość udziałów lub akcji"]
[null,"B6ABIII_ipw_W","Aktywa obrotowe | Inwestycje krótkoterminowe | Inne papiery wartościowe"]
[null,"B6ABIII_ipw_A","Aktywa obrotowe | Inwestycje krótkoterminowe | Inne papiery wartościowe | Odpisy aktualizujące wartość innych papierów wartościowych"]
[null,"B6ABIII_up_W","Aktywa obrotowe | Inwestycje krótkoterminowe | Udzielone pożyczki"]
[null,"B6ABIII_up_A","Aktywa obrotowe | Inwestycje krótkoterminowe | Udzielone pożyczki | Odpisy aktualizujące wartość udzielonych pożyczek"]
[null,"B6ABIII_inne_W","Aktywa obrotowe | Inwestycje krótkoterminowe | Inne krótkoterminowe aktywa finansowe"]
[null,"B6ABIII_inne_A","Aktywa obrotowe | Inwestycje krótkoterminowe | Inne krótkoterminowe aktywa finansowe | Odpisy aktualizujące wartość innych krótkoterminowych aktywów finansowych"]
[null,"B6ABIV_W","Aktywa obrotowe | Krótkoterminowe rozliczenia międzyokresowe"]
[null,"B6ABIV_A","Aktywa obrotowe | Krótkoterminowe rozliczenia międzyokresowe | Odpisy aktualizujące wartość krótkoterminowych rozliczeń międzyokresowych"]
[null,"B6AC","Należne wpłaty na fundusz statutowy"]
[null,"INNE","Inne, niewskazane w słowniku"]
["SKOK - 6"]
[null,"BSA_I1","Aktywa pieniężne | Środki pieniężne w kasie","BSP_I1A","Zobowiązania finansowe wyceniane w wartości godziwej przez wynik finansowy, w tym zobowiązania finansowe przeznaczone do obrotu | Zobowiązania finansowe wyceniane w wartości godziwej przez wynik finansowy | Oszczędności",null,null,"RS_I1","Przychody z tytułu odsetek | Aktywa finansowe wyceniane w wartości godziwej przez wynik finansowy, w tym aktywa finansowe przeznaczone do obrotu"]
[null,"BSA_I2","Aktywa pieniężne | Środki na rachunkach","BSP_I1B","Zobowiązania finansowe wyceniane w wartości godziwej przez wynik finansowy, w tym zobowiązania finansowe przeznaczone do obrotu | Zobowiązania finansowe wyceniane w wartości godziwej przez wynik finansowy | Zobowiązania finansowe z tytułu własnej emisji",null,null,"RS_I2","Przychody z tytułu odsetek | Aktywa finansowe dostępne do sprzedaży"]
[null,"BSA_II1A","Aktywa finansowe wyceniane w wartości godziwej przez wynik finansowy, w tym aktywa finansowe przeznaczone do obrotu | Aktywa finansowe wyceniane w wartości godziwej przez wynik finansowy | Instrumenty kapitałowe","BSP_I1C","Zobowiązania finansowe wyceniane w wartości godziwej przez wynik finansowy, w tym zobowiązania finansowe przeznaczone do obrotu | Zobowiązania finansowe wyceniane w wartości godziwej przez wynik finansowy | Pozostałe zobowiązania",null,null,"RS_I3","Przychody z tytułu odsetek | Aktywa finansowe utrzymywane do terminu wymagalności"]
[null,"BSA_II1B","Aktywa finansowe wyceniane w wartości godziwej przez wynik finansowy, w tym aktywa finansowe przeznaczone do obrotu | Aktywa finansowe wyceniane w wartości godziwej przez wynik finansowy | Dłużne papiery wartościowe","BSP_I2A","Zobowiązania finansowe wyceniane w wartości godziwej przez wynik finansowy, w tym zobowiązania finansowe przeznaczone do obrotu | Zobowiązania finansowe przeznaczone do obrotu | Oszczędności",null,null,"RS_I4","Przychody z tytułu odsetek | Kredyty i pożyczki oraz inne należności"]
[null,"BSA_II1C","Aktywa finansowe wyceniane w wartości godziwej przez wynik finansowy, w tym aktywa finansowe przeznaczone do obrotu | Aktywa finansowe wyceniane w wartości godziwej przez wynik finansowy | Pozostałe","BSP_I2B","Zobowiązania finansowe wyceniane w wartości godziwej przez wynik finansowy, w tym zobowiązania finansowe przeznaczone do obrotu | Zobowiązania finansowe przeznaczone do obrotu | Zobowiązania finansowe z tytułu własnej emisji",null,null,"RS_I5","Przychody z tytułu odsetek | Inne aktywa"]
[null,"BSA_II2A","Aktywa finansowe wyceniane w wartości godziwej przez wynik finansowy, w tym aktywa finansowe przeznaczone do obrotu | Aktywa finansowe przeznaczone do obrotu | Instrumenty kapitałowe","BSP_I2C","Zobowiązania finansowe wyceniane w wartości godziwej przez wynik finansowy, w tym zobowiązania finansowe przeznaczone do obrotu | Zobowiązania finansowe przeznaczone do obrotu | Pozostałe zobowiązania",null,null,"RS_II1","Koszty z tytułu odsetek | Aktywa finansowe wyceniane w wartości godziwej przez wynik finansowy, w tym aktywa finansowe przeznaczone do obrotu"]
[null,"BSA_II2B","Aktywa finansowe wyceniane w wartości godziwej przez wynik finansowy, w tym aktywa finansowe przeznaczone do obrotu | Aktywa finansowe przeznaczone do obrotu | Dłużne papiery wartościowe","BSP_II1","Zobowiązania finansowe wyceniane według skorygowanej ceny nabycia | Oszczędności",null,null,"RS_II2","Koszty z tytułu odsetek | Zobowiązania finansowe wyceniane metodą skorygowanej ceny nabycia"]
[null,"BSA_II2C","Aktywa finansowe wyceniane w wartości godziwej przez wynik finansowy, w tym aktywa finansowe przeznaczone do obrotu | Aktywa finansowe przeznaczone do obrotu | Pozostałe","BSP_II2","Zobowiązania finansowe wyceniane według skorygowanej ceny nabycia | Zobowiązania finansowe z tytułu własnej emisji",null,null,"RS_II3","Koszty z tytułu odsetek | Pozostałe zobowiązania"]
[null,"BSA_III1","Aktywa finansowe dostępne do sprzedaży | Instrumenty kapitałowe","BSP_II3","Zobowiązania finansowe wyceniane według skorygowanej ceny nabycia | Pozostałe zobowiązania",null,null,"RS_IV","Przychody z tytułu dywidend"]
[null,"BSA_III2","Aktywa finansowe dostępne do sprzedaży | Dłużne papiery wartościowe","BSP_III1","Rezerwy | Rezerwa z tytułu odroczonego podatku dochodowego",null,null,"RS_V","Przychody z tytułu prowizji"]
[null,"BSA_III3","Aktywa finansowe dostępne do sprzedaży | Pozostałe","BSP_III2","Rezerwy | Inne rezerwy",null,null,"RS_VI","Koszty z tytułu prowizji"]
[null,"BSA_IV1","Kredyty i pożyczki oraz inne należności | Kredyty i pożyczki","BSP_IV","Zobowiązania z tytułu podatków",null,null,"RS_VIII1","Zrealizowany wynik z aktywów finansowych i zobowiązań finansowych innych niż wyceniane w wartości godziwej przez wynik finansowy oraz innych niż przeznaczone do obrotu – netto | Aktywa finansowe dostępne do sprzedaży"]
[null,"BSA_IV2","Kredyty i pożyczki oraz inne należności | Dłużne papiery wartościowe","BSP_V","Rozliczenia międzyokresowe",null,null,"RS_VIII2","Zrealizowany wynik z aktywów finansowych i zobowiązań finansowych innych niż wyceniane w wartości godziwej przez wynik finansowy oraz innych niż przeznaczone do obrotu – netto | Aktywa finansowe utrzymywane do terminu wymagalności"]
[null,"BSA_IV3","Kredyty i pożyczki oraz inne należności | Pozostałe","BSP_VI","Fundusze specjalne i inne zobowiązania",null,null,"RS_VIII3","Zrealizowany wynik z aktywów finansowych i zobowiązań finansowych innych niż wyceniane w wartości godziwej przez wynik finansowy oraz innych niż przeznaczone do obrotu – netto | Kredyty i pożyczki oraz inne należności"]
[null,"BSA_V1","Aktywa finansowe utrzymywane do terminu wymagalności | Dłużne papiery wartościowe","BSP_VII","Zobowiązania i rezerwy na zobowiązania łącznie",null,null,"RS_VIII4","Zrealizowany wynik z aktywów finansowych i zobowiązań finansowych innych niż wyceniane w wartości godziwej przez wynik finansowy oraz innych niż przeznaczone do obrotu – netto | Zobowiązania finansowe wyceniane metodą skorygowanej ceny nabycia"]
[null,"BSA_V2","Aktywa finansowe utrzymywane do terminu wymagalności | Pozostałe","BSP_VIII","Fundusz udziałowy",null,null,"RS_VIII5","Zrealizowany wynik z aktywów finansowych i zobowiązań finansowych innych niż wyceniane w wartości godziwej przez wynik finansowy oraz innych niż przeznaczone do obrotu – netto | Pozostałe zrealizowane zyski (straty)"]
[null,"BSA_VI","Rzeczowe aktywa trwałe","BSP_IX","Fundusz zasobowy",null,null,"RS_IX1","Wynik z tytułu aktywów fin. i zobowiązań fin. wycenianych w wartości godziwej przez wynik fin., w tym przeznaczonych do obrotu | Przychody z tytułu aktywów fin. i zobow. fin. wycenianych w wartości godziwej przez wynik fin., w tym przeznaczonych do obrotu"]
[null,"BSA_VII","Wartości niematerialne i prawne","BSP_X1","Fundusz z aktualizacji wyceny | Rzeczowy majątek stały",null,null,"RS_IX2","Wynik z tytułu aktywów fin. i zobowiązań fin. wycenianych w wartości godziwej przez wynik fin., w tym przeznaczonych do obrotu | Koszty z tytułu aktywów fin. i zobowiązań fin. wycenianych w wartości godziwej przez wynik fin., w tym przeznaczonych do obrotu"]
[null,"BSA_VIII1","Rozliczenia międzyokresowe | Aktywa z tytułu odroczonego podatku dochodowego","BSP_X2","Fundusz z aktualizacji wyceny | Aktywa finansowe dostępne do sprzedaży",null,null,"RS_X1","Wynik z tytułu różnic kursowych | Przychody z tytułu różnic kursowych"]
[null,"BSA_VIII2","Rozliczenia międzyokresowe | Pozostałe rozliczenia międzyokresowe","BSP_X3","Fundusz z aktualizacji wyceny | Pozostałe",null,null,"RS_X2","Wynik z tytułu różnic kursowych | Koszty z tytułu różnic kursowych"]
[null,"BSA_IX1","Inne Wkłady na fundusz stabilizacyjny","BSP_XI","Zysk (strata) z lat ubiegłych",null,null,"RS_XII1","Pozostałe przychody operacyjne | Rozwiązane odpisy aktualizujące z tytułu utraty wartości aktywów niefinansowych"]
[null,"BSA_IX2","Inne Pozostałe","BSP_XII","Zysk (strata) netto",null,null,"RS_XII2","Pozostałe przychody operacyjne | Pozostałe"]
[null,"INNE","Inne, niewskazane w słowniku","INNE","Inne, niewskazane w słowniku",null,null,"RS_XIII1","Pozostałe koszty operacyjne | Odpisy aktualizujące z tytułu utraty wartości aktywów niefinansowych"]
[null,null,null,null,null,null,null,"RS_XIII2","Pozostałe koszty operacyjne | Pozostałe"]
[null,null,null,null,null,null,null,"RS_XIV1","Koszty działania kasy | Amortyzacja"]
[null,null,null,null,null,null,null,"RS_XIV2","Koszty działania kasy | Zużycie materiałów i energii"]
[null,null,null,null,null,null,null,"RS_XIV3","Koszty działania kasy | Usługi obce"]
[null,null,null,null,null,null,null,"RS_XIV4","Koszty działania kasy | Bieżące wpłaty na fundusz stabilizacyjny"]
[null,null,null,null,null,null,null,"RS_XIV5","Koszty działania kasy | Podatki i opłaty"]
[null,null,null,null,null,null,null,"RS_XIV6","Koszty działania kasy | Wynagrodzenia oraz ubezpieczenia społeczne i inne świadczenia"]
[null,null,null,null,null,null,null,"RS_XIV7","Koszty działania kasy | Pozostałe koszty rodzajowe"]
[null,null,null,null,null,null,null,"RS_XV1","Rezerwy i rozwiązane rezerwy – netto | Na zobowiązania pozabilansowe finansowe"]
[null,null,null,null,null,null,null,"RS_XV2","Rezerwy i rozwiązane rezerwy – netto | Pozostałe rezerwy"]
[null,null,null,null,null,null,null,"RS_XVI1","Odpisy aktualizujące z tytułu utraty wartości i rozwiązane odpisy aktualizujące z tytułu utraty wartości aktywów finansowych – netto | Aktywa finansowe dostępne do sprzedaży"]
[null,null,null,null,null,null,null,"RS_XVI2","Odpisy aktualizujące z tytułu utraty wartości i rozwiązane odpisy aktualizujące z tytułu utraty wartości aktywów finansowych – netto | Aktywa finansowe utrzymywane do terminu wymagalności"]
[null,null,null,null,null,null,null,"RS_XVI3","Odpisy aktualizujące z tytułu utraty wartości i rozwiązane odpisy aktualizujące z tytułu utraty wartości aktywów finansowych – netto | Kredyty i pożyczki oraz inne należności"]
[null,null,null,null,null,null,null,"RS_XVIII1","Wynik operacji nadzwyczajnych | Zyski nadzwyczajne"]
[null,null,null,null,null,null,null,"RS_XVIII2","Wynik operacji nadzwyczajnych | Straty nadzwyczajne"]
[null,null,null,null,null,null,null,"RS_XX_PD","Podatek dochodowy"]
[null,null,null,null,null,null,null,"RS_XXI","Pozostałe obowiązkowe zmniejszenie zysku (zmniejszenie straty)"]
[null,null,null,null,null,null,null,"INNE","Inne, niewskazane w słowniku"]
["Jednostki pozostałe - 7"]
[null,"BAAI1_W","trwałe | Wartości niematerialne i prawne | Koszty zakończonych prac rozwojowych","BPAI","PASYWA | Kapitał (fundusz) własny | Kapitał (fundusz) podstawowy","RPAI_RKAI_POW","Przychody netto ze sprzedaży i zrównane z nimi / przychody netto ze sprzedaży produktów, towarów i materiałów | Przychody netto ze sprzedaży produktów | Od jednostek powiązanych"]
[null,"BAAI1_A","trwałe | Wartości niematerialne i prawne | Koszty zakończonych prac rozwojowych | Odpisy aktualizujące wartość kosztów zakończonych prac rozwojowych","BPAIIWS","PASYWA | Kapitał (fundusz) własny | Kapitał (fundusz) zapasowy | Z nadwyżki wartości sprzedaży (wartości emisyjnej) nad wartością nominalną udziałów (akcji)","RPAI_RKAI_POZ","Przychody netto ze sprzedaży i zrównane z nimi / przychody netto ze sprzedaży produktów, towarów i materiałów | Przychody netto ze sprzedaży produktów | Od pozostałych jednostek"]
[null,"BAAI1_U","trwałe | Wartości niematerialne i prawne | Koszty zakończonych prac rozwojowych | Umorzenie zakończonych prac rozwojowych","BPAII_INN","PASYWA | Kapitał (fundusz) własny | Kapitał (fundusz) zapasowy | Z innych źródeł","RPAII","Przychody netto ze sprzedaży i zrównane z nimi | Zmiana stanu produktów"]
[null,"BAAI2_W","trwałe | Wartości niematerialne i prawne | Wartość firmy","BPAII_ES_ZP","PASYWA | Kapitał (fundusz) własny | Kapitał (fundusz) zapasowy | Kwota zysku wypracowanego w latach przed opodatkowaniem ryczałtem od dochodów spółek","RPAIII","Przychody netto ze sprzedaży i zrównane z nimi | Koszt wytworzenia produktów na własne potrzeby"]
[null,"BAAI2_A","trwałe | Wartości niematerialne i prawne | Wartość firmy | Odpisy aktualizujące wartość firmy","BPAII_ES_ZR","PASYWA | Kapitał (fundusz) własny | Kapitał (fundusz) zapasowy | Kwota zysku wypracowanego w latach opodatkowania ryczałtem od dochodów spółek","RPAIV_RKAII_POW","Przychody netto ze sprzedaży i zrównane z nimi / przychody netto ze sprzedaży produktów, towarów i materiałów | Przychody netto ze sprzedaży towarów i materiałów | Od jednostek powiązanych"]
[null,"BAAI2_U","trwałe | Wartości niematerialne i prawne | Wartość firmy | Umorzenie wartości firmy","BPAIIIAWG","PASYWA | Kapitał (fundusz) własny | Kapitał (fundusz) z aktualizacji wyceny | Z tytułu aktualizacji wartości godziwej","RPAIV_RKAII_POZ","Przychody netto ze sprzedaży i zrównane z nimi / przychody netto ze sprzedaży produktów, towarów i materiałów | Przychody netto ze sprzedaży towarów i materiałów | Od pozostałych jednostek"]
[null,"BAAI3_W","trwałe | Wartości niematerialne i prawne | Inne wartości niematerialne i prawne","BPAIII_INN","PASYWA | Kapitał (fundusz) własny | Kapitał (fundusz) z aktualizacji wyceny | Z innego tytułu","RPBI","Koszty działalności operacyjnej | Amortyzacja"]
[null,"BAAI3_A","trwałe | Wartości niematerialne i prawne | Inne wartości niematerialne i prawne | Odpisy aktualizujące inne wartości niematerialne i prawne","BPAIVU","PASYWA | Kapitał (fundusz) własny | Pozostałe kapitały (fundusze) rezerwowe | Tworzone zgodnie z umową (ze statutem)","RPBII","Koszty działalności operacyjnej | Zużycie materiałów i energii"]
[null,"BAAI3_U","trwałe | Wartości niematerialne i prawne | Inne wartości niematerialne i prawne | Umorzenie innych wartości niematerialnych i prawnych","BPAIVUW","PASYWA | Kapitał (fundusz) własny | Pozostałe kapitały (fundusze) rezerwowe | Na udziały (akcje) własne","RPBIII","Koszty działalności operacyjnej | Usługi obce"]
[null,"BAAI4_W","trwałe | Wartości niematerialne i prawne | Zaliczki na wartości niematerialne i prawne","BPAIV_INN","PASYWA | Kapitał (fundusz) własny | Pozostałe kapitały (fundusze) rezerwowe | Inne","RPBIV_AKC","Koszty działalności operacyjnej | Podatki i opłaty | Podatek akcyzowy"]
[null,"BAAI4_A","trwałe | Wartości niematerialne i prawne | Zaliczki na wartości niematerialne i prawne | Odpisy aktualizujące zaliczki na wartości niematerialne i prawne","BPAIV_ES_ZP","PASYWA | Kapitał (fundusz) własny | Pozostałe kapitały (fundusze) rezerwowe | Kwota zysku wypracowanego w latach przed opodatkowaniem ryczałtem od dochodów spółek","RPBIV_POZ","Koszty działalności operacyjnej | Podatki i opłaty | Pozostałe podatki i opłaty"]
[null,"BAAII1a_W","trwałe | Rzeczowe trwałe | Środki trwałe | Grunty (w tym prawo użytkowania wieczystego gruntu)","BPAIV_ES_ZR","PASYWA | Kapitał (fundusz) własny | Pozostałe kapitały (fundusze) rezerwowe | Kwota zysku wypracowanego w latach opodatkowania ryczałtem od dochodów spółek","RPBV","Koszty działalności operacyjnej | Wynagrodzenia"]
[null,"BAAII1a_A","trwałe | Rzeczowe trwałe | Środki trwałe | Grunty (w tym prawo użytkowania wieczystego gruntu) | Odpisy aktualizujące wartość gruntów (w tym prawa użytkowania wieczystego gruntu)","BPAV","PASYWA | Kapitał (fundusz) własny | Zysk (strata) z lat ubiegłych","RPBVI","Koszty działalności operacyjnej | Ubezpieczenia społeczne i inne świadczenia"]
[null,"BAAII1a_U","trwałe | Rzeczowe trwałe | Środki trwałe | Grunty (w tym prawo użytkowania wieczystego gruntu) | Umorzenie gruntów (w tym prawa użytkowania wieczystego gruntu)","BPAV_ES_NZP","PASYWA | Kapitał (fundusz) własny | Zysk (strata) z lat ubiegłych | Kwota niepodzielonych zysków wypracowanych w latach przed opodatkowaniem ryczałtem od dochodów spółek","RPBVI_E","Koszty działalności operacyjnej | Ubezpieczenia społeczne i inne świadczenia | Emerytalne"]
[null,"BAAII1b_W","trwałe | Rzeczowe trwałe | Środki trwałe | Budynki, lokale i obiekty inżynierii lądowej i wodnej","BPAV_ES_NPR","PASYWA | Kapitał (fundusz) własny | Zysk (strata) z lat ubiegłych | Kwota niepodzielonych zysków wypracowanych w latach opodatkowania ryczałtem od dochodów spółek","RPBVII","Koszty działalności operacyjnej | Pozostałe koszty rodzajowe"]
[null,"BAAII1b_A","trwałe | Rzeczowe trwałe | Środki trwałe | Budynki, lokale i obiekty inżynierii lądowej i wodnej | Odpisy aktualizujące wartość budynków, lokali i obiektów inżynierii lądowej i wodnej","BPAV_ES_NSP","PASYWA | Kapitał (fundusz) własny | Zysk (strata) z lat ubiegłych | Kwota niepokrytych strat poniesionych w latach przed opodatkowaniem ryczałtem od dochodów spółek","RPBVIII_RKBII_POW","Koszty działalności operacyjnej / koszty sprzedanych produktów, towarów i materiałów | Wartość sprzedanych towarów i materiałów | Dla jednostek powiązanych"]
[null,"BAAII1b_U","trwałe | Rzeczowe trwałe | Środki trwałe | Budynki, lokale i obiekty inżynierii lądowej i wodnej | Umorzenie budynków, lokali i obiektów inżynierii lądowej i wodnej","BPAV_ES_NSR","PASYWA | Kapitał (fundusz) własny | Zysk (strata) z lat ubiegłych | Kwota niepokrytych strat poniesionych w latach opodatkowania ryczałtem od dochodów spółek","RPBVIII_RKBII_POZ","Koszty działalności operacyjnej / koszty sprzedanych produktów, towarów i materiałów | Wartość sprzedanych towarów i materiałów | Dla pozostałych jednostek"]
[null,"BAAII1c_W","trwałe | Rzeczowe trwałe | Środki trwałe | Urządzenia techniczne i maszyny","BPAVI","PASYWA | Kapitał (fundusz) własny | Zysk (strata) netto","RKBI_POW","Koszty sprzedanych produktów, towarów i materiałów | Koszt wytworzenia sprzedanych produktów | Jednostkom powiązanym"]
[null,"BAAII1c_A","trwałe | Rzeczowe trwałe | Środki trwałe | Urządzenia techniczne i maszyny | Odpisy aktualizujące wartość urządzeń technicznych i maszyn","BPAVII","PASYWA | Kapitał (fundusz) własny | Odpisy z zysku netto w ciągu roku obrotowego (wielkość ujemna)","RKBI_POZ","Koszty sprzedanych produktów, towarów i materiałów | Koszt wytworzenia sprzedanych produktów | Pozostałym jednostkom"]
[null,"BAAII1c_U","trwałe | Rzeczowe trwałe | Środki trwałe | Urządzenia techniczne i maszyny | Umorzenie urządzeń technicznych i maszyn","BPBI1","PASYWA | Zobowiązania i rezerwy na zobowiązania | Rezerwy na zobowiązania | Rezerwa z tytułu odroczonego podatku dochodowego","RKD","Koszty sprzedaży"]
[null,"BAAII1d_W","trwałe | Rzeczowe trwałe | Środki trwałe | Środki transportu","BPBI2_D","PASYWA | Zobowiązania i rezerwy na zobowiązania | Rezerwy na zobowiązania | Rezerwa na świadczenia emerytalne i podobne | Długoterminowa","RKE","Koszty ogólnego zarządu"]
[null,"BAAII1d_A","trwałe | Rzeczowe trwałe | Środki trwałe | Środki transportu | Odpisy aktualizujące wartość środków transportu","BPBI2_K","PASYWA | Zobowiązania i rezerwy na zobowiązania | Rezerwy na zobowiązania | Rezerwa na świadczenia emerytalne i podobne | Krótkoterminowa","RPDI_RKGI_POW","Pozostałe przychody operacyjne | Przychody ze zbycia niefinansowych aktywów trwałych | Od jednostek powiązanych"]
[null,"BAAII1d_U","trwałe | Rzeczowe trwałe | Środki trwałe | Środki transportu | Umorzenie środków transportu","BPBI3_D","PASYWA | Zobowiązania i rezerwy na zobowiązania | Rezerwy na zobowiązania | Pozostałe rezerwy | Długoterminowe","RPDI_RKGI_POZ","Pozostałe przychody operacyjne | Przychody ze zbycia niefinansowych aktywów trwałych | Od pozostałych jednostek"]
[null,"BAAII1e_W","trwałe | Rzeczowe trwałe | Środki trwałe | Inne środki trwałe","BPBI3_K","PASYWA | Zobowiązania i rezerwy na zobowiązania | Rezerwy na zobowiązania | Pozostałe rezerwy | Krótkoterminowe","RPDII_RKGII","Pozostałe przychody operacyjne | Dotacje"]
[null,"BAAII1e_A","trwałe | Rzeczowe trwałe | Środki trwałe | Inne środki trwałe | Odpisy aktualizujące wartość innych środków trwałych","BPBII1","PASYWA | Zobowiązania i rezerwy na zobowiązania | Zobowiązania długoterminowe | Wobec jednostek powiązanych","RPDIII_RKGIII","Pozostałe przychody operacyjne | Aktualizacja wartości aktywów niefinansowych"]
[null,"BAAII1e_U","trwałe | Rzeczowe trwałe | Środki trwałe | Inne środki trwałe | Umorzenie innych środków trwałych","BPBII2","PASYWA | Zobowiązania i rezerwy na zobowiązania | Zobowiązania długoterminowe | Wobec pozostałych jednostek, w których jednostka posiada zaangażowanie w kapitale","RPDIV_RKGIV","Pozostałe przychody operacyjne | Inne pozostałe przychody operacyjne"]
[null,"BAAII2_W","trwałe | Rzeczowe trwałe | Środki trwałe w budowie","BPBII3a","PASYWA | Zobowiązania i rezerwy na zobowiązania | Zobowiązania długoterminowe | Wobec pozostałych jednostek | Kredyty i pożyczki","RPDIV_RKGIV_ZCP","Pozostałe przychody operacyjne | Inne pozostałe przychody operacyjne | Ze zbycia zorganizowanej części przedsiębiorstwa"]
[null,"BAAII2_A","trwałe | Rzeczowe trwałe | Środki trwałe w budowie | Odpisy aktualizujące wartość środków trwałych w budowie","BPBII3b","PASYWA | Zobowiązania i rezerwy na zobowiązania | Zobowiązania długoterminowe | Wobec pozostałych jednostek | Z tytułu emisji dłużnych papierów wartościowych","RPDIV_RKGIV_WF","Pozostałe przychody operacyjne | Inne pozostałe przychody operacyjne | Odpis ujemnej wartości firmy"]
[null,"BAAII3_W","trwałe | Rzeczowe trwałe | Zaliczki na środki trwałe w budowie","BPBII3c","PASYWA | Zobowiązania i rezerwy na zobowiązania | Zobowiązania długoterminowe | Wobec pozostałych jednostek | Inne zobowiązania finansowe","RPDIV_RKGIV_P","Pozostałe przychody operacyjne | Inne pozostałe przychody operacyjne | Pozostałe"]
[null,"BAAII3_A","trwałe | Rzeczowe trwałe | Zaliczki na środki trwałe w budowie | Odpisy aktualizujące wartość zaliczek na środki trwałe w budowie","BPBII3d","PASYWA | Zobowiązania i rezerwy na zobowiązania | Zobowiązania długoterminowe | Wobec pozostałych jednostek | Zobowiązania wekslowe","RPEI_RKHI_POW","Pozostałe koszty operacyjne | Koszty zbycia niefinansowych aktywów trwałych | Dla jednostek powiązanych"]
[null,"BAAIII1_W","trwałe | Należności długoterminowe | Od jednostek powiązanych","BPBII3e","PASYWA | Zobowiązania i rezerwy na zobowiązania | Zobowiązania długoterminowe | Wobec pozostałych jednostek | Inne","RPEI_RKHI_POZ","Pozostałe koszty operacyjne | Koszty zbycia niefinansowych aktywów trwałych | Dla pozostałych jednostek"]
[null,"BAAIII1_A","trwałe | Należności długoterminowe | Od jednostek powiązanych | Odpisy aktualizujące wartość należności od jednostek powiązanych","BPBIII1a_D12","PASYWA | Zobowiązania i rezerwy na zobowiązania | Zobowiązania krótkoterminowe | Wobec jednostek powiązanych | Z tytułu dostaw i usług | O okresie wymagalności do 12 miesięcy","RPEII_RKHII","Pozostałe koszty operacyjne | Aktualizacja wartości aktywów niefinansowych"]
[null,"BAAIII2_W","trwałe | Należności długoterminowe | Od pozost. jednostek, w których jednostka posiada zaangażowanie w kapitale","BPBIII1a_P12","PASYWA | Zobowiązania i rezerwy na zobowiązania | Zobowiązania krótkoterminowe | Wobec jednostek powiązanych | Z tytułu dostaw i usług | O okresie wymagalności powyżej 12 miesięcy","RPEIII_RKHIII","Pozostałe koszty operacyjne | Inne"]
[null,"BAAIII2_A","trwałe | Należności długoterminowe | Od pozost. jednostek, w których jednostka posiada zaangażowanie w kapitale | Odpisy aktualizujące wartość należności od pozost. jednostek, w których jednostka posiada zaangażowanie w kapitale","BPBIII1b","PASYWA | Zobowiązania i rezerwy na zobowiązania | Zobowiązania krótkoterminowe | Wobec jednostek powiązanych | Inne","RPEIII_RKHIII_ZCP","Pozostałe koszty operacyjne | Inne | Koszty zbycia zorganizowanej części przedsiębiorstwa"]
[null,"BAAIII3_W","trwałe | Należności długoterminowe | Od pozost. jednostek","BPBIII2a_D12","PASYWA | Zobowiązania i rezerwy na zobowiązania | Zobowiązania krótkoterminowe | Wobec pozostałych jednostek, w których jednostka posiada zaangażowanie w kapitale | Z tytułu dostaw i usług | O okresie wymagalności do 12 miesięcy","RPEIII_RKHIII_WF","Pozostałe koszty operacyjne | Inne | Odpis wartości firmy"]
[null,"BAAIII3_A","trwałe | Należności długoterminowe | Od pozost. jednostek | Odpisy aktualizujące wartość należności od pozost. jednostek","BPBIII2a_P12","PASYWA | Zobowiązania i rezerwy na zobowiązania | Zobowiązania krótkoterminowe | Wobec pozostałych jednostek, w których jednostka posiada zaangażowanie w kapitale | Z tytułu dostaw i usług | O okresie wymagalności powyżej 12 miesięcy","RPEIII_RKHIII_P","Pozostałe koszty operacyjne | Inne | Pozostałe"]
[null,"BAAIV1_W","trwałe | Inwestycje długoterminowe | Nieruchomości","BPBIII2b","PASYWA | Zobowiązania i rezerwy na zobowiązania | Zobowiązania krótkoterminowe | Wobec pozostałych jednostek, w których jednostka posiada zaangażowanie w kapitale | Inne","RPGIa_RKJIa_POW_k","Przychody finansowe | Dywidendy i udziały w zyskach | Od jednostek powiązanych | W których jednostka posiada zaangażowanie w kapitale"]
[null,"BAAIV1_A","trwałe | Inwestycje długoterminowe | Nieruchomości | Odpisy aktualizujące wartość inwestycji długoterminowych w nieruchomości","BPBIII3a","PASYWA | Zobowiązania i rezerwy na zobowiązania | Zobowiązania krótkoterminowe | Wobec pozostałych jednostek | Kredyty i pożyczki","RPGIa_RKJIa_POW_p","Przychody finansowe | Dywidendy i udziały w zyskach | Od jednostek powiązanych | W innych jednostkach powiązanych"]
[null,"BAAIV1_U","trwałe | Inwestycje długoterminowe | Nieruchomości | Umorzenie inwestycji długoterminowych w nieruchomości","BPBIII3b","PASYWA | Zobowiązania i rezerwy na zobowiązania | Zobowiązania krótkoterminowe | Wobec pozostałych jednostek | Z tytułu emisji dłużnych papierów wartościowych","RPGIb_RKJIb_POZ_k","Przychody finansowe | Dywidendy i udziały w zyskach | Od pozostałych jednostek | W których jednostka posiada zaangażowanie w kapitale"]
[null,"BAAIV2_W","trwałe | Inwestycje długoterminowe | Wartości niematerialne i prawne","BPBIII3c","PASYWA | Zobowiązania i rezerwy na zobowiązania | Zobowiązania krótkoterminowe | Wobec pozostałych jednostek | Inne zobowiązania finansowe","RPGIb_RKJIb_POZ_p","Przychody finansowe | Dywidendy i udziały w zyskach | Od pozostałych jednostek | W innych pozostałych jednostkach"]
[null,"BAAIV2_A","trwałe | Inwestycje długoterminowe | Wartości niematerialne i prawne | Odpisy aktualizujące wartość inwestycji długoterminowych w wartości niematerialne i prawne","BPBIII3d_D12","PASYWA | Zobowiązania i rezerwy na zobowiązania | Zobowiązania krótkoterminowe | Wobec pozostałych jednostek | Z tytułu dostaw i usług | O okresie wymagalności do 12 miesięcy","RPGII_RKJII_POW","Przychody finansowe | Odsetki | Od jednostek powiązanych"]
[null,"BAAIV2_U","trwałe | Inwestycje długoterminowe | Wartości niematerialne i prawne | Umorzenie wartości inwestycji długoterminowych w wartości niematerialne i prawne","BPBIII3d_P12","PASYWA | Zobowiązania i rezerwy na zobowiązania | Zobowiązania krótkoterminowe | Wobec pozostałych jednostek | Z tytułu dostaw i usług | O okresie wymagalności powyżej 12 miesięcy","RPGII_RKJII_POZ","Przychody finansowe | Odsetki | Od pozostałych jednostek"]
[null,"BAAIV3a_ULA_W","trwałe | Inwestycje długoterminowe | długoterminowe finansowe | W jednostkach powiązanych | Udziały lub akcje","BPBIII3e","PASYWA | Zobowiązania i rezerwy na zobowiązania | Zobowiązania krótkoterminowe | Wobec pozostałych jednostek | Zaliczki otrzymane na dostawy i usługi","RPGIII_RKJIII_POW","Przychody finansowe | Przychód z tytułu rozchodu aktywów finansowych | W jednostkach powiązanych"]
[null,"BAAIV3a_ULA_A","trwałe | Inwestycje długoterminowe | długoterminowe finansowe | W jednostkach powiązanych | Udziały lub akcje | Odpisy aktualizujące wartość udziałów lub akcji w jednostkach powiązanych","BPBIII3f","PASYWA | Zobowiązania i rezerwy na zobowiązania | Zobowiązania krótkoterminowe | Wobec pozostałych jednostek | Zobowiązania wekslowe","RPGIII_RKJIII_POZ","Przychody finansowe | Przychód z tytułu rozchodu aktywów finansowych | W pozostałych jednostkach"]
[null,"BAAIV3a_IPW_W","trwałe | Inwestycje długoterminowe | długoterminowe finansowe | W jednostkach powiązanych | Inne papiery wartościowe","BPBIII3g","PASYWA | Zobowiązania i rezerwy na zobowiązania | Zobowiązania krótkoterminowe | Wobec pozostałych jednostek | Z tytułu podatków, ceł, ubezpieczeń i innych świadczeń","RPGIV_RKJIV","Przychody finansowe | Aktualizacja wartości aktywów finansowych"]
[null,"BAAIV3a_IPW_A","trwałe | Inwestycje długoterminowe | długoterminowe finansowe | W jednostkach powiązanych | Inne papiery wartościowe | Odpisy aktualizujące wartość innych papierów wartościowych w jednostkach powiązanych","BPBIII3h","PASYWA | Zobowiązania i rezerwy na zobowiązania | Zobowiązania krótkoterminowe | Wobec pozostałych jednostek | Z tytułu wynagrodzeń","RPGV_RKJV_RK","Przychody finansowe | Inne | Przychody z tytułu dodatnich różnic kursowych"]
[null,"BAAIV3a_UP_W","trwałe | Inwestycje długoterminowe | długoterminowe finansowe | W jednostkach powiązanych | Udzielone pożyczki","BPBIII3i","PASYWA | Zobowiązania i rezerwy na zobowiązania | Zobowiązania krótkoterminowe | Wobec pozostałych jednostek | Inne","RPGV_RKJV_POZ","Przychody finansowe | Inne | Pozostałe"]
[null,"BAAIV3a_UP_A","trwałe | Inwestycje długoterminowe | długoterminowe finansowe | W jednostkach powiązanych | Udzielone pożyczki | Odpisy aktualizujące wartość udzielonych pożyczek w jednostkach powiązanych","BPBIII4","PASYWA | Zobowiązania i rezerwy na zobowiązania | Zobowiązania krótkoterminowe | Fundusze specjalne","RPHI_RKKI_POW","Koszty finansowe | Odsetki | Dla jednostek powiązanych"]
[null,"BAAIV3a_IDAF_W","trwałe | Inwestycje długoterminowe | długoterminowe finansowe | W jednostkach powiązanych | Inne długoterminowe finansowe","BPBIV1","PASYWA | Zobowiązania i rezerwy na zobowiązania | Rozliczenia międzyokresowe | Ujemna wartość firmy","RPHI_RKKI_POZ","Koszty finansowe | Odsetki | Dla pozostałych jednostek"]
[null,"BAAIV3a_IDAF_A","trwałe | Inwestycje długoterminowe | długoterminowe finansowe | W jednostkach powiązanych | Inne długoterminowe finansowe | Odpisy aktualizujące wartość innych długoterminowych aktywów finansowych w jednostkach powiązanych","BPBIV2_D","PASYWA | Zobowiązania i rezerwy na zobowiązania | Rozliczenia międzyokresowe | Inne rozliczenia międzyokresowe | Długoterminowe","RPHII_RKKII_POW","Koszty finansowe | Koszty z tytułu rozchodu aktywów finansowych | W jednostkach powiązanych"]
[null,"BAAIV3b_ULA_W","trwałe | Inwestycje długoterminowe | długoterminowe finansowe | W pozost. jednostkach, w których jednostka posiada zaangażowanie w kapitale | Udziały lub akcje","BPBIV2_K","PASYWA | Zobowiązania i rezerwy na zobowiązania | Rozliczenia międzyokresowe | Inne rozliczenia międzyokresowe | Krótkoterminowe","RPHII_RKKII_POZ","Koszty finansowe | Koszty z tytułu rozchodu aktywów finansowych | W pozostałych jednostkach"]
[null,"BAAIV3b_ULA_A","trwałe | jw. | jw. | W pozost. jednostkach, w których jednostka posiada zaangażowanie w kapitale | Udziały lub akcje | Odpisy aktualizujące wartość udziałów lub akcji w pozost. jednostkach, w których jednostka posiada zaangażowanie w kapitale","INNE","Inne, niewskazane w słowniku","RPHIII_RKKIII","Koszty finansowe | Aktualizacja wartości aktywów finansowych"]
[null,"BAAIV3b_IPW_W","trwałe | Inwestycje długoterminowe | długoterminowe finansowe | W pozost. jednostkach, w których jednostka posiada zaangażowanie w kapitale | Inne papiery wartościowe",null,null,"RPHIV_RKKIV_RK","Koszty finansowe | Inne | Koszty z tytułu ujemnych różnic kursowych"]
[null,"BAAIV3b_IPW_A","trwałe | Inwestycje długoterminowe | długoterminowe finansowe | jw. | Inne papiery wartościowe | Odpisy aktualizujące wartość innych papierów wartościowych w pozost. jednostkach, w których jednostka posiada zaangażowanie w kapitale",null,null,"RPHIV_RKKIV_POZ","Koszty finansowe | Inne | Pozostałe"]
[null,"BAAIV3b_UP_W","trwałe | Inwestycje długoterminowe | długoterminowe finansowe | W pozost. jednostkach, w których jednostka posiada zaangażowanie w kapitale | Udzielone pożyczki",null,null,"RPJ_RKM_B","Podatek dochodowy | Bieżący"]
[null,"BAAIV3b_UP_A","trwałe | Inwestycje długoterminowe | długoterminowe finansowe | jw. | Udzielone pożyczki | Odpisy aktualizujące wartość udzielonych pożyczek w pozost. jednostkach, w których jednostka posiada zaangażowanie w kapitale",null,null,"RPJ_RKM_O","Podatek dochodowy | Odroczony"]
[null,"BAAIV3b_IDAF_W","trwałe | Inwestycje długoterminowe | długoterminowe finansowe | W pozost. jednostkach, w których jednostka posiada zaangażowanie w kapitale | Inne długoterminowe finansowe",null,null,"RPK_RKN","Pozostałe obowiązkowe zmniejszenia zysku (zwiększenia straty)"]
[null,"BAAIV3b_IDAF_A","trwałe | Inwestycje długoterminowe | długoterminowe finansowe | jw. | Inne długoterminowe finansowe | Odpisy aktualiz. wartość innych długoterminowe aktywów fin. w pozost. jedn., w których jedn. posiada zaangażowanie w kapitale",null,null,"INNE","Inne, niewskazane w słowniku"]
[null,"BAAIV3c_ULA_W","trwałe | Inwestycje długoterminowe | długoterminowe finansowe | W pozost. jednostkach | Udziały lub akcje"]
[null,"BAAIV3c_ULA_A","trwałe | Inwestycje długoterminowe | długoterminowe finansowe | W pozost. jednostkach | Udziały lub akcje | Odpisy aktualizujące wartość udziałów lub akcji w pozost. jednostkach"]
[null,"BAAIV3c_IPW_W","trwałe | Inwestycje długoterminowe | długoterminowe finansowe | W pozost. jednostkach | Inne papiery wartościowe"]
[null,"BAAIV3c_IPW_A","trwałe | Inwestycje długoterminowe | długoterminowe finansowe | W pozost. jednostkach | Inne papiery wartościowe | Odpisy aktualizujące wartość innych papierów wartościowych w pozost. jednostkach"]
[null,"BAAIV3c_UP_W","trwałe | Inwestycje długoterminowe | długoterminowe finansowe | W pozost. jednostkach | Udzielone pożyczki"]
[null,"BAAIV3c_UP_A","trwałe | Inwestycje długoterminowe | długoterminowe finansowe | W pozost. jednostkach | Udzielone pożyczki | Odpisy aktualizujące wartość udzielonych pożyczek w pozost. jednostkach"]
[null,"BAAIV3c_IDAF_W","trwałe | Inwestycje długoterminowe | długoterminowe finansowe | W pozost. jednostkach | Inne długoterminowe finansowe"]
[null,"BAAIV3c_IDAF_A","trwałe | Inwestycje długoterminowe | długoterminowe finansowe | W pozost. jednostkach | Inne długoterminowe finansowe | Odpisy aktualizujące wartość innych długoterminowych aktywów finansowych w pozost. jednostkach"]
[null,"BAAIV4_W","trwałe | Inwestycje długoterminowe | Inne inwestycje długoterminowe"]
[null,"BAAIV4_A","trwałe | Inwestycje długoterminowe | Inne inwestycje długoterminowe | Odpisy aktualizujące wartość innych inwestycji długoterminowych"]
[null,"BAAV1_W","trwałe | długoterminowe rozliczenia międzyokresowe | z tytułu odroczonego podatku dochodowego"]
[null,"BAAV1_A","trwałe | długoterminowe rozliczenia międzyokresowe | z tytułu odroczonego podatku dochodowego | Odpisy aktualizujące z tytułu odroczonego podatku dochodowego"]
[null,"BAAV2_W","trwałe | długoterminowe rozliczenia międzyokresowe | Inne rozliczenia międzyokresowe"]
[null,"BAAV2_A","trwałe | długoterminowe rozliczenia międzyokresowe | Inne rozliczenia międzyokresowe | Odpisy aktualizujące inne rozliczenia międzyokresowe"]
[null,"BABI1","obrotowe | Zapasy | Materiały"]
[null,"BABI1_O","obrotowe | Zapasy | Materiały | Odchylenia od cen ewidencyjnych materiałów"]
[null,"BABI1_A","obrotowe | Zapasy | Materiały | Odpisy aktualizujące wartość materiałów"]
[null,"BABI2","obrotowe | Zapasy | Półprodukty i produkty w toku"]
[null,"BABI2_O","obrotowe | Zapasy | Półprodukty i produkty w toku | Odchylenia od cen ewidencyjnych półproduktów i produktów w toku"]
[null,"BABI2_A","obrotowe | Zapasy | Półprodukty i produkty w toku | Odpisy aktualizujące wartość półproduktów i produktów w toku"]
[null,"BABI3","obrotowe | Zapasy | Produkty gotowe"]
[null,"BABI3_O","obrotowe | Zapasy | Produkty gotowe | Odchylenia od cen ewidencyjnych produktów gotowych"]
[null,"BABI3_A","obrotowe | Zapasy | Produkty gotowe | Odpisy aktualizujące wartość produktów gotowych"]
[null,"BABI4","obrotowe | Zapasy | Towary"]
[null,"BABI4_O","obrotowe | Zapasy | Towary | Odchylenia od cen ewidencyjnych towarów"]
[null,"BABI4_A","obrotowe | Zapasy | Towary | Odpisy aktualizujące wartość towarów"]
[null,"BABI5","obrotowe | Zapasy | Zaliczki na dostawy i usługi"]
[null,"BABI5_A","obrotowe | Zapasy | Zaliczki na dostawy i usługi | Odpisy aktualizujące zaliczki na dostawy i usługi"]
[null,"BABII1a_D12","obrotowe | Należności krótkoterm. | Należności od jednostek powiązanych | Z tytułu dostaw i usług | o okresie spłaty do 12 miesięcy"]
[null,"BABII1a_D12_A","obrotowe | Należności krótkoterm. | Należności od jednostek powiązanych | Z tytułu dostaw i usług | o okresie spłaty do 12 miesięcy | Odpisy aktualizujące wartość należności z tytułu dostaw i usług od jednostek powiązanych w okresie spłaty do 12 miesięcy"]
[null,"BABII1a_P12","obrotowe | Należności krótkoterm. | Należności od jednostek powiązanych | Z tytułu dostaw i usług | o okresie spłaty powyżej 12 miesięcy"]
[null,"BABII1a_P12_A","obrotowe | Należności krótkoterm. | Należności od jednostek powiązanych | Z tytułu dostaw i usług | o okresie spłaty powyżej 12 miesięcy | Odpisy aktualizujące wartość należności z tytułu dostaw i usług od jednostek powiązanych w okresie spłaty powyżej 12 miesięcy"]
[null,"BABII1b","obrotowe | Należności krótkoterm. | Należności od jednostek powiązanych | Inne"]
[null,"BABII1b_A","obrotowe | Należności krótkoterm. | Należności od jednostek powiązanych | Inne | Odpisy aktualizujące wartość innych należności od jednostek powiązanych"]
[null,"BABII2a_D12","obrotowe | Należności krótkoterm. | Należności od pozost. jednostek, w których jednostka posiada zaangażowanie w kapitale | Z tytułu dostaw i usług | o okresie spłaty do 12 miesięcy"]
[null,"BABII2a_D12_A","obrotowe | Należności krótkoterm. | jw. | Z tytułu dostaw i usług | o okresie spłaty do 12 miesięcy | Odpisy aktualizujące wartość należności z tytułu dostaw i usług od pozost. jednostek, w których jedn. posiada zaangażowanie w kapitale, o okresie spłaty do 12 m-cy"]
[null,"BABII2a_P12","obrotowe | Należności krótkoterm. | Należności od pozost. jednostek, w których jednostka posiada zaangażowanie w kapitale | Z tytułu dostaw i usług | o okresie spłaty powyżej 12 miesięcy"]
[null,"BABII2a_P12_A","obrotowe | jw. | jw. | Z tytułu dostaw i usług | o okresie spłaty powyżej 12 miesięcy | Odpisy aktualizujące wartość należności z tytułu dostaw i usług od pozost. jednostek, w których jednostka posiada zaangażowanie w kapitale, o okresie spłaty powyżej 12 miesięcy"]
[null,"BABII2b","obrotowe | Należności krótkoterm. | Należności od pozost. jednostek, w których jednostka posiada zaangażowanie w kapitale | Inne"]
[null,"BABII2b_A","obrotowe | Należności krótkoterm. | Należności od pozost. jednostek, w których jednostka posiada zaangażowanie w kapitale | Inne | Odpisy aktualizujące wartość innych należności od pozost. jednostek, w których jednostka posiada zaangażowanie w kapitale"]
[null,"BABII3a_D12","obrotowe | Należności krótkoterm. | Należności od pozost. jednostek | Z tytułu dostaw i usług | o okresie spłaty do 12 miesięcy"]
[null,"BABII3a_D12_A","obrotowe | Należności krótkoterm. | Należności od pozost. jednostek | Z tytułu dostaw i usług | o okresie spłaty do 12 miesięcy | Odpisy aktualizujące wartość należności z tytułu dostaw i usług od pozost. jednostek o okresie spłaty do 12 miesięcy"]
[null,"BABII3a_P12","obrotowe | Należności krótkoterm. | Należności od pozost. jednostek | Z tytułu dostaw i usług | o okresie spłaty powyżej 12 miesięcy"]
[null,"BABII3a_P12_A","obrotowe | Należności krótkoterm. | Należności od pozost. jednostek | Z tytułu dostaw i usług | o okresie spłaty powyżej 12 miesięcy | Odpisy aktualizujące wartość należności z tytułu dostaw i usług od pozost. jednostek o okresie spłaty powyżej 12 miesięcy"]
[null,"BABII3b","obrotowe | Należności krótkoterm. | Należności od pozost. jednostek | Z tytułu podatków, dotacji, ceł, ubezpieczeń społecznych i zdrowotnych oraz innych świadczeń"]
[null,"BABII3b_A","obrotowe | Należności krótkoterm. | Należności od pozost. jednostek | jw. | Odpisy aktualizujące wartość należności z tytułu podatków, dotacji, ceł, ubezpieczeń, społecznych i zdrowotnych oraz innych świadczeń"]
[null,"BABII3c_W","obrotowe | Należności krótkoterm. | Należności od pozost. jednostek | Inne"]
[null,"BABII3c_A","obrotowe | Należności krótkoterm. | Należności od pozost. jednostek | Inne | Odpisy aktualizujące wartość innych należności"]
[null,"BABII3d_W","obrotowe | Należności krótkoterm. | Należności od pozost. jednostek | Dochodzone na drodze sądowej"]
[null,"BABII3d_A","obrotowe | Należności krótkoterm. | Należności od pozost. jednostek | Dochodzone na drodze sądowej | Odpisy aktualizujące wartość należności dochodzonych na drodze sądowej"]
[null,"BABIII1a1_ULA_W","obrotowe | Inwestycje krótkoterm. | Krótkoterm. finansowe | W jednostkach powiązanych | Udziały lub akcje"]
[null,"BABIII1a1_ULA_A","obrotowe | Inwestycje krótkoterm. | Krótkoterm. finansowe | W jednostkach powiązanych | Udziały lub akcje | Odpisy aktualizujące wartość udziałów lub akcji w jednostkach powiązanych"]
[null,"BABIII1a2_IPW_W","obrotowe | Inwestycje krótkoterm. | Krótkoterm. finansowe | W jednostkach powiązanych | Inne papiery wartościowe"]
[null,"BABIII1a2_IPW_A","obrotowe | Inwestycje krótkoterm. | Krótkoterm. finansowe | W jednostkach powiązanych | Inne papiery wartościowe | Odpisy aktualizujące wartość innych papierów wartościowych w jednostkach powiązanych"]
[null,"BABIII1a3_UP_W","obrotowe | Inwestycje krótkoterm. | Krótkoterm. finansowe | W jednostkach powiązanych | Udzielone pożyczki"]
[null,"BABIII1a3_UP_A","obrotowe | Inwestycje krótkoterm. | Krótkoterm. finansowe | W jednostkach powiązanych | Udzielone pożyczki | Odpisy aktualizujące wartość udzielonych pożyczek w jednostkach powiązanych"]
[null,"BABIII1a4_IKAF_W","obrotowe | Inwestycje krótkoterm. | Krótkoterm. finansowe | W jednostkach powiązanych | Inne krótkoterm. finansowe"]
[null,"BABIII1a4_IKAF_A","obrotowe | Inwestycje krótkoterm. | Krótkoterm. finansowe | W jednostkach powiązanych | Inne krótkoterm. finansowe | Odpisy aktualizujące wartość innych krótkoterminowych aktywów finansowych w jednostkach powiązanych"]
[null,"BABIII1b1_ULA_W","obrotowe | Inwestycje krótkoterm. | Krótkoterm. finansowe | W pozost. jednostkach | Udziały lub akcje"]
[null,"BABIII1b1_ULA_A","obrotowe | Inwestycje krótkoterm. | Krótkoterm. finansowe | W pozost. jednostkach | Udziały lub akcje | Odpisy aktualizujące wartość udziałów lub akcji w pozost. jednostkach"]
[null,"BABIII1b2_IPW_W","obrotowe | Inwestycje krótkoterm. | Krótkoterm. finansowe | W pozost. jednostkach | Inne papiery wartościowe"]
[null,"BABIII1b2_IPW_A","obrotowe | Inwestycje krótkoterm. | Krótkoterm. finansowe | W pozost. jednostkach | Inne papiery wartościowe | Odpisy aktualizujące wartość innych papierów wartościowych w pozost. jednostkach"]
[null,"BABIII1b3_UP_W","obrotowe | Inwestycje krótkoterm. | Krótkoterm. finansowe | W pozost. jednostkach | Udzielone pożyczki"]
[null,"BABIII1b3_UP_A","obrotowe | Inwestycje krótkoterm. | Krótkoterm. finansowe | W pozost. jednostkach | Udzielone pożyczki | Odpisy aktualizujące wartość udzielonych pożyczek w pozost. jednostkach"]
[null,"BABIII1b4_IKAF_W","obrotowe | Inwestycje krótkoterm. | Krótkoterm. finansowe | W pozost. jednostkach | Inne krótkoterm. finansowe"]
[null,"BABIII1b4_IKAF_A","obrotowe | Inwestycje krótkoterm. | Krótkoterm. finansowe | W pozost. jednostkach | Inne krótkoterm. finansowe | Odpisy aktualizujące wartość innych krótkoterminowych aktywów finansowych w pozost. jednostkach"]
[null,"BABIII1c1_SPKR","obrotowe | Inwestycje krótkoterm. | Krótkoterm. finansowe | Środki pieniężne i inne pieniężne | Środki pieniężne w kasie i na rachunkach"]
[null,"BABIII1c2_ISP","obrotowe | Inwestycje krótkoterm. | Krótkoterm. finansowe | Środki pieniężne i inne pieniężne | Inne środki pieniężne"]
[null,"BABIII1c2_ISP_A","obrotowe | Inwestycje krótkoterm. | Krótkoterm. finansowe | Środki pieniężne i inne pieniężne | Inne środki pieniężne | Odpisy aktualizujące wartość innych środków pieniężnych"]
[null,"BABIII1c3_IAP","obrotowe | Inwestycje krótkoterm. | Krótkoterm. finansowe | Środki pieniężne i inne pieniężne | Inne pieniężne"]
[null,"BABIII1c3_IAP_A","obrotowe | Inwestycje krótkoterm. | Krótkoterm. finansowe | Środki pieniężne i inne pieniężne | Inne pieniężne | Odpisy aktualizujące wartość innych aktywów pieniężnych"]
[null,"BABIII2_W","obrotowe | Inwestycje krótkoterm. | Inne inwestycje krótkoterm."]
[null,"BABIII2_A","obrotowe | Inwestycje krótkoterm. | Inne inwestycje krótkoterm. | Odpisy aktualizujące wartość innych inwestycji krótkoterminowych"]
[null,"BABIV","obrotowe | Krótkoterm. rozliczenia międzyokresowe"]
[null,"BABIV_A","obrotowe | Krótkoterm. rozliczenia międzyokresowe | Odpisy aktualizujące wartość krótkoterminowych rozliczeń międzyokresowych"]
[null,"BAC","Należne wpłaty na kapitał (fundusz) podstawowy"]
[null,"BAD","Udziały (akcje) własne"]
[null,"INNE","Inne, niewskazane w słowniku"]
[]
["Zestawienie znaczników kont PD dla kolumny S_12_3"]
[null,"PD1","Przychody zwolnione z opodatkowania (trwałe różnice pomiędzy zyskiem/stratą dla celów rachunkowych a dochodem/stratą dla celów podatkowych)"]
[null,"PD1_1","Przychody zwolnione z opodatkowania (trwałe różnice pomiędzy zyskiem/stratą dla celów rachunkowych a dochodem/stratą dla celów podatkowych) | Przychody, w stosunku do których nie stosuje się przepisów ustawy"]
[null,"PD1_2","Przychody zwolnione z opodatkowania (trwałe różnice pomiędzy zyskiem/stratą dla celów rachunkowych a dochodem/stratą dla celów podatkowych) | Przychody, które nie są zaliczane do przychodów podatkowych"]
[null,"PD1_3","Przychody zwolnione z opodatkowania (trwałe różnice pomiędzy zyskiem/stratą dla celów rachunkowych a dochodem/stratą dla celów podatkowych) | Dochody (przychody) wolne"]
[null,"PD2","Przychody niepodlegające opodatkowaniu w roku bieżącym"]
[null,"PD4","Koszty niestanowiące kosztów uzyskania przychodów (trwałe różnice pomiędzy zyskiem/stratą dla celów rachunkowych a dochodem/stratą dla celów podatkowych)"]
[null,"PD4_1","Koszty niestanowiące kosztów uzyskania przychodów (trwałe różnice pomiędzy zyskiem/stratą dla celów rach. a dochodem/stratą dla celów podatkowych) | Koszty zw. z przychodami w stosunku do których przepisów ustawy o pod. doch. nie stosuje się"]
[null,"PD4_2","Koszty niestanowiące kosztów uzyskania przychodów (trwałe różnice pomiędzy zyskiem/stratą dla celów rach. a dochodem/stratą dla celów podatkowych) | Koszty związane z przychodami, które nie są zaliczane do przychodów podatkowych"]
[null,"PD4_3","Koszty niestanowiące kosztów uzyskania przychodów (trwałe różnice pomiędzy zyskiem/stratą dla celów rachunkowych a dochodem/stratą dla celów podatkowych) | Koszty związane z dochodami (przychodami) wolnymi"]
[null,"PD5","Koszty nieuznawane za koszty uzyskania przychodów w bieżącym roku"]
[null,"PD7","Koszty uzyskania przychodów poniesione na działalność badawczo-rozwojową (ulga B+R)"]
[null,"PD8_1","Kwalifikowane prawa własności intelektualnej (IP Box) – przychody będące przychodami podatkowymi"]
[null,"PD8_2","Kwalifikowane prawa własności intelektualnej (IP Box) – koszty stanowiące koszty uzyskania przychodu"]
[null,"PD1_PB","POZABILANSOWE | Przychody zwolnione z opodatkowania (trwałe różnice pomiędzy zyskiem/stratą dla celów rachunkowych a dochodem/stratą dla celów podatkowych)"]
[null,"PD1_PB_1","POZABILANSOWE | Przychody zwolnione z opodatkowania (trwałe różnice pomiędzy zyskiem/stratą dla celów rachunkowych a dochodem/stratą dla celów podatkowych) | Przychody, w stosunku do których nie stosuje się przepisów ustawy"]
[null,"PD1_PB_2","POZABILANSOWE | Przychody zwolnione z opodatkowania (trwałe różnice pomiędzy zyskiem/stratą dla celów rachunkowych a dochodem/stratą dla celów podatkowych) | Przychody, które nie są zaliczane do przychodów podatkowych"]
[null,"PD1_PB_3","POZABILANSOWE | Przychody zwolnione z opodatkowania (trwałe różnice pomiędzy zyskiem/stratą dla celów rachunkowych a dochodem/stratą dla celów podatkowych) | Dochody (przychody) wolne"]
[null,"PD2_PB","POZABILANSOWE | Przychody niepodlegające opodatkowaniu w roku bieżącym"]
[null,"PD3_PB","POZABILANSOWE | Przychody podlegające opodatkowaniu w roku bieżącym, ujęte w księgach rachunkowych lat ubiegłych"]
[null,"PD4_PB","POZABILANSOWE | Koszty niestanowiące kosztów uzyskania przychodów (trwałe różnice pomiędzy zyskiem/stratą dla celów rachunkowych a dochodem/stratą dla celów podatkowych)"]
[null,"PD4_PB_1","POZABILANSOWE | Koszty niestanowiące kosztów uzyskania przychodów (trwałe różnice pomiędzy zyskiem/stratą dla celów rach. a dochodem/stratą dla celów podatkowych) | Koszty zw. z przychodami, w stosunku do których nie stosuje się przepisów ustawy"]
[null,"PD4_PB_2","POZABILANSOWE | Koszty niestanowiące kosztów uzyskania przychodów (trwałe różnice pomiędzy zyskiem/stratą dla celów rach. a dochodem/stratą dla celów podatkowych) | Koszty zw. z przychodami, które nie są zaliczane do przychodów podatkowych"]
[null,"PD4_PB_3","POZABILANSOWE | Koszty niestanowiące kosztów uzyskania przychodów (trwałe różnice pomiędzy zyskiem/stratą dla celów rachunkowych a dochodem/stratą dla celów podatkowych) | Koszty związane z dochodami (przychodami) wolnymi"]
[null,"PD5_PB","POZABILANSOWE | Koszty nieuznawane za koszty uzyskania przychodów w bieżącym roku"]
[null,"PD6_PB","POZABILANSOWE | Koszty uznawane za koszty uzyskania przychodów w roku bieżącym, ujęte w księgach lat ubiegłych"]
[null,"PD7_PB","POZABILANSOWE | Koszty uzyskania przychodów poniesione na działalność badawczo-rozwojową (ulga B+R)"]
[null,"PD8_PB_1","POZABILANSOWE | Kwalifikowane prawa własności intelektualnej (IP Box) – przychody będące przychodami podatkowymi"]
[null,"PD8_PB_2","POZABILANSOWE | Kwalifikowane prawa własności intelektualnej (IP Box) – koszty stanowiące koszty uzyskania przychodu"]
[]
[]
["Banki - 1","Ubezpieczyciele i zakłady reasekuracji - 2","Organizacje pożytku publicznego - 3","Funusze inwestycyjne - 4","Domy maklerskie - 5","SKOK - 6","Jednostki pozostałe - 7"]
["B2AI1 - AKTYWA | Kasa, operacje z Bankiem Centralnym | W rachunku bieżącym","B3AA1_W - AKTYWA | Wartości niematerialne i prawne | Wartość firmy","B6AAI1_W - AKTYWA | Aktywa trwałe | Wartości niematerialne i prawne","BFI_I1 - BILANS | Aktywa | Środki pieniężne i ich ekwiwalenty","BDMA_I1 - AKTYWA | Środki pieniężne i inne aktywa pieniężne | W kasie","BSA_I1 - AKTYWA | Aktywa pieniężne | Środki pieniężne w kasie","BAAI1_W - AKTYWA | Aktywa trwałe | Wartości niematerialne i prawne | Koszty zakończonych prac rozwojowych"]
["B2AI2 - AKTYWA | Kasa, operacje z Bankiem Centralnym | Rezerwa obowiązkowa","B3AA1_A - AKTYWA | Wartości niematerialne i prawne | Wartość firmy | Odpisy aktualizujące wartość firmy / odpisy z tytułu utraty wartości","B6AAI1_A - AKTYWA | Aktywa trwałe | Wartości niematerialne i prawne | Odpisy aktualizujące wartości niematerialne i prawne","BFI_I2 - BILANS | Aktywa | Należności","BDMA_I2 - AKTYWA | Środki pieniężne i inne aktywa pieniężne | Na rachunkach bankowych","BSA_I2 - AKTYWA | Aktywa pieniężne | Środki na rachunkach","BAAI1_A - AKTYWA | Aktywa trwałe | Wartości niematerialne i prawne | Koszty zakończonych prac rozwojowych | Odpisy aktualizujące wartość kosztów zakończonych prac rozwojowych"]
["B2AI3 - AKTYWA | Kasa, operacje z Bankiem Centralnym | Inne środki","B3AA1_U - AKTYWA | Wartości niematerialne i prawne | Wartość firmy | Umorzenie wartości firmy","B6AAI1_U - AKTYWA | Aktywa trwałe | Wartości niematerialne i prawne | Umorzenie wartości niematerialnych i prawnych","BFI_I3 - BILANS | Aktywa | Transakcje reverse repo / buy-sell back","BDMA_I3 - AKTYWA | Środki pieniężne i inne aktywa pieniężne | Inne środki pieniężne","BSA_II1A - AKTYWA | Aktywa finansowe wyceniane w wartości godziwej przez wynik finansowy, w tym aktywa finansowe przeznaczone do obrotu | Aktywa finansowe wyceniane w wartości godziwej przez wynik finansowy | Instrumenty kapitałowe","BAAI1_U - AKTYWA | Aktywa trwałe | Wartości niematerialne i prawne | Koszty zakończonych prac rozwojowych | Umorzenie zakończonych prac rozwojowych"]
["B2AI_A - AKTYWA | Kasa, operacje z Bankiem Centralnym | Odpisy aktualizujące wartość należności / odpisy z tytułu utraty wartości","B3AA2_W - AKTYWA | Wartości niematerialne i prawne | Inne wartości niematerialne i prawne i zaliczki na poczet wartości niematerialnych i prawnych","B6AAII1a_W - AKTYWA | Aktywa trwałe | Rzeczowe aktywa trwałe | Środki trwałe | Grunty (w tym prawo użytkowania wieczystego gruntu)","BFI_I4 - BILANS | Aktywa | Składniki lokat notowane na aktywnym rynku","BDMA_I4 - AKTYWA | Środki pieniężne i inne aktywa pieniężne | Inne aktywa pieniężne","BSA_II1B - AKTYWA | Aktywa finansowe wyceniane w wartości godziwej przez wynik finansowy, w tym aktywa finansowe przeznaczone do obrotu | Aktywa finansowe wyceniane w wartości godziwej przez wynik finansowy | Dłużne papiery wartościowe","BAAI2_W - AKTYWA | Aktywa trwałe | Wartości niematerialne i prawne | Wartość firmy"]
["B2AII_W - AKTYWA | Dłużne papiery wartościowe uprawnione do redyskontowania w Banku Centralnym","B3AA2_A - AKTYWA | Wartości niematerialne i prawne | Inne wartości niematerialne i prawne i zaliczki na poczet wartości niematerialnych i prawnych | Odpisy aktualizujące inne wartości niematerialne i prawne / odpisy z tytułu utraty wartości","B6AAII1a_A - AKTYWA | Aktywa trwałe | Rzeczowe aktywa trwałe | Środki trwałe | Grunty (w tym prawo użytkowania wieczystego gruntu) | Odpisy aktualizujące wartość gruntów (w tym prawa użytkowania wieczystego gruntu)","BFI_I5 - BILANS | Aktywa | Składniki lokat nienotowane na aktywnym rynku","BDMA_II1 - AKTYWA | Należności krótkoterminowe | Od klientów","BSA_II1C - AKTYWA | Aktywa finansowe wyceniane w wartości godziwej przez wynik finansowy, w tym aktywa finansowe przeznaczone do obrotu | Aktywa finansowe wyceniane w wartości godziwej przez wynik finansowy | Pozostałe","BAAI2_A - AKTYWA | Aktywa trwałe | Wartości niematerialne i prawne | Wartość firmy | Odpisy aktualizujące wartość firmy"]
["B2AII_A - AKTYWA | Dłużne papiery wartościowe uprawnione do redyskontowania w Banku Centralnym | Odpisy aktualizujące wartość dłużnych papierów wartościowych uprawnionych do redyskontowania w Banku Centralnym / odpisy z tytułu utraty wartości","B3AA2_U - AKTYWA | Wartości niematerialne i prawne | Inne wartości niematerialne i prawne i zaliczki na poczet wartości niematerialnych i prawnych | Umorzenie innych wartości niematerialnych i prawnych","B6AAII1b_W - AKTYWA | Aktywa trwałe | Rzeczowe aktywa trwałe | Środki trwałe | Budynki, lokale i obiekty inżynierii lądowej i wodnej","BFI_I7 - BILANS | Aktywa | Pozostałe aktywa","BDMA_II2 - AKTYWA | Należności krótkoterminowe | Od jednostek powiązanych","BSA_II2A - AKTYWA | Aktywa finansowe wyceniane w wartości godziwej przez wynik finansowy, w tym aktywa finansowe przeznaczone do obrotu | Aktywa finansowe przeznaczone do obrotu | Instrumenty kapitałowe","BAAI2_U - AKTYWA | Aktywa trwałe | Wartości niematerialne i prawne | Wartość firmy | Umorzenie wartości firmy"]
["B2AIII1_W - AKTYWA | Należności od sektora finansowego | W rachunku bieżącym","B3ABI1_W - AKTYWA | Lokaty | Nieruchomości | Grunty własne oraz prawo wieczystego użytkowania gruntu","B6AAII1b_A - AKTYWA | Aktywa trwałe | Rzeczowe aktywa trwałe | Środki trwałe | Budynki, lokale i obiekty inżynierii lądowej i wodnej | Odpisy aktualizujące wartość budynków, lokali i obiektów inżynierii lądowej i wodnej","BFI_II - BILANS | Zobowiązania","BDMA_II3A - AKTYWA | Należności krótkoterminowe | Od banków prowadzących działalność maklerską, innych domów maklerskich i towarowych domów maklerskich | Z tytułu zawartych transakcji","BSA_II2B - AKTYWA | Aktywa finansowe wyceniane w wartości godziwej przez wynik finansowy, w tym aktywa finansowe przeznaczone do obrotu | Aktywa finansowe przeznaczone do obrotu | Dłużne papiery wartościowe","BAAI3_W - AKTYWA | Aktywa trwałe | Wartości niematerialne i prawne | Inne wartości niematerialne i prawne"]
["B2AIII1_rc - AKTYWA | Należności od sektora finansowego | W rachunku bieżącym | Rezerwy celowe","B3ABI1_A - AKTYWA | Lokaty | Nieruchomości | Grunty własne oraz prawo wieczystego użytkowania gruntu | Odpisy aktualizujące wartość gruntów własnych oraz prawa wieczystego użytkowania gruntu / odpisy z tytułu utraty wartości","B6AAII1b_U - AKTYWA | Aktywa trwałe | Rzeczowe aktywa trwałe | Środki trwałe | Budynki, lokale i obiekty inżynierii lądowej i wodnej | Umorzenie budynków, lokali i obiektów inżynierii lądowej i wodnej","BFI_IV1A - BILANS | Kapitał funduszu | Kapitał wpłacony | Certyfikaty inwestycyjne nie w pełni opłacone","BDMA_II3B - AKTYWA | Należności krótkoterminowe | Od banków prowadzących działalność maklerską, innych domów maklerskich i towarowych domów maklerskich | Pozostałe","BSA_II2C - AKTYWA | Aktywa finansowe wyceniane w wartości godziwej przez wynik finansowy, w tym aktywa finansowe przeznaczone do obrotu | Aktywa finansowe przeznaczone do obrotu | Pozostałe","BAAI3_A - AKTYWA | Aktywa trwałe | Wartości niematerialne i prawne | Inne wartości niematerialne i prawne | Odpisy aktualizujące inne wartości niematerialne i prawne"]
["B2AIII1_A - AKTYWA | Należności od sektora finansowego | W rachunku bieżącym | Odpisy aktualizujące wartość należności kredytowych od sektora finansowego w rachunku bieżącym / odpisy z tytułu utraty wartości","B3ABI2_W - AKTYWA | Lokaty | Nieruchomości | Budynki, budowle oraz spółdzielcze własnościowe prawo do lokalu","B6AAII1c_W - AKTYWA | Aktywa trwałe | Rzeczowe aktywa trwałe | Środki trwałe | Urządzenia techniczne i maszyny","BFI_IV1B - BILANS | Kapitał funduszu | Kapitał wpłacony | Pozostałe","BDMA_II4 - AKTYWA | Należności krótkoterminowe | Od podmiotów prowadzących rynki regulowane i giełdy towarowe","BSA_III1 - AKTYWA | Aktywa finansowe dostępne do sprzedaży | Instrumenty kapitałowe","BAAI3_U - AKTYWA | Aktywa trwałe | Wartości niematerialne i prawne | Inne wartości niematerialne i prawne | Umorzenie innych wartości niematerialnych i prawnych"]
["B2AIII2_W - AKTYWA | Należności od sektora finansowego | Terminowe","B3ABI2_A - AKTYWA | Lokaty | Nieruchomości | Budynki, budowle oraz spółdzielcze własnościowe prawo do lokalu | Odpisy aktualizujące wartość budynków, budowli oraz spółdzielczego własnościowego prawa do lokalu / odpisy z tytułu utraty wartości","B6AAII1c_A - AKTYWA | Aktywa trwałe | Rzeczowe aktywa trwałe | Środki trwałe | Urządzenia techniczne i maszyny | Odpisy aktualizujące wartość urządzeń technicznych i maszyn","BFI_IV2 - BILANS | Kapitał funduszu | Kapitał wypłacony (wielkość ujemna)","BDMA_II5 - AKTYWA | Należności krótkoterminowe | Od Krajowego Depozytu i izb rozrachunkowych oraz izb rozliczeniowych","BSA_III2 - AKTYWA | Aktywa finansowe dostępne do sprzedaży | Dłużne papiery wartościowe","BAAI4_W - AKTYWA | Aktywa trwałe | Wartości niematerialne i prawne | Zaliczki na wartości niematerialne i prawne"]
["B2AIII2_rc - AKTYWA | Należności od sektora finansowego | Terminowe | Rezerwy celowe","B3ABI2_U - AKTYWA | Lokaty | Nieruchomości | Budynki, budowle oraz spółdzielcze własnościowe prawo do lokalu | Umorzenie wartości budynków, budowli oraz spółdzielczego własnościowego prawa do lokalu","B6AAII1c_U - AKTYWA | Aktywa trwałe | Rzeczowe aktywa trwałe | Środki trwałe | Urządzenia techniczne i maszyny | Umorzenie urządzeń technicznych i maszyn","BFI_V1 - BILANS | Dochody zatrzymane | Zakumulowane, nierozdysponowane przychody z lokat netto","BDMA_II5A - AKTYWA | Należności krótkoterminowe | Od CCP","BSA_III3 - AKTYWA | Aktywa finansowe dostępne do sprzedaży | Pozostałe","BAAI4_A - AKTYWA | Aktywa trwałe | Wartości niematerialne i prawne | Zaliczki na wartości niematerialne i prawne | Odpisy aktualizujące zaliczki na wartości niematerialne i prawne"]
["B2AIII2_A - AKTYWA | Należności od sektora finansowego | Terminowe | Odpisy aktualizujące wartość należności kredytowych terminowych od sektora finansowego / odpisy z tytułu utraty wartości","B3ABI3_W - AKTYWA | Lokaty | Nieruchomości | Inwestycje budowlane i zaliczki na poczet tych inwestycji","B6AAII1d_W - AKTYWA | Aktywa trwałe | Rzeczowe aktywa trwałe | Środki trwałe | Środki transportu","BFI_V2 - BILANS | Dochody zatrzymane | Zakumulowany, nierozdysponowany zrealizowany zysk (strata) ze zbycia lokat","BDMA_II6 - AKTYWA | Należności krótkoterminowe | Od towarzystw funduszy inwestycyjnych i emerytalnych oraz funduszy inwestycyjnych i emerytalnych","BSA_IV1 - AKTYWA | Kredyty i pożyczki oraz inne należności | Kredyty i pożyczki","BAAII1a_W - AKTYWA | Aktywa trwałe | Rzeczowe aktywa trwałe | Środki trwałe | Grunty (w tym prawo użytkowania wieczystego gruntu)"]
["B2AIV1_W - AKTYWA | Należności od sektora niefinansowego | W rachunku bieżącym","B3ABI3_A - AKTYWA | Lokaty | Nieruchomości | Inwestycje budowlane i zaliczki na poczet tych inwestycji | Odpisy aktualizujące wartość inwestycji budowlanych / odpisy z tytułu utraty wartości","B6AAII1d_A - AKTYWA | Aktywa trwałe | Rzeczowe aktywa trwałe | Środki trwałe | Środki transportu | Odpisy aktualizujące wartość środków transportu","BFI_VI - BILANS | Wzrost (spadek) wartości lokat w odniesieniu do ceny nabycia","BDMA_II7 - AKTYWA | Należności krótkoterminowe | Od emitentów papierów wartościowych lub wprowadzających","BSA_IV2 - AKTYWA | Kredyty i pożyczki oraz inne należności | Dłużne papiery wartościowe","BAAII1a_A - AKTYWA | Aktywa trwałe | Rzeczowe aktywa trwałe | Środki trwałe | Grunty (w tym prawo użytkowania wieczystego gruntu) | Odpisy aktualizujące wartość gruntów (w tym prawa użytkowania wieczystego gruntu)"]
["B2AIV1_rc - AKTYWA | Należności od sektora niefinansowego | W rachunku bieżącym | Rezerwy celowe","B3ABI3_U - AKTYWA | Lokaty | Nieruchomości | Inwestycje budowlane i zaliczki na poczet tych inwestycji | Umorzenie inwestycji budowlanych","B6AAII1d_U - AKTYWA | Aktywa trwałe | Rzeczowe aktywa trwałe | Środki trwałe | Środki transportu | Umorzenie środków transportu","RFI_I1 - RW | Przychody z lokat | Dywidendy i inne udziały w zyskach","BDMA_II8 - AKTYWA | Należności krótkoterminowe | Od izby gospodarczej","BSA_IV3 - AKTYWA | Kredyty i pożyczki oraz inne należności | Pozostałe","BAAII1a_U - AKTYWA | Aktywa trwałe | Rzeczowe aktywa trwałe | Środki trwałe | Grunty (w tym prawo użytkowania wieczystego gruntu) | Umorzenie gruntów (w tym prawa użytkowania wieczystego gruntu)"]
["B2AIV1_A - AKTYWA | Należności od sektora niefinansowego | W rachunku bieżącym | Odpisy aktualizujące wartość należności kredytowych od sektora niefinansowego w rachunku bieżącym / odpisy z tytułu utraty wartości","B3ABII1_W - AKTYWA | Lokaty | Lokaty w jednostkach podporządkowanych | Udziały lub akcje w jednostkach podporządkowanych","B6AAII1e_W - AKTYWA | Aktywa trwałe | Rzeczowe aktywa trwałe | Środki trwałe | Inne środki trwałe","RFI_I2 - RW | Przychody z lokat | Przychody odsetkowe","BDMA_II9 - AKTYWA | Należności krótkoterminowe | Z tytułu podatków, dotacji i ubezpieczeń społecznych","BSA_V1 - AKTYWA | Aktywa finansowe utrzymywane do terminu wymagalności | Dłużne papiery wartościowe","BAAII1b_W - AKTYWA | Aktywa trwałe | Rzeczowe aktywa trwałe | Środki trwałe | Budynki, lokale i obiekty inżynierii lądowej i wodnej"]
["B2AIV2_W - AKTYWA | Należności od sektora niefinansowego | Terminowe","B3ABII1_A - AKTYWA | Lokaty | Lokaty w jednostkach podporządkowanych | Udziały lub akcje w jednostkach podporządkowanych | Odpisy aktualizujące wartość udziałów lub akcji w jednostkach podporządkowanych","B6AAII1e_A - AKTYWA | Aktywa trwałe | Rzeczowe aktywa trwałe | Środki trwałe | Inne środki trwałe | Odpisy aktualizujące wartość innych środków trwałych","RFI_I3 - RW | Przychody z lokat | Przychody związane z posiadaniem nieruchomości","BDMA_II10 - AKTYWA | Należności krótkoterminowe | Dochodzone na drodze sądowej, nieobjęte odpisami aktualizującymi należności","BSA_V2 - AKTYWA | Aktywa finansowe utrzymywane do terminu wymagalności | Pozostałe","BAAII1b_A - AKTYWA | Aktywa trwałe | Rzeczowe aktywa trwałe | Środki trwałe | Budynki, lokale i obiekty inżynierii lądowej i wodnej | Odpisy aktualizujące wartość budynków, lokali i obiektów inżynierii lądowej i wodnej"]
["B2AIV2_rc - AKTYWA | Należności od sektora niefinansowego | Terminowe | Rezerwy celowe","B3ABII2_W - AKTYWA | Lokaty | Lokaty w jednostkach podporządkowanych | Pożyczki udzielone jednostkom podporządkowanym oraz dłużne papiery wartościowe emitowane przez te jednostki","B6AAII1e_U - AKTYWA | Aktywa trwałe | Rzeczowe aktywa trwałe | Środki trwałe | Inne środki trwałe | Umorzenie innych środków trwałych","RFI_I4 - RW | Przychody z lokat | Dodatnie różnice kursowe","BDMA_II11 - AKTYWA | Należności krótkoterminowe | Wynikające z zawartych umów pożyczek papierów wartościowych","BSA_VI - AKTYWA | Rzeczowe aktywa trwałe","BAAII1b_U - AKTYWA | Aktywa trwałe | Rzeczowe aktywa trwałe | Środki trwałe | Budynki, lokale i obiekty inżynierii lądowej i wodnej | Umorzenie budynków, lokali i obiektów inżynierii lądowej i wodnej"]
["B2AIV2_A - AKTYWA | Należności od sektora niefinansowego | Terminowe | Odpisy aktualizujące wartość należności kredytowych terminowych od sektora niefinansowego / odpisy z tytułu utraty wartości","B3ABII2_A - AKTYWA | Lokaty | Lokaty w jednostkach podporządkowanych | Pożyczki udzielone jednostkom podporządkowanym oraz dłużne papiery wartościowe emitowane przez te jednostki | Odpisy aktualizujące wartość pożyczek udzielonych jednostkom podporządkowanym oraz dłużnych papierów wartościowych emitowanych przez te jednostki","B6AAII2_W - AKTYWA | Aktywa trwałe | Rzeczowe aktywa trwałe | Środki trwałe w budowie","RFI_I5 - RW | Przychody z lokat | Pozostałe","BDMA_II12 - AKTYWA | Należności krótkoterminowe | Pozostałe","BSA_VII - AKTYWA | Wartości niematerialne i prawne","BAAII1c_W - AKTYWA | Aktywa trwałe | Rzeczowe aktywa trwałe | Środki trwałe | Urządzenia techniczne i maszyny"]
["B2AV1_W - AKTYWA | Należności od sektora budżetowego | W rachunku bieżącym","B3ABII3_W - AKTYWA | Lokaty | Lokaty w jednostkach podporządkowanych | Pozostałe lokaty","B6AAII2_A - AKTYWA | Aktywa trwałe | Rzeczowe aktywa trwałe | Środki trwałe w budowie | Odpisy aktualizujące wartość środków trwałych w budowie","RFI_II1A - RW | Koszty funduszu | Wynagrodzenie dla towarzystwa | Stała część wynagrodzenia","BDMA_III1 - AKTYWA | Instrumenty finansowe przeznaczone do obrotu | Akcje","BSA_VIII1 - AKTYWA | Rozliczenia międzyokresowe | Aktywa z tytułu odroczonego podatku dochodowego","BAAII1c_A - AKTYWA | Aktywa trwałe | Rzeczowe aktywa trwałe | Środki trwałe | Urządzenia techniczne i maszyny | Odpisy aktualizujące wartość urządzeń technicznych i maszyn"]
["B2AV1_rc - AKTYWA | Należności od sektora budżetowego | W rachunku bieżącym | Rezerwy celowe","B3ABII3_A - AKTYWA | Lokaty | Lokaty w jednostkach podporządkowanych | Pozostałe lokaty | Odpisy aktualizujące wartość pozostałych lokat","B6AAII3_W - AKTYWA | Aktywa trwałe | Rzeczowe aktywa trwałe | Zaliczki na środki trwałe w budowie","RFI_II1B - RW | Koszty funduszu | Wynagrodzenie dla towarzystwa | Zmienna część wynagrodzenia","BDMA_III2 - AKTYWA | Instrumenty finansowe przeznaczone do obrotu | Dłużne papiery wartościowe","BSA_VIII2 - AKTYWA | Rozliczenia międzyokresowe | Pozostałe rozliczenia międzyokresowe","BAAII1c_U - AKTYWA | Aktywa trwałe | Rzeczowe aktywa trwałe | Środki trwałe | Urządzenia techniczne i maszyny | Umorzenie urządzeń technicznych i maszyn"]
["B2AV1_A - AKTYWA | Należności od sektora budżetowego | W rachunku bieżącym | Odpisy aktualizujące wartość należności kredytowych od sektora budżetowego w rachunku bieżącym / odpisy z tytułu utraty wartości","B3ABIII1_W - AKTYWA | Lokaty | Inne lokaty finansowe | Udziały, akcje oraz inne papiery wartościowe, o zmiennej kwocie dochodu oraz jednostki uczestnictwa i certyfikaty inwestycyjne w funduszach inwestycyjnych","B6AAII3_A - AKTYWA | Aktywa trwałe | Rzeczowe aktywa trwałe | Zaliczki na środki trwałe w budowie | Odpisy aktualizujące zaliczki na środki trwałe w budowie","RFI_II2 - RW | Koszty funduszu | Wynagrodzenia dla podmiotów prowadzących dystrybucję","BDMA_III3 - AKTYWA | Instrumenty finansowe przeznaczone do obrotu | Certyfikaty inwestycyjne","BSA_IX1 - AKTYWA | Inne aktywa | Wkłady na fundusz stabilizacyjny","BAAII1d_W - AKTYWA | Aktywa trwałe | Rzeczowe aktywa trwałe | Środki trwałe | Środki transportu"]
["B2AV2_W - AKTYWA | Należności od sektora budżetowego | Terminowe","B3ABIII1_A - AKTYWA | Lokaty | Inne lokaty finansowe | Udziały, akcje oraz inne papiery wartościowe o zmiennej kwocie dochodu oraz jednostki uczestnictwa i certyfikaty inwestycyjne w funduszach inwestycyjnych | Odpisy aktualizujące wartość udziałów, akcji oraz innych papierów wartościowych o zmiennej kwocie dochodu oraz jednostek uczestnictwa i certyfikatów inwestycyjnych w funduszach inwestycyjnych","B6AAIII_W - AKTYWA | Aktywa trwałe | Należności długoterminowe","RFI_II3 - RW | Koszty funduszu | Opłaty dla depozytariusza","BDMA_III4 - AKTYWA | Instrumenty finansowe przeznaczone do obrotu | Warranty","BSA_IX2 - AKTYWA | Inne aktywa | Pozostałe","BAAII1d_A - AKTYWA | Aktywa trwałe | Rzeczowe aktywa trwałe | Środki trwałe | Środki transportu | Odpisy aktualizujące wartość środków transportu"]
["B2AV2_rc - AKTYWA | Należności od sektora budżetowego | Terminowe | Rezerwy celowe","B3ABIII2_W - AKTYWA | Lokaty | Inne lokaty finansowe | Dłużne papiery wartościowe i inne papiery wartościowe o stałej kwocie dochodu","B6AAIII_A - AKTYWA | Aktywa trwałe | Należności długoterminowe | Odpisy aktualizujące wartość należności długoterminowych","RFI_II4 - RW | Koszty funduszu | Opłaty związane z prowadzeniem rejestru aktywów funduszu","BDMA_III5 - AKTYWA | Instrumenty finansowe przeznaczone do obrotu | Pozostałe papiery wartościowe","BSP_I1A - PASYWA | Zobowiązania finansowe wyceniane w wartości godziwej przez wynik finansowy, w tym zobowiązania finansowe przeznaczone do obrotu | Zobowiązania finansowe wyceniane w wartości godziwej przez wynik finansowy | Oszczędności","BAAII1d_U - AKTYWA | Aktywa trwałe | Rzeczowe aktywa trwałe | Środki trwałe | Środki transportu | Umorzenie środków transportu"]
["B2AV2_A - AKTYWA | Należności od sektora budżetowego | Terminowe | Odpisy aktualizujące wartość należności kredytowych terminowych od sektora budżetowego / odpisy z tytułu utraty wartości","B3ABIII2_A - AKTYWA | Lokaty | Inne lokaty finansowe | Dłużne papiery wartościowe i inne papiery wartościowe o stałej kwocie dochodu | Odpisy aktualizujące wartość dłużnych papierów wartościowych i innych papierów wartościowych o stałej kwocie dochodu","B6AAIV1_W - AKTYWA | Aktywa trwałe | Inwestycje długoterminowe | Inwestycje w nieruchomości","RFI_II5 - RW | Koszty funduszu | Opłaty za zezwolenia oraz opłaty rejestracyjne","BDMA_III6 - AKTYWA | Instrumenty finansowe przeznaczone do obrotu | Instrumenty pochodne","BSP_I1B - PASYWA | Zobowiązania finansowe wyceniane w wartości godziwej przez wynik finansowy, w tym zobowiązania finansowe przeznaczone do obrotu | Zobowiązania finansowe wyceniane w wartości godziwej przez wynik finansowy | Zobowiązania finansowe z tytułu własnej emisji","BAAII1e_W - AKTYWA | Aktywa trwałe | Rzeczowe aktywa trwałe | Środki trwałe | Inne środki trwałe"]
["B2AVI_W - AKTYWA | Należności z tytułu zakupionych papierów wartościowych z otrzymanym przyrzeczeniem odkupu","B3ABIII3_W - AKTYWA | Lokaty | Inne lokaty finansowe | Udziały we wspólnych przedsięwzięciach lokacyjnych","B6AAIV1_A - AKTYWA | Aktywa trwałe | Inwestycje długoterminowe | Inwestycje w nieruchomości | Odpisy aktualizujące wartość inwestycji w nieruchomości","RFI_II6 - RW | Koszty funduszu | Usługi w zakresie rachunkowości","BDMA_III7 - AKTYWA | Instrumenty finansowe przeznaczone do obrotu | Towary giełdowe","BSP_I1C - PASYWA | Zobowiązania finansowe wyceniane w wartości godziwej przez wynik finansowy, w tym zobowiązania finansowe przeznaczone do obrotu | Zobowiązania finansowe wyceniane w wartości godziwej przez wynik finansowy | Pozostałe zobowiązania","BAAII1e_A - AKTYWA | Aktywa trwałe | Rzeczowe aktywa trwałe | Środki trwałe | Inne środki trwałe | Odpisy aktualizujące wartość innych środków trwałych"]
["B2AVI_A - AKTYWA | Należności z tytułu zakupionych papierów wartościowych z otrzymanym przyrzeczeniem odkupu | Odpisy aktualizujące wartość należności z tytułu zakupionych papierów wartościowych z otrzymanym przyrzeczeniem odkupu / odpisy z tytułu utraty wartości","B3ABIII3_A - AKTYWA | Lokaty | Inne lokaty finansowe | Udziały we wspólnych przedsięwzięciach lokacyjnych | Odpisy aktualizujące wartość udziałów we wspólnych przedsięwzięciach lokacyjnych","B6AAIV1_U - AKTYWA | Aktywa trwałe | Inwestycje długoterminowe | Inwestycje w nieruchomości | Umorzenie inwestycji w nieruchomości","RFI_II7 - RW | Koszty funduszu | Usługi w zakresie zarządzania aktywami funduszu","BDMA_III8 - AKTYWA | Instrumenty finansowe przeznaczone do obrotu | Pozostałe","BSP_I2A - PASYWA | Zobowiązania finansowe wyceniane w wartości godziwej przez wynik finansowy, w tym zobowiązania finansowe przeznaczone do obrotu | Zobowiązania finansowe przeznaczone do obrotu | Oszczędności","BAAII1e_U - AKTYWA | Aktywa trwałe | Rzeczowe aktywa trwałe | Środki trwałe | Inne środki trwałe | Umorzenie innych środków trwałych"]
["B2AVII1 - AKTYWA | Dłużne papiery wartościowe | Banków","B3ABIII4_W - AKTYWA | Lokaty | Inne lokaty finansowe | Pożyczki zabezpieczone hipotecznie","B6AAIV2_W - AKTYWA | Aktywa trwałe | Inwestycje długoterminowe | Wartości niematerialne i prawne","RFI_II8 - RW | Koszty funduszu | Usługi prawne","BDMA_IV - AKTYWA | Krótkoterminowe rozliczenia międzyokresowe","BSP_I2B - PASYWA | Zobowiązania finansowe wyceniane w wartości godziwej przez wynik finansowy, w tym zobowiązania finansowe przeznaczone do obrotu | Zobowiązania finansowe przeznaczone do obrotu | Zobowiązania finansowe z tytułu własnej emisji","BAAII2_W - AKTYWA | Aktywa trwałe | Rzeczowe aktywa trwałe | Środki trwałe w budowie"]
["B2AVII1_A - AKTYWA | Dłużne papiery wartościowe | Banków | Odpisy aktualizujące wartość dłużnych papierów wartościowych banków / odpisy z tytułu utraty wartości","B3ABIII4_A - AKTYWA | Lokaty | Inne lokaty finansowe | Pożyczki zabezpieczone hipotecznie | Odpisy aktualizujące wartość pożyczek zabezpieczonych hipotecznie","B6AAIV2_A - AKTYWA | Aktywa trwałe | Inwestycje długoterminowe | Wartości niematerialne i prawne | Odpisy aktualizujące wartość inwestycji w wartości niematerialne i prawne","RFI_II9 - RW | Koszty funduszu | Usługi wydawnicze, w tym poligraficzne","BDMA_IVA1 - AKTYWA | Udzielone pożyczki krótkoterminowe | Jednostce dominującej","BSP_I2C - PASYWA | Zobowiązania finansowe wyceniane w wartości godziwej przez wynik finansowy, w tym zobowiązania finansowe przeznaczone do obrotu | Zobowiązania finansowe przeznaczone do obrotu | Pozostałe zobowiązania","BAAII2_A - AKTYWA | Aktywa trwałe | Rzeczowe aktywa trwałe | Środki trwałe w budowie | Odpisy aktualizujące wartość środków trwałych w budowie"]
["B2AVII2 - AKTYWA | Dłużne papiery wartościowe | Budżetu Państwa i budżetów terenowych","B3ABIII5_W - AKTYWA | Lokaty | Inne lokaty finansowe | Pozostałe pożyczki","B6AAIV2_U - AKTYWA | Aktywa trwałe | Inwestycje długoterminowe | Wartości niematerialne i prawne | Umorzenie wartości inwestycji w wartości niematerialne i prawne","RFI_II10 - RW | Koszty funduszu | Koszty odsetkowe","BDMA_IVA2 - AKTYWA | Udzielone pożyczki krótkoterminowe | Znaczącemu inwestorowi","BSP_II1 - PASYWA | Zobowiązania finansowe wyceniane według skorygowanej ceny nabycia | Oszczędności","BAAII3_W - AKTYWA | Aktywa trwałe | Rzeczowe aktywa trwałe | Zaliczki na środki trwałe w budowie"]
["B2AVII2_A - AKTYWA | Dłużne papiery wartościowe | Budżetu Państwa i budżetów terenowych | Odpisy aktualizujące wartość należności dłużnych papierów wartościowych Budżetu Państwa i budżetów terenowych / odpisy z tytułu utraty wartości","B3ABIII5_A - AKTYWA | Lokaty | Inne lokaty finansowe | Pozostałe pożyczki | Odpisy aktualizujące wartość pozostałych pożyczek","B6AAIV3_uia_W - AKTYWA | Aktywa trwałe | Inwestycje długoterminowe | Długoterminowe aktywa finansowe | Udziały lub akcje","RFI_II11 - RW | Koszty funduszu | Koszty związane z posiadaniem nieruchomości","BDMA_IVA3 - AKTYWA | Udzielone pożyczki krótkoterminowe | Wspólnikowi jednostki współzależnej","BSP_II2 - PASYWA | Zobowiązania finansowe wyceniane według skorygowanej ceny nabycia | Zobowiązania finansowe z tytułu własnej emisji","BAAII3_A - AKTYWA | Aktywa trwałe | Rzeczowe aktywa trwałe | Zaliczki na środki trwałe w budowie | Odpisy aktualizujące wartość zaliczek na środki trwałe w budowie"]
["B2AVII3_W - AKTYWA | Dłużne papiery wartościowe | Pozostałe","B3ABIII6_W - AKTYWA | Lokaty | Inne lokaty finansowe | Lokaty terminowe w instytucjach kredytowych","B6AAIV3_uia_A - AKTYWA | Aktywa trwałe | Inwestycje długoterminowe | Długoterminowe aktywa finansowe | Udziały lub akcje | Odpisy aktualizujące wartość udziałów lub akcji","RFI_II12 - RW | Koszty funduszu | Ujemne różnice kursowe","BDMA_IVA4 - AKTYWA | Udzielone pożyczki krótkoterminowe | Jednostkom podporządkowanym","BSP_II3 - PASYWA | Zobowiązania finansowe wyceniane według skorygowanej ceny nabycia | Pozostałe zobowiązania","BAAIII1_W - AKTYWA | Aktywa trwałe | Należności długoterminowe | Od jednostek powiązanych"]
["B2AVII3_A - AKTYWA | Dłużne papiery wartościowe | Pozostałe | Odpisy aktualizujące wartość należności pozostałych dłużnych papierów wartościowych / odpisy z tytułu utraty wartości","B3ABIII6_A - AKTYWA | Lokaty | Inne lokaty finansowe | Lokaty terminowe w instytucjach kredytowych | Odpisy aktualizujące wartość lokat terminowych w instytucjach kredytowych","B6AAIV3_ipw_W - AKTYWA | Aktywa trwałe | Inwestycje długoterminowe | Długoterminowe aktywa finansowe | Inne papiery wartościowe","RFI_II13 - RW | Koszty funduszu | Pozostałe","BDMA_IVA5 - AKTYWA | Udzielone pożyczki krótkoterminowe | Pozostałe","BSP_III1 - PASYWA | Rezerwy | Rezerwa z tytułu odroczonego podatku dochodowego","BAAIII1_A - AKTYWA | Aktywa trwałe | Należności długoterminowe | Od jednostek powiązanych | Odpisy aktualizujące wartość należności od jednostek powiązanych"]
["B2AVIII1_W - AKTYWA | Udziały lub akcje w jednostkach zależnych | W instytucjach finansowych","B3ABIII7_W - AKTYWA | Lokaty | Inne lokaty finansowe | Pozostałe lokaty","B6AAIV3_ipw_A - AKTYWA | Aktywa trwałe | Inwestycje długoterminowe | Długoterminowe aktywa finansowe | Inne papiery wartościowe | Odpisy aktualizujące wartość innych papierów wartościowych","RFI_III - RW | Koszty pokrywane przez towarzystwo","BDMA_V1 - AKTYWA | Instrumenty finansowe utrzymywane do terminu zapadalności | Dłużne papiery wartościowe","BSP_III2 - PASYWA | Rezerwy | Inne rezerwy","BAAIII2_W - AKTYWA | Aktywa trwałe | Należności długoterminowe | Od pozostałych jednostek, w których jednostka posiada zaangażowanie w kapitale"]
["B2AVIII1_A - AKTYWA | Udziały lub akcje w jednostkach zależnych | W instytucjach finansowych | Odpisy aktualizujące wartość udziałów lub akcji w jednostkach zależnych w instytucjach finansowych / odpisy z tytułu utraty wartości","B3ABIII7_A - AKTYWA | Lokaty | Inne lokaty finansowe | Pozostałe lokaty | Odpisy aktualizujące wartość pozostałych lokat","B6AAIV3_up_W - AKTYWA | Aktywa trwałe | Inwestycje długoterminowe | Długoterminowe aktywa finansowe | Udzielone pożyczki","RFI_VI1A - RW | Zrealizowany i niezrealizowany zysk (strata) | Przychody ze zbycia lokat","BDMA_V2 - AKTYWA | Instrumenty finansowe utrzymywane do terminu zapadalności | Pozostałe papiery wartościowe","BSP_IV - PASYWA | Zobowiązania z tytułu podatków","BAAIII2_A - AKTYWA | Aktywa trwałe | Należności długoterminowe | Od pozostałych jednostek, w których jednostka posiada zaangażowanie w kapitale | Odpisy aktualizujące wartość należności od pozostałych jednostek, w których jednostka posiada zaangażowanie w kapitale"]
["B2AVIII2_W - AKTYWA | Udziały lub akcje w jednostkach zależnych | W pozostałych jednostkach","B3ABIV_W - AKTYWA | Lokaty | Należności depozytowe od cedentów","B6AAIV3_up_A - AKTYWA | Aktywa trwałe | Inwestycje długoterminowe | Długoterminowe aktywa finansowe | Udzielone pożyczki | Odpisy aktualizujące wartość udzielonych pożyczek","RFI_VI1B - RW | Zrealizowany i niezrealizowany zysk (strata) | Koszty zbycia lokat","BDMA_V3 - AKTYWA | Instrumenty finansowe utrzymywane do terminu zapadalności | Towary giełdowe","BSP_V - PASYWA | Rozliczenia międzyokresowe","BAAIII3_W - AKTYWA | Aktywa trwałe | Należności długoterminowe | Od pozostałych jednostek"]
["B2AVIII2_A - AKTYWA | Udziały lub akcje w jednostkach zależnych | W pozostałych jednostkach | Odpisy aktualizujące wartość udziałów lub akcji w pozostałych jednostkach zależnych / odpisy z tytułu utraty wartości","B3ABIV_A - AKTYWA | Lokaty | Należności depozytowe od cedentów | Odpisy aktualizujące wartość należności depozytowych od cedentów","B6AAIV3_inne_W - AKTYWA | Aktywa trwałe | Inwestycje długoterminowe | Długoterminowe aktywa finansowe | Inne długoterminowe aktywa finansowe","RFI_VI2A - RW | Zrealizowany i niezrealizowany zysk (strata) | Wzrost (spadek) niezrealizowanego zysku (straty) z wyceny lokat | Z tytułu różnic kursowych","BDMA_V4 - AKTYWA | Instrumenty finansowe utrzymywane do terminu zapadalności | Pozostałe","BSP_VI - PASYWA | Fundusze specjalne i inne zobowiązania","BAAIII3_A - AKTYWA | Aktywa trwałe | Należności długoterminowe | Od pozostałych jednostek | Odpisy aktualizujące wartość należności od pozostałych jednostek"]
["B2AIX1_W - AKTYWA | Udziały lub akcje w jednostkach współzależnych | W instytucjach finansowych","B3AC - AKTYWA | Aktywa netto ubezpieczeń na życie, gdy ryzyko lokaty (inwestycyjne) ponosi ubezpieczający","B6AAIV3_inne_A - AKTYWA | Aktywa trwałe | Inwestycje długoterminowe | Długoterminowe aktywa finansowe | Inne długoterminowe aktywa finansowe | Odpisy aktualizujące wartość innych długoterminowych aktywów finansowych","RFI_VI2B - RW | Zrealizowany i niezrealizowany zysk (strata) | Wzrost (spadek) niezrealizowanego zysku (straty) z wyceny lokat | Pozostałe","BDMA_VI1A - AKTYWA | Instrumenty finansowe dostępne do sprzedaży | Akcje i udziały | Jednostki dominującej","BSP_VII - PASYWA | Zobowiązania i rezerwy na zobowiązania łącznie","BAAIV1_W - AKTYWA | Aktywa trwałe | Inwestycje długoterminowe | Nieruchomości"]
["B2AIX1_A - AKTYWA | Udziały lub akcje w jednostkach współzależnych | W instytucjach finansowych | Odpisy aktualizujące wartość udziałów lub akcji w jednostkach współzależnych w instytucjach finansowych / odpisy z tytułu utraty wartości","B3AC_K - AKTYWA | Aktywa netto ubezpieczeń na życie, gdy ryzyko lokaty (inwestycyjne) ponosi ubezpieczający | Korekta wartości aktywów wynikająca z korekty zobowiązań dotyczących tych aktywów","B6AAIV4_W - AKTYWA | Aktywa trwałe | Inwestycje długoterminowe | Inne inwestycje długoterminowe","RFI_PD - RW | Podatek dochodowy","BDMA_VI1B - AKTYWA | Instrumenty finansowe dostępne do sprzedaży | Akcje i udziały | Znaczącego inwestora","BSP_VIII - PASYWA | Fundusz udziałowy","BAAIV1_A - AKTYWA | Aktywa trwałe | Inwestycje długoterminowe | Nieruchomości | Odpisy aktualizujące wartość inwestycji długoterminowych w nieruchomości"]
["B2AIX2_W - AKTYWA | Udziały lub akcje w jednostkach współzależnych | W pozostałych jednostkach","B3ADI11_1_W - AKTYWA | Należności | Należności z tytułu ubezpieczeń bezpośrednich | Należności od ubezpieczających | Od jednostek podporządkowanych","B6AAIV4_A - AKTYWA | Aktywa trwałe | Inwestycje długoterminowe | Inne inwestycje długoterminowe | Odpisy aktualizujące wartość innych inwestycji długoterminowych","INNE - Inne, niewskazane w słowniku","BDMA_VI1C - AKTYWA | Instrumenty finansowe dostępne do sprzedaży | Akcje i udziały | Wspólnika jednostki współzależnej","BSP_IX - PASYWA | Fundusz zasobowy","BAAIV1_U - AKTYWA | Aktywa trwałe | Inwestycje długoterminowe | Nieruchomości | Umorzenie inwestycji długoterminowych w nieruchomości"]
["B2AIX2_A - AKTYWA | Udziały lub akcje w jednostkach współzależnych | W pozostałych jednostkach | Odpisy aktualizujące wartość udziałów lub akcji w pozostałych jednostkach współzależnych / odpisy z tytułu utraty wartości","B3ADI11_1_A - AKTYWA | Należności | Należności z tytułu ubezpieczeń bezpośrednich | Należności od ubezpieczających | Od jednostek podporządkowanych | Odpisy aktualizujące wartość należności z tytułu ubezpieczeń bezpośrednich należności od ubezpieczających / utrata wartości – od jednostek podporządkowanych","B6AAV_W - AKTYWA | Aktywa trwałe | Długoterminowe rozliczenia międzyokresowe",null,"BDMA_VI1D - AKTYWA | Instrumenty finansowe dostępne do sprzedaży | Akcje i udziały | Jednostek podporządkowanych","BSP_X1 - PASYWA | Fundusz z aktualizacji wyceny | Rzeczowy majątek stały","BAAIV2_W - AKTYWA | Aktywa trwałe | Inwestycje długoterminowe | Wartości niematerialne i prawne"]
["B2AX1_W - AKTYWA | Udziały lub akcje w jednostkach stowarzyszonych | W instytucjach finansowych","B3ADI11_2_W - AKTYWA | Należności | Należności z tytułu ubezpieczeń bezpośrednich | Należności od ubezpieczających | Od pozostałych jednostek","B6AAV_A - AKTYWA | Aktywa trwałe | Długoterminowe rozliczenia międzyokresowe | Odpisy aktualizujące wartość innych rozliczeń międzyokresowych",null,"BDMA_VI1E - AKTYWA | Instrumenty finansowe dostępne do sprzedaży | Akcje i udziały | Pozostałe","BSP_X2 - PASYWA | Fundusz z aktualizacji wyceny | Aktywa finansowe dostępne do sprzedaży","BAAIV2_A - AKTYWA | Aktywa trwałe | Inwestycje długoterminowe | Wartości niematerialne i prawne | Odpisy aktualizujące wartość inwestycji długoterminowych w wartości niematerialne i prawne"]
["B2AX1_A - AKTYWA | Udziały lub akcje w jednostkach stowarzyszonych | W instytucjach finansowych | Odpisy aktualizujące wartość udziałów lub akcji w jednostkach stowarzyszonych w instytucjach finansowych / odpisy z tytułu utraty wartości","B3ADI11_2_A - AKTYWA | Należności | Należności z tytułu ubezpieczeń bezpośrednich | Należności od ubezpieczających | Od pozostałych jednostek | Odpisy aktualizujące wartość należności z tytułu ubezpieczeń bezpośrednich należności od ubezpieczających / utrata wartości – od pozostałych jednostek","B6ABI1_W - AKTYWA | Aktywa obrotowe | Zapasy | Materiały",null,"BDMA_VI2 - AKTYWA | Instrumenty finansowe dostępne do sprzedaży | Dłużne papiery wartościowe","BSP_X3 - PASYWA | Fundusz z aktualizacji wyceny | Pozostałe","BAAIV2_U - AKTYWA | Aktywa trwałe | Inwestycje długoterminowe | Wartości niematerialne i prawne | Umorzenie wartości inwestycji długoterminowych w wartości niematerialne i prawne"]
["B2AX2_W - AKTYWA | Udziały lub akcje w jednostkach stowarzyszonych | W pozostałych jednostkach","B3ADI22_1_W - AKTYWA | Należności | Należności z tytułu ubezpieczeń bezpośrednich | Należności od pośredników ubezpieczeniowych | Od jednostek podporządkowanych","B6ABI1_OCE - AKTYWA | Aktywa obrotowe | Zapasy | Materiały | Odchylenia od cen ewidencyjnych materiałów",null,"BDMA_VI3 - AKTYWA | Instrumenty finansowe dostępne do sprzedaży | Jednostki uczestnictwa funduszy inwestycyjnych","BSP_XI - PASYWA | Zysk (strata) z lat ubiegłych","BAAIV3a_ULA_W - AKTYWA | Aktywa trwałe | Inwestycje długoterminowe | Długoterminowe aktywa finansowe | W jednostkach powiązanych | Udziały lub akcje"]
["B2AX2_A - AKTYWA | Udziały lub akcje w jednostkach stowarzyszonych | W pozostałych jednostkach | Odpisy aktualizujące wartość udziałów lub akcji w pozostałych jednostkach stowarzyszonych / odpisy z tytułu utraty wartości","B3ADI22_1_A - AKTYWA | Należności | Należności z tytułu ubezpieczeń bezpośrednich | Należności od pośredników ubezpieczeniowych | Od jednostek podporządkowanych | Odpisy aktualizujące wartość należności od pośredników ubezpieczeniowych / utrata wartości – od jednostek podporządkowanych","B6ABI1_A - AKTYWA | Aktywa obrotowe | Zapasy | Materiały | Odpisy aktualizujące wartość materiałów",null,"BDMA_VI4 - AKTYWA | Instrumenty finansowe dostępne do sprzedaży | Certyfikaty inwestycyjne","BSP_XII - PASYWA | Zysk (strata) netto","BAAIV3a_ULA_A - AKTYWA | Aktywa trwałe | Inwestycje długoterminowe | Długoterminowe aktywa finansowe | W jednostkach powiązanych | Udziały lub akcje | Odpisy aktualizujące wartość udziałów lub akcji w jednostkach powiązanych"]
["B2AXI1_W - AKTYWA | Udziały lub akcje w innych jednostkach | W instytucjach finansowych","B3ADI22_2_W - AKTYWA | Należności | Należności z tytułu ubezpieczeń bezpośrednich | Należności od pośredników ubezpieczeniowych | Od pozostałych jednostek","B6ABI2_W - AKTYWA | Aktywa obrotowe | Zapasy | Pozostałe",null,"BDMA_VI5 - AKTYWA | Instrumenty finansowe dostępne do sprzedaży | Pozostałe papiery wartościowe","RS_I1 - RZIS | Przychody z tytułu odsetek | Aktywa finansowe wyceniane w wartości godziwej przez wynik finansowy, w tym aktywa finansowe przeznaczone do obrotu","BAAIV3a_IPW_W - AKTYWA | Aktywa trwałe | Inwestycje długoterminowe | Długoterminowe aktywa finansowe | W jednostkach powiązanych | Inne papiery wartościowe"]
["B2AXI1_A - AKTYWA | Udziały lub akcje w innych jednostkach | W instytucjach finansowych | Odpisy aktualizujące wartość udziałów lub akcji w innych jednostkach w instytucjach finansowych / odpisy z tytułu utraty wartości","B3ADI22_2_A - AKTYWA | Należności | Należności z tytułu ubezpieczeń bezpośrednich | Należności od pośredników ubezpieczeniowych | Od pozostałych jednostek | Odpisy aktualizujące wartość należności od pośredników ubezpieczeniowych / utrata wartości – od pozostałych jednostek","B6ABI2_OCE - AKTYWA | Aktywa obrotowe | Zapasy | Pozostałe | Odchylenia od cen ewidencyjnych pozostałych zapasów",null,"BDMA_VI6 - AKTYWA | Instrumenty finansowe dostępne do sprzedaży | Towary giełdowe","RS_I2 - RZIS | Przychody z tytułu odsetek | Aktywa finansowe dostępne do sprzedaży","BAAIV3a_IPW_A - AKTYWA | Aktywa trwałe | Inwestycje długoterminowe | Długoterminowe aktywa finansowe | W jednostkach powiązanych | Inne papiery wartościowe | Odpisy aktualizujące wartość innych papierów wartościowych w jednostkach powiązanych"]
["B2AXI2_W - AKTYWA | Udziały lub akcje w innych jednostkach | W pozostałych jednostkach","B3ADI33_1_W - AKTYWA | Należności | Należności z tytułu ubezpieczeń bezpośrednich | Inne należności | Od jednostek podporządkowanych","B6ABI_A - AKTYWA | Aktywa obrotowe | Zapasy | Pozostałe | Odpisy aktualizujące wartość pozostałych zapasów",null,"BDMA_VI7 - AKTYWA | Instrumenty finansowe dostępne do sprzedaży | Pozostałe","RS_I3 - RZIS | Przychody z tytułu odsetek | Aktywa finansowe utrzymywane do terminu wymagalności","BAAIV3a_UP_W - AKTYWA | Aktywa trwałe | Inwestycje długoterminowe | Długoterminowe aktywa finansowe | W jednostkach powiązanych | Udzielone pożyczki"]
["B2AXI2_A - AKTYWA | Udziały lub akcje w innych jednostkach | W pozostałych jednostkach | Odpisy aktualizujące wartość udziałów lub akcji w innych jednostkach w pozostałych instytucjach finansowych / odpisy z tytułu utraty wartości","B3ADI33_1_A - AKTYWA | Należności | Należności z tytułu ubezpieczeń bezpośrednich | Inne należności | Od jednostek podporządkowanych | Odpisy aktualizujące wartość innych należności / utrata wartości – od jednostek podporządkowanych","B6ABI3_W - AKTYWA | Aktywa obrotowe | Zapasy | Zaliczki na dostawy i usługi",null,"BDMA_VII - AKTYWA | Należności długoterminowe","RS_I4 - RZIS | Przychody z tytułu odsetek | Kredyty i pożyczki oraz inne należności","BAAIV3a_UP_A - AKTYWA | Aktywa trwałe | Inwestycje długoterminowe | Długoterminowe aktywa finansowe | W jednostkach powiązanych | Udzielone pożyczki | Odpisy aktualizujące wartość udzielonych pożyczek w jednostkach powiązanych"]
["B2AXII_W - AKTYWA | Pozostałe papiery wartościowe i inne aktywa finansowe","B3ADI33_2_W - AKTYWA | Należności | Należności z tytułu ubezpieczeń bezpośrednich | Inne należności | Od pozostałych jednostek","B6ABI3_A - AKTYWA | Aktywa obrotowe | Zapasy | Zaliczki na dostawy i usługi | Odpisy aktualizujące zaliczki na dostawy i usługi",null,"BDMA_VIII1 - AKTYWA | Udzielone pożyczki długoterminowe | Jednostce dominującej","RS_I5 - RZIS | Przychody z tytułu odsetek | Inne aktywa","BAAIV3a_IDAF_W - AKTYWA | Aktywa trwałe | Inwestycje długoterminowe | Długoterminowe aktywa finansowe | W jednostkach powiązanych | Inne długoterminowe aktywa finansowe"]
["B2AXII_A - AKTYWA | Pozostałe papiery wartościowe i inne aktywa finansowe | Odpisy aktualizujące wartość pozostałych papierów wartościowych i innych aktywów finansowych / odpisy z tytułu utraty wartości","B3ADI33_2_A - AKTYWA | Należności | Należności z tytułu ubezpieczeń bezpośrednich | Inne należności | Od pozostałych jednostek | Odpisy aktualizujące wartość innych należności / utrata wartości –od pozostałych jednostek","B6ABII_W - AKTYWA | Aktywa obrotowe | Należności krótkoterminowe",null,"BDMA_VIII2 - AKTYWA | Udzielone pożyczki długoterminowe | Znaczącemu inwestorowi","RS_II1 - RZIS | Koszty z tytułu odsetek | Aktywa finansowe wyceniane w wartości godziwej przez wynik finansowy, w tym aktywa finansowe przeznaczone do obrotu","BAAIV3a_IDAF_A - AKTYWA | Aktywa trwałe | Inwestycje długoterminowe | Długoterminowe aktywa finansowe | W jednostkach powiązanych | Inne długoterminowe aktywa finansowe | Odpisy aktualizujące wartość innych długoterminowych aktywów finansowych w jednostkach powiązanych"]
["B2AXIII1_WF - AKTYWA | Wartości niematerialne i prawne | Wartość firmy","B3ADII1_W - AKTYWA | Należności | Należności z tytułu reasekuracji | Od jednostek podporządkowanych","B6ABII_A - AKTYWA | Aktywa obrotowe | Należności krótkoterminowe | Odpisy aktualizujące wartość należności krótkoterminowych",null,"BDMA_VIII3 - AKTYWA | Udzielone pożyczki długoterminowe | Wspólnikowi jednostki współzależnej","RS_II2 - RZIS | Koszty z tytułu odsetek | Zobowiązania finansowe wyceniane metodą skorygowanej ceny nabycia","BAAIV3b_ULA_W - AKTYWA | Aktywa trwałe | Inwestycje długoterminowe | Długoterminowe aktywa finansowe | W pozostałych jednostkach, w których jednostka posiada zaangażowanie w kapitale | Udziały lub akcje"]
["B2AXIII1_WF_A - AKTYWA | Wartości niematerialne i prawne | Wartość firmy | Odpisy aktualizujące wartość firmy / odpisy z tytułu utraty wartości","B3ADII1_A - AKTYWA | Należności | Należności z tytułu reasekuracji | Od jednostek podporządkowanych | Odpisy aktualizujące wartość należności z tytułu reasekuracji / utrata wartości – od jednostek podporządkowanych","B6ABIII_uia_W - AKTYWA | Aktywa obrotowe | Inwestycje krótkoterminowe | Udziały lub akcje",null,"BDMA_VIII4 - AKTYWA | Udzielone pożyczki długoterminowe | Jednostkom podporządkowanym","RS_II3 - RZIS | Koszty z tytułu odsetek | Pozostałe zobowiązania","BAAIV3b_ULA_A - AKTYWA | Aktywa trwałe | Inwestycje długoterminowe | Długoterminowe aktywa finansowe | W pozostałych jednostkach, w których jednostka posiada zaangażowanie w kapitale | Udziały lub akcje | Odpisy aktualizujące wartość udziałów lub akcji w pozostałych jednostkach, w których jednostka posiada zaangażowanie w kapitale"]
["B2AXIII1_WF_U - AKTYWA | Wartości niematerialne i prawne | Wartość firmy | Umorzenie wartości firmy","B3ADII2_W - AKTYWA | Należności | Należności z tytułu reasekuracji | Od pozostałych jednostek","B6ABIII_uia_A - AKTYWA | Aktywa obrotowe | Inwestycje krótkoterminowe | Udziały lub akcje | Odpisy aktualizujące wartość udziałów lub akcji",null,"BDMA_VIII5 - AKTYWA | Udzielone pożyczki długoterminowe | Pozostałe","RS_IV - RZIS | Przychody z tytułu dywidend","BAAIV3b_IPW_W - AKTYWA | Aktywa trwałe | Inwestycje długoterminowe | Długoterminowe aktywa finansowe | W pozostałych jednostkach, w których jednostka posiada zaangażowanie w kapitale | Inne papiery wartościowe"]
["B2AXIII2_inne_W - AKTYWA | Wartości niematerialne i prawne | Inne wartości niematerialne i prawne","B3ADII2_A - AKTYWA | Należności | Należności z tytułu reasekuracji | Od pozostałych jednostek | Odpisy aktualizujące wartość należności z tytułu reasekuracji / utrata wartości – od pozostałych jednostek","B6ABIII_ipw_W - AKTYWA | Aktywa obrotowe | Inwestycje krótkoterminowe | Inne papiery wartościowe",null,"BDMA_IX1 - AKTYWA | Wartości niematerialne i prawne | Wartość firmy","RS_V - RZIS | Przychody z tytułu prowizji","BAAIV3b_IPW_A - AKTYWA | Aktywa trwałe | Inwestycje długoterminowe | Długoterminowe aktywa finansowe | W pozostałych jednostkach, w których jednostka posiada zaangażowanie w kapitale | Inne papiery wartościowe | Odpisy aktualizujące wartość innych papierów wartościowych w pozostałych jednostkach, w których jednostka posiada zaangażowanie w kapitale"]
["B2AXIII1_inne_A - AKTYWA | Wartości niematerialne i prawne | Inne wartości niematerialne i prawne | Odpisy aktualizujące inne wartości niematerialne i prawne / odpisy z tytułu utraty wartości","B3ADIII1 - AKTYWA | Należności | Inne należności | Należności od budżetu","B6ABIII_ipw_A - AKTYWA | Aktywa obrotowe | Inwestycje krótkoterminowe | Inne papiery wartościowe | Odpisy aktualizujące wartość innych papierów wartościowych",null,"BDMA_IX2A - AKTYWA | Wartości niematerialne i prawne | Nabyte koncesje, patenty, licencje i podobne wartości | Oprogramowanie komputerowe","RS_VI - RZIS | Koszty z tytułu prowizji","BAAIV3b_UP_W - AKTYWA | Aktywa trwałe | Inwestycje długoterminowe | Długoterminowe aktywa finansowe | W pozostałych jednostkach, w których jednostka posiada zaangażowanie w kapitale | Udzielone pożyczki"]
["B2AXIII1_inne_U - AKTYWA | Wartości niematerialne i prawne | Inne wartości niematerialne i prawne | Umorzenie innych wartości niematerialnych i prawnych","B3ADIII22_1_W - AKTYWA | Należności | Inne należności | Pozostałe należności | Od jednostek podporządkowanych","B6ABIII_up_W - AKTYWA | Aktywa obrotowe | Inwestycje krótkoterminowe | Udzielone pożyczki",null,"BDMA_IX2B - AKTYWA | Wartości niematerialne i prawne | Nabyte koncesje, patenty, licencje i podobne wartości | Pozostałe","RS_VIII1 - RZIS | Zrealizowany wynik z aktywów finansowych i zobowiązań finansowych innych niż wyceniane w wartości godziwej przez wynik finansowy oraz innych niż przeznaczone do obrotu – netto | Aktywa finansowe dostępne do sprzedaży","BAAIV3b_UP_A - AKTYWA | Aktywa trwałe | Inwestycje długoterminowe | Długoterminowe aktywa finansowe | W pozostałych jednostkach, w których jednostka posiada zaangażowanie w kapitale | Udzielone pożyczki | Odpisy aktualizujące wartość udzielonych pożyczek w pozostałych jednostkach, w których jednostka posiada zaangażowanie w kapitale"]
["B2AXIV_W - AKTYWA | Rzeczowe aktywa trwałe","B3ADIII22_1_A - AKTYWA | Należności | Inne należności | Pozostałe należności | Od jednostek podporządkowanych | Odpisy aktualizujące wartość pozostałych należności / utrata wartości – od jednostek podporządkowanych","B6ABIII_up_A - AKTYWA | Aktywa obrotowe | Inwestycje krótkoterminowe | Udzielone pożyczki | Odpisy aktualizujące wartość udzielonych pożyczek",null,"BDMA_IX3 - AKTYWA | Wartości niematerialne i prawne | Inne wartości niematerialne i prawne","RS_VIII2 - RZIS | Zrealizowany wynik z aktywów finansowych i zobowiązań finansowych innych niż wyceniane w wartości godziwej przez wynik finansowy oraz innych niż przeznaczone do obrotu – netto | Aktywa finansowe utrzymywane do terminu wymagalności","BAAIV3b_IDAF_W - AKTYWA | Aktywa trwałe | Inwestycje długoterminowe | Długoterminowe aktywa finansowe | W pozostałych jednostkach, w których jednostka posiada zaangażowanie w kapitale | Inne długoterminowe aktywa finansowe"]
["B2AXIV_U - AKTYWA | Rzeczowe aktywa trwałe | Umorzenie rzeczowych aktywów trwałych","B3ADIII22_2_W - AKTYWA | Należności | Inne należności | Pozostałe należności | Od pozostałych jednostek","B6ABIII_inne_W - AKTYWA | Aktywa obrotowe | Inwestycje krótkoterminowe | Inne krótkoterminowe aktywa finansowe",null,"BDMA_IX4 - AKTYWA | Wartości niematerialne i prawne | Zaliczki na wartości niematerialne i prawne","RS_VIII3 - RZIS | Zrealizowany wynik z aktywów finansowych i zobowiązań finansowych innych niż wyceniane w wartości godziwej przez wynik finansowy oraz innych niż przeznaczone do obrotu – netto | Kredyty i pożyczki oraz inne należności","BAAIV3b_IDAF_A - AKTYWA | Aktywa trwałe | Inwestycje długoterminowe | Długoterminowe aktywa finansowe | W pozostałych jednostkach, w których jednostka posiada zaangażowanie w kapitale | Inne długoterminowe aktywa finansowe | Odpisy aktualizujące wartość innych długoterminowych aktywów finansowych w pozostałych jednostkach, w których jednostka posiada zaangażowanie w kapitale"]
["B2AXIV_A - AKTYWA | Rzeczowe aktywa trwałe | Odpisy aktualizujące wartość rzeczowych aktywów trwałych / odpisy z tytułu utraty wartości","B3ADIII22_2_A - AKTYWA | Należności | Inne należności | Pozostałe należności | Od pozostałych jednostek | Odpisy aktualizujące wartość pozostałych należności / utrata wartości – od pozostałych jednostek","B6ABIII_inne_A - AKTYWA | Aktywa obrotowe | Inwestycje krótkoterminowe | Inne krótkoterminowe aktywa finansowe | Odpisy aktualizujące wartość innych krótkoterminowych aktywów finansowych",null,"BDMA_X1A - AKTYWA | Rzeczowe aktywa trwałe | Środki trwałe | Grunty (w tym prawo użytkowania wieczystego gruntu)","RS_VIII4 - RZIS | Zrealizowany wynik z aktywów finansowych i zobowiązań finansowych innych niż wyceniane w wartości godziwej przez wynik finansowy oraz innych niż przeznaczone do obrotu – netto | Zobowiązania finansowe wyceniane metodą skorygowanej ceny nabycia","BAAIV3c_ULA_W - AKTYWA | Aktywa trwałe | Inwestycje długoterminowe | Długoterminowe aktywa finansowe | W pozostałych jednostkach | Udziały lub akcje"]
["B2AXV1_W - AKTYWA | Inne aktywa | Przejęte aktywa do zbycia","B3AEI_W - AKTYWA | Inne składniki aktywów | Rzeczowe składniki aktywów","B6ABIV_W - AKTYWA | Aktywa obrotowe | Krótkoterminowe rozliczenia międzyokresowe",null,"BDMA_X1B - AKTYWA | Rzeczowe aktywa trwałe | Środki trwałe | Budynki i lokale","RS_VIII5 - RZIS | Zrealizowany wynik z aktywów finansowych i zobowiązań finansowych innych niż wyceniane w wartości godziwej przez wynik finansowy oraz innych niż przeznaczone do obrotu – netto | Pozostałe zrealizowane zyski (straty)","BAAIV3c_ULA_A - AKTYWA | Aktywa trwałe | Inwestycje długoterminowe | Długoterminowe aktywa finansowe | W pozostałych jednostkach | Udziały lub akcje | Odpisy aktualizujące wartość udziałów lub akcji w pozostałych jednostkach"]
["B2AXV1_A - AKTYWA | Inne aktywa | Przejęte aktywa do zbycia | Odpisy aktualizujące wartość innych aktywów przejętych do zbycia / odpisy z tytułu utraty wartości","B3AEI_U - AKTYWA | Inne składniki aktywów | Rzeczowe składniki aktywów | Umorzenie rzeczowych składników aktywów","B6ABIV_A - AKTYWA | Aktywa obrotowe | Krótkoterminowe rozliczenia międzyokresowe | Odpisy aktualizujące wartość krótkoterminowych rozliczeń międzyokresowych",null,"BDMA_X1C - AKTYWA | Rzeczowe aktywa trwałe | Środki trwałe | Zespoły komputerowe","RS_IX1 - RZIS | Wynik z tytułu aktywów finansowych i zobowiązań finansowych wycenianych w wartości godziwej przez wynik finansowy, w tym przeznaczonych do obrotu | Przychody z tytułu aktywów finansowych i zobowiązań finansowych wycenianych w wartości godziwej przez wynik finansowy, w tym przeznaczonych do obrotu","BAAIV3c_IPW_W - AKTYWA | Aktywa trwałe | Inwestycje długoterminowe | Długoterminowe aktywa finansowe | W pozostałych jednostkach | Inne papiery wartościowe"]
["B2AXV2_W - AKTYWA | Inne aktywa | Pozostałe","B3AEI_A - AKTYWA | Inne składniki aktywów | Rzeczowe składniki aktywów | Odpisy aktualizujące wartość rzeczowych składników aktywów / utrata wartości","B6AC - AKTYWA | Należne wpłaty na fundusz statutowy",null,"BDMA_X1D - AKTYWA | Rzeczowe aktywa trwałe | Środki trwałe | Pozostałe środki trwałe","RS_IX2 - RZIS | Wynik z tytułu aktywów finansowych i zobowiązań finansowych wycenianych w wartości godziwej przez wynik finansowy, w tym przeznaczonych do obrotu | Koszty z tytułu aktywów finansowych i zobowiązań finansowych wycenianych w wartości godziwej przez wynik finansowy, w tym przeznaczonych do obrotu","BAAIV3c_IPW_A - AKTYWA | Aktywa trwałe | Inwestycje długoterminowe | Długoterminowe aktywa finansowe | W pozostałych jednostkach | Inne papiery wartościowe | Odpisy aktualizujące wartość innych papierów wartościowych w pozostałych jednostkach"]
["B2AXV2_A - AKTYWA | Inne aktywa | Pozostałe | Odpisy aktualizujące wartość innych aktywów pozostałych / odpisy z tytułu utraty wartości","B3AEII - AKTYWA | Inne składniki aktywów | Środki pieniężne","B6PAI - PASYWA | Fundusz własny | Fundusz statutowy",null,"BDMA_X2 - AKTYWA | Rzeczowe aktywa trwałe | Środki trwałe w budowie","RS_X1 - RZIS | Wynik z tytułu różnic kursowych | Przychody z tytułu różnic kursowych","BAAIV3c_UP_W - AKTYWA | Aktywa trwałe | Inwestycje długoterminowe | Długoterminowe aktywa finansowe | W pozostałych jednostkach | Udzielone pożyczki"]
["B2AXVI1_W - AKTYWA | Rozliczenia międzyokresowe | Aktywa z tytułu odroczonego podatku dochodowego","B3AEIII_W - AKTYWA | Inne składniki aktywów | Pozostałe składniki aktywów","B6PAII - PASYWA | Fundusz własny | Pozostałe fundusze",null,"BDMA_X3 - AKTYWA | Rzeczowe aktywa trwałe | Zaliczki na środki trwałe w budowie","RS_X2 - RZIS | Wynik z tytułu różnic kursowych | Koszty z tytułu różnic kursowych","BAAIV3c_UP_A - AKTYWA | Aktywa trwałe | Inwestycje długoterminowe | Długoterminowe aktywa finansowe | W pozostałych jednostkach | Udzielone pożyczki | Odpisy aktualizujące wartość udzielonych pożyczek w pozostałych jednostkach"]
["B2AXVI1_A - AKTYWA | Rozliczenia międzyokresowe | Aktywa z tytułu odroczonego podatku dochodowego | Odpisy aktualizujące wartość aktywów z tytułu odroczonego podatku dochodowego / odpisy z tytułu utraty wartości","B3AEIII_A - AKTYWA | Inne składniki aktywów | Pozostałe składniki aktywów | Odpisy aktualizujące wartość pozostałych składników aktywów / utrata wartości","B6PAIII - PASYWA | Fundusz własny | Zysk (strata) z lat ubiegłych",null,"BDMA_XI1 - AKTYWA | Długoterminowe rozliczenia międzyokresowe | Aktywa z tytułu odroczonego podatku dochodowego","RS_XII1 - RZIS | Pozostałe przychody operacyjne | Rozwiązane odpisy aktualizujące z tytułu utraty wartości aktywów niefinansowych","BAAIV3c_IDAF_W - AKTYWA | Aktywa trwałe | Inwestycje długoterminowe | Długoterminowe aktywa finansowe | W pozostałych jednostkach | Inne długoterminowe aktywa finansowe"]
["B2AXVI2_W - AKTYWA | Rozliczenia międzyokresowe | Pozostałe rozliczenia międzyokresowe","B3AFI_W - AKTYWA | Rozliczenia międzyokresowe | Aktywa z tytułu odroczonego podatku dochodowego","B6PAIV - PASYWA | Fundusz własny | Zysk (strata) netto",null,"BDMA_XI2 - AKTYWA | Długoterminowe rozliczenia międzyokresowe | Pozostałe rozliczenia międzyokresowe","RS_XII2 - RZIS | Pozostałe przychody operacyjne | Pozostałe","BAAIV3c_IDAF_A - AKTYWA | Aktywa trwałe | Inwestycje długoterminowe | Długoterminowe aktywa finansowe | W pozostałych jednostkach | Inne długoterminowe aktywa finansowe | Odpisy aktualizujące wartość innych długoterminowych aktywów finansowych w pozostałych jednostkach"]
["B2AXVI2_A - AKTYWA | Rozliczenia międzyokresowe | Pozostałe rozliczenia międzyokresowe | Odpisy aktualizujące wartość pozostałych rozliczeń międzyokresowych / odpisy z tytułu utraty wartości","B3AFI_A - AKTYWA | Rozliczenia międzyokresowe | Aktywa z tytułu odroczonego podatku dochodowego | Odpisy aktualizujące aktywa z tytułu odroczonego podatku dochodowego","B6PBI - PASYWA | Zobowiązania i rezerwy na zobowiązania | Rezerwy na zobowiązania",null,"BDMA_XII - AKTYWA | Należne wpłaty na kapitał (fundusz) podstawowy","RS_XIII1 - RZIS | Pozostałe koszty operacyjne | Odpisy aktualizujące z tytułu utraty wartości aktywów niefinansowych","BAAIV4_W - AKTYWA | Aktywa trwałe | Inwestycje długoterminowe | Inne inwestycje długoterminowe"]
["B2AXVII - AKTYWA | Należne wpłaty na kapitał (fundusz) podstawowy","B3AFII_W - AKTYWA | Rozliczenia międzyokresowe | Aktywowane koszty akwizycji","B6PBII - PASYWA | Zobowiązania i rezerwy na zobowiązania | Zobowiązania długoterminowe",null,"BDMA_XIII - AKTYWA | Udziały (akcje) własne","RS_XIII2 - RZIS | Pozostałe koszty operacyjne | Pozostałe","BAAIV4_A - AKTYWA | Aktywa trwałe | Inwestycje długoterminowe | Inne inwestycje długoterminowe | Odpisy aktualizujące wartość innych inwestycji długoterminowych"]
["B2AXVIII - AKTYWA | Akcje własne","B3AFII_A - AKTYWA | Rozliczenia międzyokresowe | Aktywowane koszty akwizycji | Odpisy aktualizujące aktywowane koszty akwizycji","B6PBIII - PASYWA | Zobowiązania i rezerwy na zobowiązania | Zobowiązania krótkoterminowe",null,"BDMP_I1 - PASYWA | Zobowiązania krótkoterminowe | Wobec klientów","RS_XIV1 - RZIS | Koszty działania kasy | Amortyzacja","BAAV1_W - AKTYWA | Aktywa trwałe | Długoterminowe rozliczenia międzyokresowe | Aktywa z tytułu odroczonego podatku dochodowego"]
["B2PI1 - PASYWA | Zobowiązania wobec Banku Centralnego","B3AFIII_W - AKTYWA | Rozliczenia międzyokresowe | Zarachowane odsetki i czynsze","B6PBIV - PASYWA | Zobowiązania i rezerwy na zobowiązania | Rozliczenia międzyokresowe",null,"BDMP_I2 - PASYWA | Zobowiązania krótkoterminowe | Wobec jednostek powiązanych","RS_XIV2 - RZIS | Koszty działania kasy | Zużycie materiałów i energii","BAAV1_A - AKTYWA | Aktywa trwałe | Długoterminowe rozliczenia międzyokresowe | Aktywa z tytułu odroczonego podatku dochodowego | Odpisy aktualizujące aktywa z tytułu odroczonego podatku dochodowego"]
["B2PII1 - PASYWA | Zobowiązania wobec sektora finansowego | W rachunku bieżącym","B3AFIII_A - AKTYWA | Rozliczenia międzyokresowe | Zarachowane odsetki i czynsze | Odpisy aktualizujące zarachowane odsetki i czynsze","R6AI_darowizny_PRYW - WYNIKOWE | Przychody z działalności statutowej | Przychody z nieodpłatnej działalności pożytku publicznego | Darowizny | Ze źródeł prywatnych",null,"BDMP_I3A - PASYWA | Zobowiązania krótkoterminowe | Wobec banków prowadzących działalność maklerską, innych domów maklerskich i towarowych domów maklerskich | Z tytułu zawartych transakcji","RS_XIV3 - RZIS | Koszty działania kasy | Usługi obce","BAAV2_W - AKTYWA | Aktywa trwałe | Długoterminowe rozliczenia międzyokresowe | Inne rozliczenia międzyokresowe"]
["B2PII2 - PASYWA | Zobowiązania wobec sektora finansowego | Terminowe","B3AFIV_W - AKTYWA | Rozliczenia międzyokresowe | Inne rozliczenia międzyokresowe","R6AI_darowizny_PUBL - WYNIKOWE | Przychody z działalności statutowej | Przychody z nieodpłatnej działalności pożytku publicznego | Darowizny | Ze źródeł publicznych",null,"BDMP_I3B - PASYWA | Zobowiązania krótkoterminowe | Wobec banków prowadzących działalność maklerską, innych domów maklerskich i towarowych domów maklerskich | Pozostałe","RS_XIV4 - RZIS | Koszty działania kasy | Bieżące wpłaty na fundusz stabilizacyjny","BAAV2_A - AKTYWA | Aktywa trwałe | Długoterminowe rozliczenia międzyokresowe | Inne rozliczenia międzyokresowe | Odpisy aktualizujące inne rozliczenia międzyokresowe"]
["B2PIII1a - PASYWA | Zobowiązania wobec sektora niefinansowego | Rachunki oszczędnościowe, w tym: | Bieżące","B3AFIV_A - AKTYWA | Rozliczenia międzyokresowe | Inne rozliczenia międzyokresowe | Odpisy aktualizujące inne rozliczenia międzyokresowe","R6AI_dotacje - WYNIKOWE | Przychody z działalności statutowej | Przychody z nieodpłatnej działalności pożytku publicznego | Dotacje",null,"BDMP_I4 - PASYWA | Zobowiązania krótkoterminowe | Wobec podmiotów prowadzących rynki regulowane i giełdy towarowe","RS_XIV5 - RZIS | Koszty działania kasy | Podatki i opłaty","BABI1 - AKTYWA | Aktywa obrotowe | Zapasy | Materiały"]
["B2PIII1b - PASYWA | Zobowiązania wobec sektora niefinansowego | Rachunki oszczędnościowe, w tym: | Terminowe","B3AG - AKTYWA | Należne wpłaty na kapitał podstawowy","R6AI_subwencje - WYNIKOWE | Przychody z działalności statutowej | Przychody z nieodpłatnej działalności pożytku publicznego | Subwencje",null,"BDMP_I5 - PASYWA | Zobowiązania krótkoterminowe | Wobec Krajowego Depozytu i izb rozrachunkowych oraz izb rozliczeniowych","RS_XIV6 - RZIS | Koszty działania kasy | Wynagrodzenia oraz ubezpieczenia społeczne i inne świadczenia","BABI1_O - AKTYWA | Aktywa obrotowe | Zapasy | Materiały | Odchylenia od cen ewidencyjnych materiałów"]
["B2PIII2a - PASYWA | Zobowiązania wobec sektora niefinansowego | Pozostałe, w tym: | Bieżące","B3AH - AKTYWA | Akcje własne","R6AI_ofiarnosc - WYNIKOWE | Przychody z działalności statutowej | Przychody z nieodpłatnej działalności pożytku publicznego | Przychody pochodzące z ofiarności publicznej",null,"BDMP_I5A - PASYWA | Zobowiązania krótkoterminowe | Wobec CCP","RS_XIV7 - RZIS | Koszty działania kasy | Pozostałe koszty rodzajowe","BABI1_A - AKTYWA | Aktywa obrotowe | Zapasy | Materiały | Odpisy aktualizujące wartość materiałów"]
["B2PIII2b - PASYWA | Zobowiązania wobec sektora niefinansowego | Pozostałe, w tym: | Terminowe","B3PAI - PASYWA | Kapitał własny | Kapitał podstawowy","R6AI_poddoch - WYNIKOWE | Przychody z działalności statutowej | Przychody z nieodpłatnej działalności pożytku publicznego | Przychody z tytułu % podatku dochodowego od osób fizycznych",null,"BDMP_I6 - PASYWA | Zobowiązania krótkoterminowe | Wobec izby gospodarczej","RS_XV1 - RZIS | Rezerwy i rozwiązane rezerwy – netto | Na zobowiązania pozabilansowe finansowe","BABI2 - AKTYWA | Aktywa obrotowe | Zapasy | Półprodukty i produkty w toku"]
["B2PIV1 - PASYWA | Zobowiązania wobec sektora budżetowego | Bieżące","B3PAII - PASYWA | Kapitał własny | Kapitał zapasowy","R6AI_SZ - WYNIKOWE | Przychody z działalności statutowej | Przychody z nieodpłatnej działalności pożytku publicznego | Spadki, zapisy",null,"BDMP_I7 - PASYWA | Zobowiązania krótkoterminowe | Wobec emitentów papierów wartościowych lub wprowadzających","RS_XV2 - RZIS | Rezerwy i rozwiązane rezerwy – netto | Pozostałe rezerwy","BABI2_O - AKTYWA | Aktywa obrotowe | Zapasy | Półprodukty i produkty w toku | Odchylenia od cen ewidencyjnych półproduktów i produktów w toku"]
["B2PIV2 - PASYWA | Zobowiązania wobec sektora budżetowego | Terminowe","B3PAIII - PASYWA | Kapitał własny | Kapitał z aktualizacji wyceny","R6AI_inne_PRYW - WYNIKOWE | Przychody z działalności statutowej | Przychody z nieodpłatnej działalności pożytku publicznego | Pozostałe | Ze źródeł prywatnych",null,"BDMP_I8A - PASYWA | Zobowiązania krótkoterminowe | Kredyty i pożyczki | Od jednostek powiązanych","RS_XVI1 - RZIS | Odpisy aktualizujące z tytułu utraty wartości i rozwiązane odpisy aktualizujące z tytułu utraty wartości aktywów finansowych – netto | Aktywa finansowe dostępne do sprzedaży","BABI2_A - AKTYWA | Aktywa obrotowe | Zapasy | Półprodukty i produkty w toku | Odpisy aktualizujące wartość półproduktów i produktów w toku"]
["B2PV - PASYWA | Zobowiązania z tytułu sprzedanych papierów wartościowych z udzielonym przyrzeczeniem odkupu","B3PAIV - PASYWA | Kapitał własny | Pozostałe kapitały rezerwowe","R6AI_inne_PUBL - WYNIKOWE | Przychody z działalności statutowej | Przychody z nieodpłatnej działalności pożytku publicznego | Pozostałe | Ze źródeł publicznych",null,"BDMP_I8B - PASYWA | Zobowiązania krótkoterminowe | Kredyty i pożyczki | Pozostałe","RS_XVI2 - RZIS | Odpisy aktualizujące z tytułu utraty wartości i rozwiązane odpisy aktualizujące z tytułu utraty wartości aktywów finansowych – netto | Aktywa finansowe utrzymywane do terminu wymagalności","BABI3 - AKTYWA | Aktywa obrotowe | Zapasy | Produkty gotowe"]
["B2PVI - PASYWA | Zobowiązania z tytułu emisji dłużnych papierów wartościowych","B3PAV - PASYWA | Kapitał własny | Zysk (strata) z lat ubiegłych","R6AII_sprzedaz - WYNIKOWE | Przychody z działalności statutowej | Przychody z odpłatnej działalności pożytku publicznego | Przychody netto ze sprzedaży produktów, towarów i materiałów",null,"BDMP_I9 - PASYWA | Zobowiązania krótkoterminowe | Dłużne papiery wartościowe","RS_XVI3 - RZIS | Odpisy aktualizujące z tytułu utraty wartości i rozwiązane odpisy aktualizujące z tytułu utraty wartości aktywów finansowych – netto | Kredyty i pożyczki oraz inne należności","BABI3_O - AKTYWA | Aktywa obrotowe | Zapasy | Produkty gotowe | Odchylenia od cen ewidencyjnych produktów gotowych"]
["B2PVII - PASYWA | Inne zobowiązania z tytułu instrumentów finansowych","B3PAVI - PASYWA | Kapitał własny | Zysk (strata) netto","R6AII_inne - WYNIKOWE | Przychody z działalności statutowej | Przychody z odpłatnej działalności pożytku publicznego | Pozostałe",null,"BDMP_I9A - PASYWA | Zobowiązania krótkoterminowe | Ujemna wycena z tytułu instrumentów finansowych przeznaczonych do obrotu","RS_XVIII1 - RZIS | Wynik operacji nadzwyczajnych | Zyski nadzwyczajne","BABI3_A - AKTYWA | Aktywa obrotowe | Zapasy | Produkty gotowe | Odpisy aktualizujące wartość produktów gotowych"]
["B2PVIII - PASYWA | Fundusze specjalne i inne zobowiązania","B3PAVII - PASYWA | Kapitał własny | Odpisy z zysku netto w ciągu roku obrotowego (wielkość ujemna)","R6AIII_skladki - WYNIKOWE | Przychody z działalności statutowej | Przychody z pozostałej działalności statutowej | Składki członkowskie",null,"BDMP_I10 - PASYWA | Zobowiązania krótkoterminowe | Wekslowe","RS_XVIII2 - RZIS | Wynik operacji nadzwyczajnych | Straty nadzwyczajne","BABI4 - AKTYWA | Aktywa obrotowe | Zapasy | Towary"]
["B2PIX1 - PASYWA | Koszty i przychody rozliczane w czasie | Rozliczenia międzyokresowe kosztów","B3PB - PASYWA | Zobowiązania podporządkowane","R6AIII_inne - WYNIKOWE | Przychody z działalności statutowej | Przychody z pozostałej działalności statutowej | Pozostałe",null,"BDMP_I11 - PASYWA | Zobowiązania krótkoterminowe | Z tytułu podatków, ceł, ubezpieczeń społecznych","RS_XX_PD - RZIS | Podatek dochodowy","BABI4_O - AKTYWA | Aktywa obrotowe | Zapasy | Towary | Odchylenia od cen ewidencyjnych towarów"]
["B2PIX2 - PASYWA | Koszty i przychody rozliczane w czasie | Ujemna wartość firmy","B3PCI - PASYWA | Rezerwy techniczno-ubezpieczeniowe | Rezerwa składek i rezerwa na pokrycie ryzyka niewygasłego","R6BI_poddoch - WYNIKOWE | Koszty działalności statutowej | Koszty nieodpłatnej działalności pożytku publicznego",null,"BDMP_I12 - PASYWA | Zobowiązania krótkoterminowe | Z tytułu wynagrodzeń","RS_XXI - RZIS | Pozostałe obowiązkowe zmniejszenie zysku (zmniejszenie straty)","BABI4_A - AKTYWA | Aktywa obrotowe | Zapasy | Towary | Odpisy aktualizujące wartość towarów"]
["B2PIX3 - PASYWA | Koszty i przychody rozliczane w czasie | Pozostałe rozliczenia międzyokresowe przychodów","B3PCII - PASYWA | Rezerwy techniczno-ubezpieczeniowe | Rezerwa ubezpieczeń na życie","R6BII_poddoch - WYNIKOWE | Koszty działalności statutowej | Koszty odpłatnej działalności pożytku publicznego",null,"BDMP_I13 - PASYWA | Zobowiązania krótkoterminowe | Wobec towarzystw funduszy inwestycyjnych i emerytalnych oraz funduszy inwestycyjnych i emerytalnych","INNE - Inne, niewskazane w słowniku","BABI5 - AKTYWA | Aktywa obrotowe | Zapasy | Zaliczki na dostawy i usługi"]
["B2PX1 - PASYWA | Rezerwy | Rezerwa z tytułu odroczonego podatku dochodowego","B3PCIII - PASYWA | Rezerwy techniczno-ubezpieczeniowe | Rezerwy na niewypłacone odszkodowania i świadczenia","R6BIII - WYNIKOWE | Koszty działalności statutowej | Koszty pozostałej działalności statutowej",null,"BDMP_I14 - PASYWA | Zobowiązania krótkoterminowe | Wynikające z zawartych umów pożyczek papierów wartościowych",null,"BABI5_A - AKTYWA | Aktywa obrotowe | Zapasy | Zaliczki na dostawy i usługi | Odpisy aktualizujące zaliczki na dostawy i usługi"]
["B2PX2 - PASYWA | Rezerwy | Pozostałe rezerwy","B3PCIV - PASYWA | Rezerwy techniczno-ubezpieczeniowe | Rezerwy na premie i rabaty dla ubezpieczonych","R6DI - WYNIKOWE | Przychody z działalności gospodarczej | Przychody netto ze sprzedaży produktów, towarów i materiałów",null,"BDMP_I15 - PASYWA | Zobowiązania krótkoterminowe | Fundusze specjalne",null,"BABII1a_D12 - AKTYWA | Aktywa obrotowe | Należności krótkoterminowe | Należności od jednostek powiązanych | Z tytułu dostaw i usług | o okresie spłaty do 12 miesięcy"]
["B2PXI - PASYWA | Zobowiązania podporządkowane","B3PCV - PASYWA | Rezerwy techniczno-ubezpieczeniowe | Rezerwy na wyrównanie szkodowości (ryzyka)","R6EI - WYNIKOWE | Koszty działalności gospodarczej | Koszt sprzedanych produktów, towarów i materiałów",null,"BDMP_I16 - PASYWA | Zobowiązania krótkoterminowe | Pozostałe",null,"BABII1a_D12_A - AKTYWA | Aktywa obrotowe | Należności krótkoterminowe | Należności od jednostek powiązanych | Z tytułu dostaw i usług | o okresie spłaty do 12 miesięcy | Odpisy aktualizujące wartość należności z tytułu dostaw i usług od jednostek powiązanych w okresie spłaty do 12 miesięcy"]
["B2PXII - PASYWA | Kapitał (fundusz) podstawowy","B3PCVI - PASYWA | Rezerwy techniczno-ubezpieczeniowe | Rezerwy na zwrot składek dla członków","R6G - WYNIKOWE | Koszty ogólnego zarządu",null,"BDMP_II1A - PASYWA | Zobowiązania długoterminowe | Kredyty bankowe | Od jednostek powiązanych",null,"BABII1a_P12 - AKTYWA | Aktywa obrotowe | Należności krótkoterminowe | Należności od jednostek powiązanych | Z tytułu dostaw i usług | o okresie spłaty powyżej 12 miesięcy"]
["B2PXIII - PASYWA | Kapitał (fundusz) zapasowy","B3PCVII - PASYWA | Rezerwy techniczno-ubezpieczeniowe | Pozostałe rezerwy techniczno-ubezpieczeniowe określone w statucie","R6I - WYNIKOWE | Pozostałe przychody operacyjne | Przychody z tytułu rozchodu niefinansowych aktywów trwałych",null,"BDMP_II1B - PASYWA | Zobowiązania długoterminowe | Kredyty bankowe | Pozostałe",null,"BABII1a_P12_A - AKTYWA | Aktywa obrotowe | Należności krótkoterminowe | Należności od jednostek powiązanych | Z tytułu dostaw i usług | o okresie spłaty powyżej 12 miesięcy | Odpisy aktualizujące wartość należności z tytułu dostaw i usług od jednostek powiązanych w okresie spłaty powyżej 12 miesięcy"]
["B2PXIV - PASYWA | Kapitał (fundusz) z aktualizacji wyceny","B3PCVIII - PASYWA | Rezerwy techniczno-ubezpieczeniowe | Rezerwa ubezpieczeń na życie, gdy ryzyko lokaty (inwestycyjne) ponosi ubezpieczający","R6II - WYNIKOWE | Pozostałe przychody operacyjne | Dotacje",null,"BDMP_II2A - PASYWA | Zobowiązania długoterminowe | Pożyczki | Od jednostek powiązanych",null,"BABII1b - AKTYWA | Aktywa obrotowe | Należności krótkoterminowe | Należności od jednostek powiązanych | Inne"]
["B2PXV1 - PASYWA | Pozostałe kapitały (fundusze) rezerwowe | Fundusz ogólnego ryzyka bankowego","B3PDI - PASYWA | Udział reasekuratorów w rezerwach techniczno-ubezpieczeniowych (wartość ujemna) | Udział reasekuratorów w rezerwie składek i w rezerwie na pokrycie ryzyka niewygasłego","R6III - WYNIKOWE | Pozostałe przychody operacyjne | Aktualizacja wartości aktywów niefinansowych",null,"BDMP_II2B - PASYWA | Zobowiązania długoterminowe | Pożyczki | Pozostałe",null,"BABII1b_A - AKTYWA | Aktywa obrotowe | Należności krótkoterminowe | Należności od jednostek powiązanych | Inne | Odpisy aktualizujące wartość innych należności od jednostek powiązanych"]
["B2PXV2 - PASYWA | Pozostałe kapitały (fundusze) rezerwowe","B3PDII - PASYWA | Udział reasekuratorów w rezerwach techniczno-ubezpieczeniowych (wartość ujemna) | Udział reasekuratorów w rezerwie ubezpieczeń na życie","R6IV - WYNIKOWE | Pozostałe przychody operacyjne | Inne przychody operacyjne",null,"BDMP_II3 - PASYWA | Zobowiązania długoterminowe | Dłużne papiery wartościowe",null,"BABII2a_D12 - AKTYWA | Aktywa obrotowe | Należności krótkoterminowe | Należności od pozostałych jednostek, w których jednostka posiada zaangażowanie w kapitale | Z tytułu dostaw i usług | o okresie spłaty do 12 miesięcy"]
["B2PXVI - PASYWA | Zysk (strata) z lat ubiegłych","B3PDIII - PASYWA | Udział reasekuratorów w rezerwach techniczno-ubezpieczeniowych (wartość ujemna) | Udział reasekuratorów w rezerwie na niewypłacone odszkodowania i świadczenia","R6JI - WYNIKOWE | Pozostałe koszty operacyjne | Koszty z tytułu rozchodu niefinansowych aktywów trwałych",null,"BDMP_II4 - PASYWA | Zobowiązania długoterminowe | Z tytułu innych instrumentów finansowych",null,"BABII2a_D12_A - AKTYWA | Aktywa obrotowe | Należności krótkoterminowe | Należności od pozostałych jednostek, w których jednostka posiada zaangażowanie w kapitale | Z tytułu dostaw i usług | o okresie spłaty do 12 miesięcy | Odpisy aktualizujące wartość należności z tytułu dostaw i usług od pozostałych jednostek, w których jednostka posiada zaangażowanie w kapitale, o okresie spłaty do 12 miesięcy"]
["B2PXVII - PASYWA | Zysk (strata) netto","B3PDIV - PASYWA | Udział reasekuratorów w rezerwach techniczno-ubezpieczeniowych (wartość ujemna) | Udział reasekuratorów w rezerwie na premie i rabaty dla ubezpieczonych","R6JII - WYNIKOWE | Pozostałe koszty operacyjne | Aktualizacja wartości aktywów niefinansowych",null,"BDMP_II5A - PASYWA | Zobowiązania długoterminowe | Z tytułu umów leasingu finansowego | Od jednostek powiązanych",null,"BABII2a_P12 - AKTYWA | Aktywa obrotowe | Należności krótkoterminowe | Należności od pozostałych jednostek, w których jednostka posiada zaangażowanie w kapitale | Z tytułu dostaw i usług | o okresie spłaty powyżej 12 miesięcy"]
["B2PXVIII - PASYWA | Odpisy z zysku netto w ciągu roku obrotowego (wielkość ujemna)","B3PDV - PASYWA | Udział reasekuratorów w rezerwach techniczno-ubezpieczeniowych (wartość ujemna) | Udział reasekuratorów w pozostałych rezerwach techniczno-ubezpieczeniowych określonych w statucie","R6JIII - WYNIKOWE | Pozostałe koszty operacyjne | Inne koszty operacyjne",null,"BDMP_II5B - PASYWA | Zobowiązania długoterminowe | Z tytułu umów leasingu finansowego | Pozostałe",null,"BABII2a_P12_A - AKTYWA | Aktywa obrotowe | Należności krótkoterminowe | Należności od pozostałych jednostek, w których jednostka posiada zaangażowanie w kapitale | Z tytułu dostaw i usług | o okresie spłaty powyżej 12 miesięcy | Odpisy aktualizujące wartość należności z tytułu dostaw i usług od pozostałych jednostek, w których jednostka posiada zaangażowanie w kapitale, o okresie spłaty powyżej 12 miesięcy"]
["R2I1 - WYNIKOWE | Przychody z tytułu odsetek | Od sektora finansowego","B3PDVI - PASYWA | Udział reasekuratorów w rezerwach techniczno-ubezpieczeniowych (wartość ujemna) | Udział reasekuratorów w rezerwie ubezpieczeń na życie, gdy ryzyko lokaty (inwestycyjne) ponosi ubezpieczający","R6KI - WYNIKOWE | Przychody finansowe | Dywidendy i udziały w zyskach",null,"BDMP_II6 - PASYWA | Zobowiązania długoterminowe | Pozostałe",null,"BABII2b - AKTYWA | Aktywa obrotowe | Należności krótkoterminowe | Należności od pozostałych jednostek, w których jednostka posiada zaangażowanie w kapitale | Inne"]
["R2I2 - WYNIKOWE | Przychody z tytułu odsetek | Od sektora niefinansowego","B3PE1 - PASYWA | Oszacowane regresy i odzyski (wielkość ujemna) | Oszacowane regresy i odzyski brutto","R6KII - WYNIKOWE | Przychody finansowe | Odsetki",null,"BDMP_III1 - PASYWA | Rozliczenia międzyokresowe | Ujemna wartość firmy",null,"BABII2b_A - AKTYWA | Aktywa obrotowe | Należności krótkoterminowe | Należności od pozostałych jednostek, w których jednostka posiada zaangażowanie w kapitale | Inne | Odpisy aktualizujące wartość innych należności od pozostałych jednostek, w których jednostka posiada zaangażowanie w kapitale"]
["R2I3 - WYNIKOWE | Przychody z tytułu odsetek | Od sektora budżetowego","B3PE2 - PASYWA | Oszacowane regresy i odzyski (wielkość ujemna) | Udział reasekuratorów w oszacowanych regresach i odzyskach","R6KIII - WYNIKOWE | Przychody finansowe | Przychód z tytułu rozchodu aktywów finansowych",null,"BDMP_III2A - PASYWA | Rozliczenia międzyokresowe | Inne rozliczenia międzyokresowe | Długoterminowe",null,"BABII3a_D12 - AKTYWA | Aktywa obrotowe | Należności krótkoterminowe | Należności od pozostałych jednostek | Z tytułu dostaw i usług | o okresie spłaty do 12 miesięcy"]
["R2I4 - WYNIKOWE | Przychody z tytułu odsetek | Z papierów wartościowych o stałej kwocie dochodu","B3PFI - PASYWA | Pozostałe rezerwy | Rezerwy na świadczenia emerytalne oraz inne obowiązkowe świadczenia pracowników","R6KIV - WYNIKOWE | Przychody finansowe | Aktualizacja wartości aktywów finansowych",null,"BDMP_III2B - PASYWA | Rozliczenia międzyokresowe | Inne rozliczenia międzyokresowe | Krótkoterminowe",null,"BABII3a_D12_A - AKTYWA | Aktywa obrotowe | Należności krótkoterminowe | Należności od pozostałych jednostek | Z tytułu dostaw i usług | o okresie spłaty do 12 miesięcy | Odpisy aktualizujące wartość należności z tytułu dostaw i usług od pozostałych jednostek o okresie spłaty do 12 miesięcy"]
["R2II1 - WYNIKOWE | Koszty odsetek | Od sektora finansowego","B3PFII - PASYWA | Pozostałe rezerwy | Rezerwa z tytułu odroczonego podatku dochodowego","R6KVI_RK - WYNIKOWE | Przychody finansowe | Inne | Przychody z tytułu dodatnich różnic kursowych",null,"BDMP_IV1 - PASYWA | Rezerwy na zobowiązania | Z tytułu odroczonego podatku dochodowego",null,"BABII3a_P12 - AKTYWA | Aktywa obrotowe | Należności krótkoterminowe | Należności od pozostałych jednostek | Z tytułu dostaw i usług | o okresie spłaty powyżej 12 miesięcy"]
["R2II2 - WYNIKOWE | Koszty odsetek | Od sektora niefinansowego","B3PFIII - PASYWA | Pozostałe rezerwy | Inne rezerwy","R6KVI_POZ - WYNIKOWE | Przychody finansowe | Inne | Pozostałe",null,"BDMP_IV2A - PASYWA | Rezerwy na zobowiązania | Na świadczenia emerytalne i podobne | Długoterminowe",null,"BABII3a_P12_A - AKTYWA | Aktywa obrotowe | Należności krótkoterminowe | Należności od pozostałych jednostek | Z tytułu dostaw i usług | o okresie spłaty powyżej 12 miesięcy | Odpisy aktualizujące wartość należności z tytułu dostaw i usług od pozostałych jednostek o okresie spłaty powyżej 12 miesięcy"]
["R2II3 - WYNIKOWE | Koszty odsetek | Od sektora budżetowego","B3PG - PASYWA | Zobowiązania z tytułu depozytów reasekuratorów","R6LI - WYNIKOWE | Koszty finansowe | Odsetki",null,"BDMP_IV2B - PASYWA | Rezerwy na zobowiązania | Na świadczenia emerytalne i podobne | Krótkoterminowe",null,"BABII3b - AKTYWA | Aktywa obrotowe | Należności krótkoterminowe | Należności od pozostałych jednostek | Z tytułu podatków, dotacji, ceł, ubezpieczeń społecznych i zdrowotnych oraz innych świadczeń"]
["R2IV - WYNIKOWE | Przychody z tytułu prowizji","B3PHI11_1 - PASYWA | Pozostałe zobowiązania i fundusze specjalne | Zobowiązania z tytułu ubezpieczeń bezpośrednich | Zobowiązania wobec ubezpieczających | Wobec jednostek podporządkowanych","R6LII - WYNIKOWE | Koszty finansowe | Koszty z tytułu rozchodu aktywów finansowych",null,"BDMP_IV3A - PASYWA | Rezerwy na zobowiązania | Pozostałe | Długoterminowe",null,"BABII3b_A - AKTYWA | Aktywa obrotowe | Należności krótkoterminowe | Należności od pozostałych jednostek | Z tytułu podatków, dotacji, ceł, ubezpieczeń społecznych i zdrowotnych oraz innych świadczeń | Odpisy aktualizujące wartość należności z tytułu podatków, dotacji, ceł, ubezpieczeń, społecznych i zdrowotnych oraz innych świadczeń"]
["R2V - WYNIKOWE | Koszty prowizji","B3PHI11_2 - PASYWA | Pozostałe zobowiązania i fundusze specjalne | Zobowiązania z tytułu ubezpieczeń bezpośrednich | Zobowiązania wobec ubezpieczających | Wobec pozostałych jednostek","R6LIII - WYNIKOWE | Koszty finansowe | Aktualizacja wartości inwestycji",null,"BDMP_IV3B - PASYWA | Rezerwy na zobowiązania | Pozostałe | Krótkoterminowe",null,"BABII3c_W - AKTYWA | Aktywa obrotowe | Należności krótkoterminowe | Należności od pozostałych jednostek | Inne"]
["R2VII1 - WYNIKOWE | Przychody z udziałów lub akcji, pozostałych papierów wartościowych i innych instrumentów finansowych, o zmiennej kwocie dochodu | Od jednostek zależnych","B3PHI22_1 - PASYWA | Pozostałe zobowiązania i fundusze specjalne | Zobowiązania z tytułu ubezpieczeń bezpośrednich | Zobowiązania wobec pośredników ubezpieczeniowych | Wobec jednostek podporządkowanych","R6LV_RK - WYNIKOWE | Koszty finansowe | Inne | Koszty z tytułu ujemnych różnic kursowych",null,"BDMP_V - PASYWA | Zobowiązania podporządkowane",null,"BABII3c_A - AKTYWA | Aktywa obrotowe | Należności krótkoterminowe | Należności od pozostałych jednostek | Inne | Odpisy aktualizujące wartość innych należności"]
["R2VII2 - WYNIKOWE | Przychody z udziałów lub akcji, pozostałych papierów wartościowych i innych instrumentów finansowych, o zmiennej kwocie dochodu | Od jednostek współzależnych","B3PHI22_2 - PASYWA | Pozostałe zobowiązania i fundusze specjalne | Zobowiązania z tytułu ubezpieczeń bezpośrednich | Zobowiązania wobec pośredników ubezpieczeniowych | Wobec pozostałych jednostek","R6LV_POZ - WYNIKOWE | Koszty finansowe | Inne | Pozostałe",null,"BDMP_VI1 - PASYWA | Kapitał (fundusz) własny | Kapitał (fundusz) podstawowy",null,"BABII3d_W - AKTYWA | Aktywa obrotowe | Należności krótkoterminowe | Należności od pozostałych jednostek | Dochodzone na drodze sądowej"]
["R2VII3 - WYNIKOWE | Przychody z udziałów lub akcji, pozostałych papierów wartościowych i innych instrumentów finansowych, o zmiennej kwocie dochodu | Od jednostek stowarzyszonych","B3PHI33_1 - PASYWA | Pozostałe zobowiązania i fundusze specjalne | Zobowiązania z tytułu ubezpieczeń bezpośrednich | Inne zobowiązania z tytułu ubezpieczeń | Wobec jednostek podporządkowanych","R6N - WYNIKOWE | Podatek dochodowy",null,"BDMP_VI4A - PASYWA | Kapitał (fundusz) własny | Kapitał (fundusz) zapasowy | Ze sprzedaży akcji powyżej ich wartości nominalnej",null,"BABII3d_A - AKTYWA | Aktywa obrotowe | Należności krótkoterminowe | Należności od pozostałych jednostek | Dochodzone na drodze sądowej | Odpisy aktualizujące wartość należności dochodzonych na drodze sądowej"]
["R2VII4 - WYNIKOWE | Przychody z udziałów lub akcji, pozostałych papierów wartościowych i innych instrumentów finansowych, o zmiennej kwocie dochodu | Od pozostałych jednostek","B3PHI33_2 - PASYWA | Pozostałe zobowiązania i fundusze specjalne | Zobowiązania z tytułu ubezpieczeń bezpośrednich | Inne zobowiązania z tytułu ubezpieczeń | Wobec pozostałych jednostek","INNE - Inne, niewskazane w słowniku",null,"BDMP_VI4B - PASYWA | Kapitał (fundusz) własny | Kapitał (fundusz) zapasowy | Utworzony ustawowo",null,"BABIII1a1_ULA_W - AKTYWA | Aktywa obrotowe | Inwestycje krótkoterminowe | Krótkoterminowe aktywa finansowe | W jednostkach powiązanych | Udziały lub akcje"]
["R2VIII1_P - WYNIKOWE | Przychody z tytułu operacji finansowych papierami wartościowymi i innymi instrumentami finansowymi","B3PHII1 - PASYWA | Pozostałe zobowiązania i fundusze specjalne | Zobowiązania z tytułu reasekuracji | Wobec jednostek podporządkowanych",null,null,"BDMP_VI4C - PASYWA | Kapitał (fundusz) własny | Kapitał (fundusz) zapasowy | Utworzony zgodnie ze statutem",null,"BABIII1a1_ULA_A - AKTYWA | Aktywa obrotowe | Inwestycje krótkoterminowe | Krótkoterminowe aktywa finansowe | W jednostkach powiązanych | Udziały lub akcje | Odpisy aktualizujące wartość udziałów lub akcji w jednostkach powiązanych"]
["R2VIII1_K - WYNIKOWE | Koszty z tytułu operacji finansowych papierami wartościowymi i innymi instrumentami finansowymi","B3PHII2 - PASYWA | Pozostałe zobowiązania i fundusze specjalne | Zobowiązania z tytułu reasekuracji | Wobec pozostałych jednostek",null,null,"BDMP_VI4D - PASYWA | Kapitał (fundusz) własny | Kapitał (fundusz) zapasowy | Z dopłat akcjonariuszy",null,"BABIII1a2_IPW_W - AKTYWA | Aktywa obrotowe | Inwestycje krótkoterminowe | Krótkoterminowe aktywa finansowe | W jednostkach powiązanych | Inne papiery wartościowe"]
["R2VIII2_P - WYNIKOWE | Przychody z tytułu pozostałych operacji finansowych","B3PHIII1 - PASYWA | Pozostałe zobowiązania i fundusze specjalne | Zobowiązania z tytułu emisji własnych dłużnych papierów wartościowych oraz pobranych pożyczek | Zobowiązania zamienne na akcje zakładu ubezpieczeń",null,null,"BDMP_VI4E - PASYWA | Kapitał (fundusz) własny | Kapitał (fundusz) zapasowy | Inny",null,"BABIII1a2_IPW_A - AKTYWA | Aktywa obrotowe | Inwestycje krótkoterminowe | Krótkoterminowe aktywa finansowe | W jednostkach powiązanych | Inne papiery wartościowe | Odpisy aktualizujące wartość innych papierów wartościowych w jednostkach powiązanych"]
["R2VIII2_K - WYNIKOWE | Koszty z tytułu pozostałych operacji finansowych","B3PHIII2 - PASYWA | Pozostałe zobowiązania i fundusze specjalne | Zobowiązania z tytułu emisji własnych dłużnych papierów wartościowych oraz pobranych pożyczek | Pozostałe",null,null,"BDMP_VI5 - PASYWA | Kapitał (fundusz) własny | Kapitał (fundusz) z aktualizacji wyceny",null,"BABIII1a3_UP_W - AKTYWA | Aktywa obrotowe | Inwestycje krótkoterminowe | Krótkoterminowe aktywa finansowe | W jednostkach powiązanych | Udzielone pożyczki"]
["R2IX_P - WYNIKOWE | Przychody z pozycji wymiany","B3PHIV - PASYWA | Pozostałe zobowiązania i fundusze specjalne | Zobowiązania wobec instytucji kredytowych",null,null,"BDMP_VI6 - PASYWA | Kapitał (fundusz) własny | Pozostałe kapitały (fundusze) rezerwowe",null,"BABIII1a3_UP_A - AKTYWA | Aktywa obrotowe | Inwestycje krótkoterminowe | Krótkoterminowe aktywa finansowe | W jednostkach powiązanych | Udzielone pożyczki | Odpisy aktualizujące wartość udzielonych pożyczek w jednostkach powiązanych"]
["R2IX_K - WYNIKOWE | Koszty z pozycji wymiany","B3PHV1 - PASYWA | Pozostałe zobowiązania i fundusze specjalne | Inne zobowiązania | Zobowiązania wobec budżetu",null,null,"BDMP_VI7A - PASYWA | Kapitał (fundusz) własny | Zysk (strata) z lat ubiegłych | Zysk z lat ubiegłych (wartość dodatnia)",null,"BABIII1a4_IKAF_W - AKTYWA | Aktywa obrotowe | Inwestycje krótkoterminowe | Krótkoterminowe aktywa finansowe | W jednostkach powiązanych | Inne krótkoterminowe aktywa finansowe"]
["R2XI - WYNIKOWE | Pozostałe przychody operacyjne","B3PHV22_1 - PASYWA | Pozostałe zobowiązania i fundusze specjalne | Inne zobowiązania | Pozostałe zobowiązania | Wobec jednostek podporządkowanych",null,null,"BDMP_VI7B - PASYWA | Kapitał (fundusz) własny | Zysk (strata) z lat ubiegłych | Strata z lat ubiegłych (wartość ujemna)",null,"BABIII1a4_IKAF_A - AKTYWA | Aktywa obrotowe | Inwestycje krótkoterminowe | Krótkoterminowe aktywa finansowe | W jednostkach powiązanych | Inne krótkoterminowe aktywa finansowe | Odpisy aktualizujące wartość innych krótkoterminowych aktywów finansowych w jednostkach powiązanych"]
["R2XII - WYNIKOWE | Pozostałe koszty operacyjne","B3PHV22_2 - PASYWA | Pozostałe zobowiązania i fundusze specjalne | Inne zobowiązania | Pozostałe zobowiązania | Wobec pozostałych jednostek",null,null,"BDMP_VI8 - PASYWA | Kapitał (fundusz) własny | Zysk (strata) netto",null,"BABIII1b1_ULA_W - AKTYWA | Aktywa obrotowe | Inwestycje krótkoterminowe | Krótkoterminowe aktywa finansowe | W pozostałych jednostkach | Udziały lub akcje"]
["R2XIII1 - WYNIKOWE | Koszty działania banku | Wynagrodzenia","B3PHVI - PASYWA | Pozostałe zobowiązania i fundusze specjalne | Fundusze specjalne",null,null,"BDMP_VI9 - PASYWA | Kapitał (fundusz) własny | Odpisy z zysku netto w ciągu roku obrotowego (wielkość ujemna)",null,"BABIII1b1_ULA_A - AKTYWA | Aktywa obrotowe | Inwestycje krótkoterminowe | Krótkoterminowe aktywa finansowe | W pozostałych jednostkach | Udziały lub akcje | Odpisy aktualizujące wartość udziałów lub akcji w pozostałych jednostkach"]
["R2XIII2 - WYNIKOWE | Koszty działania banku | Ubezpieczenia i inne świadczenia","B3PI1 - PASYWA | Rozliczenia międzyokresowe | Rozliczenia międzyokresowe kosztów",null,null,"RDM_I1A_pow - RZIS | Przychody z podstawowej działalności | Przychody z działalności maklerskiej | Z tytułu przyjmowania i przekazywania zleceń nabycia lub zbycia instrumentów finansowych | Od jednostek powiązanych",null,"BABIII1b2_IPW_W - AKTYWA | Aktywa obrotowe | Inwestycje krótkoterminowe | Krótkoterminowe aktywa finansowe | W pozostałych jednostkach | Inne papiery wartościowe"]
["R2XIII3 - WYNIKOWE | Koszty działania banku | Pozostałe","B3PI2 - PASYWA | Rozliczenia międzyokresowe | Ujemna wartość firmy",null,null,"RDM_I1B_pow - RZIS | Przychody z podstawowej działalności | Przychody z działalności maklerskiej | Z tytułu wykonywania zleceń nabycia lub zbycia instrumentów finansowych na rachunek dającego zlecenie | Od jednostek powiązanych",null,"BABIII1b2_IPW_A - AKTYWA | Aktywa obrotowe | Inwestycje krótkoterminowe | Krótkoterminowe aktywa finansowe | W pozostałych jednostkach | Inne papiery wartościowe | Odpisy aktualizujące wartość innych papierów wartościowych w pozostałych jednostkach"]
["R2XIV - WYNIKOWE | Amortyzacja środków trwałych oraz wartości niematerialnych i prawnych","B3PI3 - PASYWA | Rozliczenia międzyokresowe | Przychody przyszłych okresów",null,null,"RDM_I1C_pow - RZIS | Przychody z podstawowej działalności | Przychody z działalności maklerskiej | Z tytułu zarządzania portfelami, w skład których wchodzi jeden instrument finansowy lub ich większa liczba | Od jednostek powiązanych",null,"BABIII1b3_UP_W - AKTYWA | Aktywa obrotowe | Inwestycje krótkoterminowe | Krótkoterminowe aktywa finansowe | W pozostałych jednostkach | Udzielone pożyczki"]
["R2XV1 - WYNIKOWE | Odpisy na rezerwy i aktualizacja wartości | Odpisy na rezerwy celowe i na ogólne ryzyko bankowe","R3OII1 - WYNIKOWE | Ogólny rachunek zysków i strat | Przychody z lokat | Przychody z lokat w nieruchomości",null,null,"RDM_I1D_pow - RZIS | Przychody z podstawowej działalności | Przychody z działalności maklerskiej | Z tytułu doradztwa inwestycyjnego | Od jednostek powiązanych",null,"BABIII1b3_UP_A - AKTYWA | Aktywa obrotowe | Inwestycje krótkoterminowe | Krótkoterminowe aktywa finansowe | W pozostałych jednostkach | Udzielone pożyczki | Odpisy aktualizujące wartość udzielonych pożyczek w pozostałych jednostkach"]
["R2XV2 - WYNIKOWE | Odpisy na rezerwy i aktualizacja wartości | Aktualizacja wartości aktywów finansowych","R3OII22_1 - WYNIKOWE | Ogólny rachunek zysków i strat | Przychody z lokat | Przychody z lokat w jednostkach podporządkowanych | Z udziałów i akcji",null,null,"RDM_I1E_pow - RZIS | Przychody z podstawowej działalności | Przychody z działalności maklerskiej | Z tytułu oferowania instrumentów finansowych | Od jednostek powiązanych",null,"BABIII1b4_IKAF_W - AKTYWA | Aktywa obrotowe | Inwestycje krótkoterminowe | Krótkoterminowe aktywa finansowe | W pozostałych jednostkach | Inne krótkoterminowe aktywa finansowe"]
["R2XVI1 - WYNIKOWE | Rozwiązanie rezerw i aktualizacja wartości | Rozwiązanie rezerw celowych i rezerw na ogólne ryzyko bankowe","R3OII22_2 - WYNIKOWE | Ogólny rachunek zysków i strat | Przychody z lokat | Przychody z lokat w jednostkach podporządkowanych | Z pożyczek i dłużnych papierów wartościowych",null,null,"RDM_I1F_pow - RZIS | Przychody z podstawowej działalności | Przychody z działalności maklerskiej | Z tytułu świadczenia usług w wykonywaniu zawartych umów o subemisje inwestycyjne i usługowe lub zawierania i wykonywania innych umów o podobnym charakterze, jeżeli ich przedmiotem są instrumenty finansowe | Od jednostek powiązanych",null,"BABIII1b4_IKAF_A - AKTYWA | Aktywa obrotowe | Inwestycje krótkoterminowe | Krótkoterminowe aktywa finansowe | W pozostałych jednostkach | Inne krótkoterminowe aktywa finansowe | Odpisy aktualizujące wartość innych krótkoterminowych aktywów finansowych w pozostałych jednostkach"]
["R2XVI2 - WYNIKOWE | Rozwiązanie rezerw i aktualizacja wartości | Aktualizacja wartości aktywów finansowych","R3OII22_3 - WYNIKOWE | Ogólny rachunek zysków i strat | Przychody z lokat | Przychody z lokat w jednostkach podporządkowanych | Z pozostałych lokat",null,null,"RDM_I1G_pow - RZIS | Przychody z podstawowej działalności | Przychody z działalności maklerskiej | Z tytułu prowadzenia rachunków pieniężnych, przechowywania lub rejestrowania instrumentów finansowych, w tym prowadzenia rachunków, o których mowa w art. 69 ust. 4 pkt 1 ustawy o obrocie instrumentami finansowymi | Od jednostek powiązanych",null,"BABIII1c1_SPKR - AKTYWA | Aktywa obrotowe | Inwestycje krótkoterminowe | Krótkoterminowe aktywa finansowe | Środki pieniężne i inne aktywa pieniężne | Środki pieniężne w kasie i na rachunkach"]
["R2XIX1 - WYNIKOWE | Zyski nadzwyczajne","R3OII33_1 - WYNIKOWE | Ogólny rachunek zysków i strat | Przychody z lokat | Przychody z innych lokat finansowych | Z udziałów, akcji, innych papierów wartościowych o zmiennej kwocie dochodu oraz jednostek uczestnictwa i certyfikatów inwestycyjnych w funduszach inwestycyjnych",null,null,"RDM_I1H_pow - RZIS | Przychody z podstawowej działalności | Przychody z działalności maklerskiej | Pozostałe | Od jednostek powiązanych",null,"BABIII1c2_ISP - AKTYWA | Aktywa obrotowe | Inwestycje krótkoterminowe | Krótkoterminowe aktywa finansowe | Środki pieniężne i inne aktywa pieniężne | Inne środki pieniężne"]
["R2XIX2 - WYNIKOWE | Straty nadzwyczajne","R3OII33_2 - WYNIKOWE | Ogólny rachunek zysków i strat | Przychody z lokat | Przychody z innych lokat finansowych | Z dłużnych papierów wartościowych oraz innych papierów wartościowych o stałej kwocie dochodu",null,null,"RDM_I2_pow - RZIS | Przychody z podstawowej działalności | Przychody z pozostałej działalności podstawowej | Od jednostek powiązanych",null,"BABIII1c2_ISP_A - AKTYWA | Aktywa obrotowe | Inwestycje krótkoterminowe | Krótkoterminowe aktywa finansowe | Środki pieniężne i inne aktywa pieniężne | Inne środki pieniężne | Odpisy aktualizujące wartość innych środków pieniężnych"]
["R2XXI_B - WYNIKOWE | Podatek dochodowy | Bieżący","R3OII33_3 - WYNIKOWE | Ogólny rachunek zysków i strat | Przychody z lokat | Przychody z innych lokat finansowych | Z lokat terminowych w instytucjach kredytowych",null,null,"RDM_I1A_poz - RZIS | Przychody z podstawowej działalności | Przychody z działalności maklerskiej | Z tytułu przyjmowania i przekazywania zleceń nabycia lub zbycia instrumentów finansowych | Od jednostek pozostałych",null,"BABIII1c3_IAP - AKTYWA | Aktywa obrotowe | Inwestycje krótkoterminowe | Krótkoterminowe aktywa finansowe | Środki pieniężne i inne aktywa pieniężne | Inne aktywa pieniężne"]
["R2XXI_O - WYNIKOWE | Podatek dochodowy | Odroczony","R3OII33_4 - WYNIKOWE | Ogólny rachunek zysków i strat | Przychody z lokat | Przychody z innych lokat finansowych | Z pozostałych lokat",null,null,"RDM_I1B_poz - RZIS | Przychody z podstawowej działalności | Przychody z działalności maklerskiej | Z tytułu wykonywania zleceń nabycia lub zbycia instrumentów finansowych na rachunek dającego zlecenie | Od jednostek pozostałych",null,"BABIII1c3_IAP_A - AKTYWA | Aktywa obrotowe | Inwestycje krótkoterminowe | Krótkoterminowe aktywa finansowe | Środki pieniężne i inne aktywa pieniężne | Inne aktywa pieniężne | Odpisy aktualizujące wartość innych aktywów pieniężnych"]
["R2XXII - WYNIKOWE | Pozostałe obowiązkowe zmniejszenie zysku (zwiększenie straty)","R3OII_4 - WYNIKOWE | Ogólny rachunek zysków i strat | Przychody z lokat | Wynik dodatni z rewaloryzacji lokat | Przychody z rewaloryzacji lokat",null,null,"RDM_I1C_poz - RZIS | Przychody z podstawowej działalności | Przychody z działalności maklerskiej | Z tytułu zarządzania portfelami, w skład których wchodzi jeden instrument finansowy lub ich większa liczba | Od jednostek pozostałych",null,"BABIII2_W - AKTYWA | Aktywa obrotowe | Inwestycje krótkoterminowe | Inne inwestycje krótkoterminowe"]
["INNE - Inne, niewskazane w słowniku","R3OII_5 - WYNIKOWE | Ogólny rachunek zysków i strat | Przychody z lokat | Wynik dodatni z realizacji lokat | Przychody z realizacji lokat",null,null,"RDM_I1D_poz - RZIS | Przychody z podstawowej działalności | Przychody z działalności maklerskiej | Z tytułu doradztwa inwestycyjnego | Od jednostek pozostałych",null,"BABIII2_A - AKTYWA | Aktywa obrotowe | Inwestycje krótkoterminowe | Inne inwestycje krótkoterminowe | Odpisy aktualizujące wartość innych inwestycji krótkoterminowych"]
[null,"R3OIII - WYNIKOWE | Ogólny rachunek zysków i strat | Niezrealizowane zyski z lokat",null,null,"RDM_I1E_poz - RZIS | Przychody z podstawowej działalności | Przychody z działalności maklerskiej | Z tytułu oferowania instrumentów finansowych | Od jednostek pozostałych",null,"BABIV - AKTYWA | Aktywa obrotowe | Krótkoterminowe rozliczenia międzyokresowe"]
[null,"R3OIV_1 - WYNIKOWE | Ogólny rachunek zysków i strat | Przychody z lokat netto po uwzględnieniu kosztów, przeniesione z technicznego rachunku ubezpieczeń na życie | Przychody z łącznego inwestowania przypadające na część techniczną ubezpieczeń na życie (przeniesione z technicznego rachunku ubezpieczeń na życie)",null,null,"RDM_I1F_poz - RZIS | Przychody z podstawowej działalności | Przychody z działalności maklerskiej | Z tytułu świadczenia usług w wykonywaniu zawartych umów o subemisje inwestycyjne i usługowe lub zawierania i wykonywania innych umów o podobnym charakterze, jeżeli ich przedmiotem są instrumenty finansowe | Od jednostek pozostałych",null,"BABIV_A - AKTYWA | Aktywa obrotowe | Krótkoterminowe rozliczenia międzyokresowe | Odpisy aktualizujące wartość krótkoterminowych rozliczeń międzyokresowych"]
[null,"R3OIV_2 - WYNIKOWE | Ogólny rachunek zysków i strat | Przychody z lokat netto po uwzględnieniu kosztów, przeniesione z technicznego rachunku ubezpieczeń na życie | Koszty z łącznego inwestowania przypadające na część techniczną ubezpieczeń na życie (przeniesione z technicznego rachunku ubezpieczeń na życie)",null,null,"RDM_I1G_poz - RZIS | Przychody z podstawowej działalności | Przychody z działalności maklerskiej | Z tytułu prowadzenia rachunków pieniężnych, przechowywania lub rejestrowania instrumentów finansowych, w tym prowadzenia rachunków, o których mowa w art. 69 ust. 4 pkt 1 ustawy o obrocie instrumentami finansowymi | Od jednostek pozostałych",null,"BAC - AKTYWA | Należne wpłaty na kapitał (fundusz) podstawowy"]
[null,"R3OV1 - WYNIKOWE | Ogólny rachunek zysków i strat | Koszty działalności lokacyjnej | Koszty utrzymania nieruchomości",null,null,"RDM_I1H_poz - RZIS | Przychody z podstawowej działalności | Przychody z działalności maklerskiej | Pozostałe | Od jednostek pozostałych",null,"BAD - AKTYWA | Udziały (akcje) własne"]
[null,"R3OV2 - WYNIKOWE | Ogólny rachunek zysków i strat | Koszty działalności lokacyjnej | Pozostałe koszty działalności lokacyjnej",null,null,"RDM_I2_poz - RZIS | Przychody z podstawowej działalności | Przychody z pozostałej działalności podstawowej | Od jednostek pozostałych",null,"BPAI - PASYWA | Kapitał (fundusz) własny | Kapitał (fundusz) podstawowy"]
[null,"R3OV3 - WYNIKOWE | Ogólny rachunek zysków i strat | Koszty działalności lokacyjnej | Wynik ujemny z rewaloryzacji lokat | Koszt własny rewaloryzacji lokat",null,null,"RDM_II1 - RZIS | Koszty działalności podstawowej | Opłaty na rzecz rynków regulowanych, giełd towarowych, Krajowego Depozytu i izb rozrachunkowych oraz izb rozliczeniowych",null,"BPAIIWS - PASYWA | Kapitał (fundusz) własny | Kapitał (fundusz) zapasowy | Z nadwyżki wartości sprzedaży (wartości emisyjnej) nad wartością nominalną udziałów (akcji)"]
[null,"R3OV4 - WYNIKOWE | Ogólny rachunek zysków i strat | Koszty działalności lokacyjnej | Wynik ujemny z realizacji lokat | Koszt własny realizacji lokat",null,null,"RDM_II2 - RZIS | Koszty działalności podstawowej | Opłaty na rzecz CCP",null,"BPAII_INN - PASYWA | Kapitał (fundusz) własny | Kapitał (fundusz) zapasowy | Z innych źródeł"]
[null,"R3OVI - WYNIKOWE | Ogólny rachunek zysków i strat | Niezrealizowane straty na lokatach",null,null,"RDM_II3 - RZIS | Koszty działalności podstawowej | Opłaty na rzecz izby gospodarczej",null,"BPAII_ES_ZP - PASYWA | Kapitał (fundusz) własny | Kapitał (fundusz) zapasowy | Kwota zysku wypracowanego w latach przed opodatkowaniem ryczałtem od dochodów spółek"]
[null,"R3OVIII - WYNIKOWE | Ogólny rachunek zysków i strat | Pozostałe przychody operacyjne",null,null,"RDM_II4 - RZIS | Koszty działalności podstawowej | Wynagrodzenia",null,"BPAII_ES_ZR - PASYWA | Kapitał (fundusz) własny | Kapitał (fundusz) zapasowy | Kwota zysku wypracowanego w latach opodatkowania ryczałtem od dochodów spółek"]
[null,"R3OIX - WYNIKOWE | Ogólny rachunek zysków i strat | Pozostałe koszty operacyjne",null,null,"RDM_II5 - RZIS | Koszty działalności podstawowej | Ubezpieczenia społeczne i inne świadczenia",null,"BPAIIIAWG - PASYWA | Kapitał (fundusz) własny | Kapitał (fundusz) z aktualizacji wyceny | Z tytułu aktualizacji wartości godziwej"]
[null,"R3OXI - WYNIKOWE | Ogólny rachunek zysków i strat | Zyski nadzwyczajne",null,null,"RDM_II6 - RZIS | Koszty działalności podstawowej | Świadczenia na rzecz pracowników",null,"BPAIII_INN - PASYWA | Kapitał (fundusz) własny | Kapitał (fundusz) z aktualizacji wyceny | Z innego tytułu"]
[null,"R3OXII - WYNIKOWE | Ogólny rachunek zysków i strat | Straty nadzwyczajne",null,null,"RDM_II7 - RZIS | Koszty działalności podstawowej | Zużycie materiałów i energii",null,"BPAIVU - PASYWA | Kapitał (fundusz) własny | Pozostałe kapitały (fundusze) rezerwowe | Tworzone zgodnie z umową (ze statutem)"]
[null,"R3OXIV - WYNIKOWE | Ogólny rachunek zysków i strat | Podatek dochodowy",null,null,"RDM_II8 - RZIS | Koszty działalności podstawowej | Usługi obce",null,"BPAIVUW - PASYWA | Kapitał (fundusz) własny | Pozostałe kapitały (fundusze) rezerwowe | Na udziały (akcje) własne"]
[null,"R3OXV - WYNIKOWE | Ogólny rachunek zysków i strat | Pozostałe obowiązkowe zmniejszenia zysku (zwiększenia straty)",null,null,"RDM_II9 - RZIS | Koszty działalności podstawowej | Koszty utrzymania i wynajmu nieruchomości",null,"BPAIV_INN - PASYWA | Kapitał (fundusz) własny | Pozostałe kapitały (fundusze) rezerwowe | Inne"]
[null,"R3MI1 - WYNIKOWE | Techniczny rachunek ubezpieczeń majątkowych i osobowych | Składki | Składki przypisane brutto",null,null,"RDM_II10 - RZIS | Koszty działalności podstawowej | Pozostałe koszty rzeczowe",null,"BPAIV_ES_ZP - PASYWA | Kapitał (fundusz) własny | Pozostałe kapitały (fundusze) rezerwowe | Kwota zysku wypracowanego w latach przed opodatkowaniem ryczałtem od dochodów spółek"]
[null,"R3MI2 - WYNIKOWE | Techniczny rachunek ubezpieczeń majątkowych i osobowych | Składki | Udział reasekuratorów w składce przypisanej",null,null,"RDM_II11 - RZIS | Koszty działalności podstawowej | Amortyzacja",null,"BPAIV_ES_ZR - PASYWA | Kapitał (fundusz) własny | Pozostałe kapitały (fundusze) rezerwowe | Kwota zysku wypracowanego w latach opodatkowania ryczałtem od dochodów spółek"]
[null,"R3MI3 - WYNIKOWE | Techniczny rachunek ubezpieczeń majątkowych i osobowych | Składki | Zmiana stanu rezerw składek i rezerwy na ryzyko niewygasłe brutto",null,null,"RDM_II12 - RZIS | Koszty działalności podstawowej | Podatki i inne opłaty o charakterze publicznoprawnym",null,"BPAV - PASYWA | Kapitał (fundusz) własny | Zysk (strata) z lat ubiegłych"]
[null,"R3MI4 - WYNIKOWE | Techniczny rachunek ubezpieczeń majątkowych i osobowych | Składki | Udział reasekuratorów w zmianie stanu rezerw składek",null,null,"RDM_II13 - RZIS | Koszty działalności podstawowej | Prowizje i inne opłaty",null,"BPAV_ES_NZP - PASYWA | Kapitał (fundusz) własny | Zysk (strata) z lat ubiegłych | Kwota niepodzielonych zysków wypracowanych w latach przed opodatkowaniem ryczałtem od dochodów spółek"]
[null,"R3MII1 - WYNIKOWE | Techniczny rachunek ubezpieczeń majątkowych i osobowych | Przychody z lokat netto po uwzględnieniu kosztów, przeniesione z ogólnego rachunku zysków i strat | Przychody z łącznego inwestowania przypadające na część techniczną ubezpieczeń majątkowych i osobowych",null,null,"RDM_II14 - RZIS | Koszty działalności podstawowej | Pozostałe",null,"BPAV_ES_NPR - PASYWA | Kapitał (fundusz) własny | Zysk (strata) z lat ubiegłych | Kwota niepodzielonych zysków wypracowanych w latach opodatkowania ryczałtem od dochodów spółek"]
[null,"R3MII2 - WYNIKOWE | Techniczny rachunek ubezpieczeń majątkowych i osobowych | Przychody z lokat netto po uwzględnieniu kosztów, przeniesione z ogólnego rachunku zysków i strat | Koszty z łącznego inwestowania przypadające na część techniczną ubezpieczeń majątkowych i osobowych",null,null,"RDM_IV1_pow - RZIS | Przychody z instrumentów finansowych przeznaczonych do obrotu | Dywidendy i inne udziały w zyskach | Od jednostek powiązanych",null,"BPAV_ES_NSP - PASYWA | Kapitał (fundusz) własny | Zysk (strata) z lat ubiegłych | Kwota niepokrytych strat poniesionych w latach przed opodatkowaniem ryczałtem od dochodów spółek"]
[null,"R3MIII - WYNIKOWE | Techniczny rachunek ubezpieczeń majątkowych i osobowych | Pozostałe przychody techniczne na udziale własnym",null,null,"RDM_IV1_poz - RZIS | Przychody z instrumentów finansowych przeznaczonych do obrotu | Dywidendy i inne udziały w zyskach | Od jednostek pozostałych",null,"BPAV_ES_NSR - PASYWA | Kapitał (fundusz) własny | Zysk (strata) z lat ubiegłych | Kwota niepokrytych strat poniesionych w latach opodatkowania ryczałtem od dochodów spółek"]
[null,"R3MIV11_1 - WYNIKOWE | Techniczny rachunek ubezpieczeń majątkowych i osobowych | Odszkodowania i świadczenia | Odszkodowania i świadczenia wypłacone na udziale własnym | Odszkodowania i świadczenia wypłacone brutto",null,null,"RDM_IV2_pow - RZIS | Przychody z instrumentów finansowych przeznaczonych do obrotu | Odsetki | Od jednostek powiązanych",null,"BPAVI - PASYWA | Kapitał (fundusz) własny | Zysk (strata) netto"]
[null,"R3MIV11_2 - WYNIKOWE | Techniczny rachunek ubezpieczeń majątkowych i osobowych | Odszkodowania i świadczenia | Odszkodowania i świadczenia wypłacone na udziale własnym | Udział reasekuratorów w odszkodowaniach i świadczeniach wypłaconych",null,null,"RDM_IV2_poz - RZIS | Przychody z instrumentów finansowych przeznaczonych do obrotu | Odsetki | Od jednostek pozostałych",null,"BPAVII - PASYWA | Kapitał (fundusz) własny | Odpisy z zysku netto w ciągu roku obrotowego (wielkość ujemna)"]
[null,"R3MIV22_1 - WYNIKOWE | Techniczny rachunek ubezpieczeń majątkowych i osobowych | Odszkodowania i świadczenia | Zmiana stanu rezerwy na niewypłacone odszkodowania i świadczenia na udziale własnym | Zmiana stanu rezerw na niewypłacone odszkodowania i świadczenia brutto",null,null,"RDM_IV3 - RZIS | Przychody z instrumentów finansowych przeznaczonych do obrotu | Korekty aktualizujące wartość",null,"BPBI1 - PASYWA | Zobowiązania i rezerwy na zobowiązania | Rezerwy na zobowiązania | Rezerwa z tytułu odroczonego podatku dochodowego"]
[null,"R3MIV22_2 - WYNIKOWE | Techniczny rachunek ubezpieczeń majątkowych i osobowych | Odszkodowania i świadczenia | Zmiana stanu rezerwy na niewypłacone odszkodowania i świadczenia na udziale własnym | Udział reasekuratorów w zmianie stanu rezerw na niewypłacone odszkodowania i świadczenia",null,null,"RDM_IV4 - RZIS | Przychody z instrumentów finansowych przeznaczonych do obrotu | Przychody ze sprzedaży / z umorzenia",null,"BPBI2_D - PASYWA | Zobowiązania i rezerwy na zobowiązania | Rezerwy na zobowiązania | Rezerwa na świadczenia emerytalne i podobne | Długoterminowa"]
[null,"R3MV1 - WYNIKOWE | Techniczny rachunek ubezpieczeń majątkowych i osobowych | Zmiany stanu pozostałych rezerw techniczno-ubezpieczeniowych na udziale własnym | Zmiany stanu pozostałych rezerw techniczno-ubezpieczeniowych brutto",null,null,"RDM_IV5 - RZIS | Przychody z instrumentów finansowych przeznaczonych do obrotu | Pozostałe",null,"BPBI2_K - PASYWA | Zobowiązania i rezerwy na zobowiązania | Rezerwy na zobowiązania | Rezerwa na świadczenia emerytalne i podobne | Krótkoterminowa"]
[null,"R3MV2 - WYNIKOWE | Techniczny rachunek ubezpieczeń majątkowych i osobowych | Zmiany stanu pozostałych rezerw techniczno-ubezpieczeniowych na udziale własnym | Udział reasekuratorów w zmianie stanu pozostałych rezerw techniczno-ubezpieczeniowych",null,null,"RDM_V1 - RZIS | Koszty z tytułu instrumentów finansowych przeznaczonych do obrotu | Korekty aktualizujące wartość",null,"BPBI3_D - PASYWA | Zobowiązania i rezerwy na zobowiązania | Rezerwy na zobowiązania | Pozostałe rezerwy | Długoterminowe"]
[null,"R3MVI - WYNIKOWE | Techniczny rachunek ubezpieczeń majątkowych i osobowych | Premie i rabaty na udziale własnym łącznie ze zmianą stanu rezerw",null,null,"RDM_V2 - RZIS | Koszty z tytułu instrumentów finansowych przeznaczonych do obrotu | Koszty sprzedaży/umorzenia",null,"BPBI3_K - PASYWA | Zobowiązania i rezerwy na zobowiązania | Rezerwy na zobowiązania | Pozostałe rezerwy | Krótkoterminowe"]
[null,"R3MVII11_1 - WYNIKOWE | Techniczny rachunek ubezpieczeń majątkowych i osobowych | Koszty działalności ubezpieczeniowej | Koszty akwizycji | Zmiana stanu aktywowanych kosztów akwizycji",null,null,"RDM_V3 - RZIS | Koszty z tytułu instrumentów finansowych przeznaczonych do obrotu | Pozostałe",null,"BPBII1 - PASYWA | Zobowiązania i rezerwy na zobowiązania | Zobowiązania długoterminowe | Wobec jednostek powiązanych"]
[null,"R3MVII11_2 - WYNIKOWE | Techniczny rachunek ubezpieczeń majątkowych i osobowych | Koszty działalności ubezpieczeniowej | Koszty akwizycji | Koszty akwizycji poniesione w okresie sprawozdawczym",null,null,"RDM_VII1_pow - RZIS | Przychody z instrumentów finansowych utrzymywanych do terminu zapadalności | Odsetki | Od jednostek powiązanych",null,"BPBII2 - PASYWA | Zobowiązania i rezerwy na zobowiązania | Zobowiązania długoterminowe | Wobec pozostałych jednostek, w których jednostka posiada zaangażowanie w kapitale"]
[null,"R3MVII2 - WYNIKOWE | Techniczny rachunek ubezpieczeń majątkowych i osobowych | Koszty działalności ubezpieczeniowej | Koszty administracyjne",null,null,"RDM_VII1_poz - RZIS | Przychody z instrumentów finansowych utrzymywanych do terminu zapadalności | Odsetki | Od jednostek pozostałych",null,"BPBII3a - PASYWA | Zobowiązania i rezerwy na zobowiązania | Zobowiązania długoterminowe | Wobec pozostałych jednostek | Kredyty i pożyczki"]
[null,"R3MVII3 - WYNIKOWE | Techniczny rachunek ubezpieczeń majątkowych i osobowych | Koszty działalności ubezpieczeniowej | Prowizje reasekuracyjne i udział w zyskach reasekuratorów",null,null,"RDM_VII2 - RZIS | Przychody z instrumentów finansowych utrzymywanych do terminu zapadalności | Korekty aktualizujące wartość",null,"BPBII3b - PASYWA | Zobowiązania i rezerwy na zobowiązania | Zobowiązania długoterminowe | Wobec pozostałych jednostek | Z tytułu emisji dłużnych papierów wartościowych"]
[null,"R3MVIII - WYNIKOWE | Techniczny rachunek ubezpieczeń majątkowych i osobowych | Pozostałe koszty techniczne na udziale własnym",null,null,"RDM_VII3 - RZIS | Przychody z instrumentów finansowych utrzymywanych do terminu zapadalności | Odpis dyskonta od dłużnych papierów wartościowych",null,"BPBII3c - PASYWA | Zobowiązania i rezerwy na zobowiązania | Zobowiązania długoterminowe | Wobec pozostałych jednostek | Inne zobowiązania finansowe"]
[null,"R3MIX - WYNIKOWE | Techniczny rachunek ubezpieczeń majątkowych i osobowych | Zmiany stanu rezerw na wyrównanie szkodowości (ryzyka)",null,null,"RDM_VII4 - RZIS | Przychody z instrumentów finansowych utrzymywanych do terminu zapadalności | Przychody ze sprzedaży / z umorzenia",null,"BPBII3d - PASYWA | Zobowiązania i rezerwy na zobowiązania | Zobowiązania długoterminowe | Wobec pozostałych jednostek | Zobowiązania wekslowe"]
[null,"R3ZI1 - WYNIKOWE | Techniczny rachunek ubezpieczeń na życie | Składki | Składki przypisane brutto",null,null,"RDM_VII5 - RZIS | Przychody z instrumentów finansowych utrzymywanych do terminu zapadalności | Pozostałe",null,"BPBII3e - PASYWA | Zobowiązania i rezerwy na zobowiązania | Zobowiązania długoterminowe | Wobec pozostałych jednostek | Inne"]
[null,"R3ZI2 - WYNIKOWE | Techniczny rachunek ubezpieczeń na życie | Składki | Udział reasekuratorów w składce przypisanej brutto",null,null,"RDM_VIII1 - RZIS | Koszty z tytułu instrumentów finansowych utrzymywanych do terminu zapadalności | Korekty aktualizujące wartość",null,"BPBIII1a_D12 - PASYWA | Zobowiązania i rezerwy na zobowiązania | Zobowiązania krótkoterminowe | Wobec jednostek powiązanych | Z tytułu dostaw i usług | O okresie wymagalności do 12 miesięcy"]
[null,"R3ZI3 - WYNIKOWE | Techniczny rachunek ubezpieczeń na życie | Składki | Zmiana stanu rezerw składek i na ryzyko niewygasłe brutto",null,null,"RDM_VIII2 - RZIS | Koszty z tytułu instrumentów finansowych utrzymywanych do terminu zapadalności | Amortyzacja premii od dłużnych papierów wartościowych",null,"BPBIII1a_P12 - PASYWA | Zobowiązania i rezerwy na zobowiązania | Zobowiązania krótkoterminowe | Wobec jednostek powiązanych | Z tytułu dostaw i usług | O okresie wymagalności powyżej 12 miesięcy"]
[null,"R3ZI4 - WYNIKOWE | Techniczny rachunek ubezpieczeń na życie | Składki | Udział reasekuratorów w zmianie stanu rezerw składek",null,null,"RDM_VIII3 - RZIS | Koszty z tytułu instrumentów finansowych utrzymywanych do terminu zapadalności | Koszty sprzedaży/umorzenia",null,"BPBIII1b - PASYWA | Zobowiązania i rezerwy na zobowiązania | Zobowiązania krótkoterminowe | Wobec jednostek powiązanych | Inne"]
[null,"R3ZII1 - WYNIKOWE | Techniczny rachunek ubezpieczeń na życie | Przychody z lokat | Przychody z lokat w nieruchomości",null,null,"RDM_VIII4 - RZIS | Koszty z tytułu instrumentów finansowych utrzymywanych do terminu zapadalności | Pozostałe",null,"BPBIII2a_D12 - PASYWA | Zobowiązania i rezerwy na zobowiązania | Zobowiązania krótkoterminowe | Wobec pozostałych jednostek, w których jednostka posiada zaangażowanie w kapitale | Z tytułu dostaw i usług | O okresie wymagalności do 12 miesięcy"]
[null,"R3ZII22_1 - WYNIKOWE | Techniczny rachunek ubezpieczeń na życie | Przychody z lokat | Przychody z lokat w jednostkach podporządkowanych | Z udziałów lub akcji",null,null,"RDM_X1_pow - RZIS | Przychody z instrumentów finansowych dostępnych do sprzedaży | Dywidendy i inne udziały w zyskach | Od jednostek powiązanych",null,"BPBIII2a_P12 - PASYWA | Zobowiązania i rezerwy na zobowiązania | Zobowiązania krótkoterminowe | Wobec pozostałych jednostek, w których jednostka posiada zaangażowanie w kapitale | Z tytułu dostaw i usług | O okresie wymagalności powyżej 12 miesięcy"]
[null,"R3ZII22_2 - WYNIKOWE | Techniczny rachunek ubezpieczeń na życie | Przychody z lokat | Przychody z lokat w jednostkach podporządkowanych | Z pożyczek i dłużnych papierów wartościowych",null,null,"RDM_X1_poz - RZIS | Przychody z instrumentów finansowych dostępnych do sprzedaży | Dywidendy i inne udziały w zyskach | Od jednostek pozostałych",null,"BPBIII2b - PASYWA | Zobowiązania i rezerwy na zobowiązania | Zobowiązania krótkoterminowe | Wobec pozostałych jednostek, w których jednostka posiada zaangażowanie w kapitale | Inne"]
[null,"R3ZII22_3 - WYNIKOWE | Techniczny rachunek ubezpieczeń na życie | Przychody z lokat | Przychody z lokat w jednostkach podporządkowanych | Z pozostałych lokat",null,null,"RDM_X2_pow - RZIS | Przychody z instrumentów finansowych dostępnych do sprzedaży | Odsetki | Od jednostek powiązanych",null,"BPBIII3a - PASYWA | Zobowiązania i rezerwy na zobowiązania | Zobowiązania krótkoterminowe | Wobec pozostałych jednostek | Kredyty i pożyczki"]
[null,"R3ZII33_1 - WYNIKOWE | Techniczny rachunek ubezpieczeń na życie | Przychody z lokat | Przychody z innych lokat finansowych | Z udziałów, akcji, innych papierów wartościowych o zmiennej kwocie dochodu oraz jednostek uczestnictwa i certyfikatów inwestycyjnych w funduszach inwestycyjnych",null,null,"RDM_X2_poz - RZIS | Przychody z instrumentów finansowych dostępnych do sprzedaży | Odsetki | Od jednostek pozostałych",null,"BPBIII3b - PASYWA | Zobowiązania i rezerwy na zobowiązania | Zobowiązania krótkoterminowe | Wobec pozostałych jednostek | Z tytułu emisji dłużnych papierów wartościowych"]
[null,"R3ZII33_2 - WYNIKOWE | Techniczny rachunek ubezpieczeń na życie | Przychody z lokat | Przychody z innych lokat finansowych | Z dłużnych papierów wartościowych oraz innych papierów wartościowych o stałej kwocie dochodu",null,null,"RDM_X3 - RZIS | Przychody z instrumentów finansowych dostępnych do sprzedaży | Korekty aktualizujące wartość",null,"BPBIII3c - PASYWA | Zobowiązania i rezerwy na zobowiązania | Zobowiązania krótkoterminowe | Wobec pozostałych jednostek | Inne zobowiązania finansowe"]
[null,"R3ZII33_3 - WYNIKOWE | Techniczny rachunek ubezpieczeń na życie | Przychody z lokat | Przychody z innych lokat finansowych | Z lokat terminowych w instytucjach kredytowych",null,null,"RDM_X4 - RZIS | Przychody z instrumentów finansowych dostępnych do sprzedaży | Przychody ze sprzedaży / z umorzenia",null,"BPBIII3d_D12 - PASYWA | Zobowiązania i rezerwy na zobowiązania | Zobowiązania krótkoterminowe | Wobec pozostałych jednostek | Z tytułu dostaw i usług | O okresie wymagalności do 12 miesięcy"]
[null,"R3ZII33_4 - WYNIKOWE | Techniczny rachunek ubezpieczeń na życie | Przychody z lokat | Przychody z innych lokat finansowych | Z pozostałych lokat",null,null,"RDM_X5 - RZIS | Przychody z instrumentów finansowych dostępnych do sprzedaży | Odpis dyskonta od dłużnych papierów wartościowych",null,"BPBIII3d_P12 - PASYWA | Zobowiązania i rezerwy na zobowiązania | Zobowiązania krótkoterminowe | Wobec pozostałych jednostek | Z tytułu dostaw i usług | O okresie wymagalności powyżej 12 miesięcy"]
[null,"R3ZII4 - WYNIKOWE | Techniczny rachunek ubezpieczeń na życie | Przychody z lokat | Wynik dodatni z rewaloryzacji lokat | Przychody z rewaloryzacji lokat",null,null,"RDM_X6 - RZIS | Przychody z instrumentów finansowych dostępnych do sprzedaży | Pozostałe",null,"BPBIII3e - PASYWA | Zobowiązania i rezerwy na zobowiązania | Zobowiązania krótkoterminowe | Wobec pozostałych jednostek | Zaliczki otrzymane na dostawy i usługi"]
[null,"R3ZII5 - WYNIKOWE | Techniczny rachunek ubezpieczeń na życie | Przychody z lokat | Wynik dodatni z realizacji lokat | Przychody z realizacji lokat",null,null,"RDM_XI1 - RZIS | Koszty z tytułu instrumentów finansowych dostępnych do sprzedaży | Korekty aktualizujące wartość",null,"BPBIII3f - PASYWA | Zobowiązania i rezerwy na zobowiązania | Zobowiązania krótkoterminowe | Wobec pozostałych jednostek | Zobowiązania wekslowe"]
[null,"R3ZIII - WYNIKOWE | Techniczny rachunek ubezpieczeń na życie | Niezrealizowane zyski z lokat",null,null,"RDM_XI2 - RZIS | Koszty z tytułu instrumentów finansowych dostępnych do sprzedaży | Koszty sprzedaży/umorzenia",null,"BPBIII3g - PASYWA | Zobowiązania i rezerwy na zobowiązania | Zobowiązania krótkoterminowe | Wobec pozostałych jednostek | Z tytułu podatków, ceł, ubezpieczeń i innych świadczeń"]
[null,"R3ZIV - WYNIKOWE | Techniczny rachunek ubezpieczeń na życie | Pozostałe przychody techniczne na udziale własnym",null,null,"RDM_XI3 - RZIS | Koszty z tytułu instrumentów finansowych dostępnych do sprzedaży | Amortyzacja premii od dłużnych papierów wartościowych",null,"BPBIII3h - PASYWA | Zobowiązania i rezerwy na zobowiązania | Zobowiązania krótkoterminowe | Wobec pozostałych jednostek | Z tytułu wynagrodzeń"]
[null,"R3ZV - WYNIKOWE | Techniczny rachunek ubezpieczeń na życie | Odszkodowania i świadczenia",null,null,"RDM_XI4 - RZIS | Koszty z tytułu instrumentów finansowych dostępnych do sprzedaży | Pozostałe",null,"BPBIII3i - PASYWA | Zobowiązania i rezerwy na zobowiązania | Zobowiązania krótkoterminowe | Wobec pozostałych jednostek | Inne"]
[null,"R3ZV11_1 - WYNIKOWE | Techniczny rachunek ubezpieczeń na życie | Odszkodowania i świadczenia | Odszkodowania i świadczenia wypłacone na udziale własnym | Odszkodowania i świadczenia wypłacone brutto",null,null,"RDM_XIII1 - RZIS | Pozostałe przychody operacyjne | Przychody ze sprzedaży rzeczowych składników aktywów trwałych i wartości niematerialnych i prawnych",null,"BPBIII4 - PASYWA | Zobowiązania i rezerwy na zobowiązania | Zobowiązania krótkoterminowe | Fundusze specjalne"]
[null,"R3ZV11_2 - WYNIKOWE | Techniczny rachunek ubezpieczeń na życie | Odszkodowania i świadczenia | Odszkodowania i świadczenia wypłacone na udziale własnym | Udział reasekuratorów w odszkodowaniach i świadczeniach wypłaconych",null,null,"RDM_XIII2 - RZIS | Pozostałe przychody operacyjne | Rozwiązanie rezerw",null,"BPBIV1 - PASYWA | Zobowiązania i rezerwy na zobowiązania | Rozliczenia międzyokresowe | Ujemna wartość firmy"]
[null,"R3ZV22_1 - WYNIKOWE | Techniczny rachunek ubezpieczeń na życie | Odszkodowania i świadczenia | Zmiana stanu rezerw na niewypłacone odszkodowania i świadczenia na udziale własnym | Rezerwy brutto",null,null,"RDM_XIII3 - RZIS | Pozostałe przychody operacyjne | Zmniejszenie odpisów aktualizujących należności",null,"BPBIV2_D - PASYWA | Zobowiązania i rezerwy na zobowiązania | Rozliczenia międzyokresowe | Inne rozliczenia międzyokresowe | Długoterminowe"]
[null,"R3ZV22_2 - WYNIKOWE | Techniczny rachunek ubezpieczeń na życie | Odszkodowania i świadczenia | Zmiana stanu rezerw na niewypłacone odszkodowania i świadczenia na udziale własnym | Udział reasekuratorów",null,null,"RDM_XIII4 - RZIS | Pozostałe przychody operacyjne | Dotacje",null,"BPBIV2_K - PASYWA | Zobowiązania i rezerwy na zobowiązania | Rozliczenia międzyokresowe | Inne rozliczenia międzyokresowe | Krótkoterminowe"]
[null,"R3ZVI11_1 - WYNIKOWE | Techniczny rachunek ubezpieczeń na życie | Zmiany stanu innych rezerw techniczno-ubezpieczeniowych na udziale własnym | Zmiana stanu rezerw w ubezpieczeniach na życie na udziale własnym | Rezerwy brutto",null,null,"RDM_XIII5 - RZIS | Pozostałe przychody operacyjne | Pozostałe",null,"RPAI_RKAI_POW - WYNIKOWE | Przychody netto ze sprzedaży i zrównane z nimi / przychody netto ze sprzedaży produktów, towarów i materiałów | Przychody netto ze sprzedaży produktów | Od jednostek powiązanych"]
[null,"R3ZVI11_2 - WYNIKOWE | Techniczny rachunek ubezpieczeń na życie | Zmiany stanu innych rezerw techniczno-ubezpieczeniowych na udziale własnym | Zmiana stanu rezerw w ubezpieczeniach na życie na udziale własnym | Na udziale reasekuratorów",null,null,"RDM_XIV1 - RZIS | Pozostałe koszty operacyjne | Koszty sprzedaży rzeczowych składników aktywów trwałych i wartości niematerialnych i prawnych",null,"RPAI_RKAI_POZ - WYNIKOWE | Przychody netto ze sprzedaży i zrównane z nimi / przychody netto ze sprzedaży produktów, towarów i materiałów | Przychody netto ze sprzedaży produktów | Od pozostałych jednostek"]
[null,"R3ZVI22_1 - WYNIKOWE | Techniczny rachunek ubezpieczeń na życie | Zmiany stanu innych rezerw techniczno-ubezpieczeniowych na udziale własnym | Zmiana stanu rezerw techniczno-ubezpieczeniowych na udziale własnym dla ubezpieczeń na życie, jeżeli ryzyko lokaty ponosi ubezpieczający | Rezerwy brutto",null,null,"RDM_XIV2 - RZIS | Pozostałe koszty operacyjne | Utworzenie rezerw",null,"RPAII - WYNIKOWE | Przychody netto ze sprzedaży i zrównane z nimi | Zmiana stanu produktów"]
[null,"R3ZVI22_2 - WYNIKOWE | Techniczny rachunek ubezpieczeń na życie | Zmiany stanu innych rezerw techniczno-ubezpieczeniowych na udziale własnym | Zmiana stanu rezerw techniczno-ubezpieczeniowych na udziale własnym dla ubezpieczeń na życie, jeżeli ryzyko lokaty ponosi ubezpieczający | Na udziale reasekuratorów",null,null,"RDM_XIV3 - RZIS | Pozostałe koszty operacyjne | Odpisy aktualizujące należności",null,"RPAIII - WYNIKOWE | Przychody netto ze sprzedaży i zrównane z nimi | Koszt wytworzenia produktów na własne potrzeby"]
[null,"R3ZVI33_1 - WYNIKOWE | Techniczny rachunek ubezpieczeń na życie | Zmiany stanu innych rezerw techniczno-ubezpieczeniowych na udziale własnym | Zmiana stanu pozostałych rezerw techniczno-ubezpieczeniowych przewidzianych w statucie na udziale własnym | Rezerw brutto",null,null,"RDM_XIV4 - RZIS | Pozostałe koszty operacyjne | Odpisy aktualizujące wartość rzeczowych składników aktywów trwałych i wartości niematerialnych i prawnych",null,"RPAIV_RKAII_POW - WYNIKOWE | Przychody netto ze sprzedaży i zrównane z nimi / przychody netto ze sprzedaży produktów, towarów i materiałów | Przychody netto ze sprzedaży towarów i materiałów | Od jednostek powiązanych"]
[null,"R3ZVI33_2 - WYNIKOWE | Techniczny rachunek ubezpieczeń na życie | Zmiany stanu innych rezerw techniczno-ubezpieczeniowych na udziale własnym | Zmiana stanu pozostałych rezerw techniczno-ubezpieczeniowych przewidzianych w statucie na udziale własnym | Na udziale reasekuratorów",null,null,"RDM_XIV5 - RZIS | Pozostałe koszty operacyjne | Pozostałe",null,"RPAIV_RKAII_POZ - WYNIKOWE | Przychody netto ze sprzedaży i zrównane z nimi / przychody netto ze sprzedaży produktów, towarów i materiałów | Przychody netto ze sprzedaży towarów i materiałów | Od pozostałych jednostek"]
[null,"R3ZVII - WYNIKOWE | Techniczny rachunek ubezpieczeń na życie | Premie i rabaty łącznie ze zmianą stanu rezerw na udziale własnym",null,null,"RDM_XVII1_pow - RZIS | Przychody finansowe | Odsetki od udzielonych pożyczek | Od jednostek powiązanych",null,"RPBI - WYNIKOWE | Koszty działalności operacyjnej | Amortyzacja"]
[null,"R3ZVIII11_1 - WYNIKOWE | Techniczny rachunek ubezpieczeń na życie | Koszty działalności ubezpieczeniowej | Koszty akwizycji | Zmiana stanu aktywowanych kosztów akwizycji",null,null,"RDM_XVII1_poz - RZIS | Przychody finansowe | Odsetki od udzielonych pożyczek | Od jednostek pozostałych",null,"RPBII - WYNIKOWE | Koszty działalności operacyjnej | Zużycie materiałów i energii"]
[null,"R3ZVIII11_2 - WYNIKOWE | Techniczny rachunek ubezpieczeń na życie | Koszty działalności ubezpieczeniowej | Koszty akwizycji | Koszty akwizycji poniesione w okresie sprawozdawczym",null,null,"RDM_XVII2_pow - RZIS | Przychody finansowe | Odsetki od lokat i depozytów | Od jednostek powiązanych",null,"RPBIII - WYNIKOWE | Koszty działalności operacyjnej | Usługi obce"]
[null,"R3ZVIII2 - WYNIKOWE | Techniczny rachunek ubezpieczeń na życie | Koszty działalności ubezpieczeniowej | Koszty administracyjne",null,null,"RDM_XVII2_poz - RZIS | Przychody finansowe | Odsetki od lokat i depozytów | Od jednostek pozostałych",null,"RPBIV_AKC - WYNIKOWE | Koszty działalności operacyjnej | Podatki i opłaty | Podatek akcyzowy"]
[null,"R3ZVIII3 - WYNIKOWE | Techniczny rachunek ubezpieczeń na życie | Koszty działalności ubezpieczeniowej | Prowizje reasekuracyjne i udziały w zyskach",null,null,"RDM_XVII3 - RZIS | Przychody finansowe | Pozostałe odsetki",null,"RPBIV_POZ - WYNIKOWE | Koszty działalności operacyjnej | Podatki i opłaty | Pozostałe podatki i opłaty"]
[null,"R3ZIX1 - WYNIKOWE | Techniczny rachunek ubezpieczeń na życie | Koszty działalności lokacyjnej | Koszty utrzymania nieruchomości",null,null,"RDM_XVII4A - RZIS | Przychody finansowe | Dodatnie różnice kursowe | Zrealizowane",null,"RPBV - WYNIKOWE | Koszty działalności operacyjnej | Wynagrodzenia"]
[null,"R3ZIX2 - WYNIKOWE | Techniczny rachunek ubezpieczeń na życie | Koszty działalności lokacyjnej | Pozostałe koszty działalności lokacyjnej",null,null,"RDM_XVII4B - RZIS | Przychody finansowe | Dodatnie różnice kursowe | Niezrealizowane",null,"RPBVI - WYNIKOWE | Koszty działalności operacyjnej | Ubezpieczenia społeczne i inne świadczenia"]
[null,"R3ZIX3 - WYNIKOWE | Techniczny rachunek ubezpieczeń na życie | Koszty działalności lokacyjnej | Wynik ujemny z rewaloryzacji lokat | Koszt własny z rewaloryzacji lokat",null,null,"RDM_XVII5 - RZIS | Przychody finansowe | Pozostałe",null,"RPBVI_E - WYNIKOWE | Koszty działalności operacyjnej | Ubezpieczenia społeczne i inne świadczenia | Emerytalne"]
[null,"R3ZIX4 - WYNIKOWE | Techniczny rachunek ubezpieczeń na życie | Koszty działalności lokacyjnej | Wynik ujemny z realizacji lokat | Koszt własny z realizacji lokat",null,null,"RDM_XVIII1_pow - RZIS | Koszty finansowe | Odsetki od kredytów i pożyczek | Dla jednostek powiązanych",null,"RPBVII - WYNIKOWE | Koszty działalności operacyjnej | Pozostałe koszty rodzajowe"]
[null,"R3ZX - WYNIKOWE | Techniczny rachunek ubezpieczeń na życie | Niezrealizowane straty na lokatach",null,null,"RDM_XVIII1_poz - RZIS | Koszty finansowe | Odsetki od kredytów i pożyczek | Dla jednostek pozostałych",null,"RPBVIII_RKBII_POW - WYNIKOWE | Koszty działalności operacyjnej / koszty sprzedanych produktów, towarów i materiałów | Wartość sprzedanych towarów i materiałów | Dla jednostek powiązanych"]
[null,"R3ZXI - WYNIKOWE | Techniczny rachunek ubezpieczeń na życie | Pozostałe koszty techniczne na udziale własnym",null,null,"RDM_XVIII2 - RZIS | Koszty finansowe | Pozostałe odsetki",null,"RPBVIII_RKBII_POZ - WYNIKOWE | Koszty działalności operacyjnej / koszty sprzedanych produktów, towarów i materiałów | Wartość sprzedanych towarów i materiałów | Dla pozostałych jednostek"]
[null,"R3ZXII - WYNIKOWE | Techniczny rachunek ubezpieczeń na życie | Przychody z lokat netto po uwzględnieniu kosztów, przeniesione do ogólnego rachunku zysków i strat",null,null,"RDM_XVIII3A - RZIS | Koszty finansowe | Ujemne różnice kursowe | Zrealizowane",null,"RKBI_POW - WYNIKOWE | Koszty sprzedanych produktów, towarów i materiałów | Koszt wytworzenia sprzedanych produktów | Jednostkom powiązanym"]
[null,"INNE - Inne, niewskazane w słowniku",null,null,"RDM_XVIII3B - RZIS | Koszty finansowe | Ujemne różnice kursowe | Niezrealizowane",null,"RKBI_POZ - WYNIKOWE | Koszty sprzedanych produktów, towarów i materiałów | Koszt wytworzenia sprzedanych produktów | Pozostałym jednostkom"]
[null,null,null,null,"RDM_XVIII4 - RZIS | Koszty finansowe | Pozostałe",null,"RKD - WYNIKOWE | Koszty sprzedaży"]
[null,null,null,null,"RDM_PD - RZIS | Podatek dochodowy",null,"RKE - WYNIKOWE | Koszty ogólnego zarządu"]
[null,null,null,null,"RDM_XXIV - RZIS | Pozostałe obowiązkowe zmniejszenia zysku (zwiększenia straty)",null,"RPDI_RKGI_POW - WYNIKOWE | Pozostałe przychody operacyjne | Przychody ze zbycia niefinansowych aktywów trwałych | Od jednostek powiązanych"]
[null,null,null,null,"INNE - Inne, niewskazane w słowniku",null,"RPDI_RKGI_POZ - WYNIKOWE | Pozostałe przychody operacyjne | Przychody ze zbycia niefinansowych aktywów trwałych | Od pozostałych jednostek"]
[null,null,null,null,null,null,"RPDII_RKGII - WYNIKOWE | Pozostałe przychody operacyjne | Dotacje"]
[null,null,null,null,null,null,"RPDIII_RKGIII - WYNIKOWE | Pozostałe przychody operacyjne | Aktualizacja wartości aktywów niefinansowych"]
[null,null,null,null,null,null,"RPDIV_RKGIV - WYNIKOWE | Pozostałe przychody operacyjne | Inne pozostałe przychody operacyjne"]
[null,null,null,null,null,null,"RPDIV_RKGIV_ZCP - WYNIKOWE | Pozostałe przychody operacyjne | Inne pozostałe przychody operacyjne | Ze zbycia zorganizowanej części przedsiębiorstwa"]
[null,null,null,null,null,null,"RPDIV_RKGIV_WF - WYNIKOWE | Pozostałe przychody operacyjne | Inne pozostałe przychody operacyjne | Odpis ujemnej wartości firmy"]
[null,null,null,null,null,null,"RPDIV_RKGIV_P - WYNIKOWE | Pozostałe przychody operacyjne | Inne pozostałe przychody operacyjne | Pozostałe"]
[null,null,null,null,null,null,"RPEI_RKHI_POW - WYNIKOWE | Pozostałe koszty operacyjne | Koszty zbycia niefinansowych aktywów trwałych | Dla jednostek powiązanych"]
[null,null,null,null,null,null,"RPEI_RKHI_POZ - WYNIKOWE | Pozostałe koszty operacyjne | Koszty zbycia niefinansowych aktywów trwałych | Dla pozostałych jednostek"]
[null,null,null,null,null,null,"RPEII_RKHII - WYNIKOWE | Pozostałe koszty operacyjne | Aktualizacja wartości aktywów niefinansowych"]
[null,null,null,null,null,null,"RPEIII_RKHIII - WYNIKOWE | Pozostałe koszty operacyjne | Inne"]
[null,null,null,null,null,null,"RPEIII_RKHIII_ZCP - WYNIKOWE | Pozostałe koszty operacyjne | Inne | Koszty zbycia zorganizowanej części przedsiębiorstwa"]
[null,null,null,null,null,null,"RPEIII_RKHIII_WF - WYNIKOWE | Pozostałe koszty operacyjne | Inne | Odpis wartości firmy"]
[null,null,null,null,null,null,"RPEIII_RKHIII_P - WYNIKOWE | Pozostałe koszty operacyjne | Inne | Pozostałe"]
[null,null,null,null,null,null,"RPGIa_RKJIa_POW_k - WYNIKOWE | Przychody finansowe | Dywidendy i udziały w zyskach | Od jednostek powiązanych | W których jednostka posiada zaangażowanie w kapitale"]
[null,null,null,null,null,null,"RPGIa_RKJIa_POW_p - WYNIKOWE | Przychody finansowe | Dywidendy i udziały w zyskach | Od jednostek powiązanych | W innych jednostkach powiązanych"]
[null,null,null,null,null,null,"RPGIb_RKJIb_POZ_k - WYNIKOWE | Przychody finansowe | Dywidendy i udziały w zyskach | Od pozostałych jednostek | W których jednostka posiada zaangażowanie w kapitale"]
[null,null,null,null,null,null,"RPGIb_RKJIb_POZ_p - WYNIKOWE | Przychody finansowe | Dywidendy i udziały w zyskach | Od pozostałych jednostek | W innych pozostałych jednostkach"]
[null,null,null,null,null,null,"RPGII_RKJII_POW - WYNIKOWE | Przychody finansowe | Odsetki | Od jednostek powiązanych"]
[null,null,null,null,null,null,"RPGII_RKJII_POZ - WYNIKOWE | Przychody finansowe | Odsetki | Od pozostałych jednostek"]
[null,null,null,null,null,null,"RPGIII_RKJIII_POW - WYNIKOWE | Przychody finansowe | Przychód z tytułu rozchodu aktywów finansowych | W jednostkach powiązanych"]
[null,null,null,null,null,null,"RPGIII_RKJIII_POZ - WYNIKOWE | Przychody finansowe | Przychód z tytułu rozchodu aktywów finansowych | W pozostałych jednostkach"]
[null,null,null,null,null,null,"RPGIV_RKJIV - WYNIKOWE | Przychody finansowe | Aktualizacja wartości aktywów finansowych"]
[null,null,null,null,null,null,"RPGV_RKJV_RK - WYNIKOWE | Przychody finansowe | Inne | Przychody z tytułu dodatnich różnic kursowych"]
[null,null,null,null,null,null,"RPGV_RKJV_POZ - WYNIKOWE | Przychody finansowe | Inne | Pozostałe"]
[null,null,null,null,null,null,"RPHI_RKKI_POW - WYNIKOWE | Koszty finansowe | Odsetki | Dla jednostek powiązanych"]
[null,null,null,null,null,null,"RPHI_RKKI_POZ - WYNIKOWE | Koszty finansowe | Odsetki | Dla pozostałych jednostek"]
[null,null,null,null,null,null,"RPHII_RKKII_POW - WYNIKOWE | Koszty finansowe | Koszty z tytułu rozchodu aktywów finansowych | W jednostkach powiązanych"]
[null,null,null,null,null,null,"RPHII_RKKII_POZ - WYNIKOWE | Koszty finansowe | Koszty z tytułu rozchodu aktywów finansowych | W pozostałych jednostkach"]
[null,null,null,null,null,null,"RPHIII_RKKIII - WYNIKOWE | Koszty finansowe | Aktualizacja wartości aktywów finansowych"]
[null,null,null,null,null,null,"RPHIV_RKKIV_RK - WYNIKOWE | Koszty finansowe | Inne | Koszty z tytułu ujemnych różnic kursowych"]
[null,null,null,null,null,null,"RPHIV_RKKIV_POZ - WYNIKOWE | Koszty finansowe | Inne | Pozostałe"]
[null,null,null,null,null,null,"RPJ_RKM_B - WYNIKOWE | Podatek dochodowy | Bieżący"]
[null,null,null,null,null,null,"RPJ_RKM_O - WYNIKOWE | Podatek dochodowy | Odroczony"]
[null,null,null,null,null,null,"RPK_RKN - WYNIKOWE | Pozostałe obowiązkowe zmniejszenia zysku (zwiększenia straty)"]
[null,null,null,null,null,null,"INNE - Inne, niewskazane w słowniku"]

{"sheet":"G","index":8,"n_rows":2478,"n_cols":26,"rows_kept":2478,"cut":false,"hidden":true,"merged":[]}
["kod","symb","nazwa","Nr","Powiat","kod","DOLNOŚLĄSKIE","02","URZĄD SKARBOWY W ALEKSANDROWIE KUJAWSKIM","0402","URZĄD SKARBOWY W ALEKSANDROWIE KUJAWSKIM","POLSKA","PL","POLSKA","PLN","ZŁOTY","1 banki","2 ubezpieczyciele i zakłady reasekuracji","3 organizacje pożytku publicznego i wolontariatu","4 fundusze inwestycyjne","5 domy maklerskie","6 SKOK","7 jednostki pozostałe","Konta PD","Waluta","Kodykraju"]
["0201","BOLESŁAWIEC-MIEJSKA","0201011","02","BOLESŁAWIECKI","0201","KUJAWSKO-POMORSKIE","04","URZĄD SKARBOWY W AUGUSTOWIE","2002","URZĄD SKARBOWY W AUGUSTOWIE","AFGANISTAN","AF","AFGANISTAN","AED","DIRHAM ZEA","B2AI1 B2AI2 B2AI3 B2AI_A B2AII_W B2AII_A B2AIII1_W B2AIII1_rc B2AIII1_A B2AIII2_W B2AIII2_rc B2AIII2_A B2AIV1_W B2AIV1_rc B2AIV1_A B2AIV2_W B2AIV2_rc B2AIV2_A B2AV1_W B2AV1_rc B2AV1_A B2AV2_W B2AV2_rc B2AV2_A B2AVI_W B2AVI_A B2AVII1 B2AVII1_A B2AVII2 B2AVII2_A B2AVII3_W B2AVII3_A B2AVIII1_W B2AVIII1_A B2AVIII2_W B2AVIII2_A B2AIX1_W B2AIX1_A B2AIX2_W B2AIX2_A B2AX1_W B2AX1_A B2AX2_W B2AX2_A B2AXI1_W B2AXI1_A B2AXI2_W B2AXI2_A B2AXII_W B2AXII_A B2AXIII1_WF B2AXIII1_WF_A B2AXIII1_WF_U B2AXIII2_inne_W B2AXIII1_inne_A B2AXIII1_inne_U B2AXIV_W B2AXIV_U B2AXIV_A B2AXV1_W B2AXV1_A B2AXV2_W B2AXV2_A B2AXVI1_W B2AXVI1_A B2AXVI2_W B2AXVI2_A B2AXVII B2AXVIII B2PI1 B2PII1 B2PII2 B2PIII1a B2PIII1b B2PIII2a B2PIII2b B2PIV1 B2PIV2 B2PV B2PVI B2PVII B2PVIII B2PIX1 B2PIX2 B2PIX3 B2PX1 B2PX2 B2PXI B2PXII B2PXIII B2PXIV B2PXV1 B2PXV2 B2PXVI B2PXVII B2PXVIII R2I1 R2I2 R2I3 R2I4 R2II1 R2II2 R2II3 R2IV R2V R2VII1 R2VII2 R2VII3 R2VII4 R2VIII1_P R2VIII1_K R2VIII2_P R2VIII2_K R2IX_P R2IX_K R2XI R2XII R2XIII1 R2XIII2 R2XIII3 R2XIV R2XV1 R2XV2 R2XVI1 R2XVI2 R2XIX1 R2XIX2 R2XXI_B R2XXI_O R2XXII INNE","B3AA1_W B3AA1_A B3AA1_U B3AA2_W B3AA2_A B3AA2_U B3ABI1_W B3ABI1_A B3ABI2_W B3ABI2_A B3ABI2_U B3ABI3_W B3ABI3_A B3ABI3_U B3ABII1_W B3ABII1_A B3ABII2_W B3ABII2_A B3ABII3_W B3ABII3_A B3ABIII1_W B3ABIII1_A B3ABIII2_W B3ABIII2_A B3ABIII3_W B3ABIII3_A B3ABIII4_W B3ABIII4_A B3ABIII5_W B3ABIII5_A B3ABIII6_W B3ABIII6_A B3ABIII7_W B3ABIII7_A B3ABIV_W B3ABIV_A B3AC B3AC_K B3ADI11_1_W B3ADI11_1_A B3ADI11_2_W B3ADI11_2_A B3ADI22_1_W B3ADI22_1_A B3ADI22_2_W B3ADI22_2_A B3ADI33_1_W B3ADI33_1_A B3ADI33_2_W B3ADI33_2_A B3ADII1_W B3ADII1_A B3ADII2_W B3ADII2_A B3ADIII1 B3ADIII22_1_W B3ADIII22_1_A B3ADIII22_2_W B3ADIII22_2_A B3AEI_W B3AEI_U B3AEI_A B3AEII B3AEIII_W B3AEIII_A B3AFI_W B3AFI_A B3AFII_W B3AFII_A B3AFIII_W B3AFIII_A B3AFIV_W B3AFIV_A B3AG B3AH B3PAI B3PAII B3PAIII B3PAIV B3PAV B3PAVI B3PAVII B3PB B3PCI B3PCII B3PCIII B3PCIV B3PCV B3PCVI B3PCVII B3PCVIII B3PDI B3PDII B3PDIII B3PDIV B3PDV B3PDVI B3PE1 B3PE2 B3PFI B3PFII B3PFIII B3PG B3PHI11_1 B3PHI11_2 B3PHI22_1 B3PHI22_2 B3PHI33_1 B3PHI33_2 B3PHII1 B3PHII2 B3PHIII1 B3PHIII2 B3PHIV B3PHV1 B3PHV22_1 B3PHV22_2 B3PHVI B3PI1 B3PI2 B3PI3 R3OII1 R3OII22_1 R3OII22_2 R3OII22_3 R3OII33_1 R3OII33_2 R3OII33_3 R3OII33_4 R3OII_4 R3OII_5 R3OIII R3OIV_1 R3OIV_2 R3OV1 R3OV2 R3OV3 R3OV4 R3OVI R3OVIII R3OIX R3OXI R3OXII R3OXIV R3OXV R3MI1 R3MI2 R3MI3 R3MI4 R3MII1 R3MII2 R3MIII R3MIV11_1 R3MIV11_2 R3MIV22_1 R3MIV22_2 R3MV1 R3MV2 R3MVI R3MVII11_1 R3MVII11_2 R3MVII2 R3MVII3 R3MVIII R3MIX R3ZI1 R3ZI2 R3ZI3 R3ZI4 R3ZII1 R3ZII22_1 R3ZII22_2 R3ZII22_3 R3ZII33_1 R3ZII33_2 R3ZII33_3 R3ZII33_4 R3ZII4 R3ZII5 R3ZIII R3ZIV R3ZV R3ZV11_1 R3ZV11_2 R3ZV22_1 R3ZV22_2 R3ZVI11_1 R3ZVI11_2 R3ZVI22_1 R3ZVI22_2 R3ZVI33_1 R3ZVI33_2 R3ZVII R3ZVIII11_1 R3ZVIII11_2 R3ZVIII2 R3ZVIII3 R3ZIX1 R3ZIX2 R3ZIX3 R3ZIX4 R3ZX R3ZXI R3ZXII INNE","B6AAI1_W B6AAI1_A B6AAI1_U B6AAII1a_W B6AAII1a_A B6AAII1b_W B6AAII1b_A B6AAII1b_U B6AAII1c_W B6AAII1c_A B6AAII1c_U B6AAII1d_W B6AAII1d_A B6AAII1d_U B6AAII1e_W B6AAII1e_A B6AAII1e_U B6AAII2_W B6AAII2_A B6AAII3_W B6AAII3_A B6AAIII_W B6AAIII_A B6AAIV1_W B6AAIV1_A B6AAIV1_U B6AAIV2_W B6AAIV2_A B6AAIV2_U B6AAIV3_uia_W B6AAIV3_uia_A B6AAIV3_ipw_W B6AAIV3_ipw_A B6AAIV3_up_W B6AAIV3_up_A B6AAIV3_inne_W B6AAIV3_inne_A B6AAIV4_W B6AAIV4_A B6AAV_W B6AAV_A B6ABI1_W B6ABI1_OCE B6ABI1_A B6ABI2_W B6ABI2_OCE B6ABI_A B6ABI3_W B6ABI3_A B6ABII_W B6ABII_A B6ABIII_uia_W B6ABIII_uia_A B6ABIII_ipw_W B6ABIII_ipw_A B6ABIII_up_W B6ABIII_up_A B6ABIII_inne_W B6ABIII_inne_A B6ABIV_W B6ABIV_A B6AC B6PAI B6PAII B6PAIII B6PAIV B6PBI B6PBII B6PBIII B6PBIV R6AI_darowizny_PRYW R6AI_darowizny_PUBL R6AI_dotacje R6AI_subwencje R6AI_ofiarnosc R6AI_poddoch R6AI_SZ R6AI_inne_PRYW R6AI_inne_PUBL R6AII_sprzedaz R6AII_inne R6AIII_skladki R6AIII_inne R6BI_poddoch R6BII_poddoch R6BIII R6DI R6EI R6G R6I R6II R6III R6IV R6JI R6JII R6JIII R6KI R6KII R6KIII R6KIV R6KVI_RK R6KVI_POZ R6LI R6LII R6LIII R6LV_RK R6LV_POZ R6N INNE","BFI_I1 BFI_I2 BFI_I3 BFI_I4 BFI_I5 BFI_I7 BFI_II BFI_IV1A BFI_IV1B BFI_IV2 BFI_V1 BFI_V2 BFI_VI RFI_I1 RFI_I2 RFI_I3 RFI_I4 RFI_I5 RFI_II1A RFI_II1B RFI_II2 RFI_II3 RFI_II4 RFI_II5 RFI_II6 RFI_II7 RFI_II8 RFI_II9 RFI_II10 RFI_II11 RFI_II12 RFI_II13 RFI_III RFI_VI1A RFI_VI1B RFI_VI2A RFI_VI2B RFI_PD INNE","BDMA_I1 BDMA_I2 BDMA_I3 BDMA_I4 BDMA_II1 BDMA_II2 BDMA_II3A BDMA_II3B BDMA_II4 BDMA_II5 BDMA_II5A BDMA_II6 BDMA_II7 BDMA_II8 BDMA_II9 BDMA_II10 BDMA_II11 BDMA_II12 BDMA_III1 BDMA_III2 BDMA_III3 BDMA_III4 BDMA_III5 BDMA_III6 BDMA_III7 BDMA_III8 BDMA_IV BDMA_IVA1 BDMA_IVA2 BDMA_IVA3 BDMA_IVA4 BDMA_IVA5 BDMA_V1 BDMA_V2 BDMA_V3 BDMA_V4 BDMA_VI1A BDMA_VI1B BDMA_VI1C BDMA_VI1D BDMA_VI1E BDMA_VI2 BDMA_VI3 BDMA_VI4 BDMA_VI5 BDMA_VI6 BDMA_VI7 BDMA_VII BDMA_VIII1 BDMA_VIII2 BDMA_VIII3 BDMA_VIII4 BDMA_VIII5 BDMA_IX1 BDMA_IX2A BDMA_IX2B BDMA_IX3 BDMA_IX4 BDMA_X1A BDMA_X1B BDMA_X1C BDMA_X1D BDMA_X2 BDMA_X3 BDMA_XI1 BDMA_XI2 BDMA_XII BDMA_XIII BDMP_I1 BDMP_I2 BDMP_I3A BDMP_I3B BDMP_I4 BDMP_I5 BDMP_I5A BDMP_I6 BDMP_I7 BDMP_I8A BDMP_I8B BDMP_I9 BDMP_I9A BDMP_I10 BDMP_I11 BDMP_I12 BDMP_I13 BDMP_I14 BDMP_I15 BDMP_I16 BDMP_II1A BDMP_II1B BDMP_II2A BDMP_II2B BDMP_II3 BDMP_II4 BDMP_II5A BDMP_II5B BDMP_II6 BDMP_III1 BDMP_III2A BDMP_III2B BDMP_IV1 BDMP_IV2A BDMP_IV2B BDMP_IV3A BDMP_IV3B BDMP_V BDMP_VI1 BDMP_VI4A BDMP_VI4B BDMP_VI4C BDMP_VI4D BDMP_VI4E BDMP_VI5 BDMP_VI6 BDMP_VI7A BDMP_VI7B BDMP_VI8 BDMP_VI9 RDM_I1A_pow RDM_I1B_pow RDM_I1C_pow RDM_I1D_pow RDM_I1E_pow RDM_I1F_pow RDM_I1G_pow RDM_I1H_pow RDM_I2_pow RDM_I1A_poz RDM_I1B_poz RDM_I1C_poz RDM_I1D_poz RDM_I1E_poz RDM_I1F_poz RDM_I1G_poz RDM_I1H_poz RDM_I2_poz RDM_II1 RDM_II2 RDM_II3 RDM_II4 RDM_II5 RDM_II6 RDM_II7 RDM_II8 RDM_II9 RDM_II10 RDM_II11 RDM_II12 RDM_II13 RDM_II14 RDM_IV1_pow RDM_IV1_poz RDM_IV2_pow RDM_IV2_poz RDM_IV3 RDM_IV4 RDM_IV5 RDM_V1 RDM_V2 RDM_V3 RDM_VII1_pow RDM_VII1_poz RDM_VII2 RDM_VII3 RDM_VII4 RDM_VII5 RDM_VIII1 RDM_VIII2 RDM_VIII3 RDM_VIII4 RDM_X1_pow RDM_X1_poz RDM_X2_pow RDM_X2_poz RDM_X3 RDM_X4 RDM_X5 RDM_X6 RDM_XI1 RDM_XI2 RDM_XI3 RDM_XI4 RDM_XIII1 RDM_XIII2 RDM_XIII3 RDM_XIII4 RDM_XIII5 RDM_XIV1 RDM_XIV2 RDM_XIV3 RDM_XIV4 RDM_XIV5 RDM_XVII1_pow RDM_XVII1_poz RDM_XVII2_pow RDM_XVII2_poz RDM_XVII3 RDM_XVII4A RDM_XVII4B RDM_XVII5 RDM_XVIII1_pow RDM_XVIII1_poz RDM_XVIII2 RDM_XVIII3A RDM_XVIII3B RDM_XVIII4 RDM_PD RDM_XXIV INNE","BSA_I1 BSA_I2 BSA_II1A BSA_II1B BSA_II1C BSA_II2A BSA_II2B BSA_II2C BSA_III1 BSA_III2 BSA_III3 BSA_IV1 BSA_IV2 BSA_IV3 BSA_V1 BSA_V2 BSA_VI BSA_VII BSA_VIII1 BSA_VIII2 BSA_IX1 BSA_IX2 BSP_I1A BSP_I1B BSP_I1C BSP_I2A BSP_I2B BSP_I2C BSP_II1 BSP_II2 BSP_II3 BSP_III1 BSP_III2 BSP_IV BSP_V BSP_VI BSP_VII BSP_VIII BSP_IX BSP_X1 BSP_X2 BSP_X3 BSP_XI BSP_XII RS_I1 RS_I2 RS_I3 RS_I4 RS_I5 RS_II1 RS_II2 RS_II3 RS_IV RS_V RS_VI RS_VIII1 RS_VIII2 RS_VIII3 RS_VIII4 RS_VIII5 RS_IX1 RS_IX2 RS_X1 RS_X2 RS_XII1 RS_XII2 RS_XIII1 RS_XIII2 RS_XIV1 RS_XIV2 RS_XIV3 RS_XIV4 RS_XIV5 RS_XIV6 RS_XIV7 RS_XV1 RS_XV2 RS_XVI1 RS_XVI2 RS_XVI3 RS_XVIII1 RS_XVIII2 RS_XX_PD RS_XXI INNE","BAAI1_W BAAI1_A BAAI1_U BAAI2_W BAAI2_A BAAI2_U BAAI3_W BAAI3_A BAAI3_U BAAI4_W BAAI4_A BAAII1a_W BAAII1a_A BAAII1a_U BAAII1b_W BAAII1b_A BAAII1b_U BAAII1c_W BAAII1c_A BAAII1c_U BAAII1d_W BAAII1d_A BAAII1d_U BAAII1e_W BAAII1e_A BAAII1e_U BAAII2_W BAAII2_A BAAII3_W BAAII3_A BAAIII1_W BAAIII1_A BAAIII2_W BAAIII2_A BAAIII3_W BAAIII3_A BAAIV1_W BAAIV1_A BAAIV1_U BAAIV2_W BAAIV2_A BAAIV2_U BAAIV3a_ULA_W BAAIV3a_ULA_A BAAIV3a_IPW_W BAAIV3a_IPW_A BAAIV3a_UP_W BAAIV3a_UP_A BAAIV3a_IDAF_W BAAIV3a_IDAF_A BAAIV3b_ULA_W BAAIV3b_ULA_A BAAIV3b_IPW_W BAAIV3b_IPW_A BAAIV3b_UP_W BAAIV3b_UP_A BAAIV3b_IDAF_W BAAIV3b_IDAF_A BAAIV3c_ULA_W BAAIV3c_ULA_A BAAIV3c_IPW_W BAAIV3c_IPW_A BAAIV3c_UP_W BAAIV3c_UP_A BAAIV3c_IDAF_W BAAIV3c_IDAF_A BAAIV4_W BAAIV4_A BAAV1_W BAAV1_A BAAV2_W BAAV2_A BABI1 BABI1_O BABI1_A BABI2 BABI2_O BABI2_A BABI3 BABI3_O BABI3_A BABI4 BABI4_O BABI4_A BABI5 BABI5_A BABII1a_D12 BABII1a_D12_A BABII1a_P12 BABII1a_P12_A BABII1b BABII1b_A BABII2a_D12 BABII2a_D12_A BABII2a_P12 BABII2a_P12_A BABII2b BABII2b_A BABII3a_D12 BABII3a_D12_A BABII3a_P12 BABII3a_P12_A BABII3b BABII3b_A BABII3c_W BABII3c_A BABII3d_W BABII3d_A BABIII1a1_ULA_W BABIII1a1_ULA_A BABIII1a2_IPW_W BABIII1a2_IPW_A BABIII1a3_UP_W BABIII1a3_UP_A BABIII1a4_IKAF_W BABIII1a4_IKAF_A BABIII1b1_ULA_W BABIII1b1_ULA_A BABIII1b2_IPW_W BABIII1b2_IPW_A BABIII1b3_UP_W BABIII1b3_UP_A BABIII1b4_IKAF_W BABIII1b4_IKAF_A BABIII1c1_SPKR BABIII1c2_ISP BABIII1c2_ISP_A BABIII1c3_IAP BABIII1c3_IAP_A BABIII2_W BABIII2_A BABIV BABIV_A BAC BAD BPAI BPAIIWS BPAII_INN BPAII_ES_ZP BPAII_ES_ZR BPAIIIAWG BPAIII_INN BPAIVU BPAIVUW BPAIV_INN BPAIV_ES_ZP BPAIV_ES_ZR BPAV BPAV_ES_NZP BPAV_ES_NPR BPAV_ES_NSP BPAV_ES_NSR BPAVI BPAVII BPBI1 BPBI2_D BPBI2_K BPBI3_D BPBI3_K BPBII1 BPBII2 BPBII3a BPBII3b BPBII3c BPBII3d BPBII3e BPBIII1a_D12 BPBIII1a_P12 BPBIII1b BPBIII2a_D12 BPBIII2a_P12 BPBIII2b BPBIII3a BPBIII3b BPBIII3c BPBIII3d_D12 BPBIII3d_P12 BPBIII3e BPBIII3f BPBIII3g BPBIII3h BPBIII3i BPBIII4 BPBIV1 BPBIV2_D BPBIV2_K RPAI_RKAI_POW RPAI_RKAI_POZ RPAII RPAIII RPAIV_RKAII_POW RPAIV_RKAII_POZ RPBI RPBII RPBIII RPBIV_AKC RPBIV_POZ RPBV RPBVI RPBVI_E RPBVII RPBVIII_RKBII_POW RPBVIII_RKBII_POZ RKBI_POW RKBI_POZ RKD RKE RPDI_RKGI_POW RPDI_RKGI_POZ RPDII_RKGII RPDIII_RKGIII RPDIV_RKGIV RPDIV_RKGIV_ZCP RPDIV_RKGIV_WF RPDIV_RKGIV_P RPEI_RKHI_POW RPEI_RKHI_POZ RPEII_RKHII RPEIII_RKHIII RPEIII_RKHIII_ZCP RPEIII_RKHIII_WF RPEIII_RKHIII_P RPGIa_RKJIa_POW_k RPGIa_RKJIa_POW_p RPGIb_RKJIb_POZ_k RPGIb_RKJIb_POZ_p RPGII_RKJII_POW RPGII_RKJII_POZ RPGIII_RKJIII_POW RPGIII_RKJIII_POZ RPGIV_RKJIV RPGV_RKJV_RK RPGV_RKJV_POZ RPHI_RKKI_POW RPHI_RKKI_POZ RPHII_RKKII_POW RPHII_RKKII_POZ RPHIII_RKKIII RPHIV_RKKIV_RK RPHIV_RKKIV_POZ RPJ_RKM_B RPJ_RKM_O RPK_RKN INNE","PD1 PD1_1 PD1_2 PD1_3 PD2 PD4 PD4_1 PD4_2 PD4_3 PD5 PD7 PD8_1 PD8_2 PD1_PB PD1_PB_1 PD1_PB_2 PD1_PB_3 PD2_PB PD3_PB PD4_PB PD4_PB_1 PD4_PB_2 PD4_PB_3 PD5_PB PD6_PB PD7_PB PD8_PB_1 PD8_PB_2","PLN AED AFN ALL AMD ANG AOA ARS AUD AWG AZN BAM BBD BDT BGN BHD BIF BMD BND BOB BOV BRL BSD BTN BWP BYN BZD CAD CDF CHE CHF CHW CLF CLP CNY COP COU CRC CUC CUP CVE CZK DJF DKK DOP DZD EGP ERN ETB EUR FJD FKP GBP GEL GGP GHS GIP GMD GNF GTQ GYD HKD HNL HRK HTG HUF IDR ILS IMP INR IQD IRR ISK JEP JMD JOD JPY KES KGS KHR KMF KPW KRW KWD KYD KZT LAK LBP LKR LRD LSL LYD MAD MDL MGA MKD MMK MNT MOP MRU MUR MVR MWK MXN MXV MYR MZN NAD NGN NIO NOK NPR NZD OMR PAB PEN PGK PHP PKR PYG QAR RON RSD RUB RWF SAR SBD SCR SDG SEK SGD SHP SLL SOS SRD SSP STN SVC SYP SZL THB TJS TMT TND TOP TRY TTD TWD TZS UAH UGX USD USN UYI UYU UYW UZS VES VND VUV WST XAF XAG XAU XBA XBB XBC XBD XCD XDR XOF XPD XPF XPT XSU XUA XXX YER ZAR ZMW ZWL","PL AF AX AL DZ AD AO AI AQ AG AN SA AR AM AW AU AT AZ BS BH BD BB BE BZ BJ BM BT BY BO BQ BA BW BR BN IO BG BF BI XC CL CN HR CW CY TD ME DK DM DO DJ EG EC ER EE ET FK FJ PH FI FR TF GA GM GH GI GR GD GL GE GU GG GY GF GP GT GN GQ GW HT ES HN HK IN ID IQ IR IE IS IL JM JP YE JE JO KY KH CM CA QA KZ KE KG KI CO KM CG CD KP XK CR CU KW LA LS LB LR LY LI LT LV LU MK MG YT MO MW MV MY ML MT MP MA MQ MR MU MX XL FM UM MD MC MN MS MZ MM NA NR NP NL DE NE NG NI NU NF NO NC NZ PS OM PK PW PA PG PY PE PN PF GS PT PR CF CZ KR ZA RE RU RO RW EH BL KN LC MF VC SV WS AS SM SN RS SC SL SG SK SI SO LK PM US SZ SD SS SR SJ SH SY CH SE TJ TH TW TZ TG TK TO TT TN TR TM TV UG UA UY UZ VU WF VA HU VE GB VN IT TL CI BV CX IM SX CK VI VG HM CC MH FO SB ST TC ZM CV ZW AE XI"]
["0201","BOLESŁAWIEC-WIEJSKA","0201022","02","DZIERŻONIOWSKI","0202","LUBELSKIE","06","URZĄD SKARBOWY W BARTOSZYCACH","2802","URZĄD SKARBOWY W BARTOSZYCACH","ALAND ISLANDS","AX","ALAND ISLANDS","AFN","AFGANI"]
["0201","GROMADKA","0201032","02","GŁOGOWSKI","0203","LUBUSKIE","08","URZĄD SKARBOWY W BEŁCHATOWIE","1002","URZĄD SKARBOWY W BEŁCHATOWIE","ALBANIA","AL","ALBANIA","ALL","LEK"]
["0201","NOWOGRODZIEC","0201043","02","GÓROWSKI","0204","ŁÓDZKIE","10","URZĄD SKARBOWY W BĘDZINIE","2402","URZĄD SKARBOWY W BĘDZINIE","ALGIERIA","DZ","ALGIERIA","AMD","DRAM"]
["0201","OSIECZNICA","0201052","02","JAWORSKI","0205","MAŁOPOLSKIE","12","URZĄD SKARBOWY W BIAŁEJ PODLASKIEJ","0602","URZĄD SKARBOWY W BIAŁEJ PODLASKIEJ","ANDORA","AD","ANDORA","ANG","GULDEN ANTYLI HOLENDERSKICH"]
["0201","WARTA BOLESŁAWIECKA","0201062","02","JELENIOGÓRSKI","0206","MAZOWIECKIE","14","URZĄD SKARBOWY W BIAŁOBRZEGACH","1402","URZĄD SKARBOWY W BIAŁOBRZEGACH","ANGOLA","AO","ANGOLA","AOA","KWANZA"]
["0202","BIELAWA","0202011","02","KAMIENNOGÓRSKI","0207","OPOLSKIE","16","URZĄD SKARBOWY W BIAŁOGARDZIE","3202","URZĄD SKARBOWY W BIAŁOGARDZIE","ANGUILLA","AI","ANGUILLA","ARS","PESO ARGENTYŃSKIE"]
["0202","DZIERŻONIÓW-MIEJSKA","0202021","02","KŁODZKI","0208","PODKARPACKIE","18","PIERWSZY URZĄD SKARBOWY W BIAŁYMSTOKU","2003","PIERWSZY URZĄD SKARBOWY W BIAŁYMSTOKU","ANTARKTYDA","AQ","ANTARKTYDA","AUD","DOLAR AUSTRALIJSKI"]
["0202","PIESZYCE","0202033","02","LEGNICKI","0209","PODLASKIE","20","DRUGI URZĄD SKARBOWY W BIAŁYMSTOKU","2004","DRUGI URZĄD SKARBOWY W BIAŁYMSTOKU","ANTIGUA I BARBUDA","AG","ANTIGUA I BARBUDA","AWG","GULDEN ARUBAŃSKI"]
["0202","PIŁAWA GÓRNA","0202041","02","LUBAŃSKI","0210","POMORSKIE","22","URZĄD SKARBOWY W BIELSKU PODLASKIM","2005","URZĄD SKARBOWY W BIELSKU PODLASKIM","ANTYLE HOLENDERSKIE","AN","ANTYLE HOLENDERSKIE","AZN","MANAT AZERBEJDŻAŃSKI"]
["0202","DZIERŻONIÓW-WIEJSKA","0202052","02","LUBIŃSKI","0211","ŚLĄSKIE","24","PIERWSZY URZĄD SKARBOWY W BIELSKU-BIAŁEJ","2403","PIERWSZY URZĄD SKARBOWY W BIELSKU-BIAŁEJ","ARABIA SAUDYJSKA","SA","ARABIA SAUDYJSKA","BAM","MARKA ZAMIENNA"]
["0202","ŁAGIEWNIKI","0202062","02","LWÓWECKI","0212","ŚWIĘTOKRZYSKIE","26","DRUGI URZĄD SKARBOWY W BIELSKU-BIAŁEJ","2404","DRUGI URZĄD SKARBOWY W BIELSKU-BIAŁEJ","ARGENTYNA","AR","ARGENTYNA","BBD","DOLAR BARBADOSKI"]
["0202","NIEMCZA","0202073","02","MILICKI","0213","WARMIŃSKO-MAZURSKIE","28","DRUGI ŚLĄSKI URZĄD SKARBOWY W BIELSKU-BIAŁEJ","2472","URZĄD SKARBOWY W BIŁGORAJU","ARMENIA","AM","ARMENIA","BDT","TAKA"]
["0203","GŁOGÓW-MIEJSKA","0203011","02","OLEŚNICKI","0214","WIELKOPOLSKIE","30","URZĄD SKARBOWY W BIŁGORAJU","0603","URZĄD SKARBOWY W BOCHNI","ARUBA","AW","ARUBA","BGN","LEW"]
["0203","GŁOGÓW-WIEJSKA","0203022","02","OŁAWSKI","0215","ZACHODNIOPOMORSKIE","32","URZĄD SKARBOWY W BOCHNI","1202","URZĄD SKARBOWY W BOLESŁAWCU","AUSTRALIA","AU","AUSTRALIA","BHD","DINAR BAHRAJSKI"]
["0203","JERZMANOWA","0203032","02","POLKOWICKI","0216",null,null,"URZĄD SKARBOWY W BOLESŁAWCU","0202","URZĄD SKARBOWY W BRANIEWIE","AUSTRIA","AT","AUSTRIA","BIF","FRANK BURUNDYJSKI"]
["0203","KOTLA","0203042","02","STRZELIŃSKI","0217",null,null,"URZĄD SKARBOWY W BRANIEWIE","2803","URZĄD SKARBOWY W BRODNICY","AZERBEJDŻAN","AZ","AZERBEJDŻAN","BMD","DOLAR BERMUDZKI"]
["0203","PĘCŁAW","0203052","02","ŚREDZKI ","0218",null,null,"URZĄD SKARBOWY W BRODNICY","0403","URZĄD SKARBOWY W BRZEGU","BAHAMY","BS","BAHAMY","BND","DOLAR BRUNEJSKI"]
["0203","ŻUKOWICE","0203062","02","ŚWIDNICKI ","0219",null,null,"URZĄD SKARBOWY W BRZEGU","1602","URZĄD SKARBOWY W BRZESKU","BAHRAJN","BH","BAHRAJN","BOB","BOLIWIANO"]
["0204","GÓRA","0204013","02","TRZEBNICKI","0220",null,null,"URZĄD SKARBOWY W BRZESKU","1203","URZĄD SKARBOWY W BRZEZINACH","BANGLADESZ","BD","BANGLADESZ","BOV","BOLIWIANO MVDOL"]
["0204","JEMIELNO","0204022","02","WAŁBRZYSKI","0221",null,null,"URZĄD SKARBOWY W BRZEZINACH","1003","URZĄD SKARBOWY W BRZOZOWIE","BARBADOS","BB","BARBADOS","BRL","REAL"]
["0204","NIECHLÓW","0204032","02","WOŁOWSKI","0222",null,null,"URZĄD SKARBOWY W BRZOZOWIE","1802","URZĄD SKARBOWY W BUSKU-ZDROJU","BELGIA","BE","BELGIA","BSD","DOLAR BAHAMSKI"]
["0204","WĄSOSZ","0204043","02","WROCŁAWSKI","0223",null,null,"URZĄD SKARBOWY W BUSKU-ZDROJU","2602","PIERWSZY URZĄD SKARBOWY W BYDGOSZCZY","BELIZE","BZ","BELIZE","BTN","NGULTRUM"]
["0205","JAWOR","0205011","02","ZĄBKOWICKI","0224",null,null,"PIERWSZY URZĄD SKARBOWY W BYDGOSZCZY","0404","DRUGI URZĄD SKARBOWY W BYDGOSZCZY","BENIN","BJ","BENIN","BWP","PULA"]
["0205","BOLKÓW","0205023","02","ZGORZELECKI","0225",null,null,"DRUGI URZĄD SKARBOWY W BYDGOSZCZY","0405","TRZECI URZĄD SKARBOWY W BYDGOSZCZY","BERMUDY","BM","BERMUDY","BYN","RUBEL BIAŁORUSKI"]
["0205","MĘCINKA","0205032","02","ZŁOTORYJSKI","0226",null,null,"TRZECI URZĄD SKARBOWY W BYDGOSZCZY","0406","URZĄD SKARBOWY W BYSTRZYCY KŁODZKIEJ","BHUTAN","BT","BHUTAN","BZD","DOLAR BELIZEŃSKI"]
["0205","MŚCIWOJÓW","0205042","02","M.JELENIA GÓRA","0261",null,null,"KUJAWSKO-POMORSKI URZĄD SKARBOWY W BYDGOSZCZY","0471","URZĄD SKARBOWY W BYTOMIU","BIAŁORUŚ","BY","BIAŁORUŚ","CAD","DOLAR KANADYJSKI"]
["0205","PASZOWICE","0205052","02","M.LEGNICA","0262",null,null,"URZĄD SKARBOWY W BYSTRZYCY KŁODZKIEJ","0203","URZĄD SKARBOWY W BYTOWIE","BOLIWIA","BO","BOLIWIA","CDF","FRANK KONGIJSKI"]
["0205","WĄDROŻE WIELKIE","0205062","02","M.WROCŁAW","0264",null,null,"URZĄD SKARBOWY W BYTOMIU","2405","URZĄD SKARBOWY W CHEŁMIE","BONAIRE, SINT EUSTATIUS I SABA","BQ","BONAIRE, SINT EUSTATIUS I SABA","CHE","FRANK SZWAJCARSKI VIR EURO"]
["0206","KARPACZ","0206011","04","ALEKSANDROWSKI","0401",null,null,"URZĄD SKARBOWY W BYTOWIE","2202","URZĄD SKARBOWY W CHEŁMNIE","BOŚNIA I HERCEGOWINA","BA","BOŚNIA I HERCEGOWINA","CHF","FRANK SZWAJCARSKI"]
["0206","KOWARY","0206021","04","BRODNICKI","0402",null,null,"URZĄD SKARBOWY W CHEŁMIE","0604","URZĄD SKARBOWY W CHODZIEŻY","BOTSWANA","BW","BOTSWANA","CHW","FRANK SZWAJCARSKI VIR FRANK"]
["0206","PIECHOWICE","0206031","04","BYDGOSKI","0403",null,null,"URZĄD SKARBOWY W CHEŁMNIE","0407","URZĄD SKARBOWY W CHOJNICACH","BRAZYLIA","BR","BRAZYLIA","CLF","JEDNOSTKA ROZLICZENIOWA CHILIJSKA"]
["0206","SZKLARSKA PORĘBA","0206041","04","CHEŁMIŃSKI","0404",null,null,"URZĄD SKARBOWY W CHODZIEŻY","3037","URZĄD SKARBOWY W CHORZOWIE","BRUNEI DARUSSALAM","BN","BRUNEI DARUSSALAM","CLP","PESO CHILIJSKIE"]
["0206","JANOWICE WIELKIE","0206052","04","GOLUBSKO-DOBRZYŃSKI","0405",null,null,"URZĄD SKARBOWY W CHOJNICACH","2203","URZĄD SKARBOWY W CHOSZCZNIE","BRYTYJSKIE TERYTORIUM OCEANU INDYJSKIEGO","IO","BRYTYJSKIE TERYTORIUM OCEANU INDYJSKIEGO","CNY","YUAN RENMINBI"]
["0206","JEŻÓW SUDECKI","0206062","04","GRUDZIĄDZKI","0406",null,null,"URZĄD SKARBOWY W CHORZOWIE","2406","URZĄD SKARBOWY W CHRZANOWIE","BUŁGARIA","BG","BUŁGARIA","COP","PESO KOLUMBIJSKIE"]
["0206","MYSŁAKOWICE","0206072","04","INOWROCŁAWSKI","0407",null,null,"URZĄD SKARBOWY W CHOSZCZNIE","3203","URZĄD SKARBOWY W CIECHANOWIE","BURKINA FASO","BF","BURKINA FASO","COU","UNIDAD DE VALOR REAL KOLUMBILSKIE"]
["0206","PODGÓRZYN","0206082","04","LIPNOWSKI","0408",null,null,"URZĄD SKARBOWY W CHRZANOWIE","1204","URZĄD SKARBOWY W CIESZYNIE","BURUNDI","BI","BURUNDI","CRC","COLON KOSTARYKAŃSKI"]
["0206","STARA KAMIENICA","0206092","04","MOGILEŃSKI","0409",null,null,"URZĄD SKARBOWY W CIECHANOWIE","1403","URZĄD SKARBOWY W CZARNKOWIE","CEUTA","XC","CEUTA","CUC","PESO WYMIENIALNE"]
["0207","KAMIENNA GÓRA-MIEJSKA","0207011","04","NAKIELSKI","0410",null,null,"URZĄD SKARBOWY W CIESZYNIE","2407","URZĄD SKARBOWY W CZECHOWICACH-DZIEDZICACH","CHILE","CL","CHILE","CUP","PESO KUBAŃSKIE"]
["0207","KAMIENNA GÓRA-WIEJSKA","0207022","04","RADZIEJOWSKI","0411",null,null,"URZĄD SKARBOWY W CZARNKOWIE","3002","PIERWSZY URZĄD SKARBOWY W CZĘSTOCHOWIE","CHINY","CN","CHINY","CVE","ESCUDO REPUBLIKI ZIELONEGO PRZYLĄDKA"]
["0207","LUBAWKA","0207033","04","RYPIŃSKI","0412",null,null,"URZĄD SKARBOWY W CZECHOWICACH-DZIEDZICACH","2408","DRUGI URZĄD SKARBOWY W CZĘSTOCHOWIE","CHORWACJA","HR","CHORWACJA","CZK","KORONA CZESKA"]
["0207","MARCISZÓW","0207042","04","SĘPOLEŃSKI","0413",null,null,"PIERWSZY URZĄD SKARBOWY W CZĘSTOCHOWIE","2409","URZĄD SKARBOWY W CZŁUCHOWIE","CURAÇAO","CW","CURAÇAO","DJF","FRANK DŻIBUTI"]
["0208","DUSZNIKI-ZDRÓJ","0208011","04","ŚWIECKI","0414",null,null,"DRUGI URZĄD SKARBOWY W CZĘSTOCHOWIE","2410","URZĄD SKARBOWY W DĄBROWIE GÓRNICZEJ","CYPR","CY","CYPR","DKK","KORONA DUŃSKA"]
["0208","KŁODZKO-MIEJSKA","0208021","04","TORUŃSKI","0415",null,null,"URZĄD SKARBOWY W CZŁUCHOWIE","2204","URZĄD SKARBOWY W DĄBROWIE TARNOWSKIEJ","CZAD","TD","CZAD","DOP","PESO DOMINIKAŃSKIE"]
["0208","KUDOWA-ZDRÓJ","0208031","04","TUCHOLSKI","0416",null,null,"URZĄD SKARBOWY W DĄBROWIE GÓRNICZEJ","2411","URZĄD SKARBOWY W DĘBICY","CZARNOGÓRA","ME","CZARNOGÓRA","DZD","DINAR ALGIERSKI"]
["0208","NOWA RUDA-MIEJSKA","0208041","04","WĄBRZESKI","0417",null,null,"URZĄD SKARBOWY W DĄBROWIE TARNOWSKIEJ","1205","URZĄD SKARBOWY W DRAWSKU POMORSKIM","DANIA","DK","DANIA","EGP","FUNT EGIPSKI"]
["0208","POLANICA-ZDRÓJ","0208051","04","WŁOCŁAWSKI","0418",null,null,"URZĄD SKARBOWY W DĘBICY","1803","URZĄD SKARBOWY W DREZDENKU","DOMINIKA","DM","DOMINIKA","ERN","NAKFA"]
["0208","BYSTRZYCA KŁODZKA","0208063","04","ŻNIŃSKI","0419",null,null,"URZĄD SKARBOWY W DRAWSKU POMORSKIM","3204","URZĄD SKARBOWY W DZIAŁDOWIE","DOMINIKANA","DO","DOMINIKANA","ETB","BIRR"]
["0208","KŁODZKO-WIEJSKA","0208072","04","M.BYDGOSZCZ","0461",null,null,"URZĄD SKARBOWY W DREZDENKU","0812","URZĄD SKARBOWY W DZIERŻONIOWIE","DŻIBUTI","DJ","DŻIBUTI","EUR","EURO"]
["0208","LĄDEK-ZDRÓJ","0208083","04","M.GRUDZIĄDZ","0462",null,null,"URZĄD SKARBOWY W DZIAŁDOWIE","2804","URZĄD SKARBOWY W ELBLĄGU","EGIPT","EG","EGIPT","FJD","DOLAR FIDŻI"]
["0208","LEWIN KŁODZKI","0208092","04","M.TORUŃ","0463",null,null,"URZĄD SKARBOWY W DZIERŻONIOWIE","0204","URZĄD SKARBOWY W EŁKU","EKWADOR","EC","EKWADOR","FKP","FUNT FALKLANDZKI"]
["0208","MIĘDZYLESIE","0208103","04","M.WŁOCŁAWEK","0464",null,null,"URZĄD SKARBOWY W ELBLĄGU","2805","URZĄD SKARBOWY W GARWOLINIE","ERYTREA","ER","ERYTREA","GBP","FUNT SZTERLING"]
["0208","NOWA RUDA-WIEJSKA","0208112","06","BIALSKI","0601",null,null,"URZĄD SKARBOWY W EŁKU","2806","PIERWSZY URZĄD SKARBOWY W GDAŃSKU","ESTONIA","EE","ESTONIA","GEL","LARI"]
["0208","RADKÓW","0208123","06","BIŁGORAJSKI","0602",null,null,"URZĄD SKARBOWY W GARWOLINIE","1404","DRUGI URZĄD SKARBOWY W GDAŃSKU","ETIOPIA","ET","ETIOPIA","GGP","FUNT GUERNSEY"]
["0208","STRONIE ŚLĄSKIE","0208133","06","CHEŁMSKI","0603",null,null,"PIERWSZY URZĄD SKARBOWY W GDAŃSKU","2205","TRZECI URZĄD SKARBOWY W GDAŃSKU","FALKLANDY","FK","FALKLANDY","GHS","GHANA CEDI"]
["0208","SZCZYTNA","0208143","06","HRUBIESZOWSKI","0604",null,null,"DRUGI URZĄD SKARBOWY W GDAŃSKU","2206","PIERWSZY URZĄD SKARBOWY W GDYNI","FIDŻI REPUBLIKA","FJ","FIDŻI REPUBLIKA","GIP","FUNT GIBRALTARSKI"]
["0209","CHOJNÓW-MIEJSKA","0209011","06","JANOWSKI","0605",null,null,"TRZECI URZĄD SKARBOWY W GDAŃSKU","2207","DRUGI URZĄD SKARBOWY W GDYNI","FILIPINY","PH","FILIPINY","GMD","DALASI"]
["0209","CHOJNÓW-WIEJSKA","0209022","06","KRASNOSTAWSKI","0606",null,null,"POMORSKI URZĄD SKARBOWY W GDAŃSKU","2271","URZĄD SKARBOWY W GIŻYCKU","FINLANDIA","FI","FINLANDIA","GNF","FRANK GWINEJSKI"]
["0209","KROTOSZYCE","0209032","06","KRAŚNICKI","0607",null,null,"PIERWSZY URZĄD SKARBOWY W GDYNI","2208","PIERWSZY URZĄD SKARBOWY W GLIWICACH","FRANCJA","FR","FRANCJA","GTQ","QUETZAL"]
["0209","KUNICE","0209042","06","LUBARTOWSKI","0608",null,null,"DRUGI URZĄD SKARBOWY W GDYNI","2209","DRUGI URZĄD SKARBOWY W GLIWICACH","FRANCUSKIE TERYTORIUM POŁUDNIOWE","TF","FRANCUSKIE TERYTORIUM POŁUDNIOWE","GYD","DOLAR GUJAŃSKI"]
["0209","LEGNICKIE POLE","0209052","06","LUBELSKI","0609",null,null,"URZĄD SKARBOWY W GIŻYCKU","2807","URZĄD SKARBOWY W GŁOGOWIE","GABON","GA","GABON","HKD","DOLAR HONGKONGU"]
["0209","MIŁKOWICE","0209062","06","ŁĘCZYŃSKI","0610",null,null,"PIERWSZY URZĄD SKARBOWY W GLIWICACH","2412","URZĄD SKARBOWY W GŁOWNIE","GAMBIA","GM","GAMBIA","HNL","LEMPIRA"]
["0209","PROCHOWICE","0209073","06","ŁUKOWSKI","0611",null,null,"DRUGI URZĄD SKARBOWY W GLIWICACH","2413","URZĄD SKARBOWY W GŁUBCZYCACH","GHANA","GH","GHANA","HRK","KUNA"]
["0209","RUJA","0209082","06","OPOLSKI ","0612",null,null,"URZĄD SKARBOWY W GŁOGOWIE","0205","URZĄD SKARBOWY W GNIEŹNIE","GIBRALTAR","GI","GIBRALTAR","HTG","GOURDE"]
["0210","LUBAŃ-MIEJSKA","0210011","06","PARCZEWSKI","0613",null,null,"URZĄD SKARBOWY W GŁOWNIE","1004","URZĄD SKARBOWY W GOLENIOWIE","GRECJA","GR","GRECJA","HUF","FORINT"]
["0210","ŚWIERADÓW-ZDRÓJ","0210021","06","PUŁAWSKI","0614",null,null,"URZĄD SKARBOWY W GŁUBCZYCACH","1603","URZĄD SKARBOWY W GOLUBIU-DOBRZYNIU","GRENADA","GD","GRENADA","IDR","RUPIA INDONEZYJSKA"]
["0210","LEŚNA","0210033","06","RADZYŃSKI","0615",null,null,"URZĄD SKARBOWY W GNIEŹNIE","3003","URZĄD SKARBOWY W GORLICACH","GRENLANDIA","GL","GRENLANDIA","ILS","SZEKEL"]
["0210","LUBAŃ-WIEJSKA","0210042","06","RYCKI","0616",null,null,"URZĄD SKARBOWY W GOLENIOWIE","3205","URZĄD SKARBOWY W GORZOWIE WIELKOPOLSKIM","GRUZJA","GE","GRUZJA","IMP","FUNT MANX"]
["0210","OLSZYNA","0210053","06","ŚWIDNICKI","0617",null,null,"URZĄD SKARBOWY W GOLUBIU-DOBRZYNIU","0422","URZĄD SKARBOWY W GOSTYNINIE","GUAM","GU","GUAM","INR","RUPIA INDYJSKA"]
["0210","PLATERÓWKA","0210062","06","TOMASZOWSKI ","0618",null,null,"URZĄD SKARBOWY W GORLICACH","1206","URZĄD SKARBOWY W GOSTYNIU","GUERNSEY","GG","GUERNSEY","IQD","DINAR IRACKI"]
["0210","SIEKIERCZYN","0210072","06","WŁODAWSKI","0619",null,null,"URZĄD SKARBOWY W GORZOWIE WIELKOPOLSKIM","0802","URZĄD SKARBOWY W GÓRZE","GUJANA","GY","GUJANA","IRR","RIAL IRAŃSKI"]
["0211","LUBIN-MIEJSKA","0211011","06","ZAMOJSKI","0620",null,null,"URZĄD SKARBOWY W GOSTYNINIE","1405","URZĄD SKARBOWY W GRAJEWIE","GUJANA FRANCUSKA","GF","GUJANA FRANCUSKA","ISK","KORONA ISLANDZKA"]
["0211","LUBIN-WIEJSKA","0211022","06","M.BIAŁA PODLASKA","0661",null,null,"URZĄD SKARBOWY W GOSTYNIU","3004","URZĄD SKARBOWY W GRODZISKU MAZOWIECKIM","GWADELUPA","GP","GWADELUPA","JEP","FUNT JERSEY"]
["0211","RUDNA","0211032","06","M.CHEŁM","0662",null,null,"URZĄD SKARBOWY W GÓRZE","0233","URZĄD SKARBOWY W GRODZISKU WIELKOPOLSKIM","GWATEMALA","GT","GWATEMALA","JMD","DOLAR JAMAJSKI"]
["0211","ŚCINAWA","0211043","06","M.LUBLIN","0663",null,null,"URZĄD SKARBOWY W GRAJEWIE","2006","URZĄD SKARBOWY W GRÓJCU","GWINEA","GN","GWINEA","JOD","DINAR JORDAŃSKI"]
["0212","GRYFÓW ŚLĄSKI","0212013","06","M.ZAMOŚĆ","0664",null,null,"URZĄD SKARBOWY W GRODZISKU MAZOWIECKIM","1406","URZĄD SKARBOWY W GRUDZIĄDZU","GWINEA RÓWNIKOWA","GQ","GWINEA RÓWNIKOWA","JPY","JEN"]
["0212","LUBOMIERZ","0212023","08","GORZOWSKI","0801",null,null,"URZĄD SKARBOWY W GRODZISKU WIELKOPOLSKIM","3005","URZĄD SKARBOWY W GRYFICACH","GWINEA-BISSAU","GW","GWINEA-BISSAU","KES","SZYLING KENIJSKI"]
["0212","LWÓWEK ŚLĄSKI","0212033","08","KROŚNIEŃSKI ","0802",null,null,"URZĄD SKARBOWY W GRÓJCU","1407","URZĄD SKARBOWY W GRYFINIE","HAITI","HT","HAITI","KGS","SOM"]
["0212","MIRSK","0212043","08","MIĘDZYRZECKI","0803",null,null,"URZĄD SKARBOWY W GRUDZIĄDZU","0408","URZĄD SKARBOWY W HAJNÓWCE","HISZPANIA","ES","HISZPANIA","KHR","RIEL"]
["0212","WLEŃ","0212053","08","NOWOSOLSKI","0804",null,null,"URZĄD SKARBOWY W GRYFICACH","3206","URZĄD SKARBOWY W HRUBIESZOWIE","HONDURAS","HN","HONDURAS","KMF","FRANK KOMORÓW"]
["0213","CIESZKÓW","0213012","08","SŁUBICKI","0805",null,null,"URZĄD SKARBOWY W GRYFINIE","3207","URZĄD SKARBOWY W IŁAWIE","HONGKONG","HK","HONGKONG","KPW","WON PÓŁNOCNO­KOREAŃSKI"]
["0213","KROŚNICE","0213022","08","STRZELECKO-DREZDENECKI","0806",null,null,"URZĄD SKARBOWY W HAJNÓWCE","2015","URZĄD SKARBOWY W INOWROCŁAWIU","INDIE","IN","INDIE","KRW","WON POŁUDNIOWO­KOREAŃSKI"]
["0213","MILICZ","0213033","08","SULĘCIŃSKI","0807",null,null,"URZĄD SKARBOWY W HRUBIESZOWIE","0605","URZĄD SKARBOWY W JANOWIE LUBELSKIM","INDONEZJA","ID","INDONEZJA","KWD","DINAR KUWEJCKI"]
["0214","OLEŚNICA","0214011","08","ŚWIEBODZIŃSKI","0808",null,null,"URZĄD SKARBOWY W IŁAWIE","2808","URZĄD SKARBOWY W JAROCINIE","IRAK","IQ","IRAK","KYD","DOLAR KAJMAŃSKI"]
["0214","BIERUTÓW","0214023","08","ZIELONOGÓRSKI","0809",null,null,"URZĄD SKARBOWY W INOWROCŁAWIU","0409","URZĄD SKARBOWY W JAROSŁAWIU","IRAN","IR","IRAN","KZT","TENGE"]
["0214","DOBROSZYCE","0214032","08","ŻAGAŃSKI","0810",null,null,"URZĄD SKARBOWY W JANOWIE LUBELSKIM","0606","URZĄD SKARBOWY W JASTRZĘBIU-ZDROJU","IRLANDIA","IE","IRLANDIA","LAK","KIP"]
["0214","DZIADOWA KŁODA","0214042","08","ŻARSKI","0811",null,null,"URZĄD SKARBOWY W JAROCINIE","3006","URZĄD SKARBOWY W JAŚLE","ISLANDIA","IS","ISLANDIA","LBP","FUNT LIBAŃSKI"]
["0214","MIĘDZYBÓRZ","0214053","08","WSCHOWSKI","0812",null,null,"URZĄD SKARBOWY W JAROSŁAWIU","1804","URZĄD SKARBOWY W JAWORZE","IZRAEL","IL","IZRAEL","LKR","RUPIA LANKIJSKA"]
["0214","OLEŚNICA-MIEJSKA","0214062","08","M.GORZÓW WIELKOPOLSKI","0861",null,null,"URZĄD SKARBOWY W JASTRZĘBIU-ZDROJU","2414","URZĄD SKARBOWY W JAWORZNIE","JAMAJKA","JM","JAMAJKA","LRD","DOLAR LIBERYJSKI"]
["0214","SYCÓW","0214073","08","M.ZIELONA GÓRA","0862",null,null,"URZĄD SKARBOWY W JAŚLE","1805","URZĄD SKARBOWY W JELENIEJ GÓRZE","JAPONIA","JP","JAPONIA","LSL","LOTI"]
["0214","TWARDOGÓRA","0214083","10","BEŁCHATOWSKI","1001",null,null,"URZĄD SKARBOWY W JAWORZE","0206","URZĄD SKARBOWY W JĘDRZEJOWIE","JEMEN","YE","JEMEN","LYD","DINAR LIBIJSKI"]
["0215","OŁAWA-MIEJSKA","0215011","10","KUTNOWSKI","1002",null,null,"URZĄD SKARBOWY W JAWORZNIE","2415","PIERWSZY URZĄD SKARBOWY W KALISZU","JERSEY","JE","JERSEY","MAD","DIRHAM MAROKAŃSKI"]
["0215","DOMANIÓW","0215022","10","ŁASKI","1003",null,null,"URZĄD SKARBOWY W JELENIEJ GÓRZE","0207","DRUGI URZĄD SKARBOWY W KALISZU","JORDANIA","JO","JORDANIA","MDL","LEJ MOŁDAWII"]
["0215","JELCZ-LASKOWICE","0215033","10","ŁĘCZYCKI","1004",null,null,"URZĄD SKARBOWY W JĘDRZEJOWIE","2603","URZĄD SKARBOWY W KAMIENIU POMORSKIM","KAJMANY","KY","KAJMANY","MGA","ARIARY"]
["0215","OŁAWA-WIEJSKA","0215042","10","ŁOWICKI","1005",null,null,"URZĄD SKARBOWY W WEJHEROWIE","2220","URZĄD SKARBOWY W KAMIENNEJ GÓRZE","KAMBODŻA","KH","KAMBODŻA","MKD","DENAR"]
["0216","CHOCIANÓW","0216013","10","ŁÓDZKI WSCHODNI","1006",null,null,"PIERWSZY URZĄD SKARBOWY W KALISZU","3007","URZĄD SKARBOWY W KARTUZACH","KAMERUN","CM","KAMERUN","MMK","KYAT"]
["0216","GAWORZYCE","0216022","10","OPOCZYŃSKI","1007",null,null,"DRUGI URZĄD SKARBOWY W KALISZU","3008","PIERWSZY URZĄD SKARBOWY W KATOWICACH","KANADA","CA","KANADA","MNT","TUGRIK"]
["0216","GRĘBOCICE","0216032","10","PABIANICKI","1008",null,null,"DRUGI WIELKOPOLSKI URZĄD SKARBOWY W KALISZU","3072","DRUGI URZĄD SKARBOWY W KATOWICACH","KATAR","QA","KATAR","MOP","PATACA"]
["0216","POLKOWICE","0216043","10","PAJĘCZAŃSKI","1009",null,null,"URZĄD SKARBOWY W KAMIENIU POMORSKIM","3208","URZĄD SKARBOWY W KAZIMIERZY WIELKIEJ","KAZACHSTAN","KZ","KAZACHSTAN","MRU","OUGUIYA"]
["0216","PRZEMKÓW","0216053","10","PIOTRKOWSKI","1010",null,null,"URZĄD SKARBOWY W KAMIENNEJ GÓRZE","0208","URZĄD SKARBOWY W KĘDZIERZYNIE-KOŹLU","KENIA","KE","KENIA","MUR","RUPIA MAURITIUSU"]
["0216","RADWANICE","0216062","10","PODDĘBICKI","1011",null,null,"URZĄD SKARBOWY W KARTUZACH","2210","URZĄD SKARBOWY W KĘPNIE","KIRGISTAN","KG","KIRGISTAN","MVR","RUPIA MALEDIWSKA"]
["0217","BORÓW","0217012","10","RADOMSZCZAŃSKI","1012",null,null,"PIERWSZY URZĄD SKARBOWY W KATOWICACH","2416","URZĄD SKARBOWY W KĘTRZYNIE","KIRIBATI","KI","KIRIBATI","MWK","KWACHA MALAWIJSKA"]
["0217","KONDRATOWICE","0217022","10","RAWSKI","1013",null,null,"DRUGI URZĄD SKARBOWY W KATOWICACH","2417","PIERWSZY URZĄD SKARBOWY W KIELCACH","KOLUMBIA","CO","KOLUMBIA","MXN","PESO MEKSYKAŃSKIE"]
["0217","PRZEWORNO","0217032","10","SIERADZKI","1014",null,null,"URZĄD SKARBOWY W KAZIMIERZY WIELKIEJ","2614","DRUGI URZĄD SKARBOWY W KIELCACH","KOMORY","KM","KOMORY","MXV","UNIDAD DE INVERSION (UDI) MEKSYKAŃSKIE"]
["0217","STRZELIN","0217043","10","SKIERNIEWICKI","1015",null,null,"URZĄD SKARBOWY W KĘDZIERZYNIE-KOŹLU","1604","URZĄD SKARBOWY W KLUCZBORKU","KONGO","CG","KONGO","MYR","RINGGIT"]
["0217","WIĄZÓW","0217053","10","TOMASZOWSKI","1016",null,null,"URZĄD SKARBOWY W KĘPNIE","3009","URZĄD SKARBOWY W KŁOBUCKU","KONGO, REPUBLIKA DEMOKRATYCZNA","CD","KONGO, REPUBLIKA DEMOKRATYCZNA","MZN","METICAL"]
["0218","KOSTOMŁOTY","0218012","10","WIELUŃSKI","1017",null,null,"URZĄD SKARBOWY W KĘTRZYNIE","2809","URZĄD SKARBOWY W KŁODZKU","KOREAŃSKA REPUBLIKA LUDOWO-DEMOKRATYCZNA","KP","KOREAŃSKA REPUBLIKA LUDOWO-DEMOKRATYCZNA","NAD","DOLAR NAMIBIJSKI"]
["0218","MALCZYCE","0218022","10","WIERUSZOWSKI","1018",null,null,"PIERWSZY URZĄD SKARBOWY W KIELCACH","2604","URZĄD SKARBOWY W KOLBUSZOWEJ","KOSOWO","XK","KOSOWO","NGN","NAIRA"]
["0218","MIĘKINIA","0218032","10","ZDUŃSKOWOLSKI","1019",null,null,"DRUGI URZĄD SKARBOWY W KIELCACH","2605","URZĄD SKARBOWY W KOLE","KOSTARYKA","CR","KOSTARYKA","NIO","CORDOBA ORO"]
["0218","ŚRODA ŚLĄSKA","0218043","10","ZGIERSKI","1020",null,null,"URZĄD SKARBOWY W KLUCZBORKU","1605","URZĄD SKARBOWY W KOLNIE","KUBA","CU","KUBA","NOK","KORONA NORWESKA"]
["0218","UDANIN","0218052","10","BRZEZIŃSKI","1021",null,null,"URZĄD SKARBOWY W KŁOBUCKU","2418","URZĄD SKARBOWY W KOŁOBRZEGU","KUWEJT","KW","KUWEJT","NPR","RUPIA NEPALSKA"]
["0219","ŚWIDNICA-MIEJSKA","0219011","10","M.ŁÓDŹ","1061",null,null,"URZĄD SKARBOWY W KŁODZKU","0209","URZĄD SKARBOWY W KONINIE","LAOS","LA","LAOS","NZD","DOLAR NOWOZELANDZKI"]
["0219","ŚWIEBODZICE","0219021","10","M.PIOTRKÓW TRYBUNALSKI","1062",null,null,"URZĄD SKARBOWY W KOLBUSZOWEJ","1806","URZĄD SKARBOWY W KOŃSKICH","LESOTHO","LS","LESOTHO","OMR","RIAL OMAŃSKI"]
["0219","DOBROMIERZ","0219032","10","M.SKIERNIEWICE","1063",null,null,"URZĄD SKARBOWY W KOLE","3010","PIERWSZY URZĄD SKARBOWY W KOSZALINIE","LIBAN","LB","LIBAN","PAB","BALBOA"]
["0219","JAWORZYNA ŚLĄSKA","0219043","12","BOCHEŃSKI","1201",null,null,"URZĄD SKARBOWY W KOLNIE","2007","DRUGI URZĄD SKARBOWY W KOSZALINIE","LIBERIA","LR","LIBERIA","PEN","SOL"]
["0219","MARCINOWICE","0219052","12","BRZESKI ","1202",null,null,"URZĄD SKARBOWY W KOŁOBRZEGU","3209","URZĄD SKARBOWY W KOŚCIANIE","LIBIA","LY","LIBIA","PGK","KINA"]
["0219","STRZEGOM","0219063","12","CHRZANOWSKI","1203",null,null,"URZĄD SKARBOWY W KONINIE","3011","URZĄD SKARBOWY W KOŚCIERZYNIE","LIECHTENSTEIN","LI","LIECHTENSTEIN","PHP","PESO FILIPIŃSKIE"]
["0219","ŚWIDNICA-WIEJSKA","0219072","12","DĄBROWSKI","1204",null,null,"URZĄD SKARBOWY W KOŃSKICH","2606","URZĄD SKARBOWY W KOZIENICACH","LITWA","LT","LITWA","PKR","RUPIA PAKISTAŃSKA"]
["0219","ŻARÓW","0219083","12","GORLICKI","1205",null,null,"PIERWSZY URZĄD SKARBOWY W KOSZALINIE","3210","PIERWSZY URZĄD SKARBOWY KRAKÓW","ŁOTWA","LV","ŁOTWA","PYG","GUARANI"]
["0220","OBORNIKI ŚLĄSKIE","0220013","12","KRAKOWSKI","1206",null,null,"DRUGI URZĄD SKARBOWY W KOSZALINIE","3211","DRUGI URZĄD SKARBOWY KRAKÓW","LUKSEMBURG","LU","LUKSEMBURG","QAR","RIAL KATARSKI"]
["0220","PRUSICE","0220023","12","LIMANOWSKI","1207",null,null,"URZĄD SKARBOWY W KOŚCIANIE","3012","URZĄD SKARBOWY KRAKÓW-KROWODRZA","MACEDONIA","MK","MACEDONIA","RON","LEJ RUMUŃSKI"]
["0220","TRZEBNICA","0220033","12","MIECHOWSKI","1208",null,null,"URZĄD SKARBOWY W KOŚCIERZYNIE","2211","URZĄD SKARBOWY KRAKÓW-NOWA HUTA","MADAGASKAR","MG","MADAGASKAR","RSD","DINAR SERBSKI"]
["0220","WISZNIA MAŁA","0220042","12","MYŚLENICKI","1209",null,null,"URZĄD SKARBOWY W KOZIENICACH","1408","URZĄD SKARBOWY KRAKÓW-PODGÓRZE","MAJOTTA","YT","MAJOTTA","RUB","RUBEL ROSYJSKI"]
["0220","ZAWONIA","0220052","12","NOWOSĄDECKI","1210",null,null,"PIERWSZY URZĄD SKARBOWY KRAKÓW","1207","URZĄD SKARBOWY KRAKÓW-PRĄDNIK","MAKAU","MO","MAKAU","RWF","FRANK RWANDYJSKI"]
["0220","ŻMIGRÓD","0220063","12","NOWOTARSKI","1211",null,null,"URZĄD SKARBOWY KRAKÓW-KROWODRZA","1208","URZĄD SKARBOWY KRAKÓW-STARE MIASTO","MALAWI","MW","MALAWI","SAR","RIAL SAUDYJSKI"]
["0221","BOGUSZÓW-GORCE","0221011","12","OLKUSKI","1212",null,null,"URZĄD SKARBOWY KRAKÓW-NOWA HUTA","1209","URZĄD SKARBOWY KRAKÓW-ŚRÓDMIEŚCIE","MALEDIWY","MV","MALEDIWY","SBD","DOLAR WYSP SALOMONA"]
["0221","JEDLINA-ZDRÓJ","0221021","12","OŚWIĘCIMSKI","1213",null,null,"URZĄD SKARBOWY KRAKÓW-PODGÓRZE","1210","URZĄD SKARBOWY W KRAPKOWICACH","MALEZJA","MY","MALEZJA","SCR","RUPIA SESZELSKA"]
["0221","SZCZAWNO-ZDRÓJ","0221031","12","PROSZOWICKI","1214",null,null,"URZĄD SKARBOWY KRAKÓW-PRĄDNIK","1211","URZĄD SKARBOWY W KRASNYMSTAWIE","MALI","ML","MALI","SDG","FUNT SUDAŃSKI"]
["0221","CZARNY BÓR","0221042","12","SUSKI","1215",null,null,"URZĄD SKARBOWY KRAKÓW-STARE MIASTO","1212","URZĄD SKARBOWY W KRAŚNIKU","MALTA","MT","MALTA","SEK","KORONA SZWEDZKA"]
["0221","GŁUSZYCA","0221053","12","TARNOWSKI","1216",null,null,"URZĄD SKARBOWY KRAKÓW-ŚRÓDMIEŚCIE","1213","URZĄD SKARBOWY W KROŚNIE","MARIANY PÓŁNOCNE","MP","MARIANY PÓŁNOCNE","SGD","DOLAR SINGAPURSKI"]
["0221","MIEROSZÓW","0221063","12","TATRZAŃSKI","1217",null,null,"DRUGI URZĄD SKARBOWY KRAKÓW","1228","URZĄD SKARBOWY W KROŚNIE ODRZAŃSKIM","MAROKO","MA","MAROKO","SHP","FUNT ŚWIĘTEJ HELENY (ŚWIĘTA HELENA I WYSPA WNIEBOWSTĄPIENIA)"]
["0221","STARE BOGACZOWICE","0221072","12","WADOWICKI","1218",null,null,"URZĄD SKARBOWY W KRAPKOWICACH","1613","URZĄD SKARBOWY W KROTOSZYNIE","MARTYNIKA","MQ","MARTYNIKA","SLL","LEONE"]
["0221","WALIM","0221082","12","WIELICKI","1219",null,null,"URZĄD SKARBOWY W KRASNYMSTAWIE","0607","URZĄD SKARBOWY W KUTNIE","MAURETANIA","MR","MAURETANIA","SOS","SZYLING SOMALIJSKI"]
["0222","BRZEG DOLNY","0222013","12","M.KRAKÓW","1261",null,null,"URZĄD SKARBOWY W KRAŚNIKU","0608","URZĄD SKARBOWY W KWIDZYNIE","MAURITIUS","MU","MAURITIUS","SRD","DOLAR SURINAMSKI"]
["0222","WIŃSKO","0222022","12","M.NOWY SĄCZ","1262",null,null,"URZĄD SKARBOWY W KROŚNIE","1807","URZĄD SKARBOWY W LEGIONOWIE","MEKSYK","MX","MEKSYK","SSP","FUNT POŁUDNIOWOSUDAŃSKI"]
["0222","WOŁÓW","0222033","12","M.TARNÓW","1263",null,null,"URZĄD SKARBOWY W KROŚNIE ODRZAŃSKIM","0803","URZĄD SKARBOWY W LEGNICY","MELILLA","XL","MELILLA","STN","DOBRA"]
["0223","CZERNICA","0223012","14","BIAŁOBRZESKI","1401",null,null,"URZĄD SKARBOWY W KROTOSZYNIE","3013","URZĄD SKARBOWY W LESKU","MIKRONEZJA","FM","MIKRONEZJA","SVC","COLON SALWADORSKI (SV1)"]
["0223","DŁUGOŁĘKA","0223022","14","CIECHANOWSKI","1402",null,null,"URZĄD SKARBOWY W KUTNIE","1005","URZĄD SKARBOWY W LESZNIE","MINOR","UM","MINOR","SYP","FUNT SYRYJSKI"]
["0223","JORDANÓW ŚLĄSKI","0223032","14","GARWOLIŃSKI","1403",null,null,"URZĄD SKARBOWY W KWIDZYNIE","2212","URZĄD SKARBOWY W LEŻAJSKU","MOŁDOWA","MD","MOŁDOWA","SZL","LILANGENI"]
["0223","KĄTY WROCŁAWSKIE","0223043","14","GOSTYNIŃSKI","1404",null,null,"URZĄD SKARBOWY W LEGIONOWIE","1409","URZĄD SKARBOWY W LĘBORKU","MONAKO","MC","MONAKO","THB","BAT"]
["0223","KOBIERZYCE","0223052","14","GRODZISKI ","1405",null,null,"URZĄD SKARBOWY W LEGNICY","0210","URZĄD SKARBOWY W LIMANOWEJ","MONGOLIA","MN","MONGOLIA","TJS","SOMONI"]
["0223","MIETKÓW","0223062","14","GRÓJECKI","1406",null,null,"URZĄD SKARBOWY W LESKU","1808","URZĄD SKARBOWY W LIPNIE","MONTSERRAT","MS","MONTSERRAT","TMT","MANAT TURKMEŃSKI"]
["0223","SOBÓTKA","0223073","14","KOZIENICKI","1407",null,null,"URZĄD SKARBOWY W LESZNIE","3014","URZĄD SKARBOWY W LIPSKU","MOZAMBIK","MZ","MOZAMBIK","TND","DINAR TUNEZYJSKI"]
["0223","SIECHNICE","0223083","14","LEGIONOWSKI","1408",null,null,"URZĄD SKARBOWY W LEŻAJSKU","1809","URZĄD SKARBOWY W LUBACZOWIE","MYANMAR (BURMA)","MM","MYANMAR (BURMA)","TOP","PAANGA"]
["0223","ŻÓRAWINA","0223092","14","LIPSKI","1409",null,null,"URZĄD SKARBOWY W LĘBORKU","2213","URZĄD SKARBOWY W LUBANIU","NAMIBIA","NA","NAMIBIA","TRY","LIRA TURECKA"]
["0224","BARDO","0224013","14","ŁOSICKI","1410",null,null,"URZĄD SKARBOWY W LIMANOWEJ","1214","URZĄD SKARBOWY W LUBARTOWIE","NAURU","NR","NAURU","TTD","DOLAR TRYNIDADU I TOBAGO"]
["0224","CIEPŁOWODY","0224022","14","MAKOWSKI","1411",null,null,"URZĄD SKARBOWY W LIPNIE","0410","URZĄD SKARBOWY W LUBINIE","NEPAL","NP","NEPAL","TWD","NOWY DOLAR TAJWAŃSKI"]
["0224","KAMIENIEC ZĄBKOWICKI","0224033","14","MIŃSKI","1412",null,null,"URZĄD SKARBOWY W LIPSKU","1447","PIERWSZY URZĄD SKARBOWY W LUBLINIE","NIDERLANDY (HOLANDIA)","NL","NIDERLANDY (HOLANDIA)","TZS","SZYLING TANZAŃSKI"]
["0224","STOSZOWICE","0224042","14","MŁAWSKI","1413",null,null,"URZĄD SKARBOWY W LUBACZOWIE","1810","DRUGI URZĄD SKARBOWY W LUBLINIE","NIEMCY","DE","NIEMCY","UAH","HRYWNA"]
["0224","ZĄBKOWICE ŚLĄSKIE","0224053","14","NOWODWORSKI ","1414",null,null,"URZĄD SKARBOWY W LUBANIU","0211","TRZECI URZĄD SKARBOWY W LUBLINIE","NIGER","NE","NIGER","UGX","SZYLING UGANDYJSKI"]
["0224","ZIĘBICE","0224063","14","OSTROŁĘCKI","1415",null,null,"URZĄD SKARBOWY W LUBARTOWIE","0609","URZĄD SKARBOWY W LUBLIŃCU","NIGERIA","NG","NIGERIA","USD","DOLAR AMERYKAŃSKI"]
["0224","ZŁOTY STOK","0224073","14","OSTROWSKI ","1416",null,null,"URZĄD SKARBOWY W LUBINIE","0212","URZĄD SKARBOWY W LWÓWKU ŚLĄSKIM","NIKARAGUA","NI","NIKARAGUA","USN","DOLAR AMERYKAŃSKI (NEXT DAY)"]
["0225","ZAWIDÓW","0225011","14","OTWOCKI","1417",null,null,"PIERWSZY URZĄD SKARBOWY W LUBLINIE","0610","URZĄD SKARBOWY W ŁAŃCUCIE","NIUE","NU","NIUE","UYI","PESO EN UNIDADES INDEXADAS URUGWAJSKIE"]
["0225","ZGORZELEC-MIEJSKA","0225021","14","PIASECZYŃSKI","1418",null,null,"DRUGI URZĄD SKARBOWY W LUBLINIE","0611","URZĄD SKARBOWY W ŁASKU","NORFOLK","NF","NORFOLK","UYU","PESO URUGWAJSKIE"]
["0225","BOGATYNIA","0225033","14","PŁOCKI","1419",null,null,"TRZECI URZĄD SKARBOWY W LUBLINIE","0612","URZĄD SKARBOWY W ŁĘCZNEJ","NORWEGIA","NO","NORWEGIA","UYW","PESO EN UNIDADES INDEXADAS URUGWAJSKIE"]
["0225","PIEŃSK","0225043","14","PŁOŃSKI","1420",null,null,"LUBELSKI URZĄD SKARBOWY W LUBLINIE","0671","URZĄD SKARBOWY W ŁĘCZYCY","NOWA KALEDONIA","NC","NOWA KALEDONIA","UZS","SUM"]
["0225","SULIKÓW","0225052","14","PRUSZKOWSKI","1421",null,null,"URZĄD SKARBOWY W LUBLIŃCU","2419","URZĄD SKARBOWY W ŁOMŻY","NOWA ZELANDIA","NZ","NOWA ZELANDIA","VES","BOLIWAR SOBERANO "]
["0225","WĘGLINIEC","0225063","14","PRZASNYSKI","1422",null,null,"URZĄD SKARBOWY W LWÓWKU ŚLĄSKIM","0213","URZĄD SKARBOWY W ŁOSICACH","OKUPOWANE TERYTORIUM PALESTYNY","PS","OKUPOWANE TERYTORIUM PALESTYNY","VND","DONG"]
["0225","ZGORZELEC-WIEJSKA","0225072","14","PRZYSUSKI","1423",null,null,"URZĄD SKARBOWY W ŁAŃCUCIE","1811","URZĄD SKARBOWY W ŁOWICZU","OMAN","OM","OMAN","VUV","VATU"]
["0226","WOJCIESZÓW","0226011","14","PUŁTUSKI","1424",null,null,"URZĄD SKARBOWY W ŁASKU","1006","PIERWSZY URZĄD SKARBOWY ŁÓDŹ-BAŁUTY","PAKISTAN","PK","PAKISTAN","WST","TALA"]
["0226","ZŁOTORYJA-MIEJSKA","0226021","14","RADOMSKI","1425",null,null,"URZĄD SKARBOWY W ŁĘCZNEJ","0621","DRUGI URZĄD SKARBOWY ŁÓDŹ-BAŁUTY","PALAU","PW","PALAU","XAF","FRANK CFA (BEAC)"]
["0226","PIELGRZYMKA","0226032","14","SIEDLECKI","1426",null,null,"URZĄD SKARBOWY W ŁĘCZYCY","1028","PIERWSZY URZĄD SKARBOWY ŁÓDŹ-GÓRNA","PANAMA","PA","PANAMA","XAG","SREBRO"]
["0226","ŚWIERZAWA","0226043","14","SIERPECKI","1427",null,null,"URZĄD SKARBOWY W ŁOMŻY","2008","DRUGI URZĄD SKARBOWY ŁÓDŹ-GÓRNA","PAPUA NOWA GWINEA","PG","PAPUA NOWA GWINEA","XAU","ZŁOTO"]
["0226","ZAGRODNO","0226052","14","SOCHACZEWSKI","1428",null,null,"URZĄD SKARBOWY W ŁOSICACH","1410","URZĄD SKARBOWY ŁÓDŹ-POLESIE","PARAGWAJ","PY","PARAGWAJ","XBA","BOND MARKETS UNIT EUROPEAN COMPOSITE UNIT (EURCO)"]
["0226","ZŁOTORYJA-WIEJSKA","0226062","14","SOKOŁOWSKI","1429",null,null,"URZĄD SKARBOWY W ŁOWICZU","1007","URZĄD SKARBOWY ŁÓDŹ-ŚRÓDMIEŚCIE","PERU","PE","PERU","XBB","BOND MARKETS UNIT EUROPEAN MONETARY UNIT (E.M.U.-6)"]
["0261","M.JELENIA GÓRA","0261011","14","SZYDŁOWIECKI","1430",null,null,"PIERWSZY URZĄD SKARBOWY ŁÓDŹ-BAŁUTY","1008","URZĄD SKARBOWY ŁÓDŹ-WIDZEW","PITCAIRN","PN","PITCAIRN","XBC","BOND MARKETS UNIT EUROPEAN UNIT OF ACCOUNT 9 (E.U.A.-9)"]
["0262","M.LEGNICA","0262011","14","WARSZAWSKI ZACHODNI","1432",null,null,"DRUGI URZĄD SKARBOWY ŁÓDŹ-BAŁUTY","1009","URZĄD SKARBOWY W ŁUKOWIE","POLINEZJA FRANCUSKA","PF","POLINEZJA FRANCUSKA","XBD","BOND MARKETS UNIT EUROPEAN UNIT OF ACCOUNT 17 (E.U.A.-17)"]
["0264","M.WROCŁAW","0264011","14","WĘGROWSKI","1433",null,null,"PIERWSZY URZĄD SKARBOWY ŁÓDŹ-GÓRNA","1010","URZĄD SKARBOWY W MAKOWIE MAZOWIECKIM","POŁUDNIOWA GEORGIA I POŁUD.WYSPY SANDWICH","GS","POŁUDNIOWA GEORGIA I POŁUD.WYSPY SANDWICH","XCD","DOLAR WSCHODNIO­KARAIBSKI"]
["0265","WAŁBRZYCH","0265011","14","WOŁOMIŃSKI","1434",null,null,"DRUGI URZĄD SKARBOWY ŁÓDŹ-GÓRNA","1011","URZĄD SKARBOWY W MALBORKU","PORTUGALIA","PT","PORTUGALIA","XDR","SDR MIĘDZYNARODOWY FUNDUSZ WALUTOWY"]
["0401","ALEKSANDRÓW KUJAWSKI-MIEJSKA","0401011","14","WYSZKOWSKI","1435",null,null,"URZĄD SKARBOWY ŁÓDŹ-POLESIE","1012","URZĄD SKARBOWY W MIECHOWIE","PORTORYKO","PR","PORTORYKO","XOF","FRANK CFA (BCEAO)"]
["0401","CIECHOCINEK","0401021","14","ZWOLEŃSKI","1436",null,null,"URZĄD SKARBOWY ŁÓDŹ-ŚRÓDMIEŚCIE","1013","URZĄD SKARBOWY W MIELCU","REP.ŚRODKOWOAFRYKAŃSKA","CF","REP.ŚRODKOWOAFRYKAŃSKA","XPD","PALLAD"]
["0401","NIESZAWA","0401031","14","ŻUROMIŃSKI","1437",null,null,"URZĄD SKARBOWY ŁÓDŹ-WIDZEW","1014","URZĄD SKARBOWY W MIĘDZYCHODZIE","REPUBLIKA CZESKA","CZ","REPUBLIKA CZESKA","XPF","FRANK CFP"]
["0401","ALEKSANDRÓW KUJAWSKI-WIEJSKA","0401042","14","ŻYRARDOWSKI","1438",null,null,"ŁÓDZKI URZĄD SKARBOWY W ŁODZI","1071","URZĄD SKARBOWY W MIĘDZYRZECZU","REPUBLIKA KOREI","KR","REPUBLIKA KOREI","XPT","PLATYNA"]
["0401","BĄDKOWO","0401052","14","M.OSTROŁĘKA","1461",null,null,"URZĄD SKARBOWY W ŁUKOWIE","0613","URZĄD SKARBOWY W MIKOŁOWIE","REPUBLIKA POŁUDNIOWEJ AFRYKI","ZA","REPUBLIKA POŁUDNIOWEJ AFRYKI","XSU","SUCRE SISTEMA UNITARIO DE COMPENSACION REGIONAL DE PAGOS SUCRE"]
["0401","KONECK","0401062","14","M.PŁOCK","1462",null,null,"URZĄD SKARBOWY W MAKOWIE MAZOWIECKIM","1411","URZĄD SKARBOWY W MILICZU","REUNION","RE","REUNION","XUA","ADB UNIT OF ACCOUNT MEMBER COUNTRIES OF THE AFRICAN DEVELOPMENT BANK GROUP"]
["0401","RACIĄŻEK","0401072","14","M.RADOM","1463",null,null,"URZĄD SKARBOWY W MALBORKU","2214","URZĄD SKARBOWY W MIŃSKU MAZOWIECKIM","ROSJA","RU","ROSJA","XXX","BRAK WALUTY"]
["0401","WAGANIEC","0401082","14","M.SIEDLCE","1464",null,null,"MAŁOPOLSKI URZĄD SKARBOWY W KRAKOWIE","1271","URZĄD SKARBOWY W MŁAWIE","RUMUNIA","RO","RUMUNIA","YER","RIAL JEMEŃSKI"]
["0401","ZAKRZEWO","0401092","14","M.ST.WARSZAWA","1465",null,null,"URZĄD SKARBOWY W MIECHOWIE","1215","URZĄD SKARBOWY W MOGILNIE","RWANDA","RW","RWANDA","ZAR","RAND"]
["0402","BRODNICA","0402011","16","BRZESKI","1601",null,null,"URZĄD SKARBOWY W MIELCU","1812","URZĄD SKARBOWY W MOŃKACH","SAHARA ZACHODNIA","EH","SAHARA ZACHODNIA","ZMW","KWACHA ZAMBIJSKA"]
["0402","BOBROWO","0402022","16","GŁUBCZYCKI","1602",null,null,"URZĄD SKARBOWY W MIĘDZYCHODZIE","3015","URZĄD SKARBOWY W MYSŁOWICACH","SAINT BARTHELEMY","BL","SAINT BARTHELEMY","ZWL","DOLAR ZIMBABWE"]
["0402","BRODNICA-MIEJSKA","0402032","16","KĘDZIERZYŃSKO-KOZIELSKI","1603",null,null,"URZĄD SKARBOWY W MIĘDZYRZECZU","0804","URZĄD SKARBOWY W MYSZKOWIE","SAINT KITTS I NEVIS","KN","SAINT KITTS I NEVIS"]
["0402","BRZOZIE","0402042","16","KLUCZBORSKI","1604",null,null,"URZĄD SKARBOWY W MIKOŁOWIE","2420","URZĄD SKARBOWY W MYŚLENICACH","SAINT LUCIA","LC","SAINT LUCIA"]
["0402","GÓRZNO","0402053","16","KRAPKOWICKI","1605",null,null,"URZĄD SKARBOWY W MILICZU","0214","URZĄD SKARBOWY W MYŚLIBORZU","SAINT MARTIN","MF","SAINT MARTIN"]
["0402","BARTNICZKA","0402062","16","NAMYSŁOWSKI","1606",null,null,"URZĄD SKARBOWY W MIŃSKU MAZOWIECKIM","1412","URZĄD SKARBOWY W NAKLE NAD NOTECIĄ","SAINT VINCENT I GRENADYNY","VC","SAINT VINCENT I GRENADYNY"]
["0402","JABŁONOWO POMORSKIE","0402073","16","NYSKI","1607",null,null,"URZĄD SKARBOWY W MŁAWIE","1413","URZĄD SKARBOWY W NAMYSŁOWIE","SALWADOR","SV","SALWADOR"]
["0402","OSIEK","0402082","16","OLESKI","1608",null,null,"URZĄD SKARBOWY W MOGILNIE","0411","URZĄD SKARBOWY W NIDZICY","SAMOA","WS","SAMOA"]
["0402","ŚWIEDZIEBNIA","0402092","16","OPOLSKI","1609",null,null,"URZĄD SKARBOWY W MOŃKACH","2009","URZĄD SKARBOWY W NISKU","SAMOA AMERYKAŃSKIE","AS","SAMOA AMERYKAŃSKIE"]
["0402","ZBICZNO","0402102","16","PRUDNICKI","1610",null,null,"URZĄD SKARBOWY W MYSŁOWICACH","2421","URZĄD SKARBOWY W NOWEJ RUDZIE","SAN MARINO","SM","SAN MARINO"]
["0403","BIAŁE BŁOTA","0403012","16","STRZELECKI","1611",null,null,"URZĄD SKARBOWY W MYSZKOWIE","2422","URZĄD SKARBOWY W NOWEJ SOLI","SENEGAL","SN","SENEGAL"]
["0403","DĄBROWA CHEŁMIŃSKA","0403022","16","M.OPOLE","1661",null,null,"URZĄD SKARBOWY W MYŚLENICACH","1216","URZĄD SKARBOWY W NOWYM DWORZE MAZOWIECKIM","SERBIA","RS","SERBIA"]
["0403","DOBRCZ","0403032","18","BIESZCZADZKI","1801",null,null,"URZĄD SKARBOWY W MYŚLIBORZU","3212","URZĄD SKARBOWY W NOWYM MIEŚCIE LUBAWSKIM","SESZELE","SC","SESZELE"]
["0403","KORONOWO","0403043","18","BRZOZOWSKI","1802",null,null,"URZĄD SKARBOWY W NAKLE NAD NOTECIĄ","0412","URZĄD SKARBOWY W NOWYM SĄCZU","SIERRA LEONE","SL","SIERRA LEONE"]
["0403","NOWA WIEŚ WIELKA","0403052","18","DĘBICKI","1803",null,null,"URZĄD SKARBOWY W NAMYSŁOWIE","1606","URZĄD SKARBOWY W NOWYM TARGU","SINGAPUR","SG","SINGAPUR"]
["0403","OSIELSKO","0403062","18","JAROSŁAWSKI","1804",null,null,"URZĄD SKARBOWY W NIDZICY","2810","URZĄD SKARBOWY W NOWYM TOMYŚLU","SŁOWACJA","SK","SŁOWACJA"]
["0403","SICIENKO","0403072","18","JASIELSKI","1805",null,null,"URZĄD SKARBOWY W NISKU","1823","URZĄD SKARBOWY W NYSIE","SŁOWENIA","SI","SŁOWENIA"]
["0403","SOLEC KUJAWSKI","0403083","18","KOLBUSZOWSKI","1806",null,null,"URZĄD SKARBOWY W NOWEJ RUDZIE","0215","URZĄD SKARBOWY W OBORNIKACH","SOMALIA","SO","SOMALIA"]
["0404","CHEŁMNO-MIEJSKA","0404011","18","KROŚNIEŃSKI","1807",null,null,"URZĄD SKARBOWY W NOWEJ SOLI","0805","URZĄD SKARBOWY W OLECKU","SRI LANKA","LK","SRI LANKA"]
["0404","CHEŁMNO-WIEJSKA","0404022","18","LEŻAJSKI","1808",null,null,"URZĄD SKARBOWY W NOWYM DWORZE MAZOWIECKIM","1414","URZĄD SKARBOWY W OLEŚNICY","SAINT PIERRE I MIQUELON","PM","SAINT PIERRE I MIQUELON"]
["0404","KIJEWO KRÓLEWSKIE","0404032","18","LUBACZOWSKI","1809",null,null,"URZĄD SKARBOWY W NOWYM MIEŚCIE LUBAWSKIM","2811","URZĄD SKARBOWY W OLEŚNIE","STANY ZJEDNOCZONE AMERYKI","US","STANY ZJEDNOCZONE AMERYKI"]
["0404","LISEWO","0404042","18","ŁAŃCUCKI","1810",null,null,"URZĄD SKARBOWY W NOWYM SĄCZU","1217","URZĄD SKARBOWY W OLKUSZU","SUAZI","SZ","SUAZI"]
["0404","PAPOWO BISKUPIE","0404052","18","MIELECKI","1811",null,null,"URZĄD SKARBOWY W NOWYM TARGU","1218","URZĄD SKARBOWY W OLSZTYNIE","SUDAN","SD","SUDAN"]
["0404","STOLNO","0404062","18","NIŻAŃSKI","1812",null,null,"URZĄD SKARBOWY W NOWYM TOMYŚLU","3016","URZĄD SKARBOWY W OŁAWIE","SUDAN POŁUDNIOWY","SS","SUDAN POŁUDNIOWY"]
["0404","UNISŁAW","0404072","18","PRZEMYSKI","1813",null,null,"URZĄD SKARBOWY W NYSIE","1607","URZĄD SKARBOWY W OPATOWIE","SURINAM","SR","SURINAM"]
["0405","GOLUB-DOBRZYŃ-MIEJSKA","0405011","18","PRZEWORSKI","1814",null,null,"URZĄD SKARBOWY W OBORNIKACH","3038","URZĄD SKARBOWY W OPOCZNIE","SVALBARD I JAN MAYEN","SJ","SVALBARD I JAN MAYEN"]
["0405","CIECHOCIN","0405022","18","ROPCZYCKO-SĘDZISZOWSKI","1815",null,null,"URZĄD SKARBOWY W OLECKU","2812","PIERWSZY URZĄD SKARBOWY W OPOLU","ŚWIĘTA HELENA","SH","ŚWIĘTA HELENA"]
["0405","GOLUB-DOBRZYŃ-WIEJSKA","0405032","18","RZESZOWSKI","1816",null,null,"URZĄD SKARBOWY W OLEŚNICY","0216","DRUGI URZĄD SKARBOWY W OPOLU","SYRIA","SY","SYRIA"]
["0405","KOWALEWO POMORSKIE","0405043","18","SANOCKI","1817",null,null,"URZĄD SKARBOWY W OLEŚNIE","1608","URZĄD SKARBOWY W OPOLU LUBELSKIM","SZWAJCARIA","CH","SZWAJCARIA"]
["0405","RADOMIN","0405052","18","STALOWOWOLSKI","1818",null,null,"URZĄD SKARBOWY W OLKUSZU","1219","URZĄD SKARBOWY W OSTROŁĘCE","SZWECJA","SE","SZWECJA"]
["0405","ZBÓJNO","0405062","18","STRZYŻOWSKI","1819",null,null,"URZĄD SKARBOWY W OLSZTYNIE","2813","URZĄD SKARBOWY W OSTROWCU ŚWIĘTOKRZYSKIM","TADŻYKISTAN","TJ","TADŻYKISTAN"]
["0406","GRUDZIĄDZ","0406012","18","TARNOBRZESKI","1820",null,null,"WARMIŃSKO-MAZURSKI URZĄD SKARBOWY W OLSZTYNIE","2871","URZĄD SKARBOWY W OSTROWI MAZOWIECKIEJ","TAJLANDIA","TH","TAJLANDIA"]
["0406","GRUTA","0406022","18","LESKI","1821",null,null,"URZĄD SKARBOWY W OŁAWIE","0217","URZĄD SKARBOWY W OSTROWIE WIELKOPOLSKIM","TAJWAN","TW","TAJWAN"]
["0406","ŁASIN","0406033","18","M.KROSNO","1861",null,null,"URZĄD SKARBOWY W OPATOWIE","2607","URZĄD SKARBOWY W OSTRÓDZIE","TANZANIA","TZ","TANZANIA"]
["0406","RADZYŃ CHEŁMIŃSKI","0406043","18","M.PRZEMYŚL","1862",null,null,"URZĄD SKARBOWY W OPOCZNIE","1015","URZĄD SKARBOWY W OSTRZESZOWIE","TOGO","TG","TOGO"]
["0406","ROGÓŹNO","0406052","18","M.RZESZÓW","1863",null,null,"PIERWSZY URZĄD SKARBOWY W OPOLU","1609","URZĄD SKARBOWY W OŚWIĘCIMIU","TOKELAU","TK","TOKELAU"]
["0406","ŚWIECIE NAD OSĄ","0406062","18","M.TARNOBRZEG","1864",null,null,"DRUGI URZĄD SKARBOWY W OPOLU","1610","URZĄD SKARBOWY W OTWOCKU","TONGA","TO","TONGA"]
["0407","INOWROCŁAW-MIEJSKA","0407011","20","AUGUSTOWSKI","2001",null,null,"OPOLSKI URZĄD SKARBOWY W OPOLU","1671","URZĄD SKARBOWY W PABIANICACH","TRYNIDAD I TOBAGO","TT","TRYNIDAD I TOBAGO"]
["0407","DĄBROWA BISKUPIA","0407022","20","BIAŁOSTOCKI","2002",null,null,"URZĄD SKARBOWY W OPOLU LUBELSKIM","0614","URZĄD SKARBOWY W PAJĘCZNIE","TUNEZJA","TN","TUNEZJA"]
["0407","GNIEWKOWO","0407033","20","BIELSKI ","2003",null,null,"URZĄD SKARBOWY W OSTROŁĘCE","1415","URZĄD SKARBOWY W PARCZEWIE","TURCJA","TR","TURCJA"]
["0407","INOWROCŁAW-WIEJSKA","0407042","20","GRAJEWSKI","2004",null,null,"URZĄD SKARBOWY W OSTROWCU ŚWIĘTOKRZYSKIM","2608","URZĄD SKARBOWY W PIASECZNIE","TURKMENISTAN","TM","TURKMENISTAN"]
["0407","JANIKOWO","0407053","20","HAJNOWSKI","2005",null,null,"URZĄD SKARBOWY W OSTROWI MAZOWIECKIEJ","1416","URZĄD SKARBOWY W PIEKARACH ŚLĄSKICH","TUVALU","TV","TUVALU"]
["0407","KRUSZWICA","0407063","20","KOLNEŃSKI","2006",null,null,"URZĄD SKARBOWY W OSTROWIE WIELKOPOLSKIM","3017","URZĄD SKARBOWY W PILE","UGANDA","UG","UGANDA"]
["0407","PAKOŚĆ","0407073","20","ŁOMŻYŃSKI","2007",null,null,"URZĄD SKARBOWY W OSTRÓDZIE","2814","URZĄD SKARBOWY W PIŃCZOWIE","UKRAINA","UA","UKRAINA"]
["0407","ROJEWO","0407082","20","MONIECKI","2008",null,null,"URZĄD SKARBOWY W OSTRZESZOWIE","3018","URZĄD SKARBOWY W PIOTRKOWIE TRYBUNALSKIM","URUGWAJ","UY","URUGWAJ"]
["0407","ZŁOTNIKI KUJAWSKIE","0407092","20","SEJNEŃSKI","2009",null,null,"URZĄD SKARBOWY W OŚWIĘCIMIU","1220","URZĄD SKARBOWY W PISZU","UZBEKISTAN","UZ","UZBEKISTAN"]
["0408","LIPNO-MIEJSKA","0408011","20","SIEMIATYCKI","2010",null,null,"URZĄD SKARBOWY W OTWOCKU","1417","URZĄD SKARBOWY W PLESZEWIE","VANUATU","VU","VANUATU"]
["0408","BOBROWNIKI","0408022","20","SOKÓLSKI","2011",null,null,"URZĄD SKARBOWY W PABIANICACH","1016","URZĄD SKARBOWY W PŁOCKU","WALLIS I FUTUNA","WF","WALLIS I FUTUNA"]
["0408","CHROSTKOWO","0408032","20","SUWALSKI","2012",null,null,"URZĄD SKARBOWY W PAJĘCZNIE","1029","URZĄD SKARBOWY W PŁOŃSKU","WATYKAN","VA","WATYKAN"]
["0408","DOBRZYŃ NAD WISŁĄ","0408043","20","WYSOKOMAZOWIECKI","2013",null,null,"URZĄD SKARBOWY W PARCZEWIE","0615","URZĄD SKARBOWY W PODDĘBICACH","WĘGRY","HU","WĘGRY"]
["0408","KIKÓŁ","0408052","20","ZAMBROWSKI","2014",null,null,"URZĄD SKARBOWY W PIASECZNIE","1418","URZĄD SKARBOWY W POLKOWICACH","WENEZUELA","VE","WENEZUELA"]
["0408","LIPNO-WIEJSKA","0408062","20","M.BIAŁYSTOK","2061",null,null,"URZĄD SKARBOWY W PIEKARACH ŚLĄSKICH","2423","PIERWSZY URZĄD SKARBOWY W POZNANIU","WIELKA BRYTANIA","GB","WIELKA BRYTANIA"]
["0408","SKĘPE","0408073","20","M.ŁOMŻA","2062",null,null,"URZĄD SKARBOWY W PILE","3019","URZĄD SKARBOWY POZNAŃ-GRUNWALD","WIETNAM","VN","WIETNAM"]
["0408","TŁUCHOWO","0408082","20","M.SUWAŁKI","2063",null,null,"URZĄD SKARBOWY W PIŃCZOWIE","2609","URZĄD SKARBOWY POZNAŃ-JEŻYCE","WŁOCHY","IT","WŁOCHY"]
["0408","WIELGIE","0408092","22","BYTOWSKI","2201",null,null,"URZĄD SKARBOWY W PIOTRKOWIE TRYBUNALSKIM","1017","URZĄD SKARBOWY POZNAŃ-NOWE MIASTO","WSCHODNI TIMOR","TL","WSCHODNI TIMOR"]
["0409","DĄBROWA","0409012","22","CHOJNICKI","2202",null,null,"URZĄD SKARBOWY W PISZU","2815","URZĄD SKARBOWY POZNAŃ-WILDA","WYBRZEŻE KOŚCI SŁONIOWEJ","CI","WYBRZEŻE KOŚCI SŁONIOWEJ"]
["0409","JEZIORA WIELKIE","0409022","22","CZŁUCHOWSKI","2203",null,null,"URZĄD SKARBOWY W PLESZEWIE","3039","URZĄD SKARBOWY POZNAŃ-WINOGRADY","WYSPA BOUVETA","BV","WYSPA BOUVETA"]
["0409","MOGILNO","0409033","22","GDAŃSKI","2204",null,null,"URZĄD SKARBOWY W PŁOCKU","1419","URZĄD SKARBOWY W PROSZOWICACH","WYSPA BOŻEGO NARODZENIA","CX","WYSPA BOŻEGO NARODZENIA"]
["0409","STRZELNO","0409043","22","KARTUSKI","2205",null,null,"URZĄD SKARBOWY W PŁOŃSKU","1420","URZĄD SKARBOWY W PRUDNIKU","WYSPA MAN","IM","WYSPA MAN"]
["0410","KCYNIA","0410013","22","KOŚCIERSKI","2206",null,null,"URZĄD SKARBOWY W PODDĘBICACH","1018","URZĄD SKARBOWY W PRUSZCZU GDAŃSKIM","WYSPA SINT MAARTEN (CZĘŚĆ HOLENDERSKA WYSPY)","SX","WYSPA SINT MAARTEN (CZĘŚĆ HOLENDERSKA WYSPY)"]
["0410","MROCZA","0410023","22","KWIDZYŃSKI","2207",null,null,"PODLASKI URZĄD SKARBOWY W BIAŁYMSTOKU","2071","URZĄD SKARBOWY W PRUSZKOWIE","WYSPY COOKA","CK","WYSPY COOKA"]
["0410","NAKŁO NAD NOTECIĄ","0410033","22","LĘBORSKI","2208",null,null,"URZĄD SKARBOWY W POLKOWICACH","0234","URZĄD SKARBOWY W PRZASNYSZU","WYSPY DZIEWICZE-USA","VI","WYSPY DZIEWICZE-USA"]
["0410","SADKI","0410042","22","MALBORSKI","2209",null,null,"URZĄD SKARBOWY POZNAŃ-GRUNWALD","3020","URZĄD SKARBOWY W PRZEMYŚLU","WYSPY DZIEWICZE-W.B.","VG","WYSPY DZIEWICZE-W.B."]
["0410","SZUBIN","0410053","22","NOWODWORSKI","2210",null,null,"URZĄD SKARBOWY POZNAŃ-JEŻYCE","3021","URZĄD SKARBOWY W PRZEWORSKU","WYSPY HEARD I MCDONALD","HM","WYSPY HEARD I MCDONALD"]
["0411","RADZIEJÓW-MIEJSKA","0411011","22","PUCKI","2211",null,null,"URZĄD SKARBOWY POZNAŃ-NOWE MIASTO","3022","URZĄD SKARBOWY W PRZYSUSZE","WYSPY KOKOSOWE (KEELINGA)","CC","WYSPY KOKOSOWE (KEELINGA)"]
["0411","BYTOŃ","0411022","22","SŁUPSKI","2212",null,null,"PIERWSZY URZĄD SKARBOWY W POZNANIU","3023","URZĄD SKARBOWY W PSZCZYNIE","WYSPY MARSHALLA","MH","WYSPY MARSHALLA"]
["0411","DOBRE","0411032","22","STAROGARDZKI","2213",null,null,"URZĄD SKARBOWY POZNAŃ-WINOGRADY","3025","URZĄD SKARBOWY W PUCKU","WYSPY OWCZE","FO","WYSPY OWCZE"]
["0411","OSIĘCINY","0411042","22","TCZEWSKI","2214",null,null,"URZĄD SKARBOWY POZNAŃ-WILDA","3026","URZĄD SKARBOWY W PUŁAWACH","WYSPY SALOMONA","SB","WYSPY SALOMONA"]
["0411","PIOTRKÓW KUJAWSKI","0411053","22","WEJHEROWSKI","2215",null,null,"PIERWSZY WIELKOPOLSKI URZĄD SKARBOWY W POZNANIU","3071","URZĄD SKARBOWY W PUŁTUSKU","WYSPY ŚWIĘTEGO TOMASZA I KSIĄŻĘCA","ST","WYSPY ŚWIĘTEGO TOMASZA I KSIĄŻĘCA"]
["0411","RADZIEJÓW-WIEJSKA","0411062","22","SZTUMSKI","2216",null,null,"URZĄD SKARBOWY W PROSZOWICACH","1221","URZĄD SKARBOWY W PYRZYCACH","WYSPY TURKS I CAICOS","TC","WYSPY TURKS I CAICOS"]
["0411","TOPÓLKA","0411072","22","M.GDAŃSK","2261",null,null,"URZĄD SKARBOWY W PRUDNIKU","1611","URZĄD SKARBOWY W RACIBORZU","ZAMBIA","ZM","ZAMBIA"]
["0412","RYPIN-MIEJSKA","0412011","22","M.GDYNIA","2262",null,null,"URZĄD SKARBOWY W PRUSZCZU GDAŃSKIM","2221","PIERWSZY URZĄD SKARBOWY W RADOMIU","ZIELONY PRZYLĄDEK","CV","ZIELONY PRZYLĄDEK"]
["0412","BRZUZE","0412022","22","M.SŁUPSK","2263",null,null,"URZĄD SKARBOWY W PRUSZKOWIE","1421","DRUGI URZĄD SKARBOWY W RADOMIU","ZIMBABWE","ZW","ZIMBABWE"]
["0412","ROGOWO","0412032","22","M.SOPOT","2264",null,null,"URZĄD SKARBOWY W PRZASNYSZU","1422","URZĄD SKARBOWY W RADOMSKU","ZJEDNOCZONE EMIRATY ARABSKIE","AE","ZJEDNOCZONE EMIRATY ARABSKIE"]
["0412","RYPIN-WIEJSKA","0412042","24","BĘDZIŃSKI","2401",null,null,"URZĄD SKARBOWY W PRZEMYŚLU","1813","URZĄD SKARBOWY W RADZIEJOWIE","ZJEDNOCZONE KRÓLESTWO (IRLANDIA PÓŁNOCNA)","XI","ZJEDNOCZONE KRÓLESTWO (IRLANDIA PÓŁNOCNA)"]
["0412","SKRWILNO","0412052","24","BIELSKI","2402",null,null,"URZĄD SKARBOWY W PRZEWORSKU","1814","URZĄD SKARBOWY W RADZYNIU PODLASKIM"]
["0412","WĄPIELSK","0412062","24","CIESZYŃSKI","2403",null,null,"URZĄD SKARBOWY W PRZYSUSZE","1448","URZĄD SKARBOWY W RAWICZU"]
["0413","KAMIEŃ KRAJEŃSKI","0413013","24","CZĘSTOCHOWSKI","2404",null,null,"URZĄD SKARBOWY W PSZCZYNIE","2424","URZĄD SKARBOWY W RAWIE MAZOWIECKIEJ"]
["0413","SĘPÓLNO KRAJEŃSKIE","0413023","24","GLIWICKI","2405",null,null,"URZĄD SKARBOWY W PUCKU","2215","URZĄD SKARBOWY W ROPCZYCACH"]
["0413","SOŚNO","0413032","24","KŁOBUCKI","2406",null,null,"URZĄD SKARBOWY W PUŁAWACH","0616","URZĄD SKARBOWY W RUDZIE ŚLĄSKIEJ"]
["0413","WIĘCBORK","0413043","24","LUBLINIECKI","2407",null,null,"URZĄD SKARBOWY W PUŁTUSKU","1423","URZĄD SKARBOWY W RYBNIKU"]
["0414","BUKOWIEC","0414012","24","MIKOŁOWSKI","2408",null,null,"URZĄD SKARBOWY W PYRZYCACH","3213","URZĄD SKARBOWY W RYKACH"]
["0414","DRAGACZ","0414022","24","MYSZKOWSKI","2409",null,null,"URZĄD SKARBOWY W RACIBORZU","2425","URZĄD SKARBOWY W RYPINIE"]
["0414","DRZYCIM","0414032","24","PSZCZYŃSKI","2410",null,null,"PIERWSZY URZĄD SKARBOWY W RADOMIU","1424","PIERWSZY URZĄD SKARBOWY W RZESZOWIE"]
["0414","JEŻEWO","0414042","24","RACIBORSKI","2411",null,null,"DRUGI URZĄD SKARBOWY W RADOMIU","1425","DRUGI URZĄD SKARBOWY W RZESZOWIE"]
["0414","LNIANO","0414052","24","RYBNICKI","2412",null,null,"TRZECI MAZOWIECKI URZĄD SKARBOWY W RADOMIU","1473","URZĄD SKARBOWY W SANDOMIERZU"]
["0414","NOWE","0414063","24","TARNOGÓRSKI","2413",null,null,"URZĄD SKARBOWY W RADOMSKU","1019","URZĄD SKARBOWY W SANOKU"]
["0414","OSIE","0414072","24","BIERUŃSKO-LĘDZIŃSKI","2414",null,null,"URZĄD SKARBOWY W RADZIEJOWIE","0413","URZĄD SKARBOWY W SĘPÓLNIE KRAJEŃSKIM"]
["0414","PRUSZCZ","0414082","24","WODZISŁAWSKI","2415",null,null,"URZĄD SKARBOWY W RADZYNIU PODLASKIM","0617","URZĄD SKARBOWY W SIEDLCACH"]
["0414","ŚWIECIE","0414093","24","ZAWIERCIAŃSKI","2416",null,null,"URZĄD SKARBOWY W RAWICZU","3027","URZĄD SKARBOWY W SIEMIANOWICACH ŚLĄSKICH"]
["0414","ŚWIEKATOWO","0414102","24","ŻYWIECKI","2417",null,null,"URZĄD SKARBOWY W RAWIE MAZOWIECKIEJ","1020","URZĄD SKARBOWY W SIEMIATYCZACH"]
["0414","WARLUBIE","0414112","24","M.BIELSKO-BIAŁA","2461",null,null,"URZĄD SKARBOWY W ROPCZYCACH","1815","URZĄD SKARBOWY W SIERADZU"]
["0415","CHEŁMŻA-MIEJSKA","0415011","24","M.BYTOM","2462",null,null,"URZĄD SKARBOWY W RUDZIE ŚLĄSKIEJ","2426","URZĄD SKARBOWY W SIERPCU"]
["0415","CHEŁMŻA-WIEJSKA","0415022","24","M.CHORZÓW","2463",null,null,"URZĄD SKARBOWY W RYBNIKU","2427","URZĄD SKARBOWY W SKARŻYSKU-KAMIENNEJ"]
["0415","CZERNIKOWO","0415032","24","M.CZĘSTOCHOWA","2464",null,null,"URZĄD SKARBOWY W RYKACH","0622","URZĄD SKARBOWY W SKIERNIEWICACH"]
["0415","LUBICZ","0415042","24","M.DĄBROWA GÓRNICZA","2465",null,null,"URZĄD SKARBOWY W RYPINIE","0414","URZĄD SKARBOWY W SŁUBICACH"]
["0415","ŁUBIANKA","0415052","24","M.GLIWICE","2466",null,null,"PIERWSZY URZĄD SKARBOWY W RZESZOWIE","1816","URZĄD SKARBOWY W SŁUPCY"]
["0415","ŁYSOMICE","0415062","24","M.JASTRZĘBIE-ZDRÓJ","2467",null,null,"DRUGI URZĄD SKARBOWY W RZESZOWIE","1822","URZĄD SKARBOWY W SŁUPSKU"]
["0415","OBROWO","0415072","24","M.JAWORZNO","2468",null,null,"PODKARPACKI URZĄD SKARBOWY W RZESZOWIE","1871","URZĄD SKARBOWY W SOCHACZEWIE"]
["0415","WIELKA NIESZAWKA","0415082","24","M.KATOWICE","2469",null,null,"URZĄD SKARBOWY W SANDOMIERZU","2610","URZĄD SKARBOWY W SOKOŁOWIE PODLASKIM"]
["0415","ZŁAWIEŚ WIELKA","0415092","24","M.MYSŁOWICE","2470",null,null,"URZĄD SKARBOWY W SANOKU","1817","URZĄD SKARBOWY W SOKÓŁCE"]
["0416","CEKCYN","0416012","24","M.PIEKARY ŚLĄSKIE","2471",null,null,"URZĄD SKARBOWY W SĘPÓLNIE KRAJEŃSKIM","0423","URZĄD SKARBOWY W SOPOCIE"]
["0416","GOSTYCYN","0416022","24","M.RUDA ŚLĄSKA","2472",null,null,"URZĄD SKARBOWY W SIEDLCACH","1426","URZĄD SKARBOWY W SOSNOWCU"]
["0416","KĘSOWO","0416032","24","M.RYBNIK","2473",null,null,"URZĄD SKARBOWY W SIEMIANOWICACH ŚLĄSKICH","2428","URZĄD SKARBOWY W STALOWEJ WOLI"]
["0416","LUBIEWO","0416042","24","M.SIEMIANOWICE ŚLĄSKIE","2474",null,null,"URZĄD SKARBOWY W SIEMIATYCZACH","2010","URZĄD SKARBOWY W STARACHOWICACH"]
["0416","ŚLIWICE","0416052","24","M.SOSNOWIEC","2475",null,null,"URZĄD SKARBOWY W SIERADZU","1021","URZĄD SKARBOWY W STARGARDZIE"]
["0416","TUCHOLA","0416063","24","M.ŚWIĘTOCHŁOWICE","2476",null,null,"URZĄD SKARBOWY W SIERPCU","1427","URZĄD SKARBOWY W STAROGARDZIE GDAŃSKIM"]
["0417","WĄBRZEŹNO-MIEJSKA","0417011","24","M.TYCHY","2477",null,null,"URZĄD SKARBOWY W SKARŻYSKU-KAMIENNEJ","2611","URZĄD SKARBOWY W STASZOWIE"]
["0417","DĘBOWA ŁĄKA","0417022","24","M.ZABRZE","2478",null,null,"URZĄD SKARBOWY W SKIERNIEWICACH","1022","URZĄD SKARBOWY W STRZELCACH OPOLSKICH"]
["0417","KSIĄŻKI","0417032","24","M.ŻORY","2479",null,null,"URZĄD SKARBOWY W SŁUBICACH","0806","URZĄD SKARBOWY W STRZELINIE"]
["0417","PŁUŻNICA","0417042","26","BUSKI","2601",null,null,"URZĄD SKARBOWY W SŁUPCY","3028","URZĄD SKARBOWY W STRZYŻOWIE"]
["0417","WĄBRZEŹNO-WIEJSKA","0417052","26","JĘDRZEJOWSKI","2602",null,null,"URZĄD SKARBOWY W SŁUPSKU","2216","URZĄD SKARBOWY W SUCHEJ BESKIDZKIEJ"]
["0418","KOWAL-MIEJSKA","0418011","26","KAZIMIERSKI","2603",null,null,"URZĄD SKARBOWY W SOCHACZEWIE","1428","URZĄD SKARBOWY W SULĘCINIE"]
["0418","BARUCHOWO","0418022","26","KIELECKI","2604",null,null,"URZĄD SKARBOWY W SOKOŁOWIE PODLASKIM","1429","URZĄD SKARBOWY W SUWAŁKACH"]
["0418","BONIEWO","0418032","26","KONECKI","2605",null,null,"URZĄD SKARBOWY W SOKÓŁCE","2011","URZĄD SKARBOWY W SZAMOTUŁACH"]
["0418","BRZEŚĆ KUJAWSKI","0418043","26","OPATOWSKI","2606",null,null,"URZĄD SKARBOWY W SOPOCIE","2217","PIERWSZY URZĄD SKARBOWY W SZCZECINIE"]
["0418","CHOCEŃ","0418052","26","OSTROWIECKI","2607",null,null,"URZĄD SKARBOWY W SOSNOWCU","2429","DRUGI URZĄD SKARBOWY W SZCZECINIE"]
["0418","CHODECZ","0418063","26","PIŃCZOWSKI","2608",null,null,"PIERWSZY ŚLĄSKI URZĄD SKARBOWY W SOSNOWCU","2471","TRZECI URZĄD SKARBOWY W SZCZECINIE"]
["0418","FABIANKI","0418072","26","SANDOMIERSKI","2609",null,null,"URZĄD SKARBOWY W STALOWEJ WOLI","1818","URZĄD SKARBOWY W SZCZECINKU"]
["0418","IZBICA KUJAWSKA","0418083","26","SKARŻYSKI","2610",null,null,"URZĄD SKARBOWY W STARACHOWICACH","2612","URZĄD SKARBOWY W SZCZYTNIE"]
["0418","KOWAL-WIEJSKA","0418092","26","STARACHOWICKI","2611",null,null,"URZĄD SKARBOWY W STARGARDZIE","3214","URZĄD SKARBOWY W SZYDŁOWCU"]
["0418","LUBANIE","0418102","26","STASZOWSKI","2612",null,null,"URZĄD SKARBOWY W STAROGARDZIE GDAŃSKIM","2218","URZĄD SKARBOWY W ŚREMIE"]
["0418","LUBIEŃ KUJAWSKI","0418113","26","WŁOSZCZOWSKI","2613",null,null,"URZĄD SKARBOWY W STASZOWIE","2613","URZĄD SKARBOWY W ŚRODZIE ŚLĄSKIEJ"]
["0418","LUBRANIEC","0418123","26","M.KIELCE","2661",null,null,"URZĄD SKARBOWY W STRZELCACH OPOLSKICH","1612","URZĄD SKARBOWY W ŚRODZIE WIELKOPOLSKIEJ"]
["0418","WŁOCŁAWEK","0418132","28","BARTOSZYCKI","2801",null,null,"URZĄD SKARBOWY W STRZELINIE","0218","URZĄD SKARBOWY W ŚWIDNICY"]
["0419","BARCIN","0419013","28","BRANIEWSKI","2802",null,null,"URZĄD SKARBOWY W STRZYŻOWIE","1819","URZĄD SKARBOWY W ŚWIEBODZINIE"]
["0419","GĄSAWA","0419022","28","DZIAŁDOWSKI","2803",null,null,"URZĄD SKARBOWY W SUCHEJ BESKIDZKIEJ","1222","URZĄD SKARBOWY W ŚWIECIU"]
["0419","JANOWIEC WIELKOPOLSKI","0419033","28","ELBLĄSKI","2804",null,null,"URZĄD SKARBOWY W SULĘCINIE","0813","URZĄD SKARBOWY W ŚWINOUJŚCIU"]
["0419","ŁABISZYN","0419043","28","EŁCKI","2805",null,null,"URZĄD SKARBOWY W SUWAŁKACH","2012","URZĄD SKARBOWY W TARNOBRZEGU"]
["0419","ROGOWO","0419052","28","GIŻYCKI","2806",null,null,"URZĄD SKARBOWY W SZAMOTUŁACH","3029","PIERWSZY URZĄD SKARBOWY W TARNOWIE"]
["0419","ŻNIN","0419063","28","IŁAWSKI","2807",null,null,"PIERWSZY URZĄD SKARBOWY W SZCZECINIE","3215","DRUGI URZĄD SKARBOWY W TARNOWIE"]
["0461","M.BYDGOSZCZ","0461011","28","KĘTRZYŃSKI","2808",null,null,"DRUGI URZĄD SKARBOWY W SZCZECINIE","3216","URZĄD SKARBOWY W TARNOWSKICH GÓRACH"]
["0462","M.GRUDZIĄDZ","0462011","28","LIDZBARSKI","2809",null,null,"TRZECI URZĄD SKARBOWY W SZCZECINIE","3217","URZĄD SKARBOWY W TCZEWIE"]
["0463","M.TORUŃ","0463011","28","MRĄGOWSKI","2810",null,null,"ZACHODNIOPOMORSKI URZĄD SKARBOWY W SZCZECINIE","3271","URZĄD SKARBOWY W TOMASZOWIE LUBELSKIM"]
["0464","M.WŁOCŁAWEK","0464011","28","NIDZICKI","2811",null,null,"URZĄD SKARBOWY W SZCZECINKU","3218","URZĄD SKARBOWY W TOMASZOWIE MAZOWIECKIM"]
["0601","MIĘDZYRZEC PODLASKI-MIEJSKA","0601011","28","NOWOMIEJSKI","2812",null,null,"URZĄD SKARBOWY W SZCZYTNIE","2816","PIERWSZY URZĄD SKARBOWY W TORUNIU"]
["0601","TERESPOL-MIEJSKA","0601021","28","OLECKI","2813",null,null,"URZĄD SKARBOWY W SZYDŁOWCU","1430","DRUGI URZĄD SKARBOWY W TORUNIU"]
["0601","BIAŁA PODLASKA","0601032","28","OLSZTYŃSKI","2814",null,null,"URZĄD SKARBOWY W ŚREMIE","3030","URZĄD SKARBOWY W TRZEBNICY"]
["0601","DRELÓW","0601042","28","OSTRÓDZKI","2815",null,null,"URZĄD SKARBOWY W ŚRODZIE ŚLĄSKIEJ","0219","URZĄD SKARBOWY W TUCHOLI"]
["0601","JANÓW PODLASKI","0601052","28","PISKI","2816",null,null,"URZĄD SKARBOWY W ŚRODZIE WIELKOPOLSKIEJ","3031","URZĄD SKARBOWY W TURKU"]
["0601","KODEŃ","0601062","28","SZCZYCIEŃSKI","2817",null,null,"URZĄD SKARBOWY W ŚWIDNICY","0220","URZĄD SKARBOWY W TYCHACH"]
["0601","KONSTANTYNÓW","0601072","28","GOŁDAPSKI","2818",null,null,"URZĄD SKARBOWY W ŚWIEBODZINIE","0807","URZĄD SKARBOWY W USTRZYKACH DOLNYCH"]
["0601","LEŚNA PODLASKA","0601082","28","WĘGORZEWSKI","2819",null,null,"URZĄD SKARBOWY W ŚWIECIU","0415","URZĄD SKARBOWY W WADOWICACH"]
["0601","ŁOMAZY","0601092","28","M.ELBLĄG","2861",null,null,"ŚWIĘTOKRZYSKI URZĄD SKARBOWY W KIELCACH","2671","URZĄD SKARBOWY W WAŁBRZYCHU"]
["0601","MIĘDZYRZEC PODLASKI-WIEJSKA","0601102","28","M.OLSZTYN","2862",null,null,"URZĄD SKARBOWY W ŚWINOUJŚCIU","3219","URZĄD SKARBOWY W WAŁCZU"]
["0601","PISZCZAC","0601112","30","CHODZIESKI","3001",null,null,"URZĄD SKARBOWY W TARNOBRZEGU","1820","URZĄD SKARBOWY WARSZAWA-BEMOWO"]
["0601","ROKITNO","0601122","30","CZARNKOWSKO-TRZCIANECKI","3002",null,null,"PIERWSZY URZĄD SKARBOWY W TARNOWIE","1223","URZĄD SKARBOWY WARSZAWA-BIELANY"]
["0601","ROSSOSZ","0601132","30","GNIEŹNIEŃSKI","3003",null,null,"DRUGI URZĄD SKARBOWY W TARNOWIE","1224","URZĄD SKARBOWY WARSZAWA-MOKOTÓW"]
["0601","SŁAWATYCZE","0601142","30","GOSTYŃSKI","3004",null,null,"URZĄD SKARBOWY W TARNOWSKICH GÓRACH","2430","URZĄD SKARBOWY WARSZAWA-PRAGA"]
["0601","SOSNÓWKA","0601152","30","GRODZISKI","3005",null,null,"URZĄD SKARBOWY W TCZEWIE","2219","PIERWSZY URZĄD SKARBOWY WARSZAWA-ŚRÓDMIEŚCIE"]
["0601","TERESPOL-WIEJSKA","0601162","30","JAROCIŃSKI","3006",null,null,"URZĄD SKARBOWY W TOMASZOWIE LUBELSKIM","0618","TRZECI URZĄD SKARBOWY WARSZAWA-ŚRÓDMIEŚCIE"]
["0601","TUCZNA","0601172","30","KALISKI","3007",null,null,"URZĄD SKARBOWY W TOMASZOWIE MAZOWIECKIM","1023","URZĄD SKARBOWY WARSZAWA-TARGÓWEK"]
["0601","WISZNICE","0601182","30","KĘPIŃSKI","3008",null,null,"PIERWSZY URZĄD SKARBOWY W TORUNIU","0416","URZĄD SKARBOWY WARSZAWA-URSYNÓW"]
["0601","ZALESIE","0601192","30","KOLSKI","3009",null,null,"DRUGI URZĄD SKARBOWY W TORUNIU","0417","URZĄD SKARBOWY WARSZAWA-WAWER"]
["0602","BIŁGORAJ-MIEJSKA","0602011","30","KONIŃSKI","3010",null,null,"URZĄD SKARBOWY W TRZEBNICY","0221","URZĄD SKARBOWY WARSZAWA-WOLA"]
["0602","ALEKSANDRÓW","0602022","30","KOŚCIAŃSKI","3011",null,null,"URZĄD SKARBOWY W TUCHOLI","0418","URZĄD SKARBOWY W WĄBRZEŹNIE"]
["0602","BIŁGORAJ-WIEJSKA","0602032","30","KROTOSZYŃSKI","3012",null,null,"URZĄD SKARBOWY W TURKU","3032","URZĄD SKARBOWY W WĄGROWCU"]
["0602","BISZCZA","0602042","30","LESZCZYŃSKI","3013",null,null,"URZĄD SKARBOWY W TYCHACH","2431","URZĄD SKARBOWY W WEJHEROWIE"]
["0602","FRAMPOL","0602053","30","MIĘDZYCHODZKI","3014",null,null,"URZĄD SKARBOWY W USTRZYKACH DOLNYCH","1821","URZĄD SKARBOWY W WĘGROWIE"]
["0602","GORAJ","0602063","30","NOWOTOMYSKI","3015",null,null,"URZĄD SKARBOWY W WADOWICACH","1225","URZĄD SKARBOWY W WIELICZCE"]
["0602","JÓZEFÓW","0602073","30","OBORNICKI","3016",null,null,"URZĄD SKARBOWY W WAŁBRZYCHU","0222","URZĄD SKARBOWY W WIELUNIU"]
["0602","KSIĘŻPOL","0602082","30","OSTROWSKI","3017",null,null,"URZĄD SKARBOWY W WAŁCZU","3220","URZĄD SKARBOWY W WIERUSZOWIE"]
["0602","ŁUKOWA","0602092","30","OSTRZESZOWSKI","3018",null,null,"URZĄD SKARBOWY WARSZAWA-BEMOWO","1431","URZĄD SKARBOWY WE WŁOCŁAWKU"]
["0602","OBSZA","0602102","30","PILSKI","3019",null,null,"URZĄD SKARBOWY WARSZAWA-BIELANY","1432","URZĄD SKARBOWY WE WŁODAWIE"]
["0602","POTOK GÓRNY","0602112","30","PLESZEWSKI","3020",null,null,"URZĄD SKARBOWY WARSZAWA-MOKOTÓW","1433","URZĄD SKARBOWY WE WŁOSZCZOWIE"]
["0602","TARNOGRÓD","0602123","30","POZNAŃSKI","3021",null,null,"URZĄD SKARBOWY WARSZAWA-PRAGA","1434","URZĄD SKARBOWY W WODZISŁAWIU ŚLĄSKIM"]
["0602","TERESZPOL","0602132","30","RAWICKI","3022",null,null,"PIERWSZY URZĄD SKARBOWY WARSZAWA-ŚRÓDMIEŚCIE","1435","URZĄD SKARBOWY W WOLSZTYNIE"]
["0602","TUROBIN","0602142","30","SŁUPECKI","3023",null,null,"DRUGI URZĄD SKARBOWY WARSZAWA-ŚRÓDMIEŚCIE","1436","URZĄD SKARBOWY W WOŁOMINIE"]
["0603","REJOWIEC FABRYCZNY-MIEJSKA","0603011","30","SZAMOTULSKI","3024",null,null,"TRZECI URZĄD SKARBOWY WARSZAWA-ŚRÓDMIEŚCIE","1449","URZĄD SKARBOWY W WOŁOWIE"]
["0603","BIAŁOPOLE","0603022","30","ŚREDZKI","3025",null,null,"URZĄD SKARBOWY WARSZAWA-TARGÓWEK","1437","PIERWSZY URZĄD SKARBOWY WE WROCŁAWIU"]
["0603","CHEŁM","0603032","30","ŚREMSKI","3026",null,null,"URZĄD SKARBOWY WARSZAWA-URSYNÓW","1438","URZĄD SKARBOWY WROCŁAW-FABRYCZNA"]
["0603","DOROHUSK","0603042","30","TURECKI","3027",null,null,"URZĄD SKARBOWY WARSZAWA-WAWER","1439","URZĄD SKARBOWY WROCŁAW-KRZYKI"]
["0603","DUBIENKA","0603052","30","WĄGROWIECKI","3028",null,null,"URZĄD SKARBOWY WARSZAWA-WOLA","1440","URZĄD SKARBOWY WROCŁAW-PSIE POLE"]
["0603","KAMIEŃ","0603062","30","WOLSZTYŃSKI","3029",null,null,"PIERWSZY MAZOWIECKI URZĄD SKARBOWY W WARSZAWIE","1471","URZĄD SKARBOWY WROCŁAW-STARE MIASTO"]
["0603","LEŚNIOWICE","0603072","30","WRZESIŃSKI","3030",null,null,"DRUGI MAZOWIECKI URZĄD SKARBOWY W WARSZAWIE","1472","URZĄD SKARBOWY WROCŁAW-ŚRÓDMIEŚCIE"]
["0603","REJOWIEC FABRYCZNY-WIEJSKA","0603082","30","ZŁOTOWSKI","3031",null,null,"URZĄD SKARBOWY W WĄBRZEŹNIE","0419","URZĄD SKARBOWY WE WRZEŚNI"]
["0603","RUDA-HUTA","0603092","30","M.KALISZ","3061",null,null,"URZĄD SKARBOWY W WĄGROWCU","3033","URZĄD SKARBOWY WE WSCHOWIE"]
["0603","SAWIN","0603102","30","M.KONIN","3062",null,null,"URZĄD SKARBOWY W WĘGROWIE","1441","URZĄD SKARBOWY W WYSOKIEM MAZOWIECKIEM"]
["0603","SIEDLISZCZE","0603113","30","M.LESZNO","3063",null,null,"URZĄD SKARBOWY W WIELICZCE","1226","URZĄD SKARBOWY W WYSZKOWIE"]
["0603","WIERZBICA","0603122","30","M.POZNAŃ","3064",null,null,"URZĄD SKARBOWY W WIELUNIU","1024","URZĄD SKARBOWY W ZABRZU"]
["0603","WOJSŁAWICE","0603132","32","BIAŁOGARDZKI","3201",null,null,"URZĄD SKARBOWY W WIERUSZOWIE","1027","URZĄD SKARBOWY W ZAKOPANEM"]
["0603","ŻMUDŹ","0603142","32","CHOSZCZEŃSKI","3202",null,null,"URZĄD SKARBOWY WE WŁOCŁAWKU","0420","URZĄD SKARBOWY W ZAMBROWIE"]
["0603","REJOWIEC","0603153","32","DRAWSKI","3203",null,null,"URZĄD SKARBOWY WE WŁODAWIE","0619","URZĄD SKARBOWY W ZAMOŚCIU"]
["0604","HRUBIESZÓW-MIEJSKA","0604011","32","GOLENIOWSKI","3204",null,null,"URZĄD SKARBOWY WE WŁOSZCZOWIE","2615","URZĄD SKARBOWY W ZAWIERCIU"]
["0604","DOŁHOBYCZÓW","0604022","32","GRYFICKI","3205",null,null,"URZĄD SKARBOWY W WODZISŁAWIU ŚLĄSKIM","2432","URZĄD SKARBOWY W ZĄBKOWICACH ŚLĄSKICH"]
["0604","HORODŁO","0604032","32","GRYFIŃSKI","3206",null,null,"URZĄD SKARBOWY W WOLSZTYNIE","3034","URZĄD SKARBOWY W ZDUŃSKIEJ WOLI"]
["0604","HRUBIESZÓW-WIEJSKA","0604042","32","KAMIEŃSKI","3207",null,null,"URZĄD SKARBOWY W WOŁOMINIE","1442","URZĄD SKARBOWY W ZGIERZU"]
["0604","MIRCZE","0604052","32","KOŁOBRZESKI","3208",null,null,"URZĄD SKARBOWY W WOŁOWIE","0223","URZĄD SKARBOWY W ZGORZELCU"]
["0604","TRZESZCZANY","0604062","32","KOSZALIŃSKI","3209",null,null,"PIERWSZY URZĄD SKARBOWY WE WROCŁAWIU","0229","PIERWSZY URZĄD SKARBOWY W ZIELONEJ GÓRZE"]
["0604","UCHANIE","0604072","32","MYŚLIBORSKI","3210",null,null,"URZĄD SKARBOWY WROCŁAW-FABRYCZNA","0224","DRUGI URZĄD SKARBOWY W ZIELONEJ GÓRZE"]
["0604","WERBKOWICE","0604082","32","POLICKI","3211",null,null,"URZĄD SKARBOWY WROCŁAW-KRZYKI","0225","URZĄD SKARBOWY W ZŁOTORYI"]
["0605","BATORZ","0605012","32","PYRZYCKI","3212",null,null,"URZĄD SKARBOWY WROCŁAW-PSIE POLE","0226","URZĄD SKARBOWY W ZŁOTOWIE"]
["0605","CHRZANÓW","0605022","32","SŁAWIEŃSKI","3213",null,null,"URZĄD SKARBOWY WROCŁAW-STARE MIASTO","0227","URZĄD SKARBOWY W ZWOLENIU"]
["0605","DZWOLA","0605032","32","STARGARDZKI","3214",null,null,"URZĄD SKARBOWY WROCŁAW-ŚRÓDMIEŚCIE","0228","URZĄD SKARBOWY W ŻAGANIU"]
["0605","GODZISZÓW","0605042","32","SZCZECINECKI","3215",null,null,"DOLNOŚLĄSKI URZĄD SKARBOWY WE WROCŁAWIU","0271","URZĄD SKARBOWY W ŻARACH"]
["0605","JANÓW LUBELSKI","0605053","32","ŚWIDWIŃSKI","3216",null,null,"URZĄD SKARBOWY WE WRZEŚNI","3035","URZĄD SKARBOWY W ŻNINIE"]
["0605","MODLIBORZYCE","0605063","32","WAŁECKI","3217",null,null,"URZĄD SKARBOWY WE WSCHOWIE","0814","URZĄD SKARBOWY W ŻORACH"]
["0605","POTOK WIELKI","0605072","32","ŁOBESKI","3218",null,null,"URZĄD SKARBOWY W WYSOKIEM MAZOWIECKIEM","2013","URZĄD SKARBOWY W ŻUROMINIE"]
["0606","KRASNYSTAW-MIEJSKA","0606011","32","M.KOSZALIN","3261",null,null,"URZĄD SKARBOWY W WYSZKOWIE","1443","URZĄD SKARBOWY W ŻYRARDOWIE"]
["0606","FAJSŁAWICE","0606022","32","M.SZCZECIN","3262",null,null,"URZĄD SKARBOWY W ZABRZU","2433","URZĄD SKARBOWY W ŻYWCU"]
["0606","GORZKÓW","0606032","32","M.ŚWINOUJŚCIE","3263",null,null,"URZĄD SKARBOWY W ZAKOPANEM","1227"]
["0606","IZBICA","0606042",null,null,null,null,null,"URZĄD SKARBOWY W ZAMBROWIE","2014"]
["0606","KRASNYSTAW-WIEJSKA","0606052",null,null,null,null,null,"URZĄD SKARBOWY W ZAMOŚCIU","0620"]
["0606","KRAŚNICZYN","0606062",null,null,null,null,null,"URZĄD SKARBOWY W ZAWIERCIU","2434"]
["0606","ŁOPIENNIK GÓRNY","0606072",null,null,null,null,null,"URZĄD SKARBOWY W ZĄBKOWICACH ŚLĄSKICH","0230"]
["0606","RUDNIK","0606092",null,null,null,null,null,"URZĄD SKARBOWY W ZDUŃSKIEJ WOLI","1025"]
["0606","SIENNICA RÓŻANA","0606102",null,null,null,null,null,"URZĄD SKARBOWY W ZGIERZU","1026"]
["0606","ŻÓŁKIEWKA","0606112",null,null,null,null,null,"URZĄD SKARBOWY W ZGORZELCU","0231"]
["0607","KRAŚNIK-MIEJSKA","0607011",null,null,null,null,null,"PIERWSZY URZĄD SKARBOWY W ZIELONEJ GÓRZE","0808"]
["0607","ANNOPOL","0607023",null,null,null,null,null,"DRUGI URZĄD SKARBOWY W ZIELONEJ GÓRZE","0809"]
["0607","DZIERZKOWICE","0607032",null,null,null,null,null,"LUBUSKI URZĄD SKARBOWY W ZIELONEJ GÓRZE","0871"]
["0607","GOŚCIERADÓW","0607042",null,null,null,null,null,"URZĄD SKARBOWY W ZŁOTORYI","0232"]
["0607","KRAŚNIK-WIEJSKA","0607052",null,null,null,null,null,"URZĄD SKARBOWY W ZŁOTOWIE","3036"]
["0607","SZASTARKA","0607062",null,null,null,null,null,"URZĄD SKARBOWY W ZWOLENIU","1444"]
["0607","TRZYDNIK DUŻY","0607072",null,null,null,null,null,"URZĄD SKARBOWY W ŻAGANIU","0810"]
["0607","URZĘDÓW","0607083",null,null,null,null,null,"URZĄD SKARBOWY W ŻARACH","0811"]
["0607","WILKOŁAZ","0607092",null,null,null,null,null,"URZĄD SKARBOWY W ŻNINIE","0421"]
["0607","ZAKRZÓWEK","0607102",null,null,null,null,null,"URZĄD SKARBOWY W ŻORACH","2435"]
["0608","LUBARTÓW-MIEJSKA","0608011",null,null,null,null,null,"URZĄD SKARBOWY W ŻUROMINIE","1445"]
["0608","ABRAMÓW","0608022",null,null,null,null,null,"URZĄD SKARBOWY W ŻYRARDOWIE","1446"]
["0608","FIRLEJ","0608032",null,null,null,null,null,"URZĄD SKARBOWY W ŻYWCU","2436"]
["0608","JEZIORZANY","0608042"]
["0608","KAMIONKA","0608053"]
["0608","KOCK","0608063"]
["0608","LUBARTÓW-WIEJSKA","0608072"]
["0608","MICHÓW","0608082"]
["0608","NIEDŹWIADA","0608092"]
["0608","OSTRÓW LUBELSKI","0608103"]
["0608","OSTRÓWEK","0608112"]
["0608","SERNIKI","0608122"]
["0608","UŚCIMÓW","0608132"]
["0609","BEŁŻYCE","0609013"]
["0609","BORZECHÓW","0609022"]
["0609","BYCHAWA","0609033"]
["0609","GARBÓW","0609042"]
["0609","GŁUSK","0609052"]
["0609","JABŁONNA","0609062"]
["0609","JASTKÓW","0609072"]
["0609","KONOPNICA","0609082"]
["0609","KRZCZONÓW","0609092"]
["0609","NIEDRZWICA DUŻA","0609102"]
["0609","NIEMCE","0609112"]
["0609","STRZYŻEWICE","0609122"]
["0609","WOJCIECHÓW","0609132"]
["0609","WÓLKA","0609142"]
["0609","WYSOKIE","0609152"]
["0609","ZAKRZEW","0609162"]
["0610","CYCÓW","0610012"]
["0610","LUDWIN","0610022"]
["0610","ŁĘCZNA","0610033"]
["0610","MILEJÓW","0610042"]
["0610","PUCHACZÓW","0610052"]
["0610","SPICZYN","0610062"]
["0611","ŁUKÓW-MIEJSKA","0611011"]
["0611","STOCZEK ŁUKOWSKI-MIEJSKA","0611021"]
["0611","ADAMÓW","0611032"]
["0611","KRZYWDA","0611042"]
["0611","ŁUKÓW-WIEJSKA","0611052"]
["0611","SEROKOMLA","0611062"]
["0611","STANIN","0611072"]
["0611","STOCZEK ŁUKOWSKI-WIEJSKA","0611082"]
["0611","TRZEBIESZÓW","0611092"]
["0611","WOJCIESZKÓW","0611102"]
["0611","WOLA MYSŁOWSKA","0611112"]
["0612","CHODEL","0612012"]
["0612","JÓZEFÓW NAD WISŁĄ","0612023"]
["0612","KARCZMISKA","0612032"]
["0612","ŁAZISKA","0612042"]
["0612","OPOLE LUBELSKIE","0612053"]
["0612","PONIATOWA","0612063"]
["0612","WILKÓW","0612072"]
["0613","DĘBOWA KŁODA","0613012"]
["0613","JABŁOŃ","0613022"]
["0613","MILANÓW","0613032"]
["0613","PARCZEW","0613043"]
["0613","PODEDWÓRZE","0613052"]
["0613","SIEMIEŃ","0613062"]
["0613","SOSNOWICA","0613072"]
["0614","PUŁAWY-MIEJSKA","0614011"]
["0614","BARANÓW","0614022"]
["0614","JANOWIEC","0614032"]
["0614","KAZIMIERZ DOLNY","0614043"]
["0614","KOŃSKOWOLA","0614052"]
["0614","KURÓW","0614062"]
["0614","MARKUSZÓW","0614072"]
["0614","NAŁĘCZÓW","0614083"]
["0614","PUŁAWY-WIEJSKA","0614092"]
["0614","WĄWOLNICA","0614102"]
["0614","ŻYRZYN","0614112"]
["0615","RADZYŃ PODLASKI-MIEJSKA","0615011"]
["0615","BORKI","0615022"]
["0615","CZEMIERNIKI","0615032"]
["0615","KĄKOLEWNICA","0615042"]
["0615","KOMARÓWKA PODLASKA","0615052"]
["0615","RADZYŃ PODLASKI-WIEJSKA","0615062"]
["0615","ULAN-MAJORAT","0615072"]
["0615","WOHYŃ","0615082"]
["0616","DĘBLIN","0616011"]
["0616","KŁOCZEW","0616022"]
["0616","NOWODWÓR","0616032"]
["0616","RYKI","0616043"]
["0616","STĘŻYCA","0616052"]
["0616","UŁĘŻ","0616062"]
["0617","ŚWIDNIK","0617011"]
["0617","MEŁGIEW","0617022"]
["0617","PIASKI","0617033"]
["0617","RYBCZEWICE","0617042"]
["0617","TRAWNIKI","0617052"]
["0618","TOMASZÓW LUBELSKI-MIEJSKA","0618011"]
["0618","BEŁŻEC","0618022"]
["0618","JARCZÓW","0618032"]
["0618","KRYNICE","0618042"]
["0618","LUBYCZA KRÓLEWSKA","0618053"]
["0618","ŁASZCZÓW","0618063"]
["0618","RACHANIE","0618072"]
["0618","SUSIEC","0618082"]
["0618","TARNAWATKA","0618092"]
["0618","TELATYN","0618102"]
["0618","TOMASZÓW LUBELSKI-WIEJSKA","0618112"]
["0618","TYSZOWCE","0618123"]
["0618","ULHÓWEK","0618132"]
["0619","WŁODAWA-MIEJSKA","0619011"]
["0619","HANNA","0619022"]
["0619","HAŃSK","0619032"]
["0619","STARY BRUS","0619042"]
["0619","URSZULIN","0619052"]
["0619","WŁODAWA-WIEJSKA","0619062"]
["0619","WOLA UHRUSKA","0619072"]
["0619","WYRYKI","0619082"]
["0620","ADAMÓW","0620012"]
["0620","GRABOWIEC","0620022"]
["0620","KOMARÓW-OSADA","0620032"]
["0620","KRASNOBRÓD","0620043"]
["0620","ŁABUNIE","0620052"]
["0620","MIĄCZYN","0620062"]
["0620","NIELISZ","0620072"]
["0620","RADECZNICA","0620082"]
["0620","SITNO","0620092"]
["0620","SKIERBIESZÓW","0620102"]
["0620","STARY ZAMOŚĆ","0620112"]
["0620","SUŁÓW","0620122"]
["0620","SZCZEBRZESZYN","0620133"]
["0620","ZAMOŚĆ","0620142"]
["0620","ZWIERZYNIEC","0620153"]
["0661","M.BIAŁA PODLASKA","0661011"]
["0662","M.CHEŁM","0662011"]
["0663","M.LUBLIN","0663011"]
["0664","M.ZAMOŚĆ","0664011"]
["0801","KOSTRZYN NAD ODRĄ","0801011"]
["0801","BOGDANIEC","0801022"]
["0801","DESZCZNO","0801032"]
["0801","KŁODAWA","0801042"]
["0801","LUBISZYN","0801052"]
["0801","SANTOK","0801062"]
["0801","WITNICA","0801073"]
["0802","GUBIN-MIEJSKA","0802011"]
["0802","BOBROWICE","0802022"]
["0802","BYTNICA","0802032"]
["0802","DĄBIE","0802042"]
["0802","GUBIN-WIEJSKA","0802052"]
["0802","KROSNO ODRZAŃSKIE","0802063"]
["0802","MASZEWO","0802072"]
["0803","BLEDZEW","0803012"]
["0803","MIĘDZYRZECZ","0803023"]
["0803","PRZYTOCZNA","0803032"]
["0803","PSZCZEW","0803042"]
["0803","SKWIERZYNA","0803053"]
["0803","TRZCIEL","0803063"]
["0804","NOWA SÓL-MIEJSKA","0804011"]
["0804","BYTOM ODRZAŃSKI","0804023"]
["0804","KOLSKO","0804032"]
["0804","KOŻUCHÓW","0804043"]
["0804","NOWA SÓL-WIEJSKA","0804052"]
["0804","NOWE MIASTECZKO","0804063"]
["0804","OTYŃ","0804073"]
["0804","SIEDLISKO","0804082"]
["0805","CYBINKA","0805013"]
["0805","GÓRZYCA","0805022"]
["0805","OŚNO LUBUSKIE","0805033"]
["0805","RZEPIN","0805043"]
["0805","SŁUBICE","0805053"]
["0806","DOBIEGNIEW","0806013"]
["0806","DREZDENKO","0806023"]
["0806","STARE KUROWO","0806032"]
["0806","STRZELCE KRAJEŃSKIE","0806043"]
["0806","ZWIERZYN","0806052"]
["0807","KRZESZYCE","0807012"]
["0807","LUBNIEWICE","0807023"]
["0807","SŁOŃSK","0807032"]
["0807","SULĘCIN","0807043"]
["0807","TORZYM","0807053"]
["0808","LUBRZA","0808012"]
["0808","ŁAGÓW","0808022"]
["0808","SKĄPE","0808032"]
["0808","SZCZANIEC","0808042"]
["0808","ŚWIEBODZIN","0808053"]
["0808","ZBĄSZYNEK","0808063"]
["0809","BABIMOST","0809013"]
["0809","BOJADŁA","0809022"]
["0809","CZERWIEŃSK","0809033"]
["0809","KARGOWA","0809043"]
["0809","NOWOGRÓD BOBRZAŃSKI","0809053"]
["0809","SULECHÓW","0809063"]
["0809","ŚWIDNICA","0809072"]
["0809","TRZEBIECHÓW","0809082"]
["0809","ZABÓR","0809092"]
["0810","GOZDNICA","0810011"]
["0810","ŻAGAŃ-MIEJSKA","0810021"]
["0810","BRZEŹNICA","0810032"]
["0810","IŁOWA","0810043"]
["0810","MAŁOMICE","0810053"]
["0810","NIEGOSŁAWICE","0810062"]
["0810","SZPROTAWA","0810073"]
["0810","WYMIARKI","0810082"]
["0810","ŻAGAŃ-WIEJSKA","0810092"]
["0811","ŁĘKNICA","0811011"]
["0811","ŻARY-MIEJSKA","0811021"]
["0811","BRODY","0811032"]
["0811","JASIEŃ","0811043"]
["0811","LIPINKI ŁUŻYCKIE","0811052"]
["0811","LUBSKO","0811063"]
["0811","PRZEWÓZ","0811072"]
["0811","TRZEBIEL","0811082"]
["0811","TUPLICE","0811092"]
["0811","ŻARY-WIEJSKA","0811102"]
["0812","SŁAWA","0812013"]
["0812","SZLICHTYNGOWA","0812023"]
["0812","WSCHOWA","0812033"]
["0861","M.GORZÓW WIELKOPOLSKI","0861011"]
["0862","M.ZIELONA GÓRA","0862011"]
["1001","BEŁCHATÓW-MIEJSKA","1001011"]
["1001","BEŁCHATÓW-WIEJSKA","1001022"]
["1001","DRUŻBICE","1001032"]
["1001","KLESZCZÓW","1001042"]
["1001","KLUKI","1001052"]
["1001","RUSIEC","1001062"]
["1001","SZCZERCÓW","1001072"]
["1001","ZELÓW","1001083"]
["1002","KUTNO-MIEJSKA","1002011"]
["1002","BEDLNO","1002022"]
["1002","DĄBROWICE","1002032"]
["1002","KROŚNIEWICE","1002043"]
["1002","KRZYŻANÓW","1002052"]
["1002","KUTNO-WIEJSKA","1002062"]
["1002","ŁANIĘTA","1002072"]
["1002","NOWE OSTROWY","1002082"]
["1002","OPORÓW","1002092"]
["1002","STRZELCE","1002102"]
["1002","ŻYCHLIN","1002113"]
["1003","BUCZEK","1003012"]
["1003","ŁASK","1003023"]
["1003","SĘDZIEJOWICE","1003032"]
["1003","WIDAWA","1003042"]
["1003","WODZIERADY","1003052"]
["1004","ŁĘCZYCA-MIEJSKA","1004011"]
["1004","DASZYNA","1004022"]
["1004","GÓRA ŚWIĘTEJ MAŁGORZATY","1004032"]
["1004","GRABÓW","1004042"]
["1004","ŁĘCZYCA-WIEJSKA","1004052"]
["1004","PIĄTEK","1004063"]
["1004","ŚWINICE WARCKIE","1004072"]
["1004","WITONIA","1004082"]
["1005","ŁOWICZ-MIEJSKA","1005011"]
["1005","BIELAWY","1005022"]
["1005","CHĄŚNO","1005032"]
["1005","DOMANIEWICE","1005042"]
["1005","KIERNOZIA","1005052"]
["1005","KOCIERZEW POŁUDNIOWY","1005062"]
["1005","ŁOWICZ-WIEJSKA","1005072"]
["1005","ŁYSZKOWICE","1005082"]
["1005","NIEBORÓW","1005092"]
["1005","ZDUNY","1005102"]
["1006","ANDRESPOL","1006022"]
["1006","BRÓJCE","1006032"]
["1006","KOLUSZKI","1006073"]
["1006","NOWOSOLNA","1006082"]
["1006","RZGÓW","1006103"]
["1006","TUSZYN","1006113"]
["1007","BIAŁACZÓW","1007012"]
["1007","DRZEWICA","1007023"]
["1007","MNISZKÓW","1007032"]
["1007","OPOCZNO","1007043"]
["1007","PARADYŻ","1007052"]
["1007","POŚWIĘTNE","1007062"]
["1007","SŁAWNO","1007072"]
["1007","ŻARNÓW","1007082"]
["1008","KONSTANTYNÓW ŁÓDZKI","1008011"]
["1008","PABIANICE-MIEJSKA","1008021"]
["1008","DŁUTÓW","1008032"]
["1008","DOBROŃ","1008042"]
["1008","KSAWERÓW","1008052"]
["1008","LUTOMIERSK","1008062"]
["1008","PABIANICE-WIEJSKA","1008072"]
["1009","DZIAŁOSZYN","1009013"]
["1009","KIEŁCZYGŁÓW","1009022"]
["1009","NOWA BRZEŹNICA","1009032"]
["1009","PAJĘCZNO","1009043"]
["1009","RZĄŚNIA","1009052"]
["1009","SIEMKOWICE","1009062"]
["1009","STRZELCE WIELKIE","1009072"]
["1009","SULMIERZYCE","1009082"]
["1010","ALEKSANDRÓW","1010012"]
["1010","CZARNOCIN","1010022"]
["1010","GORZKOWICE","1010032"]
["1010","GRABICA","1010042"]
["1010","ŁĘKI SZLACHECKIE","1010052"]
["1010","MOSZCZENICA","1010062"]
["1010","RĘCZNO","1010072"]
["1010","ROZPRZA","1010082"]
["1010","SULEJÓW","1010093"]
["1010","WOLA KRZYSZTOPORSKA","1010102"]
["1010","WOLBÓRZ","1010113"]
["1011","DALIKÓW","1011012"]
["1011","PĘCZNIEW","1011022"]
["1011","PODDĘBICE","1011033"]
["1011","UNIEJÓW","1011043"]
["1011","WARTKOWICE","1011052"]
["1011","ZADZIM","1011062"]
["1012","RADOMSKO-MIEJSKA","1012011"]
["1012","DOBRYSZYCE","1012022"]
["1012","GIDLE","1012032"]
["1012","GOMUNICE","1012042"]
["1012","KAMIEŃSK","1012053"]
["1012","KOBIELE WIELKIE","1012062"]
["1012","KODRĄB","1012072"]
["1012","LGOTA WIELKA","1012082"]
["1012","ŁADZICE","1012092"]
["1012","MASŁOWICE","1012102"]
["1012","PRZEDBÓRZ","1012113"]
["1012","RADOMSKO-WIEJSKA","1012122"]
["1012","WIELGOMŁYNY","1012132"]
["1012","ŻYTNO","1012142"]
["1013","RAWA MAZOWIECKA-MIEJSKA","1013011"]
["1013","BIAŁA RAWSKA","1013023"]
["1013","CIELĄDZ","1013032"]
["1013","RAWA MAZOWIECKA-WIEJSKA","1013042"]
["1013","REGNÓW","1013052"]
["1013","SADKOWICE","1013062"]
["1014","SIERADZ-MIEJSKA","1014011"]
["1014","BŁASZKI","1014023"]
["1014","BRĄSZEWICE","1014032"]
["1014","BRZEŹNIO","1014042"]
["1014","BURZENIN","1014052"]
["1014","GOSZCZANÓW","1014062"]
["1014","KLONOWA","1014072"]
["1014","SIERADZ-WIEJSKA","1014082"]
["1014","WARTA","1014093"]
["1014","WRÓBLEW","1014102"]
["1014","ZŁOCZEW","1014113"]
["1015","BOLIMÓW","1015012"]
["1015","GŁUCHÓW","1015022"]
["1015","GODZIANÓW","1015032"]
["1015","KOWIESY","1015042"]
["1015","LIPCE REYMONTOWSKIE","1015052"]
["1015","MAKÓW","1015062"]
["1015","NOWY KAWĘCZYN","1015072"]
["1015","SKIERNIEWICE","1015082"]
["1015","SŁUPIA","1015092"]
["1016","TOMASZÓW MAZOWIECKI-MIEJSKA","1016011"]
["1016","BĘDKÓW","1016022"]
["1016","BUDZISZEWICE","1016032"]
["1016","CZERNIEWICE","1016042"]
["1016","INOWŁÓDZ","1016052"]
["1016","LUBOCHNIA","1016062"]
["1016","ROKICINY","1016072"]
["1016","RZECZYCA","1016082"]
["1016","TOMASZÓW MAZOWIECKI-WIEJSKA","1016092"]
["1016","UJAZD","1016102"]
["1016","ŻELECHLINEK","1016112"]
["1017","BIAŁA","1017012"]
["1017","CZARNOŻYŁY","1017022"]
["1017","KONOPNICA","1017032"]
["1017","MOKRSKO","1017042"]
["1017","OSJAKÓW","1017052"]
["1017","OSTRÓWEK","1017062"]
["1017","PĄTNÓW","1017072"]
["1017","SKOMLIN","1017082"]
["1017","WIELUŃ","1017093"]
["1017","WIERZCHLAS","1017102"]
["1018","BOLESŁAWIEC","1018012"]
["1018","CZASTARY","1018022"]
["1018","GALEWICE","1018032"]
["1018","LUTUTÓW","1018043"]
["1018","ŁUBNICE","1018052"]
["1018","SOKOLNIKI","1018062"]
["1018","WIERUSZÓW","1018073"]
["1019","ZDUŃSKA WOLA-MIEJSKA","1019011"]
["1019","SZADEK","1019023"]
["1019","ZAPOLICE","1019032"]
["1019","ZDUŃSKA WOLA-WIEJSKA","1019042"]
["1020","GŁOWNO-MIEJSKA","1020011"]
["1020","OZORKÓW-MIEJSKA","1020021"]
["1020","ZGIERZ-MIEJSKA","1020031"]
["1020","ALEKSANDRÓW ŁÓDZKI","1020043"]
["1020","GŁOWNO-WIEJSKA","1020052"]
["1020","OZORKÓW-WIEJSKA","1020062"]
["1020","PARZĘCZEW","1020072"]
["1020","STRYKÓW","1020083"]
["1020","ZGIERZ-WIEJSKA","1020092"]
["1021","BRZEZINY-MIEJSKA","1021011"]
["1021","BRZEZINY-WIEJSKA","1021022"]
["1021","DMOSIN","1021032"]
["1021","JEŻÓW","1021042"]
["1021","ROGÓW","1021052"]
["1061","M.ŁÓDŹ","1061011"]
["1062","M.PIOTRKÓW TRYBUNALSKI","1062011"]
["1063","M.SKIERNIEWICE","1063011"]
["1201","BOCHNIA-MIEJSKA","1201011"]
["1201","BOCHNIA-WIEJSKA","1201022"]
["1201","DRWINIA","1201032"]
["1201","LIPNICA MUROWANA","1201042"]
["1201","ŁAPANÓW","1201052"]
["1201","NOWY WIŚNICZ","1201063"]
["1201","RZEZAWA","1201072"]
["1201","TRZCIANA","1201082"]
["1201","ŻEGOCINA","1201092"]
["1202","BORZĘCIN","1202012"]
["1202","BRZESKO","1202023"]
["1202","CZCHÓW","1202033"]
["1202","DĘBNO","1202042"]
["1202","GNOJNIK","1202052"]
["1202","IWKOWA","1202062"]
["1202","SZCZUROWA","1202072"]
["1203","ALWERNIA","1203013"]
["1203","BABICE","1203022"]
["1203","CHRZANÓW","1203033"]
["1203","LIBIĄŻ","1203043"]
["1203","TRZEBINIA","1203053"]
["1204","BOLESŁAW","1204012"]
["1204","DĄBROWA TARNOWSKA","1204023"]
["1204","GRĘBOSZÓW","1204032"]
["1204","MĘDRZECHÓW","1204042"]
["1204","OLESNO","1204052"]
["1204","RADGOSZCZ","1204062"]
["1204","SZCZUCIN","1204073"]
["1205","GORLICE-MIEJSKA","1205011"]
["1205","BIECZ","1205023"]
["1205","BOBOWA","1205033"]
["1205","GORLICE-WIEJSKA","1205042"]
["1205","LIPINKI","1205052"]
["1205","ŁUŻNA","1205062"]
["1205","MOSZCZENICA","1205072"]
["1205","ROPA","1205082"]
["1205","SĘKOWA","1205092"]
["1205","UŚCIE GORLICKIE","1205102"]
["1206","CZERNICHÓW","1206012"]
["1206","IGOŁOMIA-WAWRZEŃCZYCE","1206022"]
["1206","IWANOWICE","1206032"]
["1206","JERZMANOWICE-PRZEGINIA","1206042"]
["1206","KOCMYRZÓW-LUBORZYCA","1206052"]
["1206","KRZESZOWICE","1206063"]
["1206","LISZKI","1206072"]
["1206","MICHAŁOWICE","1206082"]
["1206","MOGILANY","1206092"]
["1206","SKAŁA","1206103"]
["1206","SKAWINA","1206113"]
["1206","SŁOMNIKI","1206123"]
["1206","SUŁOSZOWA","1206132"]
["1206","ŚWIĄTNIKI GÓRNE","1206143"]
["1206","WIELKA WIEŚ","1206152"]
["1206","ZABIERZÓW","1206162"]
["1206","ZIELONKI","1206172"]
["1207","LIMANOWA-MIEJSKA","1207011"]
["1207","MSZANA DOLNA-MIEJSKA","1207021"]
["1207","DOBRA","1207032"]
["1207","JODŁOWNIK","1207042"]
["1207","KAMIENICA","1207052"]
["1207","LASKOWA","1207062"]
["1207","LIMANOWA-WIEJSKA","1207072"]
["1207","ŁUKOWICA","1207082"]
["1207","MSZANA DOLNA-WIEJSKA","1207092"]
["1207","NIEDŹWIEDŹ","1207102"]
["1207","SŁOPNICE","1207112"]
["1207","TYMBARK","1207122"]
["1208","CHARSZNICA","1208012"]
["1208","GOŁCZA","1208022"]
["1208","KOZŁÓW","1208032"]
["1208","KSIĄŻ WIELKI","1208042"]
["1208","MIECHÓW","1208053"]
["1208","RACŁAWICE","1208062"]
["1208","SŁABOSZÓW","1208072"]
["1209","DOBCZYCE","1209013"]
["1209","LUBIEŃ","1209022"]
["1209","MYŚLENICE","1209033"]
["1209","PCIM","1209042"]
["1209","RACIECHOWICE","1209052"]
["1209","SIEPRAW","1209062"]
["1209","SUŁKOWICE","1209073"]
["1209","TOKARNIA","1209082"]
["1209","WIŚNIOWA","1209092"]
["1210","GRYBÓW-MIEJSKA","1210011"]
["1210","CHEŁMIEC","1210022"]
["1210","GRÓDEK NAD DUNAJCEM","1210032"]
["1210","GRYBÓW-WIEJSKA","1210042"]
["1210","KAMIONKA WIELKA","1210052"]
["1210","KORZENNA","1210062"]
["1210","KRYNICA-ZDRÓJ","1210073"]
["1210","ŁABOWA","1210082"]
["1210","ŁĄCKO","1210092"]
["1210","ŁOSOSINA DOLNA","1210102"]
["1210","MUSZYNA","1210113"]
["1210","NAWOJOWA","1210122"]
["1210","PIWNICZNA-ZDRÓJ","1210133"]
["1210","PODEGRODZIE","1210142"]
["1210","RYTRO","1210152"]
["1210","STARY SĄCZ","1210163"]
["1211","NOWY TARG-MIEJSKA","1211011"]
["1211","SZCZAWNICA","1211023"]
["1211","CZARNY DUNAJEC","1211032"]
["1211","CZORSZTYN","1211042"]
["1211","JABŁONKA","1211052"]
["1211","KROŚCIENKO NAD DUNAJCEM","1211062"]
["1211","LIPNICA WIELKA","1211072"]
["1211","ŁAPSZE NIŻNE","1211082"]
["1211","NOWY TARG-WIEJSKA","1211092"]
["1211","OCHOTNICA DOLNA","1211102"]
["1211","RABA WYŻNA","1211112"]
["1211","RABKA-ZDRÓJ","1211123"]
["1211","SPYTKOWICE","1211132"]
["1211","SZAFLARY","1211142"]
["1212","BUKOWNO","1212011"]
["1212","BOLESŁAW","1212032"]
["1212","KLUCZE","1212042"]
["1212","OLKUSZ","1212053"]
["1212","TRZYCIĄŻ","1212062"]
["1212","WOLBROM","1212073"]
["1213","OŚWIĘCIM-MIEJSKA","1213011"]
["1213","BRZESZCZE","1213023"]
["1213","CHEŁMEK","1213033"]
["1213","KĘTY","1213043"]
["1213","OSIEK","1213052"]
["1213","OŚWIĘCIM-WIEJSKA","1213062"]
["1213","POLANKA WIELKA","1213072"]
["1213","PRZECISZÓW","1213082"]
["1213","ZATOR","1213093"]
["1214","KONIUSZA","1214012"]
["1214","KOSZYCE","1214023"]
["1214","NOWE BRZESKO","1214033"]
["1214","PAŁECZNICA","1214042"]
["1214","PROSZOWICE","1214053"]
["1214","RADZIEMICE","1214062"]
["1215","JORDANÓW-MIEJSKA","1215011"]
["1215","SUCHA BESKIDZKA","1215021"]
["1215","BUDZÓW","1215032"]
["1215","BYSTRA-SIDZINA","1215042"]
["1215","JORDANÓW-WIEJSKA","1215052"]
["1215","MAKÓW PODHALAŃSKI","1215063"]
["1215","STRYSZAWA","1215072"]
["1215","ZAWOJA","1215082"]
["1215","ZEMBRZYCE","1215092"]
["1216","CIĘŻKOWICE","1216013"]
["1216","GROMNIK","1216022"]
["1216","LISIA GÓRA","1216032"]
["1216","PLEŚNA","1216042"]
["1216","RADŁÓW","1216053"]
["1216","RYGLICE","1216063"]
["1216","RZEPIENNIK STRZYŻEWSKI","1216072"]
["1216","SKRZYSZÓW","1216082"]
["1216","TARNÓW","1216092"]
["1216","TUCHÓW","1216103"]
["1216","WIERZCHOSŁAWICE","1216112"]
["1216","WIETRZYCHOWICE","1216122"]
["1216","WOJNICZ","1216133"]
["1216","ZAKLICZYN","1216143"]
["1216","ŻABNO","1216153"]
["1216","SZERZYNY","1216162"]
["1217","ZAKOPANE","1217011"]
["1217","BIAŁY DUNAJEC","1217022"]
["1217","BUKOWINA TATRZAŃSKA","1217032"]
["1217","KOŚCIELISKO","1217042"]
["1217","PORONIN","1217052"]
["1218","ANDRYCHÓW","1218013"]
["1218","BRZEŹNICA","1218022"]
["1218","KALWARIA ZEBRZYDOWSKA","1218033"]
["1218","LANCKORONA","1218042"]
["1218","MUCHARZ","1218052"]
["1218","SPYTKOWICE","1218062"]
["1218","STRYSZÓW","1218072"]
["1218","TOMICE","1218082"]
["1218","WADOWICE","1218093"]
["1218","WIEPRZ","1218102"]
["1219","BISKUPICE","1219012"]
["1219","GDÓW","1219022"]
["1219","KŁAJ","1219032"]
["1219","NIEPOŁOMICE","1219043"]
["1219","WIELICZKA","1219053"]
["1261","M.KRAKÓW","1261011"]
["1262","M.NOWY SĄCZ","1262011"]
["1263","M.TARNÓW","1263011"]
["1401","BIAŁOBRZEGI","1401013"]
["1401","PROMNA","1401022"]
["1401","RADZANÓW","1401032"]
["1401","STARA BŁOTNICA","1401042"]
["1401","STROMIEC","1401052"]
["1401","WYŚMIERZYCE","1401063"]
["1402","CIECHANÓW-MIEJSKA","1402011"]
["1402","CIECHANÓW-WIEJSKA","1402022"]
["1402","GLINOJECK","1402033"]
["1402","GOŁYMIN-OŚRODEK","1402042"]
["1402","GRUDUSK","1402052"]
["1402","OJRZEŃ","1402062"]
["1402","OPINOGÓRA GÓRNA","1402072"]
["1402","REGIMIN","1402082"]
["1402","SOŃSK","1402092"]
["1403","GARWOLIN-MIEJSKA","1403011"]
["1403","ŁASKARZEW-MIEJSKA","1403021"]
["1403","BOROWIE","1403032"]
["1403","GARWOLIN-WIEJSKA","1403042"]
["1403","GÓRZNO","1403052"]
["1403","ŁASKARZEW-WIEJSKA","1403062"]
["1403","MACIEJOWICE","1403072"]
["1403","MIASTKÓW KOŚCIELNY","1403082"]
["1403","PARYSÓW","1403092"]
["1403","PILAWA","1403103"]
["1403","SOBOLEW","1403112"]
["1403","TROJANÓW","1403122"]
["1403","WILGA","1403132"]
["1403","ŻELECHÓW","1403143"]
["1404","GOSTYNIN-MIEJSKA","1404011"]
["1404","GOSTYNIN-WIEJSKA","1404022"]
["1404","PACYNA","1404032"]
["1404","SANNIKI","1404043"]
["1404","SZCZAWIN KOŚCIELNY","1404052"]
["1405","MILANÓWEK","1405011"]
["1405","PODKOWA LEŚNA","1405021"]
["1405","BARANÓW","1405032"]
["1405","GRODZISK MAZOWIECKI","1405043"]
["1405","JAKTORÓW","1405052"]
["1405","ŻABIA WOLA","1405062"]
["1406","BELSK DUŻY","1406012"]
["1406","BŁĘDÓW","1406022"]
["1406","CHYNÓW","1406032"]
["1406","GOSZCZYN","1406042"]
["1406","GRÓJEC","1406053"]
["1406","JASIENIEC","1406062"]
["1406","MOGIELNICA","1406073"]
["1406","NOWE MIASTO NAD PILICĄ","1406083"]
["1406","PNIEWY","1406092"]
["1406","WARKA","1406113"]
["1407","GARBATKA-LETNISKO","1407012"]
["1407","GŁOWACZÓW","1407022"]
["1407","GNIEWOSZÓW","1407032"]
["1407","GRABÓW NAD PILICĄ","1407042"]
["1407","KOZIENICE","1407053"]
["1407","MAGNUSZEW","1407062"]
["1407","SIECIECHÓW","1407072"]
["1408","LEGIONOWO","1408011"]
["1408","JABŁONNA","1408022"]
["1408","NIEPORĘT","1408032"]
["1408","SEROCK","1408043"]
["1408","WIELISZEW","1408052"]
["1409","CHOTCZA","1409012"]
["1409","CIEPIELÓW","1409022"]
["1409","LIPSKO","1409033"]
["1409","RZECZNIÓW","1409042"]
["1409","SIENNO","1409052"]
["1409","SOLEC NAD WISŁĄ","1409063"]
["1410","HUSZLEW","1410012"]
["1410","ŁOSICE","1410023"]
["1410","OLSZANKA","1410032"]
["1410","PLATERÓW","1410042"]
["1410","SARNAKI","1410052"]
["1410","STARA KORNICA","1410062"]
["1411","MAKÓW MAZOWIECKI","1411011"]
["1411","CZERWONKA","1411022"]
["1411","KARNIEWO","1411032"]
["1411","KRASNOSIELC","1411042"]
["1411","MŁYNARZE","1411052"]
["1411","PŁONIAWY-BRAMURA","1411062"]
["1411","RÓŻAN","1411073"]
["1411","RZEWNIE","1411082"]
["1411","SYPNIEWO","1411092"]
["1411","SZELKÓW","1411102"]
["1412","MIŃSK MAZOWIECKI-MIEJSKA","1412011"]
["1412","CEGŁÓW","1412042"]
["1412","DĘBE WIELKIE","1412052"]
["1412","DOBRE","1412062"]
["1412","HALINÓW","1412073"]
["1412","JAKUBÓW","1412082"]
["1412","KAŁUSZYN","1412093"]
["1412","LATOWICZ","1412102"]
["1412","MIŃSK MAZOWIECKI-WIEJSKA","1412112"]
["1412","MROZY","1412123"]
["1412","SIENNICA","1412132"]
["1412","STANISŁAWÓW","1412142"]
["1412","SULEJÓWEK","1412151"]
["1413","MŁAWA","1413011"]
["1413","DZIERZGOWO","1413022"]
["1413","LIPOWIEC KOŚCIELNY","1413032"]
["1413","RADZANÓW","1413042"]
["1413","STRZEGOWO","1413052"]
["1413","STUPSK","1413062"]
["1413","SZREŃSK","1413072"]
["1413","SZYDŁOWO","1413082"]
["1413","WIECZFNIA KOŚCIELNA","1413092"]
["1413","WIŚNIEWO","1413102"]
["1414","NOWY DWÓR MAZOWIECKI","1414011"]
["1414","CZOSNÓW","1414022"]
["1414","LEONCIN","1414032"]
["1414","NASIELSK","1414043"]
["1414","POMIECHÓWEK","1414052"]
["1414","ZAKROCZYM","1414063"]
["1415","BARANOWO","1415012"]
["1415","CZARNIA","1415022"]
["1415","CZERWIN","1415032"]
["1415","GOWOROWO","1415042"]
["1415","KADZIDŁO","1415052"]
["1415","LELIS","1415062"]
["1415","ŁYSE","1415072"]
["1415","MYSZYNIEC","1415083"]
["1415","OLSZEWO-BORKI","1415092"]
["1415","RZEKUŃ","1415102"]
["1415","TROSZYN","1415112"]
["1416","OSTRÓW MAZOWIECKA-MIEJSKA","1416011"]
["1416","ANDRZEJEWO","1416022"]
["1416","BOGUTY-PIANKI","1416032"]
["1416","BROK","1416043"]
["1416","MAŁKINIA GÓRNA","1416052"]
["1416","NUR","1416062"]
["1416","OSTRÓW MAZOWIECKA-WIEJSKA","1416072"]
["1416","STARY LUBOTYŃ","1416082"]
["1416","SZULBORZE WIELKIE","1416092"]
["1416","WĄSEWO","1416102"]
["1416","ZARĘBY KOŚCIELNE","1416112"]
["1417","JÓZEFÓW","1417011"]
["1417","OTWOCK","1417021"]
["1417","CELESTYNÓW","1417032"]
["1417","KARCZEW","1417043"]
["1417","KOŁBIEL","1417052"]
["1417","OSIECK","1417062"]
["1417","SOBIENIE-JEZIORY","1417072"]
["1417","WIĄZOWNA","1417082"]
["1418","GÓRA KALWARIA","1418013"]
["1418","KONSTANCIN-JEZIORNA","1418023"]
["1418","LESZNOWOLA","1418032"]
["1418","PIASECZNO","1418043"]
["1418","PRAŻMÓW","1418052"]
["1418","TARCZYN","1418063"]
["1419","BIELSK","1419012"]
["1419","BODZANÓW","1419022"]
["1419","BRUDZEŃ DUŻY","1419032"]
["1419","BULKOWO","1419042"]
["1419","DROBIN","1419053"]
["1419","GĄBIN","1419063"]
["1419","ŁĄCK","1419072"]
["1419","MAŁA WIEŚ","1419082"]
["1419","NOWY DUNINÓW","1419092"]
["1419","RADZANOWO","1419102"]
["1419","SŁUBICE","1419112"]
["1419","SŁUPNO","1419122"]
["1419","STARA BIAŁA","1419132"]
["1419","STAROŹREBY","1419142"]
["1419","WYSZOGRÓD","1419153"]
["1420","PŁOŃSK-MIEJSKA","1420011"]
["1420","RACIĄŻ-MIEJSKA","1420021"]
["1420","BABOSZEWO","1420032"]
["1420","CZERWIŃSK NAD WISŁĄ","1420043"]
["1420","DZIERZĄŻNIA","1420052"]
["1420","JONIEC","1420062"]
["1420","NARUSZEWO","1420072"]
["1420","NOWE MIASTO","1420082"]
["1420","PŁOŃSK-WIEJSKA","1420092"]
["1420","RACIĄŻ-WIEJSKA","1420102"]
["1420","SOCHOCIN","1420113"]
["1420","ZAŁUSKI","1420122"]
["1421","PIASTÓW","1421011"]
["1421","PRUSZKÓW","1421021"]
["1421","BRWINÓW","1421033"]
["1421","MICHAŁOWICE","1421042"]
["1421","NADARZYN","1421052"]
["1421","RASZYN","1421062"]
["1422","PRZASNYSZ-MIEJSKA","1422011"]
["1422","CHORZELE","1422023"]
["1422","CZERNICE BOROWE","1422032"]
["1422","JEDNOROŻEC","1422042"]
["1422","KRASNE","1422052"]
["1422","KRZYNOWŁOGA MAŁA","1422062"]
["1422","PRZASNYSZ-WIEJSKA","1422072"]
["1423","BORKOWICE","1423012"]
["1423","GIELNIÓW","1423022"]
["1423","KLWÓW","1423032"]
["1423","ODRZYWÓŁ","1423042"]
["1423","POTWORÓW","1423052"]
["1423","PRZYSUCHA","1423063"]
["1423","RUSINÓW","1423072"]
["1423","WIENIAWA","1423082"]
["1424","GZY","1424012"]
["1424","OBRYTE","1424022"]
["1424","POKRZYWNICA","1424032"]
["1424","PUŁTUSK","1424043"]
["1424","ŚWIERCZE","1424052"]
["1424","WINNICA","1424062"]
["1424","ZATORY","1424072"]
["1425","PIONKI-MIEJSKA","1425011"]
["1425","GÓZD","1425022"]
["1425","IŁŻA","1425033"]
["1425","JASTRZĘBIA","1425042"]
["1425","JEDLIŃSK","1425052"]
["1425","JEDLNIA-LETNISKO","1425062"]
["1425","KOWALA","1425072"]
["1425","PIONKI-WIEJSKA","1425082"]
["1425","PRZYTYK","1425092"]
["1425","SKARYSZEW","1425103"]
["1425","WIERZBICA","1425112"]
["1425","WOLANÓW","1425122"]
["1425","ZAKRZEW","1425132"]
["1426","DOMANICE","1426012"]
["1426","KORCZEW","1426022"]
["1426","KOTUŃ","1426032"]
["1426","MOKOBODY","1426042"]
["1426","MORDY","1426053"]
["1426","PAPROTNIA","1426062"]
["1426","PRZESMYKI","1426072"]
["1426","SIEDLCE","1426082"]
["1426","SKÓRZEC","1426092"]
["1426","SUCHOŻEBRY","1426102"]
["1426","WIŚNIEW","1426112"]
["1426","WODYNIE","1426122"]
["1426","ZBUCZYN","1426132"]
["1427","SIERPC-MIEJSKA","1427011"]
["1427","GOZDOWO","1427022"]
["1427","MOCHOWO","1427032"]
["1427","ROŚCISZEWO","1427042"]
["1427","SIERPC-WIEJSKA","1427052"]
["1427","SZCZUTOWO","1427062"]
["1427","ZAWIDZ","1427072"]
["1428","SOCHACZEW-MIEJSKA","1428011"]
["1428","BROCHÓW","1428022"]
["1428","IŁÓW","1428032"]
["1428","MŁODZIESZYN","1428042"]
["1428","NOWA SUCHA","1428052"]
["1428","RYBNO","1428062"]
["1428","SOCHACZEW-WIEJSKA","1428072"]
["1428","TERESIN","1428082"]
["1429","SOKOŁÓW PODLASKI-MIEJSKA","1429011"]
["1429","BIELANY","1429022"]
["1429","CERANÓW","1429032"]
["1429","JABŁONNA LACKA","1429042"]
["1429","KOSÓW LACKI","1429053"]
["1429","REPKI","1429062"]
["1429","SABNIE","1429072"]
["1429","SOKOŁÓW PODLASKI-WIEJSKA","1429082"]
["1429","STERDYŃ","1429092"]
["1430","CHLEWISKA","1430012"]
["1430","JASTRZĄB","1430022"]
["1430","MIRÓW","1430032"]
["1430","OROŃSKO","1430042"]
["1430","SZYDŁOWIEC","1430053"]
["1432","BŁONIE","1432013"]
["1432","IZABELIN","1432022"]
["1432","KAMPINOS","1432032"]
["1432","LESZNO","1432042"]
["1432","ŁOMIANKI","1432053"]
["1432","OŻARÓW MAZOWIECKI","1432063"]
["1432","STARE BABICE","1432072"]
["1433","WĘGRÓW","1433011"]
["1433","GRĘBKÓW","1433022"]
["1433","KORYTNICA","1433032"]
["1433","LIW","1433042"]
["1433","ŁOCHÓW","1433053"]
["1433","MIEDZNA","1433062"]
["1433","SADOWNE","1433072"]
["1433","STOCZEK","1433082"]
["1433","WIERZBNO","1433092"]
["1434","KOBYŁKA","1434011"]
["1434","MARKI","1434021"]
["1434","ZĄBKI","1434031"]
["1434","ZIELONKA","1434041"]
["1434","DĄBRÓWKA","1434052"]
["1434","JADÓW","1434062"]
["1434","KLEMBÓW","1434072"]
["1434","POŚWIĘTNE","1434082"]
["1434","RADZYMIN","1434093"]
["1434","STRACHÓWKA","1434102"]
["1434","TŁUSZCZ","1434113"]
["1434","WOŁOMIN","1434123"]
["1435","BRAŃSZCZYK","1435012"]
["1435","DŁUGOSIODŁO","1435022"]
["1435","RZĄŚNIK","1435032"]
["1435","SOMIANKA","1435042"]
["1435","WYSZKÓW","1435053"]
["1435","ZABRODZIE","1435062"]
["1436","KAZANÓW","1436012"]
["1436","POLICZNA","1436022"]
["1436","PRZYŁĘK","1436032"]
["1436","TCZÓW","1436042"]
["1436","ZWOLEŃ","1436053"]
["1437","BIEŻUŃ","1437013"]
["1437","KUCZBORK-OSADA","1437022"]
["1437","LUBOWIDZ","1437033"]
["1437","LUTOCIN","1437042"]
["1437","SIEMIĄTKOWO","1437052"]
["1437","ŻUROMIN","1437063"]
["1438","ŻYRARDÓW","1438011"]
["1438","MSZCZONÓW","1438023"]
["1438","PUSZCZA MARIAŃSKA","1438032"]
["1438","RADZIEJOWICE","1438042"]
["1438","WISKITKI","1438053"]
["1461","M.OSTROŁĘKA","1461011"]
["1462","M.PŁOCK","1462011"]
["1463","M.RADOM","1463011"]
["1464","M.SIEDLCE","1464011"]
["1465","M.ST.WARSZAWA","1465011"]
["1601","BRZEG","1601011"]
["1601","SKARBIMIERZ","1601022"]
["1601","GRODKÓW","1601033"]
["1601","LEWIN BRZESKI","1601043"]
["1601","LUBSZA","1601052"]
["1601","OLSZANKA","1601062"]
["1602","BABORÓW","1602013"]
["1602","BRANICE","1602022"]
["1602","GŁUBCZYCE","1602033"]
["1602","KIETRZ","1602043"]
["1603","KĘDZIERZYN-KOŹLE","1603011"]
["1603","BIERAWA","1603022"]
["1603","CISEK","1603032"]
["1603","PAWŁOWICZKI","1603042"]
["1603","POLSKA CEREKIEW","1603052"]
["1603","REŃSKA WIEŚ","1603062"]
["1604","BYCZYNA","1604013"]
["1604","KLUCZBORK","1604023"]
["1604","LASOWICE WIELKIE","1604032"]
["1604","WOŁCZYN","1604043"]
["1605","GOGOLIN","1605013"]
["1605","KRAPKOWICE","1605023"]
["1605","STRZELECZKI","1605032"]
["1605","WALCE","1605042"]
["1605","ZDZIESZOWICE","1605053"]
["1606","DOMASZOWICE","1606012"]
["1606","NAMYSŁÓW","1606023"]
["1606","POKÓJ","1606032"]
["1606","ŚWIERCZÓW","1606042"]
["1606","WILKÓW","1606052"]
["1607","GŁUCHOŁAZY","1607013"]
["1607","KAMIENNIK","1607022"]
["1607","KORFANTÓW","1607033"]
["1607","ŁAMBINOWICE","1607042"]
["1607","NYSA","1607053"]
["1607","OTMUCHÓW","1607063"]
["1607","PACZKÓW","1607073"]
["1607","PAKOSŁAWICE","1607082"]
["1607","SKOROSZYCE","1607092"]
["1608","DOBRODZIEŃ","1608013"]
["1608","GORZÓW ŚLĄSKI","1608023"]
["1608","OLESNO","1608033"]
["1608","PRASZKA","1608043"]
["1608","RADŁÓW","1608052"]
["1608","RUDNIKI","1608062"]
["1608","ZĘBOWICE","1608072"]
["1609","CHRZĄSTOWICE","1609012"]
["1609","DĄBROWA","1609022"]
["1609","DOBRZEŃ WIELKI","1609032"]
["1609","KOMPRACHCICE","1609042"]
["1609","ŁUBNIANY","1609052"]
["1609","MURÓW","1609062"]
["1609","NIEMODLIN","1609073"]
["1609","OZIMEK","1609083"]
["1609","POPIELÓW","1609092"]
["1609","PRÓSZKÓW","1609103"]
["1609","TARNÓW OPOLSKI","1609112"]
["1609","TUŁOWICE","1609123"]
["1609","TURAWA","1609132"]
["1610","BIAŁA","1610013"]
["1610","GŁOGÓWEK","1610023"]
["1610","LUBRZA","1610032"]
["1610","PRUDNIK","1610043"]
["1611","IZBICKO","1611012"]
["1611","JEMIELNICA","1611022"]
["1611","KOLONOWSKIE","1611033"]
["1611","LEŚNICA","1611043"]
["1611","STRZELCE OPOLSKIE","1611053"]
["1611","UJAZD","1611063"]
["1611","ZAWADZKIE","1611073"]
["1661","M.OPOLE","1661011"]
["1801","CZARNA","1801032"]
["1801","LUTOWISKA","1801052"]
["1801","USTRZYKI DOLNE","1801083"]
["1802","BRZOZÓW","1802013"]
["1802","DOMARADZ","1802022"]
["1802","DYDNIA","1802032"]
["1802","HACZÓW","1802042"]
["1802","JASIENICA ROSIELNA","1802052"]
["1802","NOZDRZEC","1802062"]
["1803","DĘBICA-MIEJSKA","1803011"]
["1803","BRZOSTEK","1803023"]
["1803","CZARNA","1803032"]
["1803","DĘBICA-WIEJSKA","1803042"]
["1803","JODŁOWA","1803052"]
["1803","PILZNO","1803063"]
["1803","ŻYRAKÓW","1803072"]
["1804","JAROSŁAW-MIEJSKA","1804011"]
["1804","RADYMNO-MIEJSKA","1804021"]
["1804","CHŁOPICE","1804032"]
["1804","JAROSŁAW-WIEJSKA","1804042"]
["1804","LASZKI","1804052"]
["1804","PAWŁOSIÓW","1804062"]
["1804","PRUCHNIK","1804073"]
["1804","RADYMNO-WIEJSKA","1804082"]
["1804","ROKIETNICA","1804092"]
["1804","ROŹWIENICA","1804102"]
["1804","WIĄZOWNICA","1804112"]
["1805","JASŁO-MIEJSKA","1805011"]
["1805","BRZYSKA","1805022"]
["1805","DĘBOWIEC","1805032"]
["1805","JASŁO-WIEJSKA","1805042"]
["1805","KOŁACZYCE","1805053"]
["1805","KREMPNA","1805062"]
["1805","NOWY ŻMIGRÓD","1805072"]
["1805","OSIEK JASIELSKI","1805082"]
["1805","SKOŁYSZYN","1805092"]
["1805","TARNOWIEC","1805112"]
["1806","CMOLAS","1806012"]
["1806","KOLBUSZOWA","1806023"]
["1806","MAJDAN KRÓLEWSKI","1806032"]
["1806","NIWISKA","1806042"]
["1806","RANIŻÓW","1806052"]
["1806","DZIKOWIEC","1806062"]
["1807","CHORKÓWKA","1807012"]
["1807","DUKLA","1807023"]
["1807","IWONICZ-ZDRÓJ","1807033"]
["1807","JEDLICZE","1807043"]
["1807","KORCZYNA","1807052"]
["1807","KROŚCIENKO WYŻNE","1807062"]
["1807","MIEJSCE PIASTOWE","1807072"]
["1807","RYMANÓW","1807083"]
["1807","WOJASZÓWKA","1807092"]
["1807","JAŚLISKA","1807102"]
["1808","LEŻAJSK-MIEJSKA","1808011"]
["1808","GRODZISKO DOLNE","1808022"]
["1808","KURYŁÓWKA","1808032"]
["1808","LEŻAJSK-WIEJSKA","1808042"]
["1808","NOWA SARZYNA","1808053"]
["1809","LUBACZÓW-MIEJSKA","1809011"]
["1809","CIESZANÓW","1809023"]
["1809","HORYNIEC-ZDRÓJ","1809032"]
["1809","LUBACZÓW-WIEJSKA","1809042"]
["1809","NAROL","1809053"]
["1809","OLESZYCE","1809063"]
["1809","STARY DZIKÓW","1809072"]
["1809","WIELKIE OCZY","1809082"]
["1810","ŁAŃCUT-MIEJSKA","1810011"]
["1810","BIAŁOBRZEGI","1810022"]
["1810","CZARNA","1810032"]
["1810","ŁAŃCUT-WIEJSKA","1810042"]
["1810","MARKOWA","1810052"]
["1810","RAKSZAWA","1810062"]
["1810","ŻOŁYNIA","1810072"]
["1811","MIELEC-MIEJSKA","1811011"]
["1811","BOROWA","1811022"]
["1811","CZERMIN","1811032"]
["1811","GAWŁUSZOWICE","1811042"]
["1811","MIELEC-WIEJSKA","1811052"]
["1811","PADEW NARODOWA","1811062"]
["1811","PRZECŁAW","1811073"]
["1811","RADOMYŚL WIELKI","1811083"]
["1811","TUSZÓW NARODOWY","1811092"]
["1811","WADOWICE GÓRNE","1811102"]
["1812","HARASIUKI","1812012"]
["1812","JAROCIN","1812022"]
["1812","JEŻOWE","1812032"]
["1812","KRZESZÓW","1812042"]
["1812","NISKO","1812053"]
["1812","RUDNIK NAD SANEM","1812063"]
["1812","ULANÓW","1812073"]
["1813","BIRCZA","1813012"]
["1813","DUBIECKO","1813023"]
["1813","FREDROPOL","1813032"]
["1813","KRASICZYN","1813042"]
["1813","KRZYWCZA","1813052"]
["1813","MEDYKA","1813062"]
["1813","ORŁY","1813072"]
["1813","PRZEMYŚL","1813082"]
["1813","STUBNO","1813092"]
["1813","ŻURAWICA","1813102"]
["1814","PRZEWORSK-MIEJSKA","1814011"]
["1814","ADAMÓWKA","1814022"]
["1814","GAĆ","1814032"]
["1814","JAWORNIK POLSKI","1814042"]
["1814","KAŃCZUGA","1814053"]
["1814","PRZEWORSK-WIEJSKA","1814062"]
["1814","SIENIAWA","1814073"]
["1814","TRYŃCZA","1814082"]
["1814","ZARZECZE","1814092"]
["1815","IWIERZYCE","1815012"]
["1815","OSTRÓW","1815022"]
["1815","ROPCZYCE","1815033"]
["1815","SĘDZISZÓW MAŁOPOLSKI","1815043"]
["1815","WIELOPOLE SKRZYŃSKIE","1815052"]
["1816","DYNÓW-MIEJSKA","1816011"]
["1816","BŁAŻOWA","1816023"]
["1816","BOGUCHWAŁA","1816033"]
["1816","CHMIELNIK","1816042"]
["1816","DYNÓW-WIEJSKA","1816052"]
["1816","GŁOGÓW MAŁOPOLSKI","1816063"]
["1816","HYŻNE","1816072"]
["1816","KAMIEŃ","1816082"]
["1816","KRASNE","1816092"]
["1816","LUBENIA","1816102"]
["1816","SOKOŁÓW MAŁOPOLSKI","1816113"]
["1816","ŚWILCZA","1816122"]
["1816","TRZEBOWNISKO","1816132"]
["1816","TYCZYN","1816143"]
["1817","SANOK-MIEJSKA","1817011"]
["1817","BESKO","1817022"]
["1817","BUKOWSKO","1817032"]
["1817","KOMAŃCZA","1817042"]
["1817","SANOK-WIEJSKA","1817052"]
["1817","TYRAWA WOŁOSKA","1817062"]
["1817","ZAGÓRZ","1817073"]
["1817","ZARSZYN","1817082"]
["1818","STALOWA WOLA","1818011"]
["1818","BOJANÓW","1818022"]
["1818","PYSZNICA","1818032"]
["1818","RADOMYŚL NAD SANEM","1818042"]
["1818","ZAKLIKÓW","1818053"]
["1818","ZALESZANY","1818062"]
["1819","CZUDEC","1819012"]
["1819","FRYSZTAK","1819022"]
["1819","NIEBYLEC","1819032"]
["1819","STRZYŻÓW","1819043"]
["1819","WIŚNIOWA","1819052"]
["1820","BARANÓW SANDOMIERSKI","1820013"]
["1820","GORZYCE","1820022"]
["1820","GRĘBÓW","1820032"]
["1820","NOWA DĘBA","1820043"]
["1821","BALIGRÓD","1821012"]
["1821","CISNA","1821022"]
["1821","LESKO","1821033"]
["1821","OLSZANICA","1821042"]
["1821","SOLINA","1821052"]
["1861","M.KROSNO","1861011"]
["1862","M.PRZEMYŚL","1862011"]
["1863","M.RZESZÓW","1863011"]
["1864","M.TARNOBRZEG","1864011"]
["2001","AUGUSTÓW-MIEJSKA","2001011"]
["2001","AUGUSTÓW-WIEJSKA","2001022"]
["2001","BARGŁÓW KOŚCIELNY","2001032"]
["2001","LIPSK","2001043"]
["2001","NOWINKA","2001052"]
["2001","PŁASKA","2001062"]
["2001","SZTABIN","2001072"]
["2002","CHOROSZCZ","2002013"]
["2002","CZARNA BIAŁOSTOCKA","2002023"]
["2002","DOBRZYNIEWO DUŻE","2002032"]
["2002","GRÓDEK","2002042"]
["2002","JUCHNOWIEC KOŚCIELNY","2002052"]
["2002","ŁAPY","2002063"]
["2002","MICHAŁOWO","2002073"]
["2002","POŚWIĘTNE","2002082"]
["2002","SUPRAŚL","2002093"]
["2002","SURAŻ","2002103"]
["2002","TUROŚŃ KOŚCIELNA","2002112"]
["2002","TYKOCIN","2002123"]
["2002","WASILKÓW","2002133"]
["2002","ZABŁUDÓW","2002143"]
["2002","ZAWADY","2002152"]
["2003","BIELSK PODLASKI-MIEJSKA","2003011"]
["2003","BRAŃSK-MIEJSKA","2003021"]
["2003","BIELSK PODLASKI-WIEJSKA","2003032"]
["2003","BOĆKI","2003042"]
["2003","BRAŃSK-WIEJSKA","2003052"]
["2003","ORLA","2003062"]
["2003","RUDKA","2003072"]
["2003","WYSZKI","2003082"]
["2004","GRAJEWO-MIEJSKA","2004011"]
["2004","GRAJEWO-WIEJSKA","2004022"]
["2004","RADZIŁÓW","2004032"]
["2004","RAJGRÓD","2004043"]
["2004","SZCZUCZYN","2004053"]
["2004","WĄSOSZ","2004062"]
["2005","HAJNÓWKA-MIEJSKA","2005011"]
["2005","BIAŁOWIEŻA","2005022"]
["2005","CZEREMCHA","2005032"]
["2005","CZYŻE","2005042"]
["2005","DUBICZE CERKIEWNE","2005052"]
["2005","HAJNÓWKA-WIEJSKA","2005062"]
["2005","KLESZCZELE","2005073"]
["2005","NAREW","2005082"]
["2005","NAREWKA","2005092"]
["2006","KOLNO","2006011"]
["2006","GRABOWO","2006022"]
["2006","KOLNO-MIEJSKA","2006032"]
["2006","MAŁY PŁOCK","2006042"]
["2006","STAWISKI","2006053"]
["2006","TUROŚL","2006062"]
["2007","JEDWABNE","2007013"]
["2007","ŁOMŻA","2007022"]
["2007","MIASTKOWO","2007032"]
["2007","NOWOGRÓD","2007043"]
["2007","PIĄTNICA","2007052"]
["2007","PRZYTUŁY","2007062"]
["2007","ŚNIADOWO","2007072"]
["2007","WIZNA","2007082"]
["2007","ZBÓJNA","2007092"]
["2008","GONIĄDZ","2008013"]
["2008","JASIONÓWKA","2008022"]
["2008","JAŚWIŁY","2008032"]
["2008","KNYSZYN","2008043"]
["2008","KRYPNO","2008052"]
["2008","MOŃKI","2008063"]
["2008","TRZCIANNE","2008072"]
["2009","SEJNY-MIEJSKA","2009011"]
["2009","GIBY","2009022"]
["2009","KRASNOPOL","2009032"]
["2009","PUŃSK","2009042"]
["2009","SEJNY-WIEJSKA","2009052"]
["2010","SIEMIATYCZE-MIEJSKA","2010011"]
["2010","DROHICZYN","2010023"]
["2010","DZIADKOWICE","2010032"]
["2010","GRODZISK","2010042"]
["2010","MIELNIK","2010052"]
["2010","MILEJCZYCE","2010062"]
["2010","NURZEC-STACJA","2010072"]
["2010","PERLEJEWO","2010082"]
["2010","SIEMIATYCZE-WIEJSKA","2010092"]
["2011","DĄBROWA BIAŁOSTOCKA","2011013"]
["2011","JANÓW","2011022"]
["2011","KORYCIN","2011032"]
["2011","KRYNKI","2011043"]
["2011","KUŹNICA","2011052"]
["2011","NOWY DWÓR","2011062"]
["2011","SIDRA","2011072"]
["2011","SOKÓŁKA","2011083"]
["2011","SUCHOWOLA","2011093"]
["2011","SZUDZIAŁOWO","2011102"]
["2012","BAKAŁARZEWO","2012012"]
["2012","FILIPÓW","2012022"]
["2012","JELENIEWO","2012032"]
["2012","PRZEROŚL","2012042"]
["2012","RACZKI","2012052"]
["2012","RUTKA-TARTAK","2012062"]
["2012","SUWAŁKI","2012072"]
["2012","SZYPLISZKI","2012082"]
["2012","WIŻAJNY","2012092"]
["2013","WYSOKIE MAZOWIECKIE-MIEJSKA","2013011"]
["2013","CIECHANOWIEC","2013023"]
["2013","CZYŻEW","2013033"]
["2013","KLUKOWO","2013042"]
["2013","KOBYLIN-BORZYMY","2013052"]
["2013","KULESZE KOŚCIELNE","2013062"]
["2013","NOWE PIEKUTY","2013072"]
["2013","SOKOŁY","2013082"]
["2013","SZEPIETOWO","2013093"]
["2013","WYSOKIE MAZOWIECKIE-WIEJSKA","2013102"]
["2014","ZAMBRÓW-MIEJSKA","2014011"]
["2014","KOŁAKI KOŚCIELNE","2014022"]
["2014","RUTKI","2014032"]
["2014","SZUMOWO","2014042"]
["2014","ZAMBRÓW-WIEJSKA","2014052"]
["2061","M.BIAŁYSTOK","2061011"]
["2062","M.ŁOMŻA","2062011"]
["2063","M.SUWAŁKI","2063011"]
["2201","BORZYTUCHOM","2201012"]
["2201","BYTÓW","2201023"]
["2201","CZARNA DĄBRÓWKA","2201032"]
["2201","KOŁCZYGŁOWY","2201042"]
["2201","LIPNICA","2201052"]
["2201","MIASTKO","2201063"]
["2201","PARCHOWO","2201072"]
["2201","STUDZIENICE","2201082"]
["2201","TRZEBIELINO","2201092"]
["2201","TUCHOMIE","2201102"]
["2202","CHOJNICE-MIEJSKA","2202011"]
["2202","BRUSY","2202023"]
["2202","CHOJNICE-WIEJSKA","2202032"]
["2202","CZERSK","2202043"]
["2202","KONARZYNY","2202052"]
["2203","CZŁUCHÓW-MIEJSKA","2203011"]
["2203","CZARNE","2203023"]
["2203","CZŁUCHÓW-WIEJSKA","2203032"]
["2203","DEBRZNO","2203043"]
["2203","KOCZAŁA","2203052"]
["2203","PRZECHLEWO","2203062"]
["2203","RZECZENICA","2203072"]
["2204","PRUSZCZ GDAŃSKI-MIEJSKA","2204011"]
["2204","CEDRY WIELKIE","2204022"]
["2204","KOLBUDY","2204032"]
["2204","PRUSZCZ GDAŃSKI-WIEJSKA","2204042"]
["2204","PRZYWIDZ","2204052"]
["2204","PSZCZÓŁKI","2204062"]
["2204","SUCHY DĄB","2204072"]
["2204","TRĄBKI WIELKIE","2204082"]
["2205","CHMIELNO","2205012"]
["2205","KARTUZY","2205023"]
["2205","PRZODKOWO","2205032"]
["2205","SIERAKOWICE","2205042"]
["2205","SOMONINO","2205052"]
["2205","STĘŻYCA","2205062"]
["2205","SULĘCZYNO","2205072"]
["2205","ŻUKOWO","2205083"]
["2206","KOŚCIERZYNA-MIEJSKA","2206011"]
["2206","DZIEMIANY","2206022"]
["2206","KARSIN","2206032"]
["2206","KOŚCIERZYNA-WIEJSKA","2206042"]
["2206","LINIEWO","2206052"]
["2206","LIPUSZ","2206062"]
["2206","NOWA KARCZMA","2206072"]
["2206","STARA KISZEWA","2206082"]
["2207","KWIDZYN-MIEJSKA","2207011"]
["2207","GARDEJA","2207022"]
["2207","KWIDZYN-WIEJSKA","2207032"]
["2207","PRABUTY","2207043"]
["2207","RYJEWO","2207052"]
["2207","SADLINKI","2207062"]
["2208","LĘBORK","2208011"]
["2208","ŁEBA","2208021"]
["2208","CEWICE","2208032"]
["2208","NOWA WIEŚ LĘBORSKA","2208042"]
["2208","WICKO","2208052"]
["2209","MALBORK-MIEJSKA","2209011"]
["2209","LICHNOWY","2209032"]
["2209","MALBORK-WIEJSKA","2209042"]
["2209","MIŁORADZ","2209062"]
["2209","NOWY STAW","2209073"]
["2209","STARE POLE","2209082"]
["2210","KRYNICA MORSKA","2210011"]
["2210","NOWY DWÓR GDAŃSKI","2210023"]
["2210","OSTASZEWO","2210032"]
["2210","STEGNA","2210042"]
["2210","SZTUTOWO","2210052"]
["2211","HEL","2211011"]
["2211","JASTARNIA","2211023"]
["2211","PUCK-MIEJSKA","2211031"]
["2211","WŁADYSŁAWOWO","2211043"]
["2211","KOSAKOWO","2211052"]
["2211","KROKOWA","2211062"]
["2211","PUCK-WIEJSKA","2211072"]
["2212","USTKA-MIEJSKA","2212011"]
["2212","DAMNICA","2212022"]
["2212","DĘBNICA KASZUBSKA","2212032"]
["2212","GŁÓWCZYCE","2212042"]
["2212","KĘPICE","2212053"]
["2212","KOBYLNICA","2212062"]
["2212","POTĘGOWO","2212072"]
["2212","SŁUPSK","2212082"]
["2212","SMOŁDZINO","2212092"]
["2212","USTKA-WIEJSKA","2212102"]
["2213","CZARNA WODA","2213013"]
["2213","SKÓRCZ-MIEJSKA","2213021"]
["2213","STAROGARD GDAŃSKI-MIEJSKA","2213031"]
["2213","BOBOWO","2213042"]
["2213","KALISKA","2213052"]
["2213","LUBICHOWO","2213062"]
["2213","OSIECZNA","2213072"]
["2213","OSIEK","2213082"]
["2213","SKARSZEWY","2213093"]
["2213","SKÓRCZ-WIEJSKA","2213102"]
["2213","SMĘTOWO GRANICZNE","2213112"]
["2213","STAROGARD GDAŃSKI-WIEJSKA","2213122"]
["2213","ZBLEWO","2213132"]
["2214","TCZEW-MIEJSKA","2214011"]
["2214","GNIEW","2214023"]
["2214","MORZESZCZYN","2214032"]
["2214","PELPLIN","2214043"]
["2214","SUBKOWY","2214052"]
["2214","TCZEW-WIEJSKA","2214062"]
["2215","REDA","2215011"]
["2215","RUMIA","2215021"]
["2215","WEJHEROWO-MIEJSKA","2215031"]
["2215","CHOCZEWO","2215042"]
["2215","GNIEWINO","2215052"]
["2215","LINIA","2215062"]
["2215","LUZINO","2215072"]
["2215","ŁĘCZYCE","2215082"]
["2215","SZEMUD","2215092"]
["2215","WEJHEROWO-WIEJSKA","2215102"]
["2216","DZIERZGOŃ","2216013"]
["2216","MIKOŁAJKI POMORSKIE","2216022"]
["2216","STARY DZIERZGOŃ","2216032"]
["2216","STARY TARG","2216042"]
["2216","SZTUM","2216053"]
["2261","M.GDAŃSK","2261011"]
["2262","M.GDYNIA","2262011"]
["2263","M.SŁUPSK","2263011"]
["2264","M.SOPOT","2264011"]
["2401","BĘDZIN","2401011"]
["2401","CZELADŹ","2401021"]
["2401","WOJKOWICE","2401031"]
["2401","BOBROWNIKI","2401042"]
["2401","MIERZĘCICE","2401052"]
["2401","PSARY","2401062"]
["2401","SIEWIERZ","2401073"]
["2401","SŁAWKÓW","2401081"]
["2402","SZCZYRK","2402011"]
["2402","BESTWINA","2402022"]
["2402","BUCZKOWICE","2402032"]
["2402","CZECHOWICE-DZIEDZICE","2402043"]
["2402","JASIENICA","2402052"]
["2402","JAWORZE","2402062"]
["2402","KOZY","2402072"]
["2402","PORĄBKA","2402082"]
["2402","WILAMOWICE","2402093"]
["2402","WILKOWICE","2402102"]
["2403","CIESZYN","2403011"]
["2403","USTROŃ","2403021"]
["2403","WISŁA","2403031"]
["2403","BRENNA","2403042"]
["2403","CHYBIE","2403052"]
["2403","DĘBOWIEC","2403062"]
["2403","GOLESZÓW","2403072"]
["2403","HAŻLACH","2403082"]
["2403","ISTEBNA","2403092"]
["2403","SKOCZÓW","2403103"]
["2403","STRUMIEŃ","2403113"]
["2403","ZEBRZYDOWICE","2403122"]
["2404","BLACHOWNIA","2404013"]
["2404","DĄBROWA ZIELONA","2404022"]
["2404","JANÓW","2404032"]
["2404","KAMIENICA POLSKA","2404042"]
["2404","KŁOMNICE","2404052"]
["2404","KONIECPOL","2404063"]
["2404","KONOPISKA","2404072"]
["2404","KRUSZYNA","2404082"]
["2404","LELÓW","2404092"]
["2404","MSTÓW","2404102"]
["2404","MYKANÓW","2404112"]
["2404","OLSZTYN","2404122"]
["2404","POCZESNA","2404132"]
["2404","PRZYRÓW","2404142"]
["2404","RĘDZINY","2404152"]
["2404","STARCZA","2404162"]
["2405","KNURÓW","2405011"]
["2405","PYSKOWICE","2405021"]
["2405","GIERAŁTOWICE","2405032"]
["2405","PILCHOWICE","2405042"]
["2405","RUDZINIEC","2405052"]
["2405","SOŚNICOWICE","2405063"]
["2405","TOSZEK","2405073"]
["2405","WIELOWIEŚ","2405082"]
["2406","KŁOBUCK","2406013"]
["2406","KRZEPICE","2406023"]
["2406","LIPIE","2406032"]
["2406","MIEDŹNO","2406042"]
["2406","OPATÓW","2406052"]
["2406","PANKI","2406062"]
["2406","POPÓW","2406072"]
["2406","PRZYSTAJŃ","2406082"]
["2406","WRĘCZYCA WIELKA","2406092"]
["2407","LUBLINIEC","2407011"]
["2407","BORONÓW","2407022"]
["2407","CIASNA","2407032"]
["2407","HERBY","2407042"]
["2407","KOCHANOWICE","2407052"]
["2407","KOSZĘCIN","2407062"]
["2407","PAWONKÓW","2407072"]
["2407","WOŹNIKI","2407083"]
["2408","ŁAZISKA GÓRNE","2408011"]
["2408","MIKOŁÓW","2408021"]
["2408","ORZESZE","2408031"]
["2408","ORNONTOWICE","2408042"]
["2408","WYRY","2408052"]
["2409","MYSZKÓW","2409011"]
["2409","KOZIEGŁOWY","2409023"]
["2409","NIEGOWA","2409032"]
["2409","PORAJ","2409042"]
["2409","ŻARKI","2409053"]
["2410","GOCZAŁKOWICE-ZDRÓJ","2410012"]
["2410","KOBIÓR","2410022"]
["2410","MIEDŹNA","2410032"]
["2410","PAWŁOWICE","2410042"]
["2410","PSZCZYNA","2410053"]
["2410","SUSZEC","2410062"]
["2411","RACIBÓRZ","2411011"]
["2411","KORNOWAC","2411022"]
["2411","KRZANOWICE","2411033"]
["2411","KRZYŻANOWICE","2411042"]
["2411","KUŹNIA RACIBORSKA","2411053"]
["2411","NĘDZA","2411062"]
["2411","PIETROWICE WIELKIE","2411072"]
["2411","RUDNIK","2411082"]
["2412","CZERWIONKA-LESZCZYNY","2412013"]
["2412","GASZOWICE","2412022"]
["2412","JEJKOWICE","2412032"]
["2412","LYSKI","2412042"]
["2412","ŚWIERKLANY","2412052"]
["2413","KALETY","2413011"]
["2413","MIASTECZKO ŚLĄSKIE","2413021"]
["2413","RADZIONKÓW","2413031"]
["2413","TARNOWSKIE GÓRY","2413041"]
["2413","KRUPSKI MŁYN","2413052"]
["2413","OŻAROWICE","2413062"]
["2413","ŚWIERKLANIEC","2413072"]
["2413","TWORÓG","2413082"]
["2413","ZBROSŁAWICE","2413092"]
["2414","BIERUŃ","2414011"]
["2414","IMIELIN","2414021"]
["2414","LĘDZINY","2414031"]
["2414","BOJSZOWY","2414042"]
["2414","CHEŁM ŚLĄSKI","2414052"]
["2415","PSZÓW","2415011"]
["2415","RADLIN","2415021"]
["2415","RYDUŁTOWY","2415031"]
["2415","WODZISŁAW ŚLĄSKI","2415041"]
["2415","GODÓW","2415052"]
["2415","GORZYCE","2415062"]
["2415","LUBOMIA","2415072"]
["2415","MARKLOWICE","2415082"]
["2415","MSZANA","2415092"]
["2416","PORĘBA","2416011"]
["2416","ZAWIERCIE","2416021"]
["2416","IRZĄDZE","2416032"]
["2416","KROCZYCE","2416042"]
["2416","ŁAZY","2416053"]
["2416","OGRODZIENIEC","2416063"]
["2416","PILICA","2416073"]
["2416","SZCZEKOCINY","2416083"]
["2416","WŁODOWICE","2416092"]
["2416","ŻARNOWIEC","2416102"]
["2417","ŻYWIEC","2417011"]
["2417","CZERNICHÓW","2417022"]
["2417","GILOWICE","2417032"]
["2417","JELEŚNIA","2417042"]
["2417","KOSZARAWA","2417052"]
["2417","LIPOWA","2417062"]
["2417","ŁĘKAWICA","2417072"]
["2417","ŁODYGOWICE","2417082"]
["2417","MILÓWKA","2417092"]
["2417","RADZIECHOWY-WIEPRZ","2417102"]
["2417","RAJCZA","2417112"]
["2417","ŚLEMIEŃ","2417122"]
["2417","ŚWINNA","2417132"]
["2417","UJSOŁY","2417142"]
["2417","WĘGIERSKA GÓRKA","2417152"]
["2461","M.BIELSKO-BIAŁA","2461011"]
["2462","M.BYTOM","2462011"]
["2463","M.CHORZÓW","2463011"]
["2464","M.CZĘSTOCHOWA","2464011"]
["2465","M.DĄBROWA GÓRNICZA","2465011"]
["2466","M.GLIWICE","2466011"]
["2467","M.JASTRZĘBIE-ZDRÓJ","2467011"]
["2468","M.JAWORZNO","2468011"]
["2469","M.KATOWICE","2469011"]
["2470","M.MYSŁOWICE","2470011"]
["2471","M.PIEKARY ŚLĄSKIE","2471011"]
["2472","M.RUDA ŚLĄSKA","2472011"]
["2473","M.RYBNIK","2473011"]
["2474","M.SIEMIANOWICE ŚLĄSKIE","2474011"]
["2475","M.SOSNOWIEC","2475011"]
["2476","M.ŚWIĘTOCHŁOWICE","2476011"]
["2477","M.TYCHY","2477011"]
["2478","M.ZABRZE","2478011"]
["2479","M.ŻORY","2479011"]
["2601","BUSKO-ZDRÓJ","2601013"]
["2601","GNOJNO","2601022"]
["2601","NOWY KORCZYN","2601033"]
["2601","PACANÓW","2601043"]
["2601","SOLEC-ZDRÓJ","2601052"]
["2601","STOPNICA","2601063"]
["2601","TUCZĘPY","2601072"]
["2601","WIŚLICA","2601083"]
["2602","IMIELNO","2602012"]
["2602","JĘDRZEJÓW","2602023"]
["2602","MAŁOGOSZCZ","2602033"]
["2602","NAGŁOWICE","2602042"]
["2602","OKSA","2602052"]
["2602","SĘDZISZÓW","2602063"]
["2602","SŁUPIA/JĘDRZEJOWSKA/","2602072"]
["2602","SOBKÓW","2602082"]
["2602","WODZISŁAW","2602093"]
["2603","BEJSCE","2603012"]
["2603","CZARNOCIN","2603022"]
["2603","KAZIMIERZA WIELKA","2603033"]
["2603","OPATOWIEC","2603043"]
["2603","SKALBMIERZ","2603053"]
["2604","BIELINY","2604012"]
["2604","BODZENTYN","2604023"]
["2604","CHĘCINY","2604033"]
["2604","CHMIELNIK","2604043"]
["2604","DALESZYCE","2604053"]
["2604","GÓRNO","2604062"]
["2604","ŁAGÓW","2604073"]
["2604","ŁOPUSZNO","2604082"]
["2604","MASŁÓW","2604092"]
["2604","MIEDZIANA GÓRA","2604102"]
["2604","MNIÓW","2604112"]
["2604","MORAWICA","2604123"]
["2604","NOWA SŁUPIA","2604133"]
["2604","PIEKOSZÓW","2604142"]
["2604","PIERZCHNICA","2604153"]
["2604","RAKÓW","2604162"]
["2604","SITKÓWKA-NOWINY","2604172"]
["2604","STRAWCZYN","2604182"]
["2604","ZAGNAŃSK","2604192"]
["2605","FAŁKÓW","2605012"]
["2605","GOWARCZÓW","2605022"]
["2605","KOŃSKIE","2605033"]
["2605","RADOSZYCE","2605043"]
["2605","RUDA MALENIECKA","2605052"]
["2605","SŁUPIA (KONECKA)","2605062"]
["2605","SMYKÓW","2605072"]
["2605","STĄPORKÓW","2605083"]
["2606","BAĆKOWICE","2606012"]
["2606","IWANISKA","2606022"]
["2606","LIPNIK","2606032"]
["2606","OPATÓW","2606043"]
["2606","OŻARÓW","2606053"]
["2606","SADOWIE","2606062"]
["2606","TARŁÓW","2606072"]
["2606","WOJCIECHOWICE","2606082"]
["2607","OSTROWIEC ŚWIĘTOKRZYSKI","2607011"]
["2607","BAŁTÓW","2607022"]
["2607","BODZECHÓW","2607032"]
["2607","ĆMIELÓW","2607043"]
["2607","KUNÓW","2607053"]
["2607","WAŚNIÓW","2607062"]
["2608","DZIAŁOSZYCE","2608013"]
["2608","KIJE","2608022"]
["2608","MICHAŁÓW","2608032"]
["2608","PIŃCZÓW","2608043"]
["2608","ZŁOTA","2608052"]
["2609","SANDOMIERZ","2609011"]
["2609","DWIKOZY","2609022"]
["2609","KLIMONTÓW","2609033"]
["2609","KOPRZYWNICA","2609043"]
["2609","ŁONIÓW","2609052"]
["2609","OBRAZÓW","2609062"]
["2609","SAMBORZEC","2609072"]
["2609","WILCZYCE","2609082"]
["2609","ZAWICHOST","2609093"]
["2610","SKARŻYSKO-KAMIENNA","2610011"]
["2610","BLIŻYN","2610022"]
["2610","ŁĄCZNA","2610032"]
["2610","SKARŻYSKO KOŚCIELNE","2610042"]
["2610","SUCHEDNIÓW","2610053"]
["2611","STARACHOWICE","2611011"]
["2611","BRODY","2611022"]
["2611","MIRZEC","2611032"]
["2611","PAWŁÓW","2611042"]
["2611","WĄCHOCK","2611053"]
["2612","BOGORIA","2612012"]
["2612","ŁUBNICE","2612022"]
["2612","OLEŚNICA","2612033"]
["2612","OSIEK","2612043"]
["2612","POŁANIEC","2612053"]
["2612","RYTWIANY","2612062"]
["2612","STASZÓW","2612073"]
["2612","SZYDŁÓW","2612083"]
["2613","KLUCZEWSKO","2613012"]
["2613","KRASOCIN","2613022"]
["2613","MOSKORZEW","2613032"]
["2613","RADKÓW","2613042"]
["2613","SECEMIN","2613052"]
["2613","WŁOSZCZOWA","2613063"]
["2661","M.KIELCE","2661011"]
["2801","BARTOSZYCE-MIEJSKA","2801011"]
["2801","GÓROWO IŁAWECKIE-MIEJSKA","2801021"]
["2801","BARTOSZYCE-WIEJSKA","2801032"]
["2801","BISZTYNEK","2801043"]
["2801","GÓROWO IŁAWECKIE-WIEJSKA","2801052"]
["2801","SĘPOPOL","2801063"]
["2802","BRANIEWO-MIEJSKA","2802011"]
["2802","BRANIEWO-WIEJSKA","2802022"]
["2802","FROMBORK","2802033"]
["2802","LELKOWO","2802042"]
["2802","PIENIĘŻNO","2802053"]
["2802","PŁOSKINIA","2802062"]
["2802","WILCZĘTA","2802072"]
["2803","DZIAŁDOWO-MIEJSKA","2803011"]
["2803","DZIAŁDOWO-WIEJSKA","2803022"]
["2803","IŁOWO-OSADA","2803032"]
["2803","LIDZBARK","2803043"]
["2803","PŁOŚNICA","2803052"]
["2803","RYBNO","2803062"]
["2804","ELBLĄG","2804012"]
["2804","GODKOWO","2804022"]
["2804","GRONOWO ELBLĄSKIE","2804032"]
["2804","MARKUSY","2804042"]
["2804","MILEJEWO","2804052"]
["2804","MŁYNARY","2804063"]
["2804","PASŁĘK","2804073"]
["2804","RYCHLIKI","2804082"]
["2804","TOLKMICKO","2804093"]
["2805","EŁK-MIEJSKA","2805011"]
["2805","EŁK-WIEJSKA","2805022"]
["2805","KALINOWO","2805032"]
["2805","PROSTKI","2805042"]
["2805","STARE JUCHY","2805052"]
["2806","GIŻYCKO-MIEJSKA","2806011"]
["2806","GIŻYCKO-WIEJSKA","2806042"]
["2806","KRUKLANKI","2806052"]
["2806","MIŁKI","2806062"]
["2806","RYN","2806083"]
["2806","WYDMINY","2806102"]
["2807","IŁAWA-MIEJSKA","2807011"]
["2807","LUBAWA-MIEJSKA","2807021"]
["2807","IŁAWA-WIEJSKA","2807032"]
["2807","KISIELICE","2807043"]
["2807","LUBAWA-WIEJSKA","2807052"]
["2807","SUSZ","2807063"]
["2807","ZALEWO","2807073"]
["2808","KĘTRZYN-MIEJSKA","2808011"]
["2808","BARCIANY","2808022"]
["2808","KĘTRZYN-WIEJSKA","2808032"]
["2808","KORSZE","2808043"]
["2808","RESZEL","2808053"]
["2808","SROKOWO","2808062"]
["2809","LIDZBARK WARMIŃSKI-MIEJSKA","2809011"]
["2809","KIWITY","2809022"]
["2809","LIDZBARK WARMIŃSKI-WIEJSKA","2809032"]
["2809","LUBOMINO","2809042"]
["2809","ORNETA","2809053"]
["2810","MRĄGOWO-MIEJSKA","2810011"]
["2810","MIKOŁAJKI","2810023"]
["2810","MRĄGOWO-WIEJSKA","2810032"]
["2810","PIECKI","2810042"]
["2810","SORKWITY","2810052"]
["2811","JANOWIEC KOŚCIELNY","2811012"]
["2811","JANOWO","2811022"]
["2811","KOZŁOWO","2811032"]
["2811","NIDZICA","2811043"]
["2812","NOWE MIASTO LUBAWSKIE-MIEJSKA","2812011"]
["2812","BISKUPIEC","2812022"]
["2812","GRODZICZNO","2812032"]
["2812","KURZĘTNIK","2812042"]
["2812","NOWE MIASTO LUBAWSKIE-WIEJSKA","2812052"]
["2813","KOWALE OLECKIE","2813032"]
["2813","OLECKO","2813043"]
["2813","ŚWIĘTAJNO","2813052"]
["2813","WIELICZKI","2813062"]
["2814","BARCZEWO","2814013"]
["2814","BISKUPIEC","2814023"]
["2814","DOBRE MIASTO","2814033"]
["2814","DYWITY","2814042"]
["2814","GIETRZWAŁD","2814052"]
["2814","JEZIORANY","2814063"]
["2814","JONKOWO","2814072"]
["2814","KOLNO-WIEJSKA","2814082"]
["2814","OLSZTYNEK","2814093"]
["2814","PURDA","2814102"]
["2814","STAWIGUDA","2814112"]
["2814","ŚWIĄTKI","2814122"]
["2815","OSTRÓDA-MIEJSKA","2815011"]
["2815","DĄBRÓWNO","2815022"]
["2815","GRUNWALD","2815032"]
["2815","ŁUKTA","2815042"]
["2815","MAŁDYTY","2815052"]
["2815","MIŁAKOWO","2815063"]
["2815","MIŁOMŁYN","2815073"]
["2815","MORĄG","2815083"]
["2815","OSTRÓDA-WIEJSKA","2815092"]
["2816","BIAŁA PISKA","2816013"]
["2816","ORZYSZ","2816023"]
["2816","PISZ","2816033"]
["2816","RUCIANE-NIDA","2816043"]
["2817","SZCZYTNO-MIEJSKA","2817011"]
["2817","DŹWIERZUTY","2817022"]
["2817","JEDWABNO","2817032"]
["2817","PASYM","2817043"]
["2817","ROZOGI","2817052"]
["2817","SZCZYTNO-WIEJSKA","2817062"]
["2817","ŚWIĘTAJNO","2817072"]
["2817","WIELBARK","2817083"]
["2818","BANIE MAZURSKIE","2818012"]
["2818","DUBENINKI","2818022"]
["2818","GOŁDAP","2818033"]
["2819","BUDRY","2819012"]
["2819","POZEZDRZE","2819022"]
["2819","WĘGORZEWO","2819033"]
["2861","M.ELBLĄG","2861011"]
["2862","M.OLSZTYN","2862011"]
["3001","CHODZIEŻ-MIEJSKA","3001011"]
["3001","BUDZYŃ","3001023"]
["3001","CHODZIEŻ-WIEJSKA","3001032"]
["3001","MARGONIN","3001043"]
["3001","SZAMOCIN","3001053"]
["3002","CZARNKÓW-MIEJSKA","3002011"]
["3002","CZARNKÓW-WIEJSKA","3002022"]
["3002","DRAWSKO","3002032"]
["3002","KRZYŻ WIELKOPOLSKI","3002043"]
["3002","LUBASZ","3002052"]
["3002","POŁAJEWO","3002062"]
["3002","TRZCIANKA","3002073"]
["3002","WIELEŃ","3002083"]
["3003","GNIEZNO-MIEJSKA","3003011"]
["3003","CZERNIEJEWO","3003023"]
["3003","GNIEZNO-WIEJSKA","3003032"]
["3003","KISZKOWO","3003042"]
["3003","KŁECKO","3003053"]
["3003","ŁUBOWO","3003062"]
["3003","MIELESZYN","3003072"]
["3003","NIECHANOWO","3003082"]
["3003","TRZEMESZNO","3003093"]
["3003","WITKOWO","3003103"]
["3004","BOREK WIELKOPOLSKI","3004013"]
["3004","GOSTYŃ","3004023"]
["3004","KROBIA","3004033"]
["3004","PĘPOWO","3004042"]
["3004","PIASKI","3004052"]
["3004","POGORZELA","3004063"]
["3004","PONIEC","3004073"]
["3005","GRANOWO","3005012"]
["3005","GRODZISK WIELKOPOLSKI","3005023"]
["3005","KAMIENIEC","3005032"]
["3005","RAKONIEWICE","3005043"]
["3005","WIELICHOWO","3005053"]
["3006","JARACZEWO","3006013"]
["3006","JAROCIN","3006023"]
["3006","KOTLIN","3006032"]
["3006","ŻERKÓW","3006043"]
["3007","BLIZANÓW","3007012"]
["3007","BRZEZINY","3007022"]
["3007","CEKÓW-KOLONIA","3007032"]
["3007","GODZIESZE WIELKIE","3007042"]
["3007","KOŹMINEK","3007053"]
["3007","LISKÓW","3007062"]
["3007","MYCIELIN","3007072"]
["3007","OPATÓWEK","3007083"]
["3007","STAWISZYN","3007093"]
["3007","SZCZYTNIKI","3007102"]
["3007","ŻELAZKÓW","3007112"]
["3008","BARANÓW","3008012"]
["3008","BRALIN","3008022"]
["3008","KĘPNO","3008033"]
["3008","ŁĘKA OPATOWSKA","3008042"]
["3008","PERZÓW","3008052"]
["3008","RYCHTAL","3008062"]
["3008","TRZCINICA","3008072"]
["3009","KOŁO-MIEJSKA","3009011"]
["3009","BABIAK","3009022"]
["3009","CHODÓW","3009032"]
["3009","DĄBIE","3009043"]
["3009","GRZEGORZEW","3009052"]
["3009","KŁODAWA","3009063"]
["3009","KOŁO-WIEJSKA","3009072"]
["3009","KOŚCIELEC","3009082"]
["3009","OLSZÓWKA","3009092"]
["3009","OSIEK MAŁY","3009102"]
["3009","PRZEDECZ","3009113"]
["3010","GOLINA","3010013"]
["3010","GRODZIEC","3010022"]
["3010","KAZIMIERZ BISKUPI","3010032"]
["3010","KLECZEW","3010043"]
["3010","KRAMSK","3010052"]
["3010","KRZYMÓW","3010062"]
["3010","RYCHWAŁ","3010073"]
["3010","RZGÓW","3010082"]
["3010","SKULSK","3010092"]
["3010","SOMPOLNO","3010103"]
["3010","STARE MIASTO","3010112"]
["3010","ŚLESIN","3010123"]
["3010","WIERZBINEK","3010132"]
["3010","WILCZYN","3010142"]
["3011","KOŚCIAN-MIEJSKA","3011011"]
["3011","CZEMPIŃ","3011023"]
["3011","KOŚCIAN-WIEJSKA","3011032"]
["3011","KRZYWIŃ","3011043"]
["3011","ŚMIGIEL","3011053"]
["3012","SULMIERZYCE","3012011"]
["3012","KOBYLIN","3012023"]
["3012","KOŹMIN WIELKOPOLSKI","3012033"]
["3012","KROTOSZYN","3012043"]
["3012","ROZDRAŻEW","3012052"]
["3012","ZDUNY","3012063"]
["3013","KRZEMIENIEWO","3013012"]
["3013","LIPNO","3013022"]
["3013","OSIECZNA","3013033"]
["3013","RYDZYNA","3013043"]
["3013","ŚWIĘCIECHOWA","3013052"]
["3013","WIJEWO","3013062"]
["3013","WŁOSZAKOWICE","3013072"]
["3014","CHRZYPSKO WIELKIE","3014012"]
["3014","KWILCZ","3014022"]
["3014","MIĘDZYCHÓD","3014033"]
["3014","SIERAKÓW","3014043"]
["3015","KUŚLIN","3015012"]
["3015","LWÓWEK","3015023"]
["3015","MIEDZICHOWO","3015032"]
["3015","NOWY TOMYŚL","3015043"]
["3015","OPALENICA","3015053"]
["3015","ZBĄSZYŃ","3015063"]
["3016","OBORNIKI","3016013"]
["3016","ROGOŹNO","3016023"]
["3016","RYCZYWÓŁ","3016032"]
["3017","OSTRÓW WIELKOPOLSKI-MIEJSKA","3017011"]
["3017","NOWE SKALMIERZYCE","3017023"]
["3017","ODOLANÓW","3017033"]
["3017","OSTRÓW WIELKOPOLSKI-WIEJSKA","3017042"]
["3017","PRZYGODZICE","3017052"]
["3017","RASZKÓW","3017063"]
["3017","SIEROSZEWICE","3017072"]
["3017","SOŚNIE","3017082"]
["3018","CZAJKÓW","3018012"]
["3018","DORUCHÓW","3018022"]
["3018","GRABÓW NAD PROSNĄ","3018033"]
["3018","KOBYLA GÓRA","3018042"]
["3018","KRASZEWICE","3018052"]
["3018","MIKSTAT","3018063"]
["3018","OSTRZESZÓW","3018073"]
["3019","PIŁA","3019011"]
["3019","BIAŁOŚLIWIE","3019022"]
["3019","KACZORY","3019032"]
["3019","ŁOBŻENICA","3019043"]
["3019","MIASTECZKO KRAJEŃSKIE","3019052"]
["3019","SZYDŁOWO","3019062"]
["3019","UJŚCIE","3019073"]
["3019","WYRZYSK","3019083"]
["3019","WYSOKA","3019093"]
["3020","CHOCZ","3020013"]
["3020","CZERMIN","3020022"]
["3020","DOBRZYCA","3020033"]
["3020","GIZAŁKI","3020042"]
["3020","GOŁUCHÓW","3020052"]
["3020","PLESZEW","3020063"]
["3021","LUBOŃ","3021011"]
["3021","PUSZCZYKOWO","3021021"]
["3021","BUK","3021033"]
["3021","CZERWONAK","3021042"]
["3021","DOPIEWO","3021052"]
["3021","KLESZCZEWO","3021062"]
["3021","KOMORNIKI","3021072"]
["3021","KOSTRZYN","3021083"]
["3021","KÓRNIK","3021093"]
["3021","MOSINA","3021103"]
["3021","MUROWANA GOŚLINA","3021113"]
["3021","POBIEDZISKA","3021123"]
["3021","ROKIETNICA","3021132"]
["3021","STĘSZEW","3021143"]
["3021","SUCHY LAS","3021152"]
["3021","SWARZĘDZ","3021163"]
["3021","TARNOWO PODGÓRNE","3021172"]
["3022","BOJANOWO","3022013"]
["3022","JUTROSIN","3022023"]
["3022","MIEJSKA GÓRKA","3022033"]
["3022","PAKOSŁAW","3022042"]
["3022","RAWICZ","3022053"]
["3023","SŁUPCA-MIEJSKA","3023011"]
["3023","LĄDEK","3023022"]
["3023","ORCHOWO","3023032"]
["3023","OSTROWITE","3023042"]
["3023","POWIDZ","3023052"]
["3023","SŁUPCA-WIEJSKA","3023062"]
["3023","STRZAŁKOWO","3023072"]
["3023","ZAGÓRÓW","3023083"]
["3024","OBRZYCKO-MIEJSKA","3024011"]
["3024","DUSZNIKI","3024022"]
["3024","KAŹMIERZ","3024032"]
["3024","OBRZYCKO-WIEJSKA","3024042"]
["3024","OSTRORÓG","3024053"]
["3024","PNIEWY","3024063"]
["3024","SZAMOTUŁY","3024073"]
["3024","WRONKI","3024083"]
["3025","DOMINOWO","3025012"]
["3025","KRZYKOSY","3025022"]
["3025","NOWE MIASTO NAD WARTĄ","3025032"]
["3025","ŚRODA WIELKOPOLSKA","3025043"]
["3025","ZANIEMYŚL","3025052"]
["3026","BRODNICA-WIEJSKA","3026012"]
["3026","DOLSK","3026023"]
["3026","KSIĄŻ WIELKOPOLSKI","3026033"]
["3026","ŚREM","3026043"]
["3027","TUREK-MIEJSKA","3027011"]
["3027","BRUDZEW","3027022"]
["3027","DOBRA","3027033"]
["3027","KAWĘCZYN","3027042"]
["3027","MALANÓW","3027052"]
["3027","PRZYKONA","3027062"]
["3027","TULISZKÓW","3027073"]
["3027","TUREK-WIEJSKA","3027082"]
["3027","WŁADYSŁAWÓW","3027092"]
["3028","WĄGROWIEC-MIEJSKA","3028011"]
["3028","DAMASŁAWEK","3028022"]
["3028","GOŁAŃCZ","3028033"]
["3028","MIEŚCISKO","3028042"]
["3028","SKOKI","3028053"]
["3028","WAPNO","3028062"]
["3028","WĄGROWIEC-WIEJSKA","3028072"]
["3029","PRZEMĘT","3029012"]
["3029","SIEDLEC","3029022"]
["3029","WOLSZTYN","3029033"]
["3030","KOŁACZKOWO","3030012"]
["3030","MIŁOSŁAW","3030023"]
["3030","NEKLA","3030033"]
["3030","PYZDRY","3030043"]
["3030","WRZEŚNIA","3030053"]
["3031","ZŁOTÓW-MIEJSKA","3031011"]
["3031","JASTROWIE","3031023"]
["3031","KRAJENKA","3031033"]
["3031","LIPKA","3031042"]
["3031","OKONEK","3031053"]
["3031","TARNÓWKA","3031062"]
["3031","ZAKRZEWO","3031072"]
["3031","ZŁOTÓW-WIEJSKA","3031082"]
["3061","M.KALISZ","3061011"]
["3062","M.KONIN","3062011"]
["3063","M.LESZNO","3063011"]
["3064","M.POZNAŃ","3064011"]
["3201","BIAŁOGARD-MIEJSKA","3201011"]
["3201","BIAŁOGARD-WIEJSKA","3201022"]
["3201","KARLINO","3201033"]
["3201","TYCHOWO","3201043"]
["3202","BIERZWNIK","3202012"]
["3202","CHOSZCZNO","3202023"]
["3202","DRAWNO","3202033"]
["3202","KRZĘCIN","3202042"]
["3202","PEŁCZYCE","3202053"]
["3202","RECZ","3202063"]
["3203","CZAPLINEK","3203013"]
["3203","DRAWSKO POMORSKIE","3203023"]
["3203","KALISZ POMORSKI","3203033"]
["3203","WIERZCHOWO","3203052"]
["3203","ZŁOCIENIEC","3203063"]
["3204","GOLENIÓW","3204023"]
["3204","MASZEWO","3204033"]
["3204","NOWOGARD","3204043"]
["3204","OSINA","3204052"]
["3204","PRZYBIERNÓW","3204062"]
["3204","STEPNICA","3204073"]
["3205","BROJCE","3205012"]
["3205","GRYFICE","3205023"]
["3205","KARNICE","3205032"]
["3205","PŁOTY","3205043"]
["3205","REWAL","3205072"]
["3205","TRZEBIATÓW","3205083"]
["3206","BANIE","3206012"]
["3206","CEDYNIA","3206023"]
["3206","CHOJNA","3206033"]
["3206","GRYFINO","3206043"]
["3206","MIESZKOWICE","3206053"]
["3206","MORYŃ","3206063"]
["3206","STARE CZARNOWO","3206072"]
["3206","TRZCIŃSKO-ZDRÓJ","3206083"]
["3206","WIDUCHOWA","3206092"]
["3207","DZIWNÓW","3207013"]
["3207","GOLCZEWO","3207023"]
["3207","KAMIEŃ POMORSKI","3207033"]
["3207","MIĘDZYZDROJE","3207043"]
["3207","ŚWIERZNO","3207052"]
["3207","WOLIN","3207063"]
["3208","KOŁOBRZEG-MIEJSKA","3208011"]
["3208","DYGOWO","3208022"]
["3208","GOŚCINO","3208033"]
["3208","KOŁOBRZEG-WIEJSKA","3208042"]
["3208","RYMAŃ","3208052"]
["3208","SIEMYŚL","3208062"]
["3208","USTRONIE MORSKIE","3208072"]
["3209","BĘDZINO","3209012"]
["3209","BIESIEKIERZ","3209022"]
["3209","BOBOLICE","3209033"]
["3209","MANOWO","3209042"]
["3209","MIELNO","3209053"]
["3209","POLANÓW","3209063"]
["3209","SIANÓW","3209073"]
["3209","ŚWIESZYNO","3209082"]
["3210","BARLINEK","3210013"]
["3210","BOLESZKOWICE","3210022"]
["3210","DĘBNO","3210033"]
["3210","MYŚLIBÓRZ","3210043"]
["3210","NOWOGRÓDEK POMORSKI","3210052"]
["3211","DOBRA (SZCZECIŃSKA)","3211012"]
["3211","KOŁBASKOWO","3211022"]
["3211","NOWE WARPNO","3211033"]
["3211","POLICE","3211043"]
["3212","BIELICE","3212012"]
["3212","KOZIELICE","3212022"]
["3212","LIPIANY","3212033"]
["3212","PRZELEWICE","3212042"]
["3212","PYRZYCE","3212053"]
["3212","WARNICE","3212062"]
["3213","DARŁOWO-MIEJSKA","3213011"]
["3213","SŁAWNO-MIEJSKA","3213021"]
["3213","DARŁOWO-WIEJSKA","3213032"]
["3213","MALECHOWO","3213042"]
["3213","POSTOMINO","3213052"]
["3213","SŁAWNO-WIEJSKA","3213062"]
["3214","STARGARD SZCZECIŃSKI-MIEJSKA","3214011"]
["3214","CHOCIWEL","3214023"]
["3214","DOBRZANY","3214033"]
["3214","DOLICE","3214042"]
["3214","IŃSKO","3214053"]
["3214","KOBYLANKA","3214062"]
["3214","MARIANOWO","3214082"]
["3214","STARA DĄBROWA","3214092"]
["3214","STARGARD SZCZECIŃSKI-WIEJSKA","3214102"]
["3214","SUCHAŃ","3214113"]
["3215","SZCZECINEK-MIEJSKA","3215011"]
["3215","BARWICE","3215023"]
["3215","BIAŁY BÓR","3215033"]
["3215","BORNE SULINOWO","3215043"]
["3215","GRZMIĄCA","3215052"]
["3215","SZCZECINEK-WIEJSKA","3215062"]
["3216","ŚWIDWIN-MIEJSKA","3216011"]
["3216","BRZEŻNO","3216022"]
["3216","POŁCZYN-ZDRÓJ","3216033"]
["3216","RĄBINO","3216042"]
["3216","SŁAWOBORZE","3216052"]
["3216","ŚWIDWIN-WIEJSKA","3216062"]
["3217","WAŁCZ-MIEJSKA","3217011"]
["3217","CZŁOPA","3217023"]
["3217","MIROSŁAWIEC","3217033"]
["3217","TUCZNO","3217043"]
["3217","WAŁCZ-WIEJSKA","3217052"]
["3218","DOBRA","3218013"]
["3218","ŁOBEZ","3218023"]
["3218","RADOWO MAŁE","3218032"]
["3218","RESKO","3218043"]
["3218","WĘGORZYNO","3218053"]
["3261","M.KOSZALIN","3261011"]
["3262","M.SZCZECIN","3262011"]
["3263","M.ŚWINOUJŚCIE","3263011"]

{"sheet":"A","index":9,"n_rows":2,"n_cols":1,"rows_kept":2,"cut":false,"hidden":true,"merged":[]}
["2025-08-31"]
["Licencja programu wygasła. Zapraszamy na SignForm.pl tel. 608 43 63 83"]